Workbook

Sheet START

Sheet Instructions
D2: 2020
X4: Yes
X5: No
W7: Type of Entities Range:
X8: Parent Municipality
X9: Consolidated Information
W17: MTREF Range: | X17: 2008
X18: 2009
X19: 2010
X20: 2011
X21: 2012
X22: 2013
X23: 2014
X24: 2015
X25: 2016
X26: 2017
X27: 2018
X28: 2019
X29: 2020
X30: 2021
X31: 2022
W33: MTREF Linked: | X33: 13
W34: MTREF: | X34: =INDEX(X17:X31,X33,1) -> 2020
W36: Fin Year: | X36: =MTREF&"/"&RIGHT(MTREF,2)+1 -> 2020/21

Sheet Template names (hidden)
A1: Common sheet headings
A2: Head1 | B2: =HLOOKUP(MTREF,Headings,2) -> 2018/19 | C2: Prior year -1
A3: Head1A | B3: =HLOOKUP(MTREF,Headings,3) -> 2017/18 | C3: Prior year -2
A4: Head1B | B4: =HLOOKUP(MTREF,Headings,4) -> 2016/17 | C4: Prior year -3
A5: Head2 | B5: =HLOOKUP(MTREF,Headings,5) -> Current Year 2019/20 | C5: Year in which budget is being prepared
A6: Head2A | B6: =HLOOKUP(MTREF,Headings,6) -> 2019/20 | C6: Year in which budget is being prepared
A7: Head3 | B7: =HLOOKUP(MTREF,Headings,7) -> 2020/21 Medium Term Revenue & Expenditure Framework | C7: MTREF name
A8: Head4 | B8: LTFS | C8: Long term financial strategy
A9: Head5 | B9: Audited Outcome
A10: Head5A | B10: Outcome
A11: Head5B | B11: Pre-audit outcome
A12: Head6 | B12: Original Budget
A13: Head7 | B13: Adjusted Budget
A14: Head8 | B14: Full Year Forecast
A15: Head9 | B15: =HLOOKUP(MTREF,Headings,8) -> Budget Year 2020/21 | C15: 1st year of MTREF | D15: Year1
A16: Head10 | B16: =HLOOKUP(MTREF,Headings,9) -> Budget Year +1 2021/22 | C16: 2nd year of MTREF | D16: Year2
A17: Head11 | B17: =HLOOKUP(MTREF,Headings,10) -> Budget Year +2 2022/23 | C17: 3rd year of MTREF | D17: Year3
A18: Head12 | B18: =HLOOKUP(MTREF,Headings,11) -> Forecast 2023/24 | C18: 1st yr of long term forecast | D18: Year4
A19: Head13 | B19: =HLOOKUP(MTREF,Headings,12) -> Forecast 2024/25 | C19: Next yr of long term forecast | D19: Year5
A20: Head14 | B20: =HLOOKUP(MTREF,Headings,13) -> Forecast 2025/26 | C20: Next yr of long term forecast | D20: Year6
A21: Head15 | B21: =HLOOKUP(MTREF,Headings,14) -> Forecast 2026/27 | C21: Next yr of long term forecast | D21: Year7
A22: Head16 | B22: =HLOOKUP(MTREF,Headings,15) -> Forecast 2027/28 | C22: Next yr of long term forecast | D22: Year8
A23: Head17 | B23: =HLOOKUP(MTREF,Headings,16) -> Forecast 2028/29 | C23: Next yr of long term forecast | D23: Year9
A24: Head18 | B24: =HLOOKUP(MTREF,Headings,17) -> Forecast 2029/30 | C24: Next yr of long term forecast | D24: Year10
A25: Head19 | B25: =HLOOKUP(MTREF,Headings,18) -> Forecast 2030/31 | C25: Next yr of long term forecast | D25: Year11
A26: Head20 | B26: =HLOOKUP(MTREF,Headings,19) -> Forecast 2031/32 | C26: Next yr of long term forecast | D26: Year12
A27: Head21 | B27: =HLOOKUP(MTREF,Headings,20) -> Forecast 2032/33 | C27: Next yr of long term forecast | D27: Year13
A28: Head22 | B28: =HLOOKUP(MTREF,Headings,21) -> Forecast 2033/34 | C28: Next yr of long term forecast | D28: Year14
A29: Head23 | B29: =HLOOKUP(MTREF,Headings,22) -> Forecast 2034/35 | C29: Next yr of long term forecast | D29: Year15
A30: Head24 | B30: Description
A31: Head25
A32: Head26 | B32: Vote Description
A33: Head27 | B33: Ref
A34: Head27a | B34: References
A35: Head28 | B35: Surplus/(Deficit) for the year | D35: Result
A36: Head29 | B36: =HLOOKUP(MTREF,Headings,23) -> Annual target 2020/21
A37: Head30 | B37: =HLOOKUP(MTREF,Headings,24) -> Revised target 2020/21
A38: Head31 | B38: Quarter ended 30 September
A39: Head32 | B39: Quarter ended 31 December
A40: Head33 | B40: Quarter ended 31 March
A41: Head34 | B41: Quarter ended 30 June
A42: Head35 | B42: Variance explanation
A43: Head36 | B43: YTD Actual 31 Dec
A44: Head37 | B44: YTD Budget 31 Dec
A45: Head38 | B45: Monthly actual
A46: Head39 | B46: YTD actual
A47: Head40 | B47: YTD budget
A48: Head41 | B48: YTD variance
A49: Head42 | B49: Surplus/ (Deficit) for the yr/period
A50: Head43 | B50: =Head3&" Summary" -> 2020/21 Medium Term Revenue & Expenditure Framework Summary
A51: Head44 | B51: 2001 Census
A52: Head45 | B52: 2011 Census
A53: Head46 | B53: - Adjustments Budget - January 2007
A54: Head47 | B54: Previous target year to complete
A55: Head48 | B55: Present value
A56: Head49
A57: Head50 | B57: Other Adjusts.
A58: Head51 | B58: Accum. Funds
A59: Head52 | B59: Multi-year capital
A60: Head53 | B60: Unfore. Unavoid.
A61: Head54 | B61: Prior Adjusted
A62: Head55 | B62: Nat. or Prov. Govt
A63: Head56 | B63: Total Adjusts.
A64: SFPerf1 | B64: Budgeted Financial Performance
A65: SFPerf2 | B65: Forecast Financial Performance
A66: SFPos1 | B66: Budgeted Financial Position
A67: SFPos2 | B67: Forecast Financial Position
A68: Cash1 | B68: Budget Cash Flow
A69: Cash2 | B69: Forecast Cash Flow
A70: RandM | B70: Expenditure includes repairs & maintenance of R'000
A71: Depart1 | B71: Department 1 - | D71: DEP1
A72: Depart2 | B72: Department 2 - | D72: DEP2
A73: Depart3 | B73: Department 3 - | D73: DEP3
A74: Depart4 | B74: Department 4 - | D74: DEP4
A75: Depart5 | B75: Department 5 - | D75: DEP5
A76: Depart6 | B76: Department 6 - | D76: DEP6
A77: Depart7 | B77: Department 7 - | D77: DEP7
A78: Depart8 | B78: Department 8 - | D78: DEP8
A79: Depart9 | B79: Department 9 - | D79: DEP9
A80: Depart10 | B80: Department 10 - | D80: DEP10
A81: Depart11 | B81: Department 11 - | D81: DEP11
A82: Depart12 | B82: Department 12 - | D82: DEP12
A83: Depart13 | B83: Department 13 - | D83: DEP13
A84: Depart14 | B84: Department 14 - | D84: DEP14
A87: Base year of forecast column selection names
A88: Choose | B88: ACT
B89: APP
B90: ADJ
A92: Standard nomenclature
A93: Muni | B93: ='Lookup and lists'!B28 -> LIM353 Molemole
A94: Municipal Entities | B94: 2 | C94: Type of report: | D94: 1
A95: =IF((MuniEntities=1)*(MuniType=2),"YES","NO") -> NO | B95: Does this municipality have entities (consolidated budget and entity budgets required)? YES/NO
A96: Entity 1 | B96: (Pty) Ltd Example 1 - Municipal entity - | D96: Ent1
A97: Entity 2 | B97: (Pty) Ltd Example 2 - Municipal entity - | D97: Ent2
A98: Entity 3 | B98: Municipal Entity Example 3 | D98: Ent3
A99: Budget approval tables | C99: Chart x-ref | D99: Sch/Tab/Ch | E99: Alternative for municipalities without entities | F99: Alternative for municipalities without entities
B100: =IF(Consolques="YES",E100,F100) -> Table A1 Budget Summary | D100: Table A1 | E100: =D100&"Consolidated Budget Summary" -> Table A1 Consolidated Budget Summary | F100: =D100&"Budget Summary" -> Table A1 Budget Summary
B101: Table A2 Budgeted Financial Performance (revenue and expenditure by functional classification) | C101: Charts 5, 6 | D101: Table A2 | E101: =D101&"Consolidated Budgeted Financial Performance (revenue and expenditure by functional classification)" -> Table A2 Consolidated Budgeted Financial Performance (revenue and expenditure by functional classification) | F101: =D101&"Budgeted Financial Performance (revenue and expenditure by functional classification)" -> Table A2 Budgeted Financial Performance (revenue and expenditure by functional classification)
B102: Table A3 Budgeted Financial Performance (revenue and expenditure by municipal vote) | D102: Table A3 | E102: =D102&"Consolidated Budgeted Financial Performance (revenue and expenditure by municipal vote)" -> Table A3 Consolidated Budgeted Financial Performance (revenue and expenditure by municipal vote) | F102: =D102&"Budgeted Financial Performance (revenue and expenditure by municipal vote)" -> Table A3 Budgeted Financial Performance (revenue and expenditure by municipal vote)
B103: Table A4 Budgeted Financial Performance (revenue and expenditure) | C103: Charts 1, 2, 3, 4 | D103: Table A4 | E103: =D103&"Consolidated Budgeted Financial Performance (revenue and expenditure)" -> Table A4 Consolidated Budgeted Financial Performance (revenue and expenditure) | F103: =D103&"Budgeted Financial Performance (revenue and expenditure)" -> Table A4 Budgeted Financial Performance (revenue and expenditure)
B104: Table A5 Budgeted Capital Expenditure by vote, functional classification and funding | C104: Charts 7, 8, 9, 10, 20 | D104: Table A5 | E104: =D104&"Consolidated Budgeted Capital Expenditure by vote, functional classification and funding" -> Table A5 Consolidated Budgeted Capital Expenditure by vote, functional classification and funding | F104: =D104&"Budgeted Capital Expenditure by vote, functional classification and funding" -> Table A5 Budgeted Capital Expenditure by vote, functional classification and funding
B105: Table A6 Budgeted Financial Position | D105: Table A6 | E105: =D105&"Consolidated Budgeted Financial Position" -> Table A6 Consolidated Budgeted Financial Position | F105: =D105&"Budgeted Financial Position" -> Table A6 Budgeted Financial Position
B106: Table A7 Budgeted Cash Flows | D106: Table A7 | E106: =D106&"Consolidated Budgeted Cash Flows" -> Table A7 Consolidated Budgeted Cash Flows | F106: =D106&"Budgeted Cash Flows" -> Table A7 Budgeted Cash Flows
B107: Table A8 Cash backed reserves/accumulated surplus reconciliation | D107: Table A8 | E107: =D107&"Consolidated Cash backed reserves/accumulated surplus reconciliation" -> Table A8 Consolidated Cash backed reserves/accumulated surplus reconciliation | F107: =D107&"Cash backed reserves/accumulated surplus reconciliation" -> Table A8 Cash backed reserves/accumulated surplus reconciliation
B108: Table A9 Asset Management | D108: Table A9 | E108: =D108&"Consolidated Asset Management" -> Table A9 Consolidated Asset Management | F108: =D108&"Asset Management" -> Table A9 Asset Management
B109: Table A10 Basic service delivery measurement | D109: Table A10 | E109: =D109&"Consolidated basic service delivery measurement" -> Table A10 Consolidated basic service delivery measurement | F109: =D109&"Basic service delivery measurement" -> Table A10 Basic service delivery measurement
A110: Supportinging Tables to the Budget Approval Tables | C110: =$C$99 -> Chart x-ref | D110: =$D$99 -> Sch/Tab/Ch
A111: Supporting Table SA1 | B111: =A111&" Supportinging detail to 'Budgeted Financial Performance'" -> Supporting Table SA1 Supportinging detail to 'Budgeted Financial Performance'
A112: Supporting Table SA2 | B112: =IF(Consolques="YES",E112,F112) -> Supporting Table SA2 Matrix Financial Performance Budget (revenue source/expenditure type and dept.) | E112: =A112&"Consolidated Matrix Financial Performance Budget (revenue source/expenditure type & dept.)" -> Supporting Table SA2 Consolidated Matrix Financial Performance Budget (revenue source/expenditure type & dept.) | F112: =A112&"Matrix Financial Performance Budget (revenue source/expenditure type and dept.)" -> Supporting Table SA2 Matrix Financial Performance Budget (revenue source/expenditure type and dept.)
A113: Supporting Table SA3 | B113: =A113&"Supportinging detail to 'Budgeted Financial Position'" -> Supporting Table SA3 Supportinging detail to 'Budgeted Financial Position'
A114: Supporting Table SA4 | B114: =A114&"Reconciliation of IDP strategic objectives and budget (revenue)" -> Supporting Table SA4 Reconciliation of IDP strategic objectives and budget (revenue) | C114: Chart 11
A115: Supporting Table SA5 | B115: =A115&"Reconciliation of IDP strategic objectives and budget (operating expenditure)" -> Supporting Table SA5 Reconciliation of IDP strategic objectives and budget (operating expenditure) | C115: Chart 12
A116: Supporting Table SA6 | B116: =A116&"Reconciliation of IDP strategic objectives and budget (capital expenditure)" -> Supporting Table SA6 Reconciliation of IDP strategic objectives and budget (capital expenditure) | C116: Chart 13
A117: Supporting Table SA7 | B117: =A117&" Measureable performance objectives" -> Supporting Table SA7 Measureable performance objectives
A118: Supporting Table SA8 | B118: =A118&" Performance indicators and benchmarks" -> Supporting Table SA8 Performance indicators and benchmarks | C118: Chts 15-19
A119: Supporting Table SA9 | B119: =A119&" Social, economic and demographic statistics and assumptions" -> Supporting Table SA9 Social, economic and demographic statistics and assumptions
A120: Supporting Table SA10 | B120: =A120&" Funding measurement" -> Supporting Table SA10 Funding measurement | C120: Chart 14
A121: Supporting Table SA11 | B121: =A121&" Property rates summary" -> Supporting Table SA11 Property rates summary
A122: Supporting Table SA12a | B122: =A122&" Property rates by category (current year)" -> Supporting Table SA12a Property rates by category (current year)
A123: Supporting Table SA12b | B123: =A123&" Property rates by category (budget year)" -> Supporting Table SA12b Property rates by category (budget year)
A124: Supporting Table SA13a | B124: =A124&" Service Tariffs by category" -> Supporting Table SA13a Service Tariffs by category
A125: Supporting Table SA13b | B125: =A125&" Service Tariffs by category - explanatory" -> Supporting Table SA13b Service Tariffs by category - explanatory
A126: Supporting Table SA14 | B126: =A126&" Household bills" -> Supporting Table SA14 Household bills
A127: Supporting Table SA15 | B127: =A127&" Investment particulars by type" -> Supporting Table SA15 Investment particulars by type
A128: Supporting Table SA16 | B128: =A128&" Investment particulars by maturity" -> Supporting Table SA16 Investment particulars by maturity
A129: Supporting Table SA17 | B129: =A129&" Borrowing" -> Supporting Table SA17 Borrowing
A130: Supporting Table SA18 | B130: =A130&" Transfers and grant receipts" -> Supporting Table SA18 Transfers and grant receipts
A131: Supporting Table SA19 | B131: =A131&" Expenditure on transfers and grant programme" -> Supporting Table SA19 Expenditure on transfers and grant programme
A132: Supporting Table SA20 | B132: =A132&" Reconciliation of transfers, grant receipts and unspent funds" -> Supporting Table SA20 Reconciliation of transfers, grant receipts and unspent funds
A133: Supporting Table SA21 | B133: =A133&" Transfers and grants made by the municipality" -> Supporting Table SA21 Transfers and grants made by the municipality
A134: Supporting Table SA22 | B134: =A134&" Summary councillor and staff benefits" -> Supporting Table SA22 Summary councillor and staff benefits
A135: Supporting Table SA23 | B135: =A135&" Salaries, allowances & benefits (political office bearers/councillors/senior managers)" -> Supporting Table SA23 Salaries, allowances & benefits (political office bearers/councillors/senior managers)
A136: Supporting Table SA24 | B136: =A136&" Summary of personnel numbers" -> Supporting Table SA24 Summary of personnel numbers
A137: Supporting Table SA25 | B137: =IF(Consolques="YES",E137,F137) -> Supporting Table SA25 Budgeted monthly revenue and expenditure | E137: =A137&" Consolidated budgeted monthly revenue and expenditure" -> Supporting Table SA25 Consolidated budgeted monthly revenue and expenditure | F137: =A137&" Budgeted monthly revenue and expenditure" -> Supporting Table SA25 Budgeted monthly revenue and expenditure
A138: Supporting Table SA26 | B138: Supporting Table SA26 Budgeted monthly revenue and expenditure (municipal vote) | E138: =A138&" Consolidated budgeted monthly revenue and expenditure (municipal vote)" -> Supporting Table SA26 Consolidated budgeted monthly revenue and expenditure (municipal vote) | F138: =A138&" Budgeted monthly revenue and expenditure (municipal vote)" -> Supporting Table SA26 Budgeted monthly revenue and expenditure (municipal vote)
A139: Supporting Table SA27 | B139: Supporting Table SA27 Budgeted monthly revenue and expenditure (functional classification) | E139: =A139&" Consolidated budgeted monthly revenue and expenditure (functional classification)" -> Supporting Table SA27 Consolidated budgeted monthly revenue and expenditure (functional classification) | F139: =A139&" Budgeted monthly revenue and expenditure (functional classification)" -> Supporting Table SA27 Budgeted monthly revenue and expenditure (functional classification)
A140: Supporting Table SA28 | B140: Supporting Table SA28 Budgeted monthly capital expenditure (municipal vote) | E140: =A140&" Consolidated budgeted monthly capital expenditure (municipal vote)" -> Supporting Table SA28 Consolidated budgeted monthly capital expenditure (municipal vote) | F140: =A140&" Budgeted monthly capital expenditure (municipal vote)" -> Supporting Table SA28 Budgeted monthly capital expenditure (municipal vote)
A141: Supporting Table SA29 | B141: Supporting Table SA29 Budgeted monthly capital expenditure (functional classification) | E141: =A141&" Consolidated budgeted monthly capital expenditure (functional classification)" -> Supporting Table SA29 Consolidated budgeted monthly capital expenditure (functional classification) | F141: =A141&" Budgeted monthly capital expenditure (functional classification)" -> Supporting Table SA29 Budgeted monthly capital expenditure (functional classification)
A142: Supporting Table SA30 | B142: Supporting Table SA30 Budgeted monthly cash flow | E142: =A142&" Consolidated budgeted monthly cash flow" -> Supporting Table SA30 Consolidated budgeted monthly cash flow | F142: =A142&" Budgeted monthly cash flow" -> Supporting Table SA30 Budgeted monthly cash flow
A143: Supporting Table SA31 | B143: NOT REQUIRED - municipality does not have entities | E143: =A143&" Aggregated entity budget" -> Supporting Table SA31 Aggregated entity budget | F143: NOT REQUIRED - municipality does not have entities
A144: Supporting Table SA32 | B144: =A144&" List of external mechanisms" -> Supporting Table SA32 List of external mechanisms
A145: Supporting Table SA33 | B145: =A145&" Contracts having future budgetary implications" -> Supporting Table SA33 Contracts having future budgetary implications
A146: Supporting Table SA34a | B146: =IF(Consolques="YES",E146,F146) -> Supporting Table SA34a Capital expenditure on new assets by asset class | E146: =A146&" Consolidated capital expenditure on new assets by asset class" -> Supporting Table SA34a Consolidated capital expenditure on new assets by asset class | F146: =A146&" Capital expenditure on new assets by asset class" -> Supporting Table SA34a Capital expenditure on new assets by asset class
A147: Supporting Table SA34b | B147: Supporting Table SA34b Capital expenditure on the renewal of existing assets by asset class | E147: =A147&" Consolidated capital expenditure on the renewal of existing assets by asset class" -> Supporting Table SA34b Consolidated capital expenditure on the renewal of existing assets by asset class | F147: =A147&" Capital expenditure on the renewal of existing assets by asset class" -> Supporting Table SA34b Capital expenditure on the renewal of existing assets by asset class
A148: Supporting Table SA34c | B148: Supporting Table SA34c Repairs and maintenance expenditure by asset class | E148: =A148&" Consolidated repairs and maintenance by asset class" -> Supporting Table SA34c Consolidated repairs and maintenance by asset class | F148: =A148&" Repairs and maintenance expenditure by asset class" -> Supporting Table SA34c Repairs and maintenance expenditure by asset class
A149: Supporting Table SA34d | B149: =IF(Consolques="YES",E149,F149) -> Supporting Table SA34d Depreciation by asset class | E149: =A149&" Consolidated Depreciation by asset class" -> Supporting Table SA34d Consolidated Depreciation by asset class | F149: =A149&" Depreciation by asset class" -> Supporting Table SA34d Depreciation by asset class
A150: Supporting Table SA34e | B150: =IF(Consolques="YES",E150,F150) -> Supporting Table SA34e Capital expenditure on the upgrading of existing assets by asset class | E150: =A150&" Consolidated capital expenditure on the upgrading of existing assets by asset class" -> Supporting Table SA34e Consolidated capital expenditure on the upgrading of existing assets by asset class | F150: =A150&" Capital expenditure on the upgrading of existing assets by asset class" -> Supporting Table SA34e Capital expenditure on the upgrading of existing assets by asset class
A151: Supporting Table SA35 | B151: Supporting Table SA35 Future financial implications of the capital budget | E151: =A151&" Consolidated future financial implications of the capital budget" -> Supporting Table SA35 Consolidated future financial implications of the capital budget | F151: =A151& " Future financial implications of the capital budget" -> Supporting Table SA35 Future financial implications of the capital budget
A152: Supporting Table SA36 | B152: Supporting Table SA36 Detailed capital budget | E152: =A152&" Consolidated detailed capital budget" -> Supporting Table SA36 Consolidated detailed capital budget | F152: =A152& " Detailed capital budget" -> Supporting Table SA36 Detailed capital budget
A153: Supporting Table SA37 | B153: Supporting Table SA37 Projects delayed from previous financial year/s | E153: =A153&" Consolidated projects delayed from previous financial year/s" -> Supporting Table SA37 Consolidated projects delayed from previous financial year/s | F153: =A153& " Projects delayed from previous financial year/s" -> Supporting Table SA37 Projects delayed from previous financial year/s
A154: Supporting Table SA38 | B154: =IF(Consolques="YES",E154,F154) -> Supporting Table SA38 Detailed operational projects | E154: =A154&" Consolidated detailed operational projects" -> Supporting Table SA38 Consolidated detailed operational projects | F154: =A154& " Detailed operational projects" -> Supporting Table SA38 Detailed operational projects
A156: Budget Charts | B156: Charts | C156: Cross reference
A157: Chart A1 | B157: =A157&"Revenue by Municipal Vote" -> Chart A1 Revenue by Municipal Vote
A158: Chart A2 | B158: =A158&"Expenditure by Municipal Vote" -> Chart A2 Expenditure by Municipal Vote
A159: Chart A3 | B159: =A159&"Revenue by Standard Classification" -> Chart A3 Revenue by Standard Classification | C159: A2
A160: Chart A4 | B160: =A160&"Expenditure by Standard Classification" -> Chart A4 Expenditure by Standard Classification | C160: A2
A161: Chart A5 | B161: =A161&"Revenue by Major Source (refer 'Minor' source for 'Other Revenue' allocation" -> Chart A5 Revenue by Major Source (refer 'Minor' source for 'Other Revenue' allocation | C161: A3
A162: Chart A6 | B162: =A162&"Revenue by Minor Source (Other)" -> Chart A6 Revenue by Minor Source (Other) | C162: A3
A163: Chart A7 | B163: =A163&"Expenditure by Major Type" -> Chart A7 Expenditure by Major Type | C163: A3
A164: Chart A8 | B164: =A164&"Expenditure by Minor Type (Other)" -> Chart A8 Expenditure by Minor Type (Other) | C164: A3
A165: Chart A9 | B165: =A165&"Capital Expenditure by Municipal Vote/Appropriation (Major)" -> Chart A9 Capital Expenditure by Municipal Vote/Appropriation (Major) | C165: A5
A166: Chart A10 | B166: =A166&"Capital Expenditure by Municipal Vote/Appropriation (Minor)" -> Chart A10 Capital Expenditure by Municipal Vote/Appropriation (Minor) | C166: A5
A167: Chart A11 | B167: =A166&"Capital Expenditure by Standard Classification" -> Chart A10 Capital Expenditure by Standard Classification | C167: A5
A168: Chart A12 | B168: =A168&"Capital expenditure performance trend" -> Chart A12 Capital expenditure performance trend | C168: A5
A169: Chart A13 | B169: =A169&"Capital funding by Source" -> Chart A13 Capital funding by Source | C169: A5
A170: Chart A14 | B170: =A170&"Cash flow trend" -> Chart A14 Cash flow trend | C170: A7
A171: Chart A15 | B171: =A171&"IDP Strategic Objective - Revenue" -> Chart A15 IDP Strategic Objective - Revenue | C171: Table A4
A172: Chart A16 | B172: =A172&"IDP Strategic Objective - Expenditure" -> Chart A16 IDP Strategic Objective - Expenditure | C172: Table A5
A173: Chart A17 | B173: =A173&"IDP Strategic Objective - Capital Expenditure" -> Chart A17 IDP Strategic Objective - Capital Expenditure | C173: Table A6
A174: Chart A18 | B174: =A174&"Debt (borrowing to Total Revenue)" -> Chart A18 Debt (borrowing to Total Revenue) | C174: Table A8
A175: Chart A19 | B175: =A175&"Debtors' trend analysis" -> Chart A19 Debtors' trend analysis | C175: Table A8
A176: Chart A20 | B176: =A176&"Distribution losses" -> Chart A20 Distribution losses | C176: Table A8
A177: Chart A21 | B177: =A177&"Borrowed funding of capital expenditure" -> Chart A21 Borrowed funding of capital expenditure | C177: Table A8
A178: Chart A22 | B178: =A178&"Expenditure analysis (% of Revenue)" -> Chart A22 Expenditure analysis (% of Revenue) | C178: Table A8
A179: Chart A23 | B179: =A179&"Increases in service charges" -> Chart A23 Increases in service charges | C179: Table A10

Sheet Lookup and lists (hidden)
A1: Description | B1: 2007 | C1: 2008 | D1: 2009 | E1: 2010 | F1: 2011 | G1: 2012 | H1: 2013 | I1: 2014 | J1: 2015 | K1: 2016 | L1: 2017 | M1: 2018 | N1: 2019 | O1: 2020 | Q1: Lists | Y1: Grants: | Z1: National - opex | AA1: Provincial - opex | AB1: National - capex | AC1: Provincial - capex
A2: ='Template names'!C2 -> Prior year -1 | B2: 2005/06 | C2: 2006/07 | D2: 2007/08 | E2: =E1-2&"/"&RIGHT(E1,2)-1 -> 2008/9 | F2: 2009/10 | G2: 2010/11 | H2: 2011/12 | I2: 2012/13 | J2: 2013/14 | K2: 2014/15 | L2: 2015/16 | M2: 2016/17 | N2: 2017/18 | O2: 2018/19 | Q2: Yes | R2: <1 | S2: <4 | T2: Market | U2: Land & impr. | V2: Yes | W2: Uniform | X2: Yrs | Z2: Local Government Equitable Share | AA2: Health subsidy | AB2: Municipal Infrastructure Grant (MIG) | AC2: Agriculture
A3: ='Template names'!C3 -> Prior year -2 | B3: 2004/05 | C3: 2005/06 | D3: 2006/07 | E3: =E1-3&"/"&RIGHT(E1,2)-2 -> 2007/8 | F3: 2008/9 | G3: 2009/10 | H3: 2010/11 | I3: 2011/12 | J3: 2012/13 | K3: 2013/14 | L3: 2014/15 | M3: 2015/16 | N3: 2016/17 | O3: 2017/18 | Q3: No | R3: 1 | S3: 4 | T3: Dep.Replace | U3: Land only | V3: No | W3: Variable | X3: Mths | Z3: RSC Levy Replacement | AA3: Ambulance subsidy | AB3: Public Transport and Systems | AC3: Education
A4: ='Template names'!C4 -> Prior year -3 | B4: 2003/04 | C4: 2004/05 | D4: 2005/06 | E4: =E1-4&"/"&RIGHT(E1,2)-3 -> 2006/7 | F4: 2007/8 | G4: 2008/9 | H4: 2009/10 | I4: 2010/11 | J4: 2011/12 | K4: 2012/13 | L4: 2013/14 | M4: 2014/15 | N4: 2015/16 | O4: 2016/17 | R4: 2 | S4: 5 | T4: Other | U4: Other | Z4: Finance Management | AA4: Housing | AB4: Rural Transport Services and Infrastructure | AC4: Health
A5: ='Template names'!C5 -> Year in which budget is being prepared | B5: Current Year 2006/07 | C5: Current Year 2007/08 | D5: Current Year 2008/09 | E5: ="Current Year "& E1-1&"/"&RIGHT(E1,2) -> Current Year 2009/10 | F5: Current Year 2010/11 | G5: Current Year 2011/12 | H5: Current Year 2012/13 | I5: Current Year 2013/14 | J5: Current Year 2014/15 | K5: Current Year 2015/16 | L5: Current Year 2016/17 | M5: Current Year 2017/18 | N5: Current Year 2018/19 | O5: Current Year 2019/20 | R5: 3 | S5: 6 | Z5: Municipal Systems Improvement | AA5: Sport and Recreation | AB5: Regional Bulk Infrastructure | AC5: Housing and Local Government
A6: ='Template names'!C6 -> Year in which budget is being prepared | B6: 2006/07 | C6: 2007/08 | D6: 2008/09 | E6: =E1-1&"/"&RIGHT(E1,2) -> 2009/10 | F6: 2010/11 | G6: 2011/12 | H6: 2012/13 | I6: 2013/14 | J6: 2014/15 | K6: 2015/16 | L6: 2016/17 | M6: 2017/18 | N6: 2018/19 | O6: 2019/20 | R6: 4 | S6: 6-10 | Z6: Water Services Operating Subsidy | AB6: Rural Households Infrastructure | AC6: Other Departments
A7: ='Template names'!C7 -> MTREF name | B7: 2007/08 Medium Term Revenue & Expenditure Framework | C7: 2008/09 Medium Term Revenue & Expenditure Framework | D7: 2009/10 Medium Term Revenue & Expenditure Framework | E7: =E1&"/"&RIGHT(E1,2)+1&" Medium Term Revenue & Expenditure Framework" -> 2010/11 Medium Term Revenue & Expenditure Framework | F7: 2011/12 Medium Term Revenue & Expenditure Framework | G7: 2012/13 Medium Term Revenue & Expenditure Framework | H7: 2013/14 Medium Term Revenue & Expenditure Framework | I7: 2014/15 Medium Term Revenue & Expenditure Framework | J7: 2015/16 Medium Term Revenue & Expenditure Framework | K7: 2016/17 Medium Term Revenue & Expenditure Framework | L7: 2017/18 Medium Term Revenue & Expenditure Framework | M7: 2018/19 Medium Term Revenue & Expenditure Framework | N7: 2019/20 Medium Term Revenue & Expenditure Framework | O7: 2020/21 Medium Term Revenue & Expenditure Framework | R7: 5 | S7: >10 | Z7: Energy Efficiency and Demand Management | AB7: Neighbourhood Development Partnership | AC7: Public Works, Roads, Transport
A8: ='Template names'!C15 -> 1st year of MTREF | B8: Budget Year 2007/08 | C8: Budget Year 2008/09 | D8: Budget Year 2009/10 | E8: ="Budget Year "&E1&"/"&RIGHT(E1,2)+1 -> Budget Year 2010/11 | F8: Budget Year 2011/12 | G8: Budget Year 2012/13 | H8: Budget Year 2013/14 | I8: Budget Year 2014/15 | J8: Budget Year 2015/16 | K8: Budget Year 2016/17 | L8: Budget Year 2017/18 | M8: Budget Year 2018/19 | N8: Budget Year 2019/20 | O8: Budget Year 2020/21 | R8: >5 | Z8: Integrated National Electrification Programme | AB8: 2010 FIFA World Cup Stadiums Development | AC8: Sport and Recreation
A9: ='Template names'!C16 -> 2nd year of MTREF | B9: Budget Year +1 2008/09 | C9: Budget Year +1 2009/10 | D9: Budget Year +1 2010/11 | E9: ="Budget Year +1 "&E1+1&"/"&RIGHT(E1,2)+2 -> Budget Year +1 2011/12 | F9: Budget Year +1 2012/13 | G9: Budget Year +1 2013/14 | H9: Budget Year +1 2014/15 | I9: Budget Year +1 2015/16 | J9: Budget Year +1 2016/17 | K9: Budget Year +1 2017/18 | L9: Budget Year +1 2018/19 | M9: Budget Year +1 2019/20 | N9: Budget Year +1 2020/21 | O9: Budget Year +1 2021/22 | Z9: Municipal Drought Relief
A10: ='Template names'!C17 -> 3rd year of MTREF | B10: Budget Year +2 2009/10 | C10: Budget Year +2 2010/11 | D10: Budget Year +2 2011/12 | E10: ="Budget Year +2 "&E1+2&"/"&RIGHT(E1,2)+3 -> Budget Year +2 2012/13 | F10: Budget Year +2 2013/14 | G10: Budget Year +2 2014/15 | H10: Budget Year +2 2015/16 | I10: Budget Year +2 2016/17 | J10: Budget Year +2 2017/18 | K10: Budget Year +2 2018/19 | L10: Budget Year +2 2019/20 | M10: Budget Year +2 2020/21 | N10: Budget Year +2 2021/22 | O10: Budget Year +2 2022/23 | Z10: 2010 FIFA World Cup Operating
A11: ='Template names'!C18 -> 1st yr of long term forecast | B11: Forecast 2010/11 | C11: Forecast 2011/12 | D11: Forecast 2012/13 | E11: ="Forecast "&E1+3&"/"&RIGHT(E1,2)+4 -> Forecast 2013/14 | F11: Forecast 2014/15 | G11: Forecast 2015/16 | H11: Forecast 2016/17 | I11: Forecast 2017/18 | J11: Forecast 2018/19 | K11: Forecast 2019/20 | L11: Forecast 2020/21 | M11: Forecast 2021/22 | N11: Forecast 2022/23 | O11: Forecast 2023/24 | Z11: Electricity Demand Side Management
A12: ='Template names'!C19 -> Next yr of long term forecast | B12: Forecast 2011/12 | C12: Forecast 2012/13 | D12: Forecast 2013/14 | E12: ="Forecast "&E1+4&"/"&RIGHT(E1,2)+5 -> Forecast 2014/15 | F12: Forecast 2015/16 | G12: Forecast 2016/17 | H12: Forecast 2017/18 | I12: Forecast 2018/19 | J12: Forecast 2019/20 | K12: Forecast 2020/21 | L12: Forecast 2021/22 | M12: Forecast 2022/23 | N12: Forecast 2023/24 | O12: Forecast 2024/25 | Z12: EPWP Incentive
A13: ='Template names'!C20 -> Next yr of long term forecast | B13: Forecast 2012/13 | C13: Forecast 2013/14 | D13: Forecast 2014/15 | E13: ="Forecast "&E1+5&"/"&RIGHT(E1,2)+6 -> Forecast 2015/16 | F13: Forecast 2016/17 | G13: Forecast 2017/18 | H13: Forecast 2018/19 | I13: Forecast 2019/20 | J13: Forecast 2020/21 | K13: Forecast 2021/22 | L13: Forecast 2022/23 | M13: Forecast 2023/24 | N13: Forecast 2024/25 | O13: Forecast 2025/26
A14: ='Template names'!C21 -> Next yr of long term forecast | B14: Forecast 2013/14 | C14: Forecast 2014/15 | D14: Forecast 2015/16 | E14: ="Forecast "&E1+6&"/"&RIGHT(E1,2)+7 -> Forecast 2016/17 | F14: Forecast 2017/18 | G14: Forecast 2018/19 | H14: Forecast 2019/20 | I14: Forecast 2020/21 | J14: Forecast 2021/22 | K14: Forecast 2022/23 | L14: Forecast 2023/24 | M14: Forecast 2024/25 | N14: Forecast 2025/26 | O14: Forecast 2026/27 | Z14: Asset Class | AA14: Asset sub-class old | AB14: Asset sub-class | AC14: IUDF | AD14: MTSF
A15: ='Template names'!C22 -> Next yr of long term forecast | B15: Forecast 2014/15 | C15: Forecast 2015/16 | D15: Forecast 2016/17 | E15: ="Forecast "&E1+7&"/"&RIGHT(E1,2)+8 -> Forecast 2017/18 | F15: Forecast 2018/19 | G15: Forecast 2019/20 | H15: Forecast 2020/21 | I15: Forecast 2021/22 | J15: Forecast 2022/23 | K15: Forecast 2023/24 | L15: Forecast 2024/25 | M15: Forecast 2025/26 | N15: Forecast 2026/27 | O15: Forecast 2027/28
A16: ='Template names'!C23 -> Next yr of long term forecast | B16: Forecast 2015/16 | C16: Forecast 2016/17 | D16: Forecast 2017/18 | E16: ="Forecast "&E1+8&"/"&RIGHT(E1,2)+9 -> Forecast 2018/19 | F16: Forecast 2019/20 | G16: Forecast 2020/21 | H16: Forecast 2021/22 | I16: Forecast 2022/23 | J16: Forecast 2023/24 | K16: Forecast 2024/25 | L16: Forecast 2025/26 | M16: Forecast 2026/27 | N16: Forecast 2027/28 | O16: Forecast 2028/29 | Z16: Roads Infrastructure | AA16: Roads, Pavements & Bridges | AB16: Roads | AC16: Spatial integration | AD16: Quality basic education
A17: ='Template names'!C24 -> Next yr of long term forecast | B17: Forecast 2016/17 | C17: Forecast 2017/18 | D17: Forecast 2018/19 | E17: ="Forecast "&E1+9&"/"&RIGHT(E1,2)+10 -> Forecast 2019/20 | F17: Forecast 2020/21 | G17: Forecast 2021/22 | H17: Forecast 2022/23 | I17: Forecast 2023/24 | J17: Forecast 2024/25 | K17: Forecast 2025/26 | L17: Forecast 2026/27 | M17: Forecast 2027/28 | N17: Forecast 2028/29 | O17: Forecast 2029/30 | Z17: Storm water Infrastructure | AA17: Storm water | AB17: Road Structures | AC17: Inclusion and access | AD17: A long and healthy life for all South Africans
A18: ='Template names'!C25 -> Next yr of long term forecast | B18: Forecast 2017/18 | C18: Forecast 2018/19 | D18: Forecast 2019/20 | E18: ="Forecast "&E1+10&"/"&RIGHT(E1,2)+11 -> Forecast 2020/21 | F18: Forecast 2021/22 | G18: Forecast 2022/23 | H18: Forecast 2023/24 | I18: Forecast 2024/25 | J18: Forecast 2025/26 | K18: Forecast 2026/27 | L18: Forecast 2027/28 | M18: Forecast 2028/29 | N18: Forecast 2029/30 | O18: Forecast 2030/31 | Z18: Electrical Infrastructure | AA18: Generation | AB18: Road Furniture | AC18: Growth | AD18: All people in South Africa are and feel safe
A19: ='Template names'!C26 -> Next yr of long term forecast | B19: Forecast 2018/19 | C19: Forecast 2019/20 | D19: Forecast 2020/21 | E19: ="Forecast "&E1+11&"/"&RIGHT(E1,2)+12 -> Forecast 2021/22 | F19: Forecast 2022/23 | G19: Forecast 2023/24 | H19: Forecast 2024/25 | I19: Forecast 2025/26 | J19: Forecast 2026/27 | K19: Forecast 2027/28 | L19: Forecast 2028/29 | M19: Forecast 2029/30 | N19: Forecast 2030/31 | O19: Forecast 2031/32 | Z19: Water Supply Infrastructure | AA19: Transmission & Reticulation | AB19: Capital Spares | AC19: Governance | AD19: Decent employment through inclusive growth
A20: ='Template names'!C27 -> Next yr of long term forecast | B20: Forecast 2019/20 | C20: Forecast 2020/21 | D20: Forecast 2021/22 | E20: ="Forecast "&E1+12&"/"&RIGHT(E1,2)+13 -> Forecast 2022/23 | F20: Forecast 2023/24 | G20: Forecast 2024/25 | H20: Forecast 2025/26 | I20: Forecast 2026/27 | J20: Forecast 2027/28 | K20: Forecast 2028/29 | L20: Forecast 2029/30 | M20: Forecast 2030/31 | N20: Forecast 2031/32 | O20: Forecast 2032/33 | Z20: Sanitation Infrastructure | AA20: Street Lighting | AB20: Drainage Collection | AD20: A skilled and capable workforce to support an inclusive growth path
A21: ='Template names'!C28 -> Next yr of long term forecast | B21: Forecast 2020/21 | C21: Forecast 2021/22 | D21: Forecast 2022/23 | E21: ="Forecast "&E1+13&"/"&RIGHT(E1,2)+14 -> Forecast 2023/24 | F21: Forecast 2024/25 | G21: Forecast 2025/26 | H21: Forecast 2026/27 | I21: Forecast 2027/28 | J21: Forecast 2028/29 | K21: Forecast 2029/30 | L21: Forecast 2030/31 | M21: Forecast 2031/32 | N21: Forecast 2032/33 | O21: Forecast 2033/34 | Z21: Solid Waste Infrastructure | AA21: Dams & Reservoirs | AB21: Storm water Conveyance | AD21: An efficient, competitive and responsive economic infrastructure network
A22: ='Template names'!C29 -> Next yr of long term forecast | B22: Forecast 2021/22 | C22: Forecast 2022/23 | D22: Forecast 2023/24 | E22: ="Forecast "&E1+14&"/"&RIGHT(E1,2)+15 -> Forecast 2024/25 | F22: Forecast 2025/26 | G22: Forecast 2026/27 | H22: Forecast 2027/28 | I22: Forecast 2028/29 | J22: Forecast 2029/30 | K22: Forecast 2030/31 | L22: Forecast 2031/32 | M22: Forecast 2032/33 | N22: Forecast 2033/34 | O22: Forecast 2034/35 | Z22: Rail Infrastructure | AA22: Water purification | AB22: Attenuation | AD22: Vibrant, equitable, sustainable rural communities contributing towards food security for all
A23: Adjustments Budget | B23: Annual target 2007/08 | C23: Annual target 2008/09 | D23: Annual target 2009/10 | E23: ="Annual target " & E1&"/"&RIGHT(E1,2)+1 -> Annual target 2010/11 | F23: Annual target 2011/12 | G23: Annual target 2012/13 | H23: Annual target 2013/14 | I23: Annual target 2014/15 | J23: Annual target 2015/16 | K23: Annual target 2016/17 | L23: Annual target 2017/18 | M23: Annual target 2018/19 | N23: Annual target 2019/20 | O23: Annual target 2020/21 | Z23: Coastal Infrastructure | AA23: Reticulation | AB23: Power Plants | AD23: Sustainable human settlements and improved quality of household life
A24: =A23 -> Adjustments Budget | B24: Revised target 2007/08 | C24: Revised target 2008/09 | D24: Revised target 2009/10 | E24: ="Revised target "& E1&"/"&RIGHT(E1,2)+1 -> Revised target 2010/11 | F24: Revised target 2011/12 | G24: Revised target 2012/13 | H24: Revised target 2013/14 | I24: Revised target 2014/15 | J24: Revised target 2015/16 | K24: Revised target 2016/17 | L24: Revised target 2017/18 | M24: Revised target 2018/19 | N24: Revised target 2019/20 | O24: Revised target 2020/21 | Z24: Information and Communication Infrastructure | AA24: Sewerage purification | AB24: HV Substations | AD24: Responsive, accountable, effective and efficient local government
A25: NOTE: This sheet should not be directly amended - select headings from sheet 'S' | Z25: Community Facilities | AA25: Waste Management | AB25: HV Switching Station | AD25: Protect and enhance our environmental assets and natural resources
Z26: Sport and Recreation Facilities | AA26: Transportation | AB26: HV Transmission Conductors | AD26: Create a better South Africa and contribute to a better Africa and a better world
A27: Name link | B27: 141 | Z27: Heritage assets | AA27: Gas | AB27: MV Substations | AD27: An efficient, effective and development-oriented public service
A28: Name of Muni | B28: =INDEX(B29:B307,B27,1) -> LIM353 Molemole | Z28: Revenue Generating | AA28: Parks & gardens | AB28: MV Switching Stations | AD28: A comprehensive, responsive and sustainable social protection system
B29: Choose name from list | C29: Set name on 'Instructions' sheet | Z29: Non-revenue Generating | AA29: Sportsfields & stadia | AB29: MV Networks | AD29: A diverse, socially cohesive society with a common national identity
B30: BUF Buffalo City | C30: EC EASTERN CAPE | Z30: Operational Buildings | AA30: Swimming pools | AB30: LV Networks
B31: NMA Nelson Mandela Bay | C31: EC EASTERN CAPE | Z31: Housing | AA31: Community halls | AB31: Capital Spares
B32: EC101 Dr Beyers Naude | C32: EC EASTERN CAPE | Z32: Biological or Cultivated Assets | AA32: Libraries | AB32: Dams and Weirs
B33: EC102 Blue Crane Route | C33: EC EASTERN CAPE | Z33: Servitudes | AA33: Recreational facilities | AB33: Boreholes
B34: EC104 Makana | C34: EC EASTERN CAPE | Z34: Licences and Rights | AA34: Fire, safety & emergency | AB34: Reservoirs
B35: EC105 Ndlambe | C35: EC EASTERN CAPE | Z35: Computer Equipment | AA35: Security and policing | AB35: Pump Stations
B36: EC106 Sundays River Valley | C36: EC EASTERN CAPE | Z36: Furniture and Office Equipment | AA36: Buses | AB36: Water Treatment Works
B37: EC108 Kouga | C37: EC EASTERN CAPE | Z37: Machinery and Equipment | AA37: Clinics | AB37: Bulk Mains
B38: EC109 Kou-Kamma | C38: EC EASTERN CAPE | Z38: Transport Assets | AA38: Museums & Art Galleries | AB38: Distribution
B39: DC10 Sarah Baartman | C39: EC EASTERN CAPE | Z39: Land | AA39: Cemeteries | AB39: Distribution Points
B40: EC121 Mbhashe | C40: EC EASTERN CAPE | Z40: Zoo's, Marine and Non-biological Animals | AA40: Social rental housing | AB40: PRV Stations
B41: EC122 Mnquma | C41: EC EASTERN CAPE | AA41: Buildings | AB41: Capital Spares
B42: EC123 Great Kei | C42: EC EASTERN CAPE | AA42: Housing development | AB42: Pump Station
B43: EC124 Amahlathi | C43: EC EASTERN CAPE | AA43: General vehicles | AB43: Reticulation
B44: EC126 Ngqushwa | C44: EC EASTERN CAPE | AA44: Specialised vehicles - Refuse | AB44: Waste Water Treatment Works
B45: EC129 Raymond Mhlaba | C45: EC EASTERN CAPE | AA45: Specialised vehicles - Fire | AB45: Outfall Sewers
B46: DC12 Amathole | C46: EC EASTERN CAPE | AA46: Specialised vehicles - Conservancy | AB46: Toilet Facilities
B47: EC131 Inxuba Yethemba | C47: EC EASTERN CAPE | AA47: Specialised vehicles - Ambulances | AB47: Capital Spares
B48: EC135 Intsika Yethu | C48: EC EASTERN CAPE | AA48: Plant & equipment | AB48: Landfill Sites
B49: EC136 Emalahleni (Ec) | C49: EC EASTERN CAPE | AA49: Computers - hardware/equipment | AB49: Waste Transfer Stations
B50: EC137 Engcobo | C50: EC EASTERN CAPE | AA50: Furniture and other office equipment | AB50: Waste Processing Facilities
B51: EC138 Sakhisizwe | C51: EC EASTERN CAPE | AA51: Abattoirs | AB51: Waste Drop-off Points
B52: EC139 Enoch Mgijima | C52: EC EASTERN CAPE | AA52: Markets | AB52: Waste Separation Facilities
B53: DC13 Chris Hani | C53: EC EASTERN CAPE | AA53: Civic Land and Buildings | AB53: Electricity Generation Facilities
B54: EC141 Elundini | C54: EC EASTERN CAPE | AA54: Other Buildings | AB54: Capital Spares
B55: EC142 Senqu | C55: EC EASTERN CAPE | AA55: Other Land | AB55: Rail Lines
B56: EC145 Walter Sisulu | C56: EC EASTERN CAPE | AA56: Surplus Assets - (Investment or Inventory) | AB56: Rail Structures
B57: DC14 Joe Gqabi | C57: EC EASTERN CAPE | AA57: Computers - software & programming | AB57: Rail Furniture
B58: EC153 Ngquza Hills | C58: EC EASTERN CAPE | AA58: Other | AB58: Drainage Collection
B59: EC154 Port St Johns | C59: EC EASTERN CAPE | AB59: Storm water Conveyance
B60: EC155 Nyandeni | C60: EC EASTERN CAPE | Z60: SA16 - Investments | AB60: Attenuation
B61: EC156 Mhlontlo | C61: EC EASTERN CAPE | Z61: Security | AA61: Interest rate | AB61: MV Substations
B62: EC157 King Sabata Dalindyebo | C62: EC EASTERN CAPE | Z62: Yes | AA62: Fixed | AB62: LV Networks
B63: DC15 O .R. Tambo | C63: EC EASTERN CAPE | Z63: No | AA63: Variable | AB63: Capital Spares
B64: EC441 Matatiele | C64: EC EASTERN CAPE | AB64: Sand Pumps
B65: EC442 Umzimvubu | C65: EC EASTERN CAPE | AB65: Piers
B66: EC443 Mbizana | C66: EC EASTERN CAPE | Z66: SA36, SA37 - Capital projects | AB66: Revetments
B67: EC444 Ntabankulu | C67: EC EASTERN CAPE | Z67: Yes | AB67: Promenades
B68: DC44 Alfred Nzo | C68: EC EASTERN CAPE | Z68: No | AB68: Capital Spares
B69: MAN Mangaung | C69: FS FREE STATE | AB69: Data Centres
B70: FS161 Letsemeng | C70: FS FREE STATE | AB70: Core Layers
B71: FS162 Kopanong | C71: FS FREE STATE | AB71: Distribution Layers
B72: FS163 Mohokare | C72: FS FREE STATE | AB72: Capital Spares
B73: DC16 Xhariep | C73: FS FREE STATE | AB73: Halls
B74: FS181 Masilonyana | C74: FS FREE STATE | AB74: Centres
B75: FS182 Tokologo | C75: FS FREE STATE | AB75: Crèches
B76: FS183 Tswelopele | C76: FS FREE STATE | AB76: Clinics/Care Centres
B77: FS184 Matjhabeng | C77: FS FREE STATE | AB77: Fire/Ambulance Stations
B78: FS185 Nala | C78: FS FREE STATE | AB78: Testing Stations
B79: DC18 Lejweleputswa | C79: FS FREE STATE | AB79: Museums
B80: FS191 Setsoto | C80: FS FREE STATE | AB80: Galleries
B81: FS192 Dihlabeng | C81: FS FREE STATE | AB81: Theatres
B82: FS193 Nketoana | C82: FS FREE STATE | AB82: Libraries
B83: FS194 Maluti-a-Phofung | C83: FS FREE STATE | AB83: Cemeteries/Crematoria
B84: FS195 Phumelela | C84: FS FREE STATE | AB84: Police
B85: FS196 Mantsopa | C85: FS FREE STATE | AB85: Purls
B86: DC19 Thabo Mofutsanyana | C86: FS FREE STATE | AB86: Public Open Space
B87: FS201 Moqhaka | C87: FS FREE STATE | AB87: Nature Reserves
B88: FS203 Ngwathe | C88: FS FREE STATE | AB88: Public Ablution Facilities
B89: FS204 Metsimaholo | C89: FS FREE STATE | AB89: Markets
B90: FS205 Mafube | C90: FS FREE STATE | AB90: Stalls
B91: DC20 Fezile Dabi | C91: FS FREE STATE | AB91: Abattoirs
B92: EKU City of Ekurhuleni | C92: GT GAUTENG | AB92: Airports
B93: JHB City Of Johannesburg | C93: GT GAUTENG | AB93: Taxi Ranks/Bus Terminals
B94: TSH City Of Tshwane | C94: GT GAUTENG | AB94: Capital Spares
B95: GT421 Emfuleni | C95: GT GAUTENG | AB95: Indoor Facilities
B96: GT422 Midvaal | C96: GT GAUTENG | AB96: Outdoor Facilities
B97: GT423 Lesedi | C97: GT GAUTENG | AB97: Capital Spares
B98: DC42 Sedibeng | C98: GT GAUTENG | AB98: Monuments
B99: GT481 Mogale City | C99: GT GAUTENG | AB99: Historic Buildings
B100: GT484 Merafong City | C100: GT GAUTENG | AB100: Works of Art
B101: GT485 Rand West City | C101: GT GAUTENG | AB101: Conservation Areas
B102: DC48 West Rand | C102: GT GAUTENG | AB102: Other Heritage
B103: ETH eThekwini | C103: KZN KWAZULU-NATAL | AB103: Improved Property
B104: KZN212 Umdoni | C104: KZN KWAZULU-NATAL | AB104: Unimproved Property
B105: KZN213 Umzumbe | C105: KZN KWAZULU-NATAL | AB105: Municipal Offices
B106: KZN214 uMuziwabantu | C106: KZN KWAZULU-NATAL | AB106: Pay/Enquiry Points
B107: KZN216 Ray Nkonyeni | C107: KZN KWAZULU-NATAL | AB107: Building Plan Offices
B108: DC21 Ugu | C108: KZN KWAZULU-NATAL | AB108: Workshops
B109: KZN221 uMshwathi | C109: KZN KWAZULU-NATAL | AB109: Yards
B110: KZN222 uMngeni | C110: KZN KWAZULU-NATAL | AB110: Stores
B111: KZN223 Mpofana | C111: KZN KWAZULU-NATAL | AB111: Laboratories
B112: KZN224 Impendle | C112: KZN KWAZULU-NATAL | AB112: Training Centres
B113: KZN225 Msunduzi | C113: KZN KWAZULU-NATAL | AB113: Manufacturing Plant
B114: KZN226 Mkhambathini | C114: KZN KWAZULU-NATAL | AB114: Depots
B115: KZN227 Richmond | C115: KZN KWAZULU-NATAL | AB115: Capital Spares
B116: DC22 uMgungundlovu | C116: KZN KWAZULU-NATAL | AB116: Staff Housing
B117: KZN235 Okhahlamba | C117: KZN KWAZULU-NATAL | AB117: Social Housing
B118: KZN237 Inkosi Langalibalele | C118: KZN KWAZULU-NATAL | AB118: Capital Spares
B119: KZN238 Alfred Duma | C119: KZN KWAZULU-NATAL | AB119: Water Rights
B120: DC23 Uthukela | C120: KZN KWAZULU-NATAL | AB120: Effluent Licenses
B121: KZN241 Endumeni | C121: KZN KWAZULU-NATAL | AB121: Solid Waste Licenses
B122: KZN242 Nquthu | C122: KZN KWAZULU-NATAL | AB122: Computer Software and Applications
B123: KZN244 Msinga | C123: KZN KWAZULU-NATAL | AB123: Load Settlement Software Applications
B124: KZN245 Umvoti | C124: KZN KWAZULU-NATAL | AB124: Unspecified
B125: DC24 Umzinyathi | C125: KZN KWAZULU-NATAL
B126: KZN252 Newcastle | C126: KZN KWAZULU-NATAL
B127: KZN253 Emadlangeni | C127: KZN KWAZULU-NATAL
B128: KZN254 Dannhauser | C128: KZN KWAZULU-NATAL
B129: DC25 Amajuba | C129: KZN KWAZULU-NATAL
B130: KZN261 eDumbe | C130: KZN KWAZULU-NATAL
B131: KZN262 uPhongolo | C131: KZN KWAZULU-NATAL
B132: KZN263 Abaqulusi | C132: KZN KWAZULU-NATAL
B133: KZN265 Nongoma | C133: KZN KWAZULU-NATAL
B134: KZN266 Ulundi | C134: KZN KWAZULU-NATAL
B135: DC26 Zululand | C135: KZN KWAZULU-NATAL
B136: KZN271 Umhlabuyalingana | C136: KZN KWAZULU-NATAL
B137: KZN272 Jozini | C137: KZN KWAZULU-NATAL
B138: KZN275 Mtubatuba | C138: KZN KWAZULU-NATAL
B139: KZN276 Hlabisa Big Five | C139: KZN KWAZULU-NATAL
B140: DC27 Umkhanyakude | C140: KZN KWAZULU-NATAL
B141: KZN281 Mfolozi | C141: KZN KWAZULU-NATAL
B142: KZN282 uMhlathuze | C142: KZN KWAZULU-NATAL
B143: KZN284 uMlalazi | C143: KZN KWAZULU-NATAL
B144: KZN285 Mthonjaneni | C144: KZN KWAZULU-NATAL
B145: KZN286 Nkandla | C145: KZN KWAZULU-NATAL
B146: DC28 King Cetshwayo | C146: KZN KWAZULU-NATAL
B147: KZN291 Mandeni | C147: KZN KWAZULU-NATAL
B148: KZN292 KwaDukuza | C148: KZN KWAZULU-NATAL
B149: KZN293 Ndwedwe | C149: KZN KWAZULU-NATAL
B150: KZN294 Maphumulo | C150: KZN KWAZULU-NATAL
B151: DC29 iLembe | C151: KZN KWAZULU-NATAL
B152: KZN433 Greater Kokstad | C152: KZN KWAZULU-NATAL
B153: KZN434 Ubuhlebezwe | C153: KZN KWAZULU-NATAL
B154: KZN435 Umzimkhulu | C154: KZN KWAZULU-NATAL
B155: KZN436 Dr Nkosazana Dlamini Zuma | C155: KZN KWAZULU-NATAL
B156: DC43 Harry Gwala | C156: KZN KWAZULU-NATAL
B157: LIM331 Greater Giyani | C157: LIM LIMPOPO
B158: LIM332 Greater Letaba | C158: LIM LIMPOPO
B159: LIM333 Greater Tzaneen | C159: LIM LIMPOPO
B160: LIM334 Ba-Phalaborwa | C160: LIM LIMPOPO
B161: LIM335 Maruleng | C161: LIM LIMPOPO
B162: DC33 Mopani | C162: LIM LIMPOPO
B163: LIM341 Musina | C163: LIM LIMPOPO
B164: LIM343 Thulamela | C164: LIM LIMPOPO
B165: LIM344 Makhado | C165: LIM LIMPOPO
B166: LIM345 Collins Chabane | C166: LIM LIMPOPO
B167: DC34 Vhembe | C167: LIM LIMPOPO
B168: LIM351 Blouberg | C168: LIM LIMPOPO
B169: LIM353 Molemole | C169: LIM LIMPOPO
B170: LIM354 Polokwane | C170: LIM LIMPOPO
B171: LIM355 Lepelle-Nkumpi | C171: LIM LIMPOPO
B172: DC35 Capricorn | C172: LIM LIMPOPO
B173: LIM361 Thabazimbi | C173: LIM LIMPOPO
B174: LIM362 Lephalale | C174: LIM LIMPOPO
B175: LIM366 Bela Bela | C175: LIM LIMPOPO
B176: LIM367 Mogalakwena | C176: LIM LIMPOPO
B177: LIM368 Modimolle-Mookgopong | C177: LIM LIMPOPO
B178: DC36 Waterberg | C178: LIM LIMPOPO
B179: LIM471 Ephraim Mogale | C179: LIM LIMPOPO
B180: LIM472 Elias Motsoaledi | C180: LIM LIMPOPO
B181: LIM473 Makhuduthamaga | C181: LIM LIMPOPO
B182: LIM476 Tubatse Fetakgomo | C182: LIM LIMPOPO
B183: DC47 Sekhukhune | C183: LIM LIMPOPO
B184: MP301 Albert Luthuli | C184: MP MPUMALANGA
B185: MP302 Msukaligwa | C185: MP MPUMALANGA
B186: MP303 Mkhondo | C186: MP MPUMALANGA
B187: MP304 Pixley Ka Seme (MP) | C187: MP MPUMALANGA
B188: MP305 Lekwa | C188: MP MPUMALANGA
B189: MP306 Dipaleseng | C189: MP MPUMALANGA
B190: MP307 Govan Mbeki | C190: MP MPUMALANGA
B191: DC30 Gert Sibande | C191: MP MPUMALANGA
B192: MP311 Victor Khanye | C192: MP MPUMALANGA
B193: MP312 Emalahleni (Mp) | C193: MP MPUMALANGA
B194: MP313 Steve Tshwete | C194: MP MPUMALANGA
B195: MP314 Emakhazeni | C195: MP MPUMALANGA
B196: MP315 Thembisile Hani | C196: MP MPUMALANGA
B197: MP316 Dr J.S. Moroka | C197: MP MPUMALANGA
B198: DC31 Nkangala | C198: MP MPUMALANGA
B199: MP321 Thaba Chweu | C199: MP MPUMALANGA
B200: MP324 Nkomazi | C200: MP MPUMALANGA
... 87 more rows

Sheet Org structure
A1: Organisational Structure Votes | C1: Organisational Structure Sub-Votes | E1: Display Sub-Votes
A2: =B2&" - "&C2 -> Vote 01 - Corporate Services | B2: Vote 01 | C2: Corporate Services
A3: =B11&" - "&C11 -> Vote 02 - Municipal Manager | B3: 01.1 | C3: Corporate Services Admin | D3: =CONCATENATE(B3, " - ", C3) -> 01.1 - Corporate Services Admin | E3: 01.1 - Corporate Services Admin
A4: =B17&" - "&C17 -> Vote 03 - Mayors Office | B4: 01.2 | C4: Human Resources | D4: 01.2 - Human Resources | E4: 01.2 - Human Resources
A5: =B23&" - "&C23 -> Vote 04 - Budget And Treasury | B5: 01.3 | C5: Information Technology Services | D5: 01.3 - Information Technology Services | E5: 01.3 - Information Technology Services
A6: =B31&" - "&C31 -> Vote 05 - Community Services | B6: 01.4 | C6: Council Support | D6: 01.4 - Council Support | E6: 01.4 - Council Support
A7: =B40&" - "&C40 -> Vote 06 - Technical Services | B7: 01.5 | C7: Local Economic Development | D7: 01.5 - Local Economic Development | E7: 01.5 - Local Economic Development
A8: =B49&" - "&C49 -> Vote 07 - | B8: 01.6 | C8: Municipal Planning Idp | D8: 01.6 - Municipal Planning Idp | E8: 01.6 - Municipal Planning Idp
A9: Vote 08 - | B9: 01.7 | C9: Town & Regional Planning | D9: 01.7 - Town & Regional Planning | E9: 01.7 - Town & Regional Planning
A10: Vote 09 - | B10: 01.8 | C10: Led Administration | D10: 01.8 - Led Administration | E10: 01.8 - Led Administration
A11: Vote 10 - | B11: Vote 02 | C11: Municipal Manager
A12: Vote 11 - | B12: 02.1 | C12: Municipal Manager Admin | D12: =CONCATENATE(B12, " - ", C12) -> 02.1 - Municipal Manager Admin | E12: 02.1 - Municipal Manager Admin
A13: Vote 12 - | B13: 02.2 | C13: Legal Services | D13: =CONCATENATE(B13, " - ", C13) -> 02.2 - Legal Services | E13: 02.2 - Legal Services
A14: Vote 13 - | B14: 02.3 | C14: Political Office Beares | D14: =CONCATENATE(B14, " - ", C14) -> 02.3 - Political Office Beares | E14: 02.3 - Political Office Beares
A15: Vote 14 - | B15: 02.4 | C15: Pms | D15: =CONCATENATE(B15, " - ", C15) -> 02.4 - Pms | E15: 02.4 - Pms
A16: Vote 15 - Other | B16: 02.5 | C16: Internal Audit | D16: =CONCATENATE(B16, " - ", C16) -> 02.5 - Internal Audit | E16: 02.5 - Internal Audit
B17: Vote 03 | C17: Mayors Office
B18: 03.1 | C18: Mayors Office Admin | D18: =CONCATENATE(B18, " - ", C18) -> 03.1 - Mayors Office Admin | E18: 03.1 - Mayors Office Admin
B19: 03.2 | C19: Office Of The Speaker | D19: =CONCATENATE(B19, " - ", C19) -> 03.2 - Office Of The Speaker | E19: 03.2 - Office Of The Speaker
B20: 03.3 | C20: Office Of The Chief Whip | D20: =CONCATENATE(B20, " - ", C20) -> 03.3 - Office Of The Chief Whip | E20: 03.3 - Office Of The Chief Whip
B21: 03.4 | C21: Exco Members | D21: =CONCATENATE(B21, " - ", C21) -> 03.4 - Exco Members | E21: 03.4 - Exco Members
B22: 03.5 | C22: Council General Administration | D22: =CONCATENATE(B22, " - ", C22) -> 03.5 - Council General Administration | E22: 03.5 - Council General Administration
B23: Vote 04 | C23: Budget And Treasury
B24: 04.1 | C24: Budget And Treasury Admin | D24: =CONCATENATE(B24, " - ", C24) -> 04.1 - Budget And Treasury Admin | E24: 04.1 - Budget And Treasury Admin
B25: 04.2 | C25: Chief Financial Officer Admin | D25: 04.2 - Chief Financial Officer Admin | E25: 04.2 - Chief Financial Officer Admin
B26: 04.3 | C26: Budget & Reporting | D26: 04.3 - Budget & Reporting | E26: 04.3 - Budget & Reporting
B27: 04.4 | C27: Budget & Reporting | D27: 04.4 - Budget & Reporting | E27: 04.4 - Budget & Reporting
B28: 04.5 | C28: Revenue Management | D28: 04.5 - Revenue Management | E28: 04.5 - Revenue Management
B29: 04.6 | C29: Supply Chain Management | D29: 04.6 - Supply Chain Management | E29: 04.6 - Supply Chain Management
B30: 04.7 | C30: Expenditure | D30: 04.7 - Expenditure | E30: 04.7 - Expenditure
B31: Vote 05 | C31: Community Services
B32: 05.1 | C32: Community Services Admin | D32: =CONCATENATE(B32, " - ", C32) -> 05.1 - Community Services Admin | E32: 05.1 - Community Services Admin
B33: 05.2 | C33: Libraries | D33: 05.2 - Libraries | E33: 05.2 - Libraries
B34: 05.3 | C34: Sports Recreation & Social Amenitie | D34: 05.3 - Sports Recreation & Social Amenitie | E34: 05.3 - Sports Recreation & Social Amenitie
B35: 05.4 | C35: Traffic Service | D35: 05.4 - Traffic Service | E35: 05.4 - Traffic Service
B36: 05.5 | C36: Traffic Service | D36: 05.5 - Traffic Service | E36: 05.5 - Traffic Service
B37: 05.6 | C37: Parks; Cemeteries | D37: 05.6 - Parks; Cemeteries | E37: 05.6 - Parks; Cemeteries
B38: 05.7 | C38: Refuse | D38: 05.7 - Refuse | E38: 05.7 - Refuse
B39: 05.8 | C39: Taxi Ranks | D39: 05.8 - Taxi Ranks | E39: 05.8 - Taxi Ranks
B40: Vote 06 | C40: Technical Services
B41: 06.1 | C41: Mpac | D41: =CONCATENATE(B41, " - ", C41) -> 06.1 - Mpac | E41: 06.1 - Mpac
B42: 06.2 | C42: Technical Services Admin | D42: 06.2 - Technical Services Admin | E42: 06.2 - Technical Services Admin
B43: 06.3 | C43: Techn Serv-Roads: Admin | D43: 06.3 - Techn Serv-Roads: Admin | E43: 06.3 - Techn Serv-Roads: Admin
B44: 06.4 | C44: Techn Serv-Stormwater: Admin | D44: 06.4 - Techn Serv-Stormwater: Admin | E44: 06.4 - Techn Serv-Stormwater: Admin
B45: 06.5 | C45: Project Management Unit | D45: 06.5 - Project Management Unit | E45: 06.5 - Project Management Unit
B46: 06.6 | C46: Electrical & Machinery | D46: 06.6 - Electrical & Machinery | E46: 06.6 - Electrical & Machinery
B47: 06.7 | C47: Water | D47: 06.7 - Water | E47: 06.7 - Water
B48: 06.8 | C48: Sanitation | D48: 06.8 - Sanitation | E48: 06.8 - Sanitation
B49: Vote 07
B50: Vote 08
B51: Vote 09
B52: Vote 10
B53: Vote 11
B54: Vote 12
B55: Vote 13
B56: Vote 14
B57: Vote 15 | C57: Other

Sheet Contacts
A1: =muni&" - "&" Contact Information" -> LIM353 Molemole - Contact Information
A3: A. GENERAL INFORMATION
A4: Municipality | B4: =muni -> LIM353 Molemole | C4: =IF(B4="Choose name from List","Set name on 'Instructions' sheet", "") -> 
A6: Grade | C6: 1 Grade in terms of the Remuneration of Public Office Bearers Act.
A8: Province | B8: =IF(B4>" ",VLOOKUP(B4,'Lookup and lists'!B29:C307,2, FALSE)," ") -> LIM LIMPOPO
A10: Web Address | B10: www.molemole.gov.za
A12: e-mail Address
A14: B. CONTACT INFORMATION
A15: Postal address:
A16: P.O. Box | B16: Private Bag X 44
A17: City / Town | B17: Mogwadi
A18: Postal Code
A20: Street address
A21: Building | B21: 303
A22: Street No. & Name | B22: Church Street
A23: City / Town | B23: Mogwadi
A24: Postal Code
A26: General Contacts
A27: Telephone number | B27: 015 501 2301
A28: Fax number | B28: 015 501 0419
A30: C. POLITICAL LEADERSHIP
A31: Speaker: | C31: Secretary/PA to the Speaker:
A32: ID Number | B32: 560618 0882 808 | C32: ID Number | D32: 820119 0609 087
A33: Title | B33: Mrs | C33: Title | D33: Ms
A34: Name | B34: MOREROA M.S | C34: Name | D34: MACHAKA SEBOLLA
A35: Telephone number | B35: 015 501 0243 | C35: Telephone number | D35: 015 501 0243
A36: Cell number | B36: 079 220 7523 | C36: Cell number | D36: 079 728 8360
A37: Fax number | B37: 015 501 0419 | C37: Fax number | D37: 015 501 0419
A38: E-mail address | B38: moreroams@molemole.gov.za | C38: E-mail address | D38: machakas@molemole.gov.za
A40: Mayor/Executive Mayor: | C40: Secretary/PA to the Mayor/Executive Mayor:
A41: ID Number | B41: 660312 5428 081 | C41: ID Number | D41: 850930 1072 080
A42: Title | B42: Mr | C42: Title | D42: Ms
A43: Name | B43: PAYA E | C43: Name | D43: RATHETE MAKETA
A44: Telephone number | B44: 015 501 0243 | C44: Telephone number | D44: 015 501 0243
A45: Cell number | B45: 082 474 2858 | C45: Cell number | D45: 072 958 1970
A46: Fax number | B46: 086 515 8809 | C46: Fax number | D46: 015 501 0419
A47: E-mail address | B47: payae@molemole.gov.za | C47: E-mail address | D47: rathetem@molemole.go.za
A49: Deputy Mayor/Executive Mayor: | C49: Secretary/PA to the Deputy Mayor/Executive Mayor:
A50: ID Number | C50: ID Number
A51: Title | C51: Title
A52: Name | C52: Name
A53: Telephone number | C53: Telephone number
A54: Cell number | C54: Cell number
A55: Fax number | C55: Fax number
A56: E-mail address | C56: E-mail address
A58: D. MANAGEMENT LEADERSHIP
A59: Municipal Manager: | C59: Secretary/PA to the Municipal Manager:
A60: ID Number | B60: 670616 5811 080 | C60: ID Number | D60: 720712 0880 087
A61: Title | B61: Mr | C61: Title | D61: Mrs
A62: Name | B62: MOSENA MAPHALA LAZARUS | C62: Name | D62: SEABELA SUSAN
A63: Telephone number | B63: 015 501 0243 | C63: Telephone number | D63: 015 501 0243
A64: Cell number | B64: 079 803 9833 | C64: Cell number | D64: 079 217 3250
A65: Fax number | B65: 015 501 0419 | C65: Fax number | D65: 015 501 0419
A66: E-mail address | B66: 079 803 9833 | C66: E-mail address | D66: lebepes@molemole.gov.za
A68: Chief Financial Officer | C68: Secretary/PA to the Chief Financial Officer
A69: ID Number | B69: 840716 0427 083 | C69: ID Number | D69: 900906 1348 084
A70: Title | B70: Miss | C70: Title | D70: Miss
A71: Name | B71: ZULU KCW | C71: Name | D71: MAROPENG PHOSA
A72: Telephone number | B72: 015 501 0243 | C72: Telephone number | D72: 015 501 0243
A73: Cell number | B73: 063 878 8894 | C73: Cell number | D73: 073 916 3639
A74: Fax number | B74: 015 501 0419 | C74: Fax number | D74: 015 501 0419
A75: E-mail address | B75: zuluk@molemole.gov.za | C75: E-mail address | D75: phosam@molemole.gov.za
A77: Official responsible for submitting financial information | C77: Official responsible for submitting financial information
A78: ID Number | B78: 750310 0412 085 | C78: ID Number
A79: Title | B79: Mrs | C79: Title
A80: Name | B80: LETHUBA BEAUTY | C80: Name
A81: Telephone number | B81: 015 501 0243 | C81: Telephone number
A82: Cell number | B82: 082 813 5777 | C82: Cell number
A83: Fax number | B83: 015 501 0419 | C83: Fax number
A84: E-mail address | B84: lethubab@molemole.gov.za | C84: E-mail address
A85: Official responsible for submitting financial information | C85: Official responsible for submitting financial information
A86: ID Number | C86: ID Number
A87: Title | C87: Title
A88: Name | C88: Name
A89: Telephone number | C89: Telephone number
A90: Cell number | C90: Cell number
A91: Fax number | C91: Fax number
A92: E-mail address | C92: E-mail address
A93: Official responsible for submitting financial information | C93: Official responsible for submitting financial information
A94: ID Number | C94: ID Number
A95: Title | C95: Title
A96: Name | C96: Name
A97: Telephone number | C97: Telephone number
A98: Cell number | C98: Cell number
A99: Fax number | C99: Fax number
A100: E-mail address | C100: E-mail address
A101: Official responsible for submitting financial information | C101: Official responsible for submitting financial information
A102: ID Number | C102: ID Number
A103: Title | C103: Title
A104: Name | C104: Name
A105: Telephone number | C105: Telephone number
A106: Cell number | C106: Cell number
A107: Fax number | C107: Fax number
A108: E-mail address | C108: E-mail address
A109: Official responsible for submitting financial information | C109: Official responsible for submitting financial information
A110: ID Number | C110: ID Number
A111: Title | C111: Title
A112: Name | C112: Name
A113: Telephone number | C113: Telephone number
A114: Cell number | C114: Cell number
A115: Fax number | C115: Fax number
A116: E-mail address | C116: E-mail address
A117: Official responsible for submitting financial information | C117: Official responsible for submitting financial information
A118: ID Number | C118: ID Number
A119: Title | C119: Title
A120: Name | C120: Name
A121: Telephone number | C121: Telephone number
A122: Cell number | C122: Cell number
A123: Fax number | C123: Fax number
A124: E-mail address | C124: E-mail address
A125: Official responsible for submitting financial information | C125: Official responsible for submitting financial information
A126: ID Number | C126: ID Number
A127: Title | C127: Title
A128: Name | C128: Name
A129: Telephone number | C129: Telephone number
A130: Cell number | C130: Cell number
A131: Fax number | C131: Fax number
A132: E-mail address | C132: E-mail address
A133: Official responsible for submitting financial information
A134: ID Number
A135: Title
A136: Name
A137: Telephone number
A138: Cell number
A139: Fax number
A140: E-mail address

Sheet A1-Sum
A1: =muni&" - "&Approve1 -> LIM353 Molemole - Table A1 Budget Summary
A2: =desc -> Description | B2: =head1b -> 2016/17 | C2: =head1A -> 2017/18 | D2: =Head1 -> 2018/19 | E2: =Head2 -> Current Year 2019/20 | I2: =Head3 -> 2020/21 Medium Term Revenue & Expenditure Framework
A3: R thousands | B3: =Head5 -> Audited Outcome | C3: =Head5 -> Audited Outcome | D3: =Head5 -> Audited Outcome | E3: =Head6 -> Original Budget | F3: =Head7 -> Adjusted Budget | G3: =Head8 -> Full Year Forecast | H3: =Head5b -> Pre-audit outcome | I3: =Head9 -> Budget Year 2020/21 | J3: =Head10 -> Budget Year +1 2021/22 | K3: =Head11 -> Budget Year +2 2022/23
A4: Financial Performance
A5: Property rates | B5: ='A4-FinPerf RE'!C5 -> 13663497 | C5: ='A4-FinPerf RE'!D5 -> 16158013.97 | D5: ='A4-FinPerf RE'!E5 -> 14578847.33 | E5: ='A4-FinPerf RE'!F5 -> 15291183 | F5: ='A4-FinPerf RE'!G5 -> 19858067 | G5: ='A4-FinPerf RE'!H5 -> 19858067 | H5: ='A4-FinPerf RE'!I5 -> 14920348.21 | I5: ='A4-FinPerf RE'!J5 -> 20751683 | J5: ='A4-FinPerf RE'!K5 -> 21706259 | K5: ='A4-FinPerf RE'!L5 -> 22704749
A6: Service charges | B6: =SUM('A4-FinPerf RE'!C6:C9) -> 8959701 | C6: =SUM('A4-FinPerf RE'!D6:D9) -> 6112790.16 | D6: =SUM('A4-FinPerf RE'!E6:E9) -> 4584778.09 | E6: =SUM('A4-FinPerf RE'!F6:F9) -> 11512854 | F6: =SUM('A4-FinPerf RE'!G6:G9) -> 11512854 | G6: =SUM('A4-FinPerf RE'!H6:H9) -> 11512854 | H6: =SUM('A4-FinPerf RE'!I6:I9) -> 3429255.87 | I6: =SUM('A4-FinPerf RE'!J6:J9) -> 12363019 | J6: =SUM('A4-FinPerf RE'!K6:K9) -> 12991548 | K6: =SUM('A4-FinPerf RE'!L6:L9) -> 14040240
A7: Investment revenue | B7: ='A4-FinPerf RE'!C12 -> 2422612 | C7: ='A4-FinPerf RE'!D12 -> 0 | D7: ='A4-FinPerf RE'!E12 -> 0 | E7: ='A4-FinPerf RE'!F12 -> 2112000 | F7: ='A4-FinPerf RE'!G12 -> 2112000 | G7: ='A4-FinPerf RE'!H12 -> 2112000 | H7: ='A4-FinPerf RE'!I12 -> 1248357.67 | I7: ='A4-FinPerf RE'!J12 -> 2215488 | J7: ='A4-FinPerf RE'!K12 -> 2321832 | K7: ='A4-FinPerf RE'!L12 -> 2433280
A8: Transfers recognised - operational | B8: ='A4-FinPerf RE'!C18 -> 125148401 | C8: ='A4-FinPerf RE'!D18 -> 129423229.5 | D8: ='A4-FinPerf RE'!E18 -> 134056601.1 | E8: ='A4-FinPerf RE'!F18 -> 147905550 | F8: ='A4-FinPerf RE'!G18 -> 147905550 | G8: ='A4-FinPerf RE'!H18 -> 147905550 | H8: ='A4-FinPerf RE'!I18 -> 144684784.9 | I8: ='A4-FinPerf RE'!J18 -> 156237650 | J8: ='A4-FinPerf RE'!K18 -> 164115950 | K8: ='A4-FinPerf RE'!L18 -> 171440600
A9: Other own revenue | B9: ='A4-FinPerf RE'!C11+'A4-FinPerf RE'!C13+'A4-FinPerf RE'!C14+'A4-FinPerf RE'!C15+'A4-FinPerf RE'!C16+'A4-FinPerf RE'!C17+'A4-FinPerf RE'!C19+'A4-FinPerf RE'!C20 -> 40342669 | C9: ='A4-FinPerf RE'!D11+'A4-FinPerf RE'!D13+'A4-FinPerf RE'!D14+'A4-FinPerf RE'!D15+'A4-FinPerf RE'!D16+'A4-FinPerf RE'!D17+'A4-FinPerf RE'!D19+'A4-FinPerf RE'!D20 -> 9565624.46 | D9: ='A4-FinPerf RE'!E11+'A4-FinPerf RE'!E13+'A4-FinPerf RE'!E14+'A4-FinPerf RE'!E15+'A4-FinPerf RE'!E16+'A4-FinPerf RE'!E17+'A4-FinPerf RE'!E19+'A4-FinPerf RE'!E20 -> 8499643.22 | E9: ='A4-FinPerf RE'!F11+'A4-FinPerf RE'!F13+'A4-FinPerf RE'!F14+'A4-FinPerf RE'!F15+'A4-FinPerf RE'!F16+'A4-FinPerf RE'!F17+'A4-FinPerf RE'!F19+'A4-FinPerf RE'!F20 -> 50774786 | F9: ='A4-FinPerf RE'!G11+'A4-FinPerf RE'!G13+'A4-FinPerf RE'!G14+'A4-FinPerf RE'!G15+'A4-FinPerf RE'!G16+'A4-FinPerf RE'!G17+'A4-FinPerf RE'!G19+'A4-FinPerf RE'!G20 -> 42049705 | G9: ='A4-FinPerf RE'!H11+'A4-FinPerf RE'!H13+'A4-FinPerf RE'!H14+'A4-FinPerf RE'!H15+'A4-FinPerf RE'!H16+'A4-FinPerf RE'!H17+'A4-FinPerf RE'!H19+'A4-FinPerf RE'!H20 -> 42049705 | H9: ='A4-FinPerf RE'!I11+'A4-FinPerf RE'!I13+'A4-FinPerf RE'!I14+'A4-FinPerf RE'!I15+'A4-FinPerf RE'!I16+'A4-FinPerf RE'!I17+'A4-FinPerf RE'!I19+'A4-FinPerf RE'!I20 -> 9446520.77 | I9: ='A4-FinPerf RE'!J11+'A4-FinPerf RE'!J13+'A4-FinPerf RE'!J14+'A4-FinPerf RE'!J15+'A4-FinPerf RE'!J16+'A4-FinPerf RE'!J17+'A4-FinPerf RE'!J19+'A4-FinPerf RE'!J20 -> 41739332 | J9: ='A4-FinPerf RE'!K11+'A4-FinPerf RE'!K13+'A4-FinPerf RE'!K14+'A4-FinPerf RE'!K15+'A4-FinPerf RE'!K16+'A4-FinPerf RE'!K17+'A4-FinPerf RE'!K19+'A4-FinPerf RE'!K20 -> 44297651 | K9: ='A4-FinPerf RE'!L11+'A4-FinPerf RE'!L13+'A4-FinPerf RE'!L14+'A4-FinPerf RE'!L15+'A4-FinPerf RE'!L16+'A4-FinPerf RE'!L17+'A4-FinPerf RE'!L19+'A4-FinPerf RE'!L20 -> 49174985
A10: ='A4-FinPerf RE'!A21 -> Total Revenue (excluding capital transfers and contributions) | B10: =SUM(B5:B9) -> 190536880 | C10: 161259658.1 | D10: 161719869.8 | E10: 227596373 | F10: 223438176 | G10: 223438176 | H10: 173729267.4 | I10: 233307172 | J10: 245433240 | K10: 259793854
A11: Employee costs | B11: ='A4-FinPerf RE'!C24 -> 66931271 | C11: ='A4-FinPerf RE'!D24 -> 65955037.15 | D11: ='A4-FinPerf RE'!E24 -> 78988941.68 | E11: ='A4-FinPerf RE'!F24 -> 93985993 | F11: ='A4-FinPerf RE'!G24 -> 92456448 | G11: ='A4-FinPerf RE'!H24 -> 92456448 | H11: ='A4-FinPerf RE'!I24 -> 62667287.41 | I11: ='A4-FinPerf RE'!J24 -> 98165079 | J11: ='A4-FinPerf RE'!K24 -> 105054628 | K11: ='A4-FinPerf RE'!L24 -> 112379006
A12: Remuneration of councillors | B12: ='A4-FinPerf RE'!C25 -> 10568433 | C12: ='A4-FinPerf RE'!D25 -> 12031425.75 | D12: ='A4-FinPerf RE'!E25 -> 12328369.95 | E12: ='A4-FinPerf RE'!F25 -> 14127295 | F12: ='A4-FinPerf RE'!G25 -> 14127295 | G12: ='A4-FinPerf RE'!H25 -> 14127295 | H12: ='A4-FinPerf RE'!I25 -> 9305072.91 | I12: ='A4-FinPerf RE'!J25 -> 15010262 | J12: ='A4-FinPerf RE'!K25 -> 16060977 | K12: ='A4-FinPerf RE'!L25 -> 17185245
A13: Depreciation & asset impairment | B13: ='A4-FinPerf RE'!C27 -> 8529313 | C13: ='A4-FinPerf RE'!D27 -> 7861220.46 | D13: ='A4-FinPerf RE'!E27 -> 12277161.1 | E13: ='A4-FinPerf RE'!F27 -> 8659942 | F13: ='A4-FinPerf RE'!G27 -> 15137211 | G13: ='A4-FinPerf RE'!H27 -> 15137211 | H13: ='A4-FinPerf RE'!I27 -> 12898035.77 | I13: ='A4-FinPerf RE'!J27 -> 15818415 | J13: ='A4-FinPerf RE'!K27 -> 16545885 | K13: ='A4-FinPerf RE'!L27 -> 17306814
A14: Finance charges | B14: ='A4-FinPerf RE'!C28 -> 0 | C14: ='A4-FinPerf RE'!D28 -> 1191477.46 | D14: ='A4-FinPerf RE'!E28 -> 1154597.65 | E14: ='A4-FinPerf RE'!F28 -> 1255286 | F14: ='A4-FinPerf RE'!G28 -> 1255286 | G14: ='A4-FinPerf RE'!H28 -> 1255286 | H14: ='A4-FinPerf RE'!I28 -> 8229.96 | I14: ='A4-FinPerf RE'!J28 -> 3711774 | J14: ='A4-FinPerf RE'!K28 -> 3881204 | K14: ='A4-FinPerf RE'!L28 -> 4058369
A15: Materials and bulk purchases | B15: ='A4-FinPerf RE'!C29+'A4-FinPerf RE'!C30 -> 7502657 | C15: ='A4-FinPerf RE'!D29+'A4-FinPerf RE'!D30 -> 12454080.09 | D15: ='A4-FinPerf RE'!E29+'A4-FinPerf RE'!E30 -> 13882071.83 | E15: ='A4-FinPerf RE'!F29+'A4-FinPerf RE'!F30 -> 13126679 | F15: ='A4-FinPerf RE'!G29+'A4-FinPerf RE'!G30 -> 13507045 | G15: ='A4-FinPerf RE'!H29+'A4-FinPerf RE'!H30 -> 13507045 | H15: ='A4-FinPerf RE'!I29+'A4-FinPerf RE'!I30 -> 10981306.87 | I15: ='A4-FinPerf RE'!J29+'A4-FinPerf RE'!J30 -> 14451928 | J15: ='A4-FinPerf RE'!K29+'A4-FinPerf RE'!K30 -> 15168703 | K15: ='A4-FinPerf RE'!L29+'A4-FinPerf RE'!L30 -> 16269056
A16: Transfers and grants | B16: ='A4-FinPerf RE'!C32 -> 0 | C16: ='A4-FinPerf RE'!D32 -> 0 | D16: ='A4-FinPerf RE'!E32 -> 0 | E16: ='A4-FinPerf RE'!F32 -> 0 | F16: ='A4-FinPerf RE'!G32 -> 0 | G16: ='A4-FinPerf RE'!H32 -> 0 | H16: ='A4-FinPerf RE'!I32 -> 0 | I16: ='A4-FinPerf RE'!J32 -> 0 | J16: ='A4-FinPerf RE'!K32 -> 0 | K16: ='A4-FinPerf RE'!L32 -> 0
A17: Other expenditure | B17: ='A4-FinPerf RE'!C26+'A4-FinPerf RE'!C31+'A4-FinPerf RE'!C33+'A4-FinPerf RE'!C34 -> 68738456 | C17: ='A4-FinPerf RE'!D26+'A4-FinPerf RE'!D31+'A4-FinPerf RE'!D33+'A4-FinPerf RE'!D34 -> 61664569.95 | D17: ='A4-FinPerf RE'!E26+'A4-FinPerf RE'!E31+'A4-FinPerf RE'!E33+'A4-FinPerf RE'!E34 -> 75563870.62 | E17: ='A4-FinPerf RE'!F26+'A4-FinPerf RE'!F31+'A4-FinPerf RE'!F33+'A4-FinPerf RE'!F34 -> 74393367 | F17: ='A4-FinPerf RE'!G26+'A4-FinPerf RE'!G31+'A4-FinPerf RE'!G33+'A4-FinPerf RE'!G34 -> 75769587 | G17: ='A4-FinPerf RE'!H26+'A4-FinPerf RE'!H31+'A4-FinPerf RE'!H33+'A4-FinPerf RE'!H34 -> 75769587 | H17: ='A4-FinPerf RE'!I26+'A4-FinPerf RE'!I31+'A4-FinPerf RE'!I33+'A4-FinPerf RE'!I34 -> 44549690.94 | I17: ='A4-FinPerf RE'!J26+'A4-FinPerf RE'!J31+'A4-FinPerf RE'!J33+'A4-FinPerf RE'!J34 -> 73736713 | J17: ='A4-FinPerf RE'!K26+'A4-FinPerf RE'!K31+'A4-FinPerf RE'!K33+'A4-FinPerf RE'!K34 -> 74722843 | K17: ='A4-FinPerf RE'!L26+'A4-FinPerf RE'!L31+'A4-FinPerf RE'!L33+'A4-FinPerf RE'!L34 -> 76806204
A18: ='A4-FinPerf RE'!A35 -> Total Expenditure | B18: =SUM(B11:B17) -> 162270130 | C18: =SUM(C11:C17) -> 161157810.9 | D18: 194195012.8 | E18: 205548562 | F18: 212252872 | G18: 212252872 | H18: 140409623.9 | I18: 220894171 | J18: 231434240 | K18: 244004694
A19: ='A4-FinPerf RE'!A37 -> Surplus/(Deficit) | B19: =B10-B18 -> 28266750 | C19: 101847.27 | D19: -32475143.08 | E19: 22047811 | F19: 11185304 | G19: 11185304 | H19: 33319643.53 | I19: 12413001 | J19: 13999000 | K19: 15789160
A20: ='A4-FinPerf RE'!A38 -> Transfers and subsidies - capital (monetary allocations) (National / Provincial and District) | B20: ='A4-FinPerf RE'!C38 -> 27772106 | C20: ='A4-FinPerf RE'!D38 -> 1000000 | D20: ='A4-FinPerf RE'!E38 -> 43126493.38 | E20: ='A4-FinPerf RE'!F38 -> 33393460 | F20: ='A4-FinPerf RE'!G38 -> 43119460 | G20: ='A4-FinPerf RE'!H38 -> 43119460 | H20: ='A4-FinPerf RE'!I38 -> 31038466.53 | I20: ='A4-FinPerf RE'!J38 -> 49186350 | J20: ='A4-FinPerf RE'!K38 -> 41852050 | K20: ='A4-FinPerf RE'!L38 -> 44802400
A21: ='A4-FinPerf RE'!A39&" & "&'A4-FinPerf RE'!A40 -> Transfers and subsidies - capital (monetary allocations) (National / Provincial Departmental Agencies, Households, Non-profit Institutions, Private Enterprises, Public Corporatons, Higher Educational Institutions) & Transfers and subsidies - capital (in-kind - all) | B21: ='A4-FinPerf RE'!C39+'A4-FinPerf RE'!C40 -> 0 | C21: ='A4-FinPerf RE'!D39+'A4-FinPerf RE'!D40 -> 37528698.44 | D21: ='A4-FinPerf RE'!E39+'A4-FinPerf RE'!E40 -> 0 | E21: ='A4-FinPerf RE'!F39+'A4-FinPerf RE'!F40 -> 0 | F21: ='A4-FinPerf RE'!G39+'A4-FinPerf RE'!G40 -> 0 | G21: ='A4-FinPerf RE'!H39+'A4-FinPerf RE'!H40 -> 0 | H21: ='A4-FinPerf RE'!I39+'A4-FinPerf RE'!I40 -> 0 | I21: ='A4-FinPerf RE'!J39+'A4-FinPerf RE'!J40 -> 0 | J21: ='A4-FinPerf RE'!K39+'A4-FinPerf RE'!K40 -> 0 | K21: ='A4-FinPerf RE'!L39+'A4-FinPerf RE'!L40 -> 0
A22: ='A4-FinPerf RE'!A41 -> Surplus/(Deficit) after capital transfers & contributions | B22: =B19+SUM(B20:B21) -> 56038856 | C22: =C19+SUM(C20:C21) -> 38630545.71 | D22: 10651350.3 | E22: 55441271 | F22: 54304764 | G22: 54304764 | H22: 64358110.06 | I22: 61599351 | J22: 55851050 | K22: 60591560
A23: ='A4-FinPerf RE'!A46 -> Share of surplus/ (deficit) of associate | B23: ='A4-FinPerf RE'!C46 -> 0 | C23: ='A4-FinPerf RE'!D46 -> 0 | D23: ='A4-FinPerf RE'!E46 -> 0 | E23: ='A4-FinPerf RE'!F46 -> 0 | F23: ='A4-FinPerf RE'!G46 -> 0 | G23: ='A4-FinPerf RE'!H46 -> 0 | H23: ='A4-FinPerf RE'!I46 -> 0 | I23: ='A4-FinPerf RE'!J46 -> 0 | J23: ='A4-FinPerf RE'!K46 -> 0 | K23: ='A4-FinPerf RE'!L46 -> 0
A24: ='A4-FinPerf RE'!A47 -> Surplus/(Deficit) for the year | B24: =B22+B23 -> 56038856 | C24: =C22+C23 -> 38630545.71 | D24: 10651350.3 | E24: 55441271 | F24: 54304764 | G24: 54304764 | H24: 64358110.06 | I24: 61599351 | J24: 55851050 | K24: 60591560
A26: Capital expenditure & funds sources
A27: Capital expenditure | B27: ='A5-Capex'!C63 -> 40350587 | C27: ='A5-Capex'!D63 -> 35099381.22 | D27: ='A5-Capex'!E63 -> 45682357.98 | E27: ='A5-Capex'!F63 -> 55441271 | F27: ='A5-Capex'!G63 -> 54304785 | G27: ='A5-Capex'!H63 -> 54304785 | H27: ='A5-Capex'!I63 -> 33759110.27 | I27: ='A5-Capex'!J63 -> 61599351 | J27: ='A5-Capex'!K63 -> 55851050 | K27: ='A5-Capex'!L63 -> 60591560
A28: Transfers recognised - capital | B28: ='A5-Capex'!C70 -> 26210622 | C28: ='A5-Capex'!D70 -> 24365084.43 | D28: ='A5-Capex'!E70 -> 38798653.46 | E28: ='A5-Capex'!F70 -> 33393450 | F28: ='A5-Capex'!G70 -> 41503450 | G28: ='A5-Capex'!H70 -> 41503450 | H28: ='A5-Capex'!I70 -> 28398406.22 | I28: ='A5-Capex'!J70 -> 49186351 | J28: ='A5-Capex'!K70 -> 41852050 | K28: ='A5-Capex'!L70 -> 44802400
A30: ='A5-Capex'!A72 -> Borrowing | B30: ='A5-Capex'!C72 -> 0 | C30: ='A5-Capex'!D72 -> 0 | D30: ='A5-Capex'!E72 -> 0 | E30: ='A5-Capex'!F72 -> 0 | F30: ='A5-Capex'!G72 -> 0 | G30: ='A5-Capex'!H72 -> 0 | H30: ='A5-Capex'!I72 -> 0 | I30: ='A5-Capex'!J72 -> 0 | J30: ='A5-Capex'!K72 -> 0 | K30: ='A5-Capex'!L72 -> 0
A31: ='A5-Capex'!A73 -> Internally generated funds | B31: ='A5-Capex'!C73 -> 14139965 | C31: ='A5-Capex'!D73 -> 10734296.79 | D31: ='A5-Capex'!E73 -> 6883704.52 | E31: ='A5-Capex'!F73 -> 22047821 | F31: ='A5-Capex'!G73 -> 12801335 | G31: ='A5-Capex'!H73 -> 12801335 | H31: ='A5-Capex'!I73 -> 5360704.05 | I31: ='A5-Capex'!J73 -> 12413000 | J31: ='A5-Capex'!K73 -> 13999000 | K31: ='A5-Capex'!L73 -> 15789160
A32: Total sources of capital funds | B32: =+B28+B30+B31 -> 40350587 | C32: =+C28+C30+C31 -> 35099381.22 | D32: 45682357.98 | E32: 55441271 | F32: 54304785 | G32: 54304785 | H32: 33759110.27 | I32: 61599351 | J32: 55851050 | K32: 60591560
A34: Financial position
A35: ='A6-FinPos'!A12 -> Total current assets | B35: ='A6-FinPos'!C12 -> 107270911 | C35: ='A6-FinPos'!D12 -> 116152500.1 | D35: ='A6-FinPos'!E12 -> 108943351.3 | E35: ='A6-FinPos'!F12 -> 56560771 | F35: ='A6-FinPos'!G12 -> 123291370 | G35: ='A6-FinPos'!H12 -> 123291370 | H35: ='A6-FinPos'!I12 -> 184807565.1 | I35: ='A6-FinPos'!J12 -> 146580985 | J35: ='A6-FinPos'!K12 -> 176901911 | K35: ='A6-FinPos'!L12 -> 202187616
A36: ='A6-FinPos'!A24 -> Total non current assets | B36: ='A6-FinPos'!C24 -> 188857313 | C36: ='A6-FinPos'!D24 -> 215988050.1 | D36: ='A6-FinPos'!E24 -> 252715918.4 | E36: ='A6-FinPos'!F24 -> 141236410 | F36: ='A6-FinPos'!G24 -> 292322709 | G36: ='A6-FinPos'!H24 -> 292322709 | H36: ='A6-FinPos'!I24 -> 273576992.9 | I36: ='A6-FinPos'!J24 -> 337954326 | J36: ='A6-FinPos'!K24 -> 375497566 | K36: ='A6-FinPos'!L24 -> 419017858
A37: ='A6-FinPos'!A34 -> Total current liabilities | B37: ='A6-FinPos'!C34 -> 45900514 | C37: ='A6-FinPos'!D34 -> 35208862.46 | D37: ='A6-FinPos'!E34 -> 42609902.45 | E37: ='A6-FinPos'!F34 -> 38920278 | F37: ='A6-FinPos'!G34 -> 40043609 | G37: ='A6-FinPos'!H34 -> 40043609 | H37: ='A6-FinPos'!I34 -> 70518703.95 | I37: ='A6-FinPos'!J34 -> 42373757 | J37: ='A6-FinPos'!K34 -> 46611135 | K37: ='A6-FinPos'!L34 -> 51272244
A38: ='A6-FinPos'!A39 -> Total non current liabilities | B38: ='A6-FinPos'!C39 -> 19847882 | C38: ='A6-FinPos'!D39 -> 21206864.3 | D38: ='A6-FinPos'!E39 -> 23525663.94 | E38: ='A6-FinPos'!F39 -> 25676880 | F38: ='A6-FinPos'!G39 -> 25741988 | G38: ='A6-FinPos'!H39 -> 25741988 | H38: ='A6-FinPos'!I39 -> 23525663.94 | I38: ='A6-FinPos'!J39 -> 27286509 | J38: ='A6-FinPos'!K39 -> 30015159 | K38: ='A6-FinPos'!L39 -> 33016675
A39: Community wealth/Equity | B39: ='A6-FinPos'!C48 -> 230379828 | C39: ='A6-FinPos'!D48 -> 275724823.4 | D39: ='A6-FinPos'!E48 -> 295523703.2 | E39: ='A6-FinPos'!F48 -> 85506572 | F39: ='A6-FinPos'!G48 -> 349828482 | G39: ='A6-FinPos'!H48 -> 349828482 | H39: ='A6-FinPos'!I48 -> 359881813.3 | I39: ='A6-FinPos'!J48 -> 414875045 | J39: ='A6-FinPos'!K48 -> 475773183 | K39: ='A6-FinPos'!L48 -> 536916555
A41: Cash flows
A42: Net cash from (used) operating | B42: ='A7-CFlow'!C17 -> 74621048 | C42: ='A7-CFlow'!D17 -> 52040568 | D42: ='A7-CFlow'!E17 -> 22740636 | E42: ='A7-CFlow'!F17 -> 76134988.55 | F42: ='A7-CFlow'!G17 -> 68657280.55 | G42: ='A7-CFlow'!H17 -> 68657280.55 | H42: ='A7-CFlow'!I17 -> 43657280.55 | I42: ='A7-CFlow'!J17 -> 56563103 | J42: ='A7-CFlow'!K17 -> 66545798 | K42: ='A7-CFlow'!L17 -> 63110477
A43: Net cash from (used) investing | B43: ='A7-CFlow'!C27 -> -56322068 | C43: ='A7-CFlow'!D27 -> -39477168 | D43: ='A7-CFlow'!E27 -> -44944631 | E43: ='A7-CFlow'!F27 -> -50437065 | F43: ='A7-CFlow'!G27 -> -55304783.54 | G43: ='A7-CFlow'!H27 -> -55304783.54 | H43: ='A7-CFlow'!I27 -> -55304783.54 | I43: ='A7-CFlow'!J27 -> -61599351 | J43: ='A7-CFlow'!K27 -> -55851050 | K43: ='A7-CFlow'!L27 -> -60591560
A44: Net cash from (used) financing | B44: ='A7-CFlow'!C36 -> 547816 | C44: ='A7-CFlow'!D36 -> 196513.46 | D44: ='A7-CFlow'!E36 -> -196522 | E44: ='A7-CFlow'!F36 -> 0 | F44: ='A7-CFlow'!G36 -> 0 | G44: ='A7-CFlow'!H36 -> 0 | H44: ='A7-CFlow'!I36 -> 0 | I44: ='A7-CFlow'!J36 -> -415665 | J44: ='A7-CFlow'!K36 -> -457231 | K44: ='A7-CFlow'!L36 -> -502955
A45: =LEFT('A7-CFlow'!A40,37) -> Cash/cash equivalents at the year end | B45: ='A7-CFlow'!C40 -> 55606796 | C45: ='A7-CFlow'!D40 -> 54337704.92 | D45: ='A7-CFlow'!E40 -> 19373722 | E45: ='A7-CFlow'!F40 -> 54683683.55 | F45: ='A7-CFlow'!G40 -> 32726218.01 | G45: ='A7-CFlow'!H40 -> 32726218.01 | H45: ='A7-CFlow'!I40 -> 7726218.006 | I45: ='A7-CFlow'!J40 -> 23361860 | J45: ='A7-CFlow'!K40 -> 33599377 | K45: ='A7-CFlow'!L40 -> 35615339
A47: Cash backing/surplus reconciliation
A48: ='A8-ResRecon'!A4 -> Cash and investments available | B48: ='A8-ResRecon'!C8 -> 55607102 | C48: ='A8-ResRecon'!D8 -> 41577791.46 | D48: ='A8-ResRecon'!E8 -> 19363525.35 | E48: ='A8-ResRecon'!F8 -> 23948248 | F48: ='A8-ResRecon'!G8 -> 28813773 | G48: ='A8-ResRecon'!H8 -> 28813773 | H48: ='A8-ResRecon'!I8 -> 79333605.59 | I48: ='A8-ResRecon'!J8 -> 23361626 | J48: ='A8-ResRecon'!K8 -> 33599377 | K48: ='A8-ResRecon'!L8 -> 35615339
A49: ='A8-ResRecon'!A10 -> Application of cash and investments | B49: ='A8-ResRecon'!C18 -> 36468215 | C49: ='A8-ResRecon'!D18 -> -2168605.25 | D49: ='A8-ResRecon'!E18 -> -29598540.44 | E49: ='A8-ResRecon'!F18 -> 24240757 | F49: ='A8-ResRecon'!G18 -> -24784204 | G49: ='A8-ResRecon'!H18 -> -24784204 | H49: ='A8-ResRecon'!I18 -> -25101017.7 | I49: ='A8-ResRecon'!J18 -> -18633786 | J49: ='A8-ResRecon'!K18 -> -23934963 | K49: ='A8-ResRecon'!L18 -> -37401963
A50: Balance - surplus (shortfall) | B50: =B48-B49 -> 19138887 | C50: =C48-C49 -> 43746396.71 | D50: 48962065.79 | E50: -292509 | F50: 53597977 | G50: 53597977 | H50: 104434623.3 | I50: 41995412 | J50: 57534340 | K50: 73017302
A52: Asset management
A53: Asset register summary (WDV) | B53: ='A9-Asset'!C165 -> 0 | C53: ='A9-Asset'!D165 -> 175694096.5 | D53: ='A9-Asset'!E165 -> 243857294.8 | E53: ='A9-Asset'!F165 -> 122804911 | F53: ='A9-Asset'!G165 -> 283464086 | G53: ='A9-Asset'!H165 -> 283464086 | H53: ='A9-Asset'!H165 -> 283464086 | I53: ='A9-Asset'!I165 -> 329095701 | J53: ='A9-Asset'!J165 -> 366638941 | K53: ='A9-Asset'!K165 -> 410159233
A54: ='A9-Asset'!A168 -> Depreciation | B54: ='A9-Asset'!C168 -> 8529313 | C54: ='A9-Asset'!D168 -> 7861220.46 | D54: ='A9-Asset'!E168 -> 12277161.1 | E54: ='A9-Asset'!F168 -> 8659942 | F54: ='A9-Asset'!G168 -> 15137211 | G54: ='A9-Asset'!H168 -> 15137211 | H54: ='A9-Asset'!H168 -> 15137211 | I54: ='A9-Asset'!I168 -> 15818415 | J54: ='A9-Asset'!J168 -> 16545885 | K54: ='A9-Asset'!K168 -> 17306814
A55: Renewal and Upgrading of Existing Assets | B55: ='A9-Asset'!C37+'A9-Asset'!C69 -> 0 | C55: ='A9-Asset'!D37+'A9-Asset'!D69 -> 14173755.42 | D55: ='A9-Asset'!E37+'A9-Asset'!E69 -> 11741584.51 | E55: ='A9-Asset'!F37+'A9-Asset'!F69 -> 8027821 | F55: ='A9-Asset'!G37+'A9-Asset'!G69 -> 5756159 | G55: ='A9-Asset'!H37+'A9-Asset'!H69 -> 5756159 | H55: ='A9-Asset'!H37+'A9-Asset'!H69 -> 5756159 | I55: ='A9-Asset'!I37+'A9-Asset'!I69 -> 6500000 | J55: ='A9-Asset'!J37+'A9-Asset'!J69 -> 14259030 | K55: ='A9-Asset'!K37+'A9-Asset'!K69 -> 7100000
A56: Repairs and Maintenance | B56: ='A9-Asset'!C169 -> 5110596 | C56: ='A9-Asset'!D169 -> 6187644.48 | D56: ='A9-Asset'!E169 -> 7862314.46 | E56: ='A9-Asset'!F169 -> 8422987 | F56: ='A9-Asset'!G169 -> 8468096 | G56: ='A9-Asset'!H169 -> 8468096 | H56: ='A9-Asset'!H169 -> 8468096 | I56: ='A9-Asset'!I169 -> 7524161 | J56: ='A9-Asset'!J169 -> 7870275 | K56: ='A9-Asset'!K169 -> 8232310
A58: Free services
A59: Cost of Free Basic Services provided | B59: ='A10-SerDel'!C60 -> 0 | C59: ='A10-SerDel'!D60 -> -1044100.92 | D59: ='A10-SerDel'!E60 -> 0 | E59: ='A10-SerDel'!F60 -> -1374256 | F59: ='A10-SerDel'!G60 -> -1374256 | G59: ='A10-SerDel'!H60 -> -1374256 | H59: ='A10-SerDel'!I60 -> -1485571 | I59: ='A10-SerDel'!I60 -> -1485571 | J59: ='A10-SerDel'!J60 -> -1562821 | K59: ='A10-SerDel'!K60 -> -1701912
A60: Revenue cost of free services provided | B60: ='A10-SerDel'!C79 -> 0 | C60: ='A10-SerDel'!D79 -> 5120776.5 | D60: ='A10-SerDel'!E79 -> 5521868.3 | E60: ='A10-SerDel'!F79 -> -3282198 | F60: ='A10-SerDel'!G79 -> 1724122 | G60: ='A10-SerDel'!H79 -> 1724122 | H60: ='A10-SerDel'!I79 -> 1801708 | I60: ='A10-SerDel'!I79 -> 1801708 | J60: ='A10-SerDel'!J79 -> 1884587 | K60: ='A10-SerDel'!K79 -> 1971277
A61: Households below minimum service level
A62: ='A10-SerDel'!A5 -> Water: | B62: ='A10-SerDel'!C14 -> 9512 | C62: ='A10-SerDel'!D14 -> 9512 | D62: ='A10-SerDel'!E14 -> 7231 | E62: ='A10-SerDel'!F14 -> 9213 | F62: ='A10-SerDel'!G14 -> 9213 | G62: ='A10-SerDel'!H14 -> 9213 | H62: ='A10-SerDel'!I14 -> 9213 | I62: ='A10-SerDel'!I14 -> 9213 | J62: ='A10-SerDel'!J14 -> 9213 | K62: ='A10-SerDel'!K14 -> 9213
A63: ='A10-SerDel'!A16 -> Sanitation/sewerage: | B63: ='A10-SerDel'!C26 -> 3704 | C63: ='A10-SerDel'!D26 -> 3704 | D63: ='A10-SerDel'!E26 -> 19316 | E63: ='A10-SerDel'!F26 -> 19316 | F63: ='A10-SerDel'!G26 -> 19316 | G63: ='A10-SerDel'!H26 -> 19316 | H63: ='A10-SerDel'!I26 -> 19316 | I63: ='A10-SerDel'!I26 -> 19316 | J63: ='A10-SerDel'!J26 -> 19316 | K63: ='A10-SerDel'!K26 -> 19316
A64: ='A10-SerDel'!A28 -> Energy: | B64: ='A10-SerDel'!C35 -> 0 | C64: ='A10-SerDel'!D35 -> 0 | D64: ='A10-SerDel'!E35 -> 0 | E64: ='A10-SerDel'!F35 -> 0 | F64: ='A10-SerDel'!G35 -> 0 | G64: ='A10-SerDel'!H35 -> 0 | H64: ='A10-SerDel'!I35 -> 0 | I64: ='A10-SerDel'!I35 -> 0 | J64: ='A10-SerDel'!J35 -> 0 | K64: ='A10-SerDel'!K35 -> 0
A65: ='A10-SerDel'!A37 -> Refuse: | B65: ='A10-SerDel'!C45 -> 0 | C65: ='A10-SerDel'!D45 -> 0 | D65: ='A10-SerDel'!E45 -> 0 | E65: ='A10-SerDel'!F45 -> 0 | F65: ='A10-SerDel'!G45 -> 0 | G65: ='A10-SerDel'!H45 -> 0 | H65: ='A10-SerDel'!I45 -> 0 | I65: ='A10-SerDel'!I45 -> 0 | J65: ='A10-SerDel'!J45 -> 0 | K65: ='A10-SerDel'!K45 -> 0

Sheet A2-FinPerf SC
A1: =muni&" - "&Approve3 -> LIM353 Molemole - Table A2 Budgeted Financial Performance (revenue and expenditure by functional classification)
A2: ="Functional Classification "&desc -> Functional Classification Description | B2: =head27 -> Ref | C2: =head1b -> 2016/17 | D2: =head1A -> 2017/18 | E2: =Head1 -> 2018/19 | F2: =Head2 -> Current Year 2019/20 | I2: =Head3 -> 2020/21 Medium Term Revenue & Expenditure Framework
A3: R thousand | B3: 1 | C3: =Head5 -> Audited Outcome | D3: =Head5 -> Audited Outcome | E3: =Head5 -> Audited Outcome | F3: =Head6 -> Original Budget | G3: =Head7 -> Adjusted Budget | H3: =Head8 -> Full Year Forecast | I3: =Head9 -> Budget Year 2020/21 | J3: =Head10 -> Budget Year +1 2021/22 | K3: =Head11 -> Budget Year +2 2022/23
A4: Revenue - Functional
A5: Governance and administration | C5: =SUM(C6:C8) -> 157559119 | D5: =SUM(D6:D8) -> 147822016 | E5: 148157868.4 | F5: 185846276 | G5: 191416257 | H5: 191416257 | I5: 199803893 | J5: 211970948 | K5: 224644364
A6: Executive and council | C6: =A2A!C6 -> 17577096 | D6: =A2A!D6 -> 413109.05 | E6: =A2A!E6 -> 0 | F6: =A2A!F6 -> 0 | G6: =A2A!G6 -> 0 | H6: =A2A!H6 -> 0 | I6: =A2A!I6 -> 0 | J6: =A2A!J6 -> 0 | K6: =A2A!K6 -> 0
A7: Finance and administration | C7: =A2A!C9 -> 139982023 | D7: =A2A!D9 -> 147408906.9 | E7: =A2A!E9 -> 148157868.4 | F7: =A2A!F9 -> 185846276 | G7: =A2A!G9 -> 191416257 | H7: =A2A!H9 -> 191416257 | I7: =A2A!I9 -> 199803893 | J7: =A2A!J9 -> 211970948 | K7: =A2A!K9 -> 224644364
A8: Internal audit | C8: =A2A!C23 -> 0 | D8: =A2A!D23 -> 0 | E8: =A2A!E23 -> 0 | F8: =A2A!F23 -> 0 | G8: =A2A!G23 -> 0 | H8: =A2A!H23 -> 0 | I8: =A2A!I23 -> 0 | J8: =A2A!J23 -> 0 | K8: =A2A!K23 -> 0
A9: Community and public safety | C9: =SUM(C10:C14) -> 5260168 | D9: =SUM(D10:D14) -> 5148667.55 | E9: 5729943.72 | F9: 9732348 | G9: 9682348 | H9: 9682348 | I9: 10202542 | J9: 9310384 | K9: 9738662
A10: Community and social services | C10: =A2A!C26 -> 5260168 | D10: =A2A!D26 -> 1311823.34 | E10: =A2A!E26 -> 1139285 | F10: =A2A!F26 -> 1179565 | G10: =A2A!G26 -> 1179565 | H10: =A2A!H26 -> 1179565 | I10: =A2A!I26 -> 1317131 | J10: =A2A!J26 -> 13735 | K10: =A2A!K26 -> 14367
A11: Sport and recreation | C11: =A2A!C48 -> 0 | D11: =A2A!D48 -> 319737.53 | E11: =A2A!E48 -> 354630.05 | F11: =A2A!F48 -> 287272 | G11: =A2A!G48 -> 237272 | H11: =A2A!H48 -> 237272 | I11: =A2A!I48 -> 247951 | J11: =A2A!J48 -> 259358 | K11: =A2A!K48 -> 271289
A12: Public safety | C12: =A2A!C54 -> 0 | D12: =A2A!D54 -> 3517106.68 | E12: =A2A!E54 -> 4236028.67 | F12: =A2A!F54 -> 8265511 | G12: =A2A!G54 -> 8265511 | H12: =A2A!H54 -> 8265511 | I12: =A2A!I54 -> 8637460 | J12: =A2A!J54 -> 9037291 | K12: =A2A!K54 -> 9453006
A13: Housing | C13: =A2A!C63 -> 0 | D13: =A2A!D63 -> 0 | E13: =A2A!E63 -> 0 | F13: =A2A!F63 -> 0 | G13: =A2A!G63 -> 0 | H13: =A2A!H63 -> 0 | I13: =A2A!I63 -> 0 | J13: =A2A!J63 -> 0 | K13: =A2A!K63 -> 0
A14: Health | C14: =A2A!C66 -> 0 | D14: =A2A!D66 -> 0 | E14: =A2A!E66 -> 0 | F14: =A2A!F66 -> 0 | G14: =A2A!G66 -> 0 | H14: =A2A!H66 -> 0 | I14: =A2A!I66 -> 0 | J14: =A2A!J66 -> 0 | K14: =A2A!K66 -> 0
A15: Economic and environmental services | C15: =SUM(C16:C18) -> 32143885 | D15: =SUM(D16:D18) -> 37599856.25 | E15: 45055756.76 | F15: 50270772 | G15: 52566772 | H15: 52566772 | I15: 42631504 | J15: 45446739 | K15: 47509406
A16: Planning and development | C16: =A2A!C75 -> 595550 | D16: =A2A!D75 -> 37599856.25 | E16: =A2A!E75 -> 45055756.76 | F16: =A2A!F75 -> 50270772 | G16: =A2A!G75 -> 52566772 | H16: =A2A!H75 -> 52566772 | I16: =A2A!I75 -> 42631504 | J16: =A2A!J75 -> 45446739 | K16: =A2A!K75 -> 47509406
A17: Road transport | C17: =A2A!C86 -> 31548335 | D17: =A2A!D86 -> 0 | E17: =A2A!E86 -> 0 | F17: =A2A!F86 -> 0 | G17: =A2A!G86 -> 0 | H17: =A2A!H86 -> 0 | I17: =A2A!I86 -> 0 | J17: =A2A!J86 -> 0 | K17: =A2A!K86 -> 0
A18: Environmental protection | C18: =A2A!C91 -> 0 | D18: =A2A!D91 -> 0 | E18: =A2A!E91 -> 0 | F18: =A2A!F91 -> 0 | G18: =A2A!G91 -> 0 | H18: =A2A!H91 -> 0 | I18: =A2A!I91 -> 0 | J18: =A2A!J91 -> 0 | K18: =A2A!K91 -> 0
A19: Trading services | C19: =SUM(C20:C23) -> 23345814 | D19: =SUM(D20:D23) -> 12859992.29 | E19: 11108673.98 | F19: 15140437 | G19: 12892259 | H19: 12892259 | I19: 29855583 | J19: =SUM(J20:J23) -> 20557219 | K19: 22703822
A20: Energy sources | C20: =A2A!C99 -> 19146674 | D20: =A2A!D99 -> 8440944.95 | E20: =A2A!E99 -> 8396818.49 | F20: =A2A!F99 -> 9750561 | G20: =A2A!G99 -> 9720026 | H20: =A2A!H99 -> 9720026 | I20: =A2A!I99 -> 26539719 | J20: =A2A!J99 -> 17088367 | K20: =A2A!K99 -> 19074921
A21: Water management | C21: =A2A!C103 -> 2368846 | D21: =A2A!D103 -> 1685544.4 | E21: =A2A!E103 -> 1010545.86 | F21: =A2A!F103 -> 2011785 | G21: =A2A!G103 -> 403536 | H21: =A2A!H103 -> 403536 | I21: =A2A!I103 -> 421696 | J21: =A2A!J103 -> 441094 | K21: =A2A!K103 -> 461384
A22: Waste water management | C22: =A2A!C107 -> 0 | D22: =A2A!D107 -> 802026.45 | E22: =A2A!E107 -> -336378.88 | F22: =A2A!F107 -> 870563 | G22: =A2A!G107 -> 261169 | H22: =A2A!H107 -> 261169 | I22: =A2A!I107 -> 272922 | J22: =A2A!J107 -> 285476 | K22: =A2A!K107 -> 298608
A23: Waste management | C23: =A2A!C112 -> 1830294 | D23: =A2A!D112 -> 1931476.49 | E23: =A2A!E112 -> 2037688.51 | F23: =A2A!F112 -> 2507528 | G23: =A2A!G112 -> 2507528 | H23: =A2A!H112 -> 2507528 | I23: =A2A!I112 -> 2621246 | J23: =A2A!J112 -> 2742282 | K23: =A2A!K112 -> 2868909
A24: Other | B24: 4 | C24: =A2A!C117 -> 0 | D24: =A2A!D117 -> 0 | E24: =A2A!E117 -> 0 | F24: =A2A!F117 -> 0 | G24: =A2A!G117 -> 0 | H24: =A2A!H117 -> 0 | I24: =A2A!I117 -> 0 | J24: =A2A!J117 -> 0 | K24: =A2A!K117 -> 0
A25: ="Total "&A4 -> Total Revenue - Functional | B25: 2 | C25: =C5+C9+C15+C19+C24 -> 218308986 | D25: =D5+D9+D15+D19+D24 -> 203430532.1 | E25: =E5+E9+E15+E19+E24 -> 210052242.8 | F25: 260989833 | G25: 266557636 | H25: 266557636 | I25: =I5+I9+I15+I19+I24 -> 282493522 | J25: 287285290 | K25: 304596254
A27: Expenditure - Functional
A28: Governance and administration | C28: =SUM(C29:C31) -> 92995729 | D28: =SUM(D29:D31) -> 95343896.2 | E28: 100302058.4 | F28: 119000674 | G28: 121185629 | H28: 121185629 | I28: 128378946 | J28: 135808647 | K28: 141758589
A29: Executive and council | C29: =A2A!C128 -> 28732413 | D29: =A2A!D128 -> 26920061.45 | E29: =A2A!E128 -> 31357338.36 | F29: =A2A!F128 -> 36964044 | G29: =A2A!G128 -> 36547378 | H29: =A2A!H128 -> 36547378 | I29: =A2A!I128 -> 38782314 | J29: =A2A!J128 -> 41212926 | K29: =A2A!K128 -> 43800618
A30: Finance and administration | C30: =A2A!C131 -> 64263316 | D30: =A2A!D131 -> 63752375.84 | E30: =A2A!E131 -> 63055140.01 | F30: =A2A!F131 -> 75218977 | G30: =A2A!G131 -> 77775050 | H30: =A2A!H131 -> 77775050 | I30: =A2A!I131 -> 82379524 | J30: =A2A!J131 -> 86980974 | K30: =A2A!K131 -> 89922697
A31: Internal audit | C31: =A2A!C145 -> 0 | D31: =A2A!D145 -> 4671458.91 | E31: =A2A!E145 -> 5889580.04 | F31: =A2A!F145 -> 6817653 | G31: =A2A!G145 -> 6863201 | H31: =A2A!H145 -> 6863201 | I31: =A2A!I145 -> 7217108 | J31: =A2A!J145 -> 7614747 | K31: =A2A!K145 -> 8035274
A32: Community and public safety | C32: =SUM(C33:C37) -> 32745093 | D32: =SUM(D33:D37) -> 20005095.92 | E32: 21482121.93 | F32: 23375419 | G32: 23022583 | H32: 23022583 | I32: 24371925 | J32: 25949569 | K32: 27631739
A33: Community and social services | C33: =A2A!C148 -> 32745093 | D33: =A2A!D148 -> 4631871.87 | E33: =A2A!E148 -> 4523084.19 | F33: =A2A!F148 -> 7350195 | G33: =A2A!G148 -> 6758959 | H33: =A2A!H148 -> 6758959 | I33: =A2A!I148 -> 7125757 | J33: =A2A!J148 -> 7544824 | K33: =A2A!K148 -> 7989559
A34: Sport and recreation | C34: =A2A!C170 -> 0 | D34: =A2A!D170 -> 3492716.15 | E34: =A2A!E170 -> 3139055.4 | F34: =A2A!F170 -> 2584983 | G34: =A2A!G170 -> 2684708 | H34: =A2A!H170 -> 2684708 | I34: =A2A!I170 -> 2827735 | J34: =A2A!J170 -> 2990174 | K34: =A2A!K170 -> 3162343
A35: Public safety | C35: =A2A!C176 -> 0 | D35: =A2A!D176 -> 11880507.9 | E35: =A2A!E176 -> 13819982.34 | F35: =A2A!F176 -> 13440241 | G35: =A2A!G176 -> 13578916 | H35: =A2A!H176 -> 13578916 | I35: =A2A!I176 -> 14418433 | J35: =A2A!J176 -> 15414571 | K35: =A2A!K176 -> 16479837
A36: Housing | C36: =A2A!C185 -> 0 | D36: =A2A!D185 -> 0 | E36: =A2A!E185 -> 0 | F36: =A2A!F185 -> 0 | G36: =A2A!G185 -> 0 | H36: =A2A!H185 -> 0 | I36: =A2A!I185 -> 0 | J36: =A2A!J185 -> 0 | K36: =A2A!K185 -> 0
A37: Health | C37: =A2A!C188 -> 0 | D37: =A2A!D188 -> 0 | E37: =A2A!E188 -> 0 | F37: =A2A!F188 -> 0 | G37: =A2A!G188 -> 0 | H37: =A2A!H188 -> 0 | I37: =A2A!I188 -> 0 | J37: =A2A!J188 -> 0 | K37: =A2A!K188 -> 0
A38: Economic and environmental services | C38: =SUM(C39:C41) -> 23082659 | D38: =SUM(D39:D41) -> 10066263.75 | E38: 13169272.81 | F38: 17503092 | G38: 16096553 | H38: 16096553 | I38: 14690829 | J38: 14494810 | K38: 15672381
A39: Planning and development | C39: =A2A!C197 -> 6752952 | D39: =A2A!D197 -> 8606091.61 | E39: =A2A!E197 -> 10131053.5 | F39: =A2A!F197 -> 14324737 | G39: =A2A!G197 -> 12900655 | H39: =A2A!H197 -> 12900655 | I39: =A2A!I197 -> 11334295 | J39: =A2A!J197 -> 10959332 | K39: =A2A!K197 -> 11948006
A40: Road transport | C40: =A2A!C208 -> 16329707 | D40: =A2A!D208 -> 1460172.14 | E40: =A2A!E208 -> 3038219.31 | F40: =A2A!F208 -> 3178355 | G40: =A2A!G208 -> 3195898 | H40: =A2A!H208 -> 3195898 | I40: =A2A!I208 -> 3356534 | J40: =A2A!J208 -> 3535478 | K40: =A2A!K208 -> 3724375
A41: Environmental protection | C41: =A2A!C213 -> 0 | D41: =A2A!D213 -> 0 | E41: =A2A!E213 -> 0 | F41: =A2A!F213 -> 0 | G41: =A2A!G213 -> 0 | H41: =A2A!H213 -> 0 | I41: =A2A!I213 -> 0 | J41: =A2A!J213 -> 0 | K41: =A2A!K213 -> 0
A42: Trading services | C42: =SUM(C43:C46) -> 13446648 | D42: =SUM(D43:D46) -> 35742554.99 | E42: 59241559.68 | F42: =SUM(F43:F46) -> 45669377 | G42: 51948107 | H42: 51948107 | I42: 53452471 | J42: 55181214 | K42: =SUM(K43:K46) -> 58941985
A43: Energy sources | C43: =A2A!C221 -> 7249035 | D43: =A2A!D221 -> 13192692.06 | E43: =A2A!E221 -> 13550677.41 | F43: =A2A!F221 -> 17372199 | G43: =A2A!G221 -> 17619592 | H43: =A2A!H221 -> 17619592 | I43: =A2A!I221 -> 18934649 | J43: =A2A!J221 -> 19970349 | K43: =A2A!K221 -> 21609363
A44: Water management | C44: =A2A!C225 -> 6197613 | D44: =A2A!D225 -> 5590044.61 | E44: =A2A!E225 -> 7741390.77 | F44: =A2A!F225 -> 7039369 | G44: =A2A!G225 -> 7130379 | H44: =A2A!H225 -> 7130379 | I44: =A2A!I225 -> 7573936 | J44: =A2A!J225 -> 8101098 | K44: =A2A!K225 -> 8665027
A45: Waste water management | C45: =A2A!C229 -> 0 | D45: =A2A!D229 -> 11008326.99 | E45: =A2A!E229 -> 29413899.93 | F45: =A2A!F229 -> 14638116 | G45: =A2A!G229 -> 20422238 | H45: =A2A!H229 -> 20422238 | I45: =A2A!I229 -> 19684681 | J45: =A2A!J229 -> 20743794 | K45: =A2A!K229 -> 21862381
A46: Waste management | C46: =A2A!C234 -> 0 | D46: =A2A!D234 -> 5951491.33 | E46: =A2A!E234 -> 8535591.57 | F46: =A2A!F234 -> 6619693 | G46: =A2A!G234 -> 6775898 | H46: =A2A!H234 -> 6775898 | I46: =A2A!I234 -> 7259205 | J46: =A2A!J234 -> 6365973 | K46: =A2A!K234 -> 6805214
A47: Other | B47: 4 | C47: =A2A!C239 -> 0 | D47: =A2A!D239 -> 0 | E47: =A2A!E239 -> 0 | F47: =A2A!F239 -> 0 | G47: =A2A!G239 -> 0 | H47: =A2A!H239 -> 0 | I47: =A2A!I239 -> 0 | J47: =A2A!J239 -> 0 | K47: =A2A!K239 -> 0
A48: ="Total "&A27 -> Total Expenditure - Functional | B48: 3 | C48: =C28+C32+C38+C42+C47 -> 162270129 | D48: =D28+D32+D38+D42+D47 -> 161157810.9 | E48: =E28+E32+E38+E42+E47 -> 194195012.8 | F48: =F28+F32+F38+F42+F47 -> 205548562 | G48: 212252872 | H48: 212252872 | I48: 220894171 | J48: 231434240 | K48: 244004694
A49: =result -> Surplus/(Deficit) for the year | C49: =C25-C48 -> 56038857 | D49: =D25-D48 -> 42272721.2 | E49: 15857230 | F49: 55441271 | G49: 54304764 | H49: 54304764 | I49: 61599351 | J49: 55851050 | K49: 60591560
A50: =head27a -> References
A51: 1. Government Finance Statistics Functions and Sub-functions are standardised to assist the compilation of national and international accounts for comparison purposes
A52: 2. Total Revenue by functional classification must reconcile to Total Operating Revenue shown in Budgeted Financial Performance (revenue and expenditure)
A53: 3. Total Expenditure by Functional Classification must reconcile to Total Operating Expenditure shown in Budgeted Financial Performance (revenue and expenditure)
A54: 4. All amounts must be classified under a functional classification . The GFS function 'Other' is only for Abbatoirs, Air Transport, Forestry, Licensing and Regulation, Markets and Tourism - and if used must be supported by footnotes. Nothing else may be placed under 'Other'. Assign associate share to relevant classification.
A57: check oprev balance | C57: =C25-'A4-FinPerf RE'!C59 -> 0 | D57: =D25-'A4-FinPerf RE'!D59 -> 3642175.49 | E57: =E25-'A4-FinPerf RE'!E59 -> 5205879.7 | F57: =F25-'A4-FinPerf RE'!F59 -> 0 | G57: =G25-'A4-FinPerf RE'!G59 -> 0 | H57: =H25-'A4-FinPerf RE'!H59 -> 0 | I57: =I25-'A4-FinPerf RE'!J59 -> 0 | J57: =J25-'A4-FinPerf RE'!K59 -> 0 | K57: =K25-'A4-FinPerf RE'!L59 -> 0
A58: check opexp balance | C58: =C48-'A4-FinPerf RE'!C35 -> -1 | D58: =D48-'A4-FinPerf RE'!D35 -> 0 | E58: =E48-'A4-FinPerf RE'!E35 -> 0 | F58: =F48-'A4-FinPerf RE'!F35 -> 0 | G58: =G48-'A4-FinPerf RE'!G35 -> 0 | H58: =H48-'A4-FinPerf RE'!H35 -> 0 | I58: =I48-'A4-FinPerf RE'!J35 -> 0 | J58: =J48-'A4-FinPerf RE'!K35 -> 0 | K58: =K48-'A4-FinPerf RE'!L35 -> 0

Sheet A2A
A1: =muni&" - "&Approve3 -> LIM353 Molemole - Table A2 Budgeted Financial Performance (revenue and expenditure by functional classification)
A2: ="Functional Classification "&desc -> Functional Classification Description | B2: =head27 -> Ref | C2: =head1b -> 2016/17 | D2: =head1A -> 2017/18 | E2: =Head1 -> 2018/19 | F2: =Head2 -> Current Year 2019/20 | I2: =Head3 -> 2020/21 Medium Term Revenue & Expenditure Framework
A3: R thousand | B3: 1 | C3: =Head5 -> Audited Outcome | D3: =Head5 -> Audited Outcome | E3: =Head5 -> Audited Outcome | F3: =Head6 -> Original Budget | G3: =Head7 -> Adjusted Budget | H3: =Head8 -> Full Year Forecast | I3: =Head9 -> Budget Year 2020/21 | J3: =Head10 -> Budget Year +1 2021/22 | K3: =Head11 -> Budget Year +2 2022/23
A4: Revenue - Functional
A5: Municipal governance and administration | C5: =C6+C9+C23 -> 157559119 | D5: 147822016 | E5: 148157868.4 | F5: 185846276 | G5: 191416257 | H5: 191416257 | I5: 199803893 | J5: 211970948 | K5: 224644364
A6: Executive and council | C6: =SUM(C7:C8) -> 17577096 | D6: =SUM(D7:D8) -> 413109.05 | E6: 0 | F6: 0 | G6: 0 | H6: 0 | I6: 0 | J6: 0 | K6: 0
A7: Mayor and Council | C7: 17577096 | D7: 0 | E7: 0 | F7: 0 | G7: 0 | H7: 0 | I7: 0 | J7: 0 | K7: 0
A8: Municipal Manager, Town Secretary and Chief Executive | C8: 0 | D8: 413109.05 | E8: 0 | F8: 0 | G8: 0 | H8: 0 | I8: 0 | J8: 0 | K8: 0
A9: Finance and administration | C9: =SUM(C10:C22) -> 139982023 | D9: 147408906.9 | E9: 148157868.4 | F9: 185846276 | G9: 191416257 | H9: 191416257 | I9: 199803893 | J9: 211970948 | K9: 224644364
A10: Administrative and Corporate Support | C10: 1689798 | D10: 145629034.2 | E10: 146165620.6 | F10: 165084964 | G10: 168816399 | H10: 168816399 | I10: 178418425 | J10: 185484028 | K10: 193776767
A11: Asset Management | C11: 0
A12: Finance | C12: 138292225 | D12: 1590651.33 | E12: 1839509.58 | F12: 20556995 | G12: 22395541 | H12: 22395541 | I12: 21171956 | J12: 26263587 | K12: 30633990
A13: Fleet Management | C13: 0
A14: Human Resources | D14: 112535.71 | E14: 152738.23 | F14: 204317 | G14: 204317 | H14: 204317 | I14: 213512 | J14: 223333 | K14: 233607
A15: Information Technology | C15: 0 | D15: 0 | E15: 0 | F15: 0 | G15: 0 | H15: 0 | I15: 0 | J15: 0 | K15: 0
A16: Legal Services | C16: 0 | D16: 0 | E16: 0 | F16: 0 | G16: 0 | H16: 0 | I16: 0 | J16: 0 | K16: 0
A17: Marketing, Customer Relations, Publicity and Media Co-ordination | C17: 0
A18: Property Services
A19: Risk Management | D19: 0 | E19: 0 | F19: 0 | G19: 0 | H19: 0 | I19: 0 | J19: 0 | K19: 0
A20: Security Services | C20: 0
A21: Supply Chain Management | D21: 76685.66 | E21: 0 | F21: 0 | G21: 0 | H21: 0 | I21: 0 | J21: 0 | K21: 0
A22: Valuation Service | C22: 0
A23: Internal audit | C23: =SUM(C24:C24) -> 0 | D23: 0 | E23: 0 | F23: 0 | G23: 0 | H23: 0 | I23: 0 | J23: 0 | K23: 0
A24: Governance Function | C24: 0 | D24: 0 | E24: 0 | F24: 0 | G24: 0 | H24: 0 | I24: 0 | J24: 0 | K24: 0
A25: Community and public safety | C25: =C26+C48+C54+C63+C66 -> 5260168 | D25: 5148667.55 | E25: 5729943.72 | F25: 9732348 | G25: 9682348 | H25: 9682348 | I25: 10202542 | J25: 9310384 | K25: 9738662
A26: Community and social services | C26: =SUM(C27:C47) -> 5260168 | D26: =SUM(D27:D47) -> 1311823.34 | E26: 1139285 | F26: 1179565 | G26: 1179565 | H26: 1179565 | I26: 1317131 | J26: 13735 | K26: 14367
A27: Aged Care
A28: Agricultural
A29: Animal Care and Diseases
A30: Cemeteries, Funeral Parlours and Crematoriums | C30: 5260168 | D30: 8123.34 | E30: 5850 | F30: 12565 | G30: 12565 | H30: 12565 | I30: 13131 | J30: 13735 | K30: 14367
A31: Child Care Facilities
A32: Community Halls and Facilities | C32: 0 | D32: 1303700 | E32: 1133435 | F32: 1167000 | G32: 1167000 | H32: 1167000 | I32: 1304000 | J32: 0 | K32: 0
A33: Consumer Protection
A34: Cultural Matters
A35: Disaster Management
A36: Education
A37: Indigenous and Customary Law
A38: Industrial Promotion
A39: Language Policy
A40: Libraries and Archives | C40: 0 | D40: 0 | E40: 0 | F40: 0 | G40: 0 | H40: 0 | I40: 0 | J40: 0 | K40: 0
A41: Literacy Programmes
A42: Media Services
A43: Museums and Art Galleries
A44: Population Development
A45: Provincial Cultural Matters
A46: Theatres
A47: Zoo's
A48: Sport and recreation | C48: =SUM(C49:C53) -> 0 | D48: =SUM(D49:D53) -> 319737.53 | E48: 354630.05 | F48: 287272 | G48: 237272 | H48: 237272 | I48: 247951 | J48: 259358 | K48: 271289
A49: Beaches and Jetties
A50: Casinos, Racing, Gambling, Wagering
A51: Community Parks (including Nurseries)
A52: Recreational Facilities | C52: 0 | D52: 319737.53 | E52: 354630.05 | F52: 287272 | G52: 237272 | H52: 237272 | I52: 247951 | J52: 259358 | K52: 271289
A53: Sports Grounds and Stadiums
A54: Public safety | C54: =SUM(C55:C62) -> 0 | D54: 3517106.68 | E54: 4236028.67 | F54: 8265511 | G54: 8265511 | H54: 8265511 | I54: 8637460 | J54: 9037291 | K54: 9453006
A55: Civil Defence
A56: Cleansing
A57: Control of Public Nuisances
A58: Fencing and Fences
A59: Fire Fighting and Protection
A60: Licensing and Control of Animals
A61: Police Forces, Traffic and Street Parking Control | C61: 0 | D61: 3517106.68 | E61: 4236028.67 | F61: 8265511 | G61: 8265511 | H61: 8265511 | I61: 8637460 | J61: 9037291 | K61: 9453006
A62: Pounds
A63: Housing | C63: =SUM(C64:C65) -> 0 | D63: =SUM(D64:D65) -> 0 | E63: 0 | F63: 0 | G63: 0 | H63: 0 | I63: 0 | J63: 0 | K63: 0
A64: Housing
A65: Informal Settlements
A66: Health | C66: =SUM(C67:C73) -> 0 | D66: =SUM(D67:D73) -> 0 | E66: 0 | F66: 0 | G66: 0 | H66: 0 | I66: 0 | J66: 0 | K66: 0
A67: Ambulance
A68: Health Services
A69: Laboratory Services
A70: Food Control
A71: Health Surveillance and Prevention of Communicable Diseases including immunizations
A72: Vector Control
A73: Chemical Safety
A74: Economic and environmental services | C74: =C75+C86+C91 -> 32143885 | D74: 37599856.25 | E74: 45055756.76 | F74: 50270772 | G74: 52566772 | H74: 52566772 | I74: 42631504 | J74: 45446739 | K74: 47509406
A75: Planning and development | C75: =SUM(C76:C85) -> 595550 | D75: =SUM(D76:D85) -> 37599856.25 | E75: 45055756.76 | F75: 50270772 | G75: 52566772 | H75: 52566772 | I75: 42631504 | J75: 45446739 | K75: 47509406
A76: Billboards
A77: Corporate Wide Strategic Planning (IDPs, LEDs) | C77: 0 | D77: 71157.81 | E77: 132097.48 | F77: 10462 | G77: 60462 | H77: 60462 | I77: 84283 | J77: 88266 | K77: 92436
A78: Central City Improvement District
A79: Development Facilitation
A80: Economic Development/Planning | C80: 0 | D80: 0 | E80: 35200 | F80: 0 | G80: 0 | H80: 0 | I80: 0 | J80: 0 | K80: 0
A81: Regional Planning and Development
A82: Town Planning, Building Regulations and Enforcement, and City Engineer | C82: 595550 | D82: 0 | E82: 12151.36 | F82: 15109300 | G82: 7629300 | H82: 7629300 | I82: 7614221 | J82: 7619473 | K82: 7624970
A83: Project Management Unit | C83: 0 | D83: 37528698.44 | E83: 44876307.92 | F83: 35151010 | G83: 44877010 | H83: 44877010 | I83: 34933000 | J83: 37739000 | K83: 39792000
A84: Provincial Planning
A85: Support to Local Municipalities
A86: Road transport | C86: =SUM(C87:C90) -> 31548335 | D86: 0 | E86: 0 | F86: 0 | G86: 0 | H86: 0 | I86: 0 | J86: 0 | K86: 0
A87: Public Transport
A88: Road and Traffic Regulation
A89: Roads | C89: 0 | D89: 0 | E89: 0 | F89: 0 | G89: 0 | H89: 0 | I89: 0 | J89: 0 | K89: 0
A90: Taxi Ranks | C90: 31548335
A91: Environmental protection | C91: =SUM(C92:C97) -> 0 | D91: =SUM(D92:D97) -> 0 | E91: 0 | F91: 0 | G91: 0 | H91: 0 | I91: 0 | J91: 0 | K91: 0
A92: Biodiversity and Landscape
A93: Coastal Protection
A94: Indigenous Forests
A95: Nature Conservation
A96: Pollution Control
A97: Soil Conservation
A98: Trading services | C98: =C99+C103+C107+C112 -> 23345814 | D98: =D99+D103+D107+D112 -> 12859992.29 | E98: 11108673.98 | F98: 15140437 | G98: 12892259 | H98: 12892259 | I98: 29855583 | J98: 20557219 | K98: =K99+K103+K107+K112 -> 22703822
A99: Energy sources | C99: =SUM(C100:C102) -> 19146674 | D99: =SUM(D100:D102) -> 8440944.95 | E99: 8396818.49 | F99: 9750561 | G99: 9720026 | H99: 9720026 | I99: 26539719 | J99: 17088367 | K99: 19074921
A100: Electricity | C100: 19146674 | D100: 8440944.95 | E100: 8396818.49 | F100: 9750561 | G100: 9720026 | H100: 9720026 | I100: 26539719 | J100: 17088367 | K100: 19074921
A101: Street Lighting and Signal Systems
A102: Nonelectric Energy
A103: Water management | C103: =SUM(C104:C106) -> 2368846 | D103: =SUM(D104:D106) -> 1685544.4 | E103: 1010545.86 | F103: 2011785 | G103: 403536 | H103: 403536 | I103: 421696 | J103: 441094 | K103: 461384
A104: Water Treatment
A105: Water Distribution | C105: 2368846 | D105: 1685544.4 | E105: 1010545.86 | F105: 2011785 | G105: 403536 | H105: 403536 | I105: 421696 | J105: 441094 | K105: 461384
A106: Water Storage
A107: Waste water management | C107: =SUM(C108:C111) -> 0 | D107: =SUM(D108:D111) -> 802026.45 | E107: -336378.88 | F107: 870563 | G107: 261169 | H107: 261169 | I107: 272922 | J107: 285476 | K107: 298608
A108: Public Toilets
A109: Sewerage | C109: 0 | D109: 802026.45 | E109: -336378.88 | F109: 870563 | G109: 261169 | H109: 261169 | I109: 272922 | J109: 285476 | K109: 298608
A110: Storm Water Management | C110: 0 | D110: 0 | E110: 0 | F110: 0 | G110: 0 | H110: 0 | I110: 0 | J110: 0 | K110: 0
A111: Waste Water Treatment
A112: Waste management | C112: =SUM(C113:C116) -> 1830294 | D112: =SUM(D113:D116) -> 1931476.49 | E112: 2037688.51 | F112: 2507528 | G112: 2507528 | H112: 2507528 | I112: 2621246 | J112: 2742282 | K112: 2868909
A113: Recycling
A114: Solid Waste Disposal (Landfill Sites)
A115: Solid Waste Removal | C115: 1830294 | D115: 1931476.49 | E115: 2037688.51 | F115: 2507528 | G115: 2507528 | H115: 2507528 | I115: 2621246 | J115: 2742282 | K115: 2868909
A116: Street Cleaning
A117: Other | C117: =SUM(C118:C123) -> 0 | D117: =SUM(D118:D123) -> 0 | E117: 0 | F117: 0 | G117: 0 | H117: 0 | I117: 0 | J117: 0 | K117: 0
A118: Abattoirs
A119: Air Transport
A120: Forestry
A121: Licensing and Regulation
A122: Markets
A123: Tourism
A124: ="Total "&A4 -> Total Revenue - Functional | B124: 2 | C124: =C5+C25+C74+C98+C117 -> 218308986 | D124: 203430532.1 | E124: 210052242.8 | F124: 260989833 | G124: 266557636 | H124: 266557636 | I124: 282493522 | J124: 287285290 | K124: 304596254
A126: Expenditure - Functional
A127: =A5 -> Municipal governance and administration | C127: =C128+C131+C145 -> 92995729 | D127: 95343896.2 | E127: 100302058.4 | F127: 119000674 | G127: 121185629 | H127: 121185629 | I127: 128378946 | J127: 135808647 | K127: 141758589
A128: Executive and council | C128: =SUM(C129:C130) -> 28732413 | D128: 26920061.45 | E128: 31357338.36 | F128: 36964044 | G128: 36547378 | H128: 36547378 | I128: 38782314 | J128: 41212926 | K128: 43800618
A129: Mayor and Council | C129: 13181299 | D129: 19396083.67 | E129: 23240016.78 | F129: 27109238 | G129: 27161030 | H129: 27161030 | I129: 28866090 | J129: 30683948 | K129: 32619741
A130: Municipal Manager, Town Secretary and Chief Executive | C130: 15551114 | D130: 7523977.78 | E130: 8117321.58 | F130: 9854806 | G130: 9386348 | H130: 9386348 | I130: 9916224 | J130: 10528978 | K130: 11180877
A131: Finance and administration | C131: =SUM(C132:C144) -> 64263316 | D131: 63752375.84 | E131: 63055140.01 | F131: 75218977 | G131: 77775050 | H131: 77775050 | I131: 82379524 | J131: 86980974 | K131: 89922697
A132: Administrative and Corporate Support | C132: 41447090 | D132: 29332849.02 | E132: 27491675.9 | F132: 32063936 | G132: 33314975 | H132: 33314975 | I132: 35822125 | J132: 37839615 | K132: 39975231
A133: Asset Management
A134: Finance | C134: 22816226 | D134: 16597013.62 | E134: 16941622.23 | F134: 20232293 | G134: 20981575 | H134: 20981575 | I134: 22748346 | J134: 24347834 | K134: 23719265
A135: Fleet Management | C135: 0
A136: Human Resources | D136: 5386621.77 | E136: 6178757.14 | F136: 8060601 | G136: 8453885 | H136: 8453885 | I136: 7256080 | J136: 7661259 | K136: 8090077
A137: Information Technology | C137: 0 | D137: 4072657.24 | E137: 5069950.79 | F137: 4733301 | G137: 4968282 | H137: 4968282 | I137: 5601135 | J137: 5899643 | K137: 6214745
A138: Legal Services | C138: 0 | D138: 1275661.16 | E138: 1586863.61 | F138: 2513873 | G138: 2573827 | H138: 2573827 | I138: 2707921 | J138: 2859105 | K138: 3019105
A139: Marketing, Customer Relations, Publicity and Media Co-ordination | C139: 0
A140: Property Services
A141: Risk Management | D141: 893692.2 | E141: 1944412.3 | F141: 2336156 | G141: 2494160 | H141: 2494160 | I141: 2622328 | J141: 2775520 | K141: 2958939
A142: Security Services | C142: 0
A143: Supply Chain Management | D143: 6193880.83 | E143: 3841858.04 | F143: 5278817 | G143: 4988346 | H143: 4988346 | I143: 5621589 | J143: 5597998 | K143: 5945335
A144: Valuation Service
A145: Internal audit | C145: =SUM(C146:C146) -> 0 | D145: 4671458.91 | E145: 5889580.04 | F145: 6817653 | G145: 6863201 | H145: 6863201 | I145: 7217108 | J145: 7614747 | K145: 8035274
A146: Governance Function | C146: 0 | D146: 4671458.91 | E146: 5889580.04 | F146: 6817653 | G146: 6863201 | H146: 6863201 | I146: 7217108 | J146: 7614747 | K146: 8035274
A147: Community and public safety | C147: =C148+C170+C176+C185+C188 -> 32745093 | D147: 20005095.92 | E147: 21482121.93 | F147: 23375419 | G147: 23022583 | H147: 23022583 | I147: 24371925 | J147: 25949569 | K147: 27631739
A148: Community and social services | C148: =SUM(C149:C169) -> 32745093 | D148: =SUM(D149:D169) -> 4631871.87 | E148: 4523084.19 | F148: 7350195 | G148: 6758959 | H148: 6758959 | I148: 7125757 | J148: 7544824 | K148: 7989559
A149: Aged Care
A150: Agricultural
A151: Animal Care and Diseases
A152: Cemeteries, Funeral Parlours and Crematoriums | C152: 32745093 | D152: 477982.21 | E152: 1018891.49 | F152: 1311487 | G152: 1309107 | H152: 1309107 | I152: 1388002 | J152: 1480960 | K152: 1580230
A153: Child Care Facilities
A154: Community Halls and Facilities | C154: 0 | D154: 3709894 | E154: 3081561.75 | F154: 4737531 | G154: 4347598 | H154: 4347598 | I154: 4566848 | J154: 4811343 | K154: 5069500
A155: Consumer Protection
A156: Cultural Matters
A157: Disaster Management
A158: Education
A159: =A37 -> Indigenous and Customary Law
A160: Industrial Promotion
A161: Language Policy
A162: Libraries and Archives | C162: 0 | D162: 443995.66 | E162: 422630.95 | F162: 1301177 | G162: 1102254 | H162: 1102254 | I162: 1170907 | J162: 1252521 | K162: 1339829
A163: Literacy Programmes
A164: Media Services
A165: Museums and Art Galleries
A166: Population Development
A167: Provincial Cultural Matters
A168: Theatres
A169: Zoo's
A170: Sport and recreation | C170: =SUM(C171:C175) -> 0 | D170: 3492716.15 | E170: 3139055.4 | F170: 2584983 | G170: 2684708 | H170: 2684708 | I170: 2827735 | J170: 2990174 | K170: 3162343
A171: Beaches and Jetties
A172: Casinos, Racing, Gambling, Wagering
A173: Community Parks (including Nurseries)
A174: Recreational Facilities | C174: 0 | D174: 3492716.15 | E174: 3139055.4 | F174: 2584983 | G174: 2684708 | H174: 2684708 | I174: 2827735 | J174: 2990174 | K174: 3162343
A175: Sports Grounds and Stadiums
A176: Public safety | C176: =SUM(C177:C184) -> 0 | D176: 11880507.9 | E176: 13819982.34 | F176: 13440241 | G176: 13578916 | H176: 13578916 | I176: 14418433 | J176: 15414571 | K176: 16479837
A177: Civil Defence
A178: Cleansing
A179: =A57 -> Control of Public Nuisances
A180: Fencing and Fences
A181: Fire Fighting and Protection
A182: Licensing and Control of Animals
A183: Police Forces, Traffic and Street Parking Control | C183: 0 | D183: 11880507.9 | E183: 13819982.34 | F183: 13440241 | G183: 13578916 | H183: 13578916 | I183: 14418433 | J183: 15414571 | K183: 16479837
A184: Pounds
A185: =A63 -> Housing | C185: =SUM(C186:C187) -> 0 | D185: 0 | E185: 0 | F185: 0 | G185: 0 | H185: 0 | I185: 0 | J185: 0 | K185: 0
A186: Housing
A187: Informal Settlements
A188: Health | C188: =SUM(C189:C195) -> 0 | D188: =SUM(D189:D195) -> 0 | E188: 0 | F188: 0 | G188: 0 | H188: 0 | I188: 0 | J188: 0 | K188: 0
A189: Ambulance
A190: Health Services
A191: Laboratory Services
A192: Food Control
A193: Health Surveillance and Prevention of Communicable Diseases including immunizations
A194: Vector Control
A195: Chemical Safety
A196: Economic and environmental services | C196: =C197+C208+C213 -> 23082659 | D196: 10066263.75 | E196: 13169272.81 | F196: 17503092 | G196: 16096553 | H196: 16096553 | I196: 14690829 | J196: 14494810 | K196: 15672381
A197: Planning and development | C197: =SUM(C198:C207) -> 6752952 | D197: =SUM(D198:D207) -> 8606091.61 | E197: 10131053.5 | F197: 14324737 | G197: 12900655 | H197: 12900655 | I197: 11334295 | J197: 10959332 | K197: 11948006
A198: Billboards
A199: Corporate Wide Strategic Planning (IDPs, LEDs) | C199: 0 | D199: 4249605.1 | E199: 4029535.13 | F199: 6523705 | G199: 5949761 | H199: 5949761 | I199: 5337564 | J199: 4536997 | K199: 5118299
A200: Central City Improvement District
A201: Development Facilitation
... 53 more rows

Sheet A3-FinPerf V
A1: =muni&" - "&Approve2 -> LIM353 Molemole - Table A3 Budgeted Financial Performance (revenue and expenditure by municipal vote)
A2: =Vdesc -> Vote Description | B2: =head27 -> Ref | C2: =head1b -> 2016/17 | D2: =head1A -> 2017/18 | E2: =Head1 -> 2018/19 | F2: =Head2 -> Current Year 2019/20 | I2: =Head3 -> 2020/21 Medium Term Revenue & Expenditure Framework | L2: =Head4 -> LTFS
A3: R thousand | C3: =Head5 -> Audited Outcome | D3: =Head5 -> Audited Outcome | E3: =Head5 -> Audited Outcome | F3: =Head6 -> Original Budget | G3: =Head7 -> Adjusted Budget | H3: =Head8 -> Full Year Forecast | I3: =Head9 -> Budget Year 2020/21 | J3: =Head10 -> Budget Year +1 2021/22 | K3: =Head11 -> Budget Year +2 2022/23 | L3: =Head12 -> Forecast 2023/24 | M3: =Head13 -> Forecast 2024/25 | N3: =Head14 -> Forecast 2025/26 | O3: =Head15 -> Forecast 2026/27 | P3: =Head16 -> Forecast 2027/28 | Q3: =Head17 -> Forecast 2028/29 | R3: =Head18 -> Forecast 2029/30 | S3: =Head19 -> Forecast 2030/31 | T3: =Head20 -> Forecast 2031/32 | U3: =Head21 -> Forecast 2032/33 | V3: =Head22 -> Forecast 2033/34 | W3: =Head23 -> Forecast 2034/35
A4: Revenue by Vote | B4: 1
A5: =A3A!A5 -> Vote 01 - Corporate Services | C5: =A3A!C5 -> 2285348 | D5: =A3A!D5 -> 4443612.06 | E5: =A3A!E5 -> 332347.07 | F5: =A3A!F5 -> 15600503 | G5: =A3A!G5 -> 7894079 | H5: =A3A!H5 -> 7894079 | I5: =A3A!I5 -> 8912016 | J5: =A3A!J5 -> 8977072 | K5: =A3A!K5 -> 9045129
A6: =A3A!A14 -> Vote 02 - Municipal Manager | C6: =A3A!C14 -> 17577096 | D6: =A3A!D14 -> 413109.05 | E6: =A3A!E14 -> 0 | F6: =A3A!F14 -> 0 | G6: =A3A!G14 -> 0 | H6: =A3A!H14 -> 0 | I6: =A3A!I14 -> 0 | J6: =A3A!J14 -> 0 | K6: =A3A!K14 -> 0
A7: =A3A!A20 -> Vote 03 - Mayors Office | C7: =A3A!C20 -> 0 | D7: =A3A!D20 -> 0 | E7: =A3A!E20 -> 0 | F7: =A3A!F20 -> 0 | G7: =A3A!G20 -> 0 | H7: =A3A!H20 -> 0 | I7: =A3A!I20 -> 0 | J7: =A3A!J20 -> 0 | K7: =A3A!K20 -> 0
A8: =A3A!A26 -> Vote 04 - Budget And Treasury | C8: =A3A!C26 -> 138292225 | D8: =A3A!D26 -> 143036452.7 | E8: =A3A!E26 -> 148004970.1 | F8: =A3A!F26 -> 185365535 | G8: =A3A!G26 -> 191211940 | H8: =A3A!H26 -> 191211940 | I8: =A3A!I26 -> 198590381 | J8: =A3A!J26 -> 210701615 | K8: =A3A!K26 -> 223316641
A9: =A3A!A34 -> Vote 05 - Community Services | C9: =A3A!C34 -> 7090462 | D9: =A3A!D34 -> 7080144.04 | E9: =A3A!E34 -> 7767632.23 | F9: =A3A!F34 -> 12239876 | G9: =A3A!G34 -> 12189876 | H9: =A3A!H34 -> 12189876 | I9: =A3A!I34 -> 12823788 | J9: =A3A!J34 -> 12052666 | K9: =A3A!K34 -> 12607571
A10: =A3A!A43 -> Vote 06 - Technical Services | C10: =A3A!C43 -> 53063855 | D10: =A3A!D43 -> 48457214.24 | E10: =A3A!E43 -> 53947293.39 | F10: =A3A!F43 -> 47783919 | G10: =A3A!G43 -> 55261741 | H10: =A3A!H43 -> 55261741 | I10: =A3A!I43 -> 62167337 | J10: =A3A!J43 -> 55553937 | K10: =A3A!K43 -> 59626913
A11: ='Org structure'!A8 -> Vote 07 - | C11: =A3A!C52 -> 0 | D11: =A3A!D52 -> 0 | E11: =A3A!E52 -> 0 | F11: =A3A!F52 -> 0 | G11: =A3A!G52 -> 0 | H11: =A3A!H52 -> 0 | I11: =A3A!I52 -> 0 | J11: =A3A!J52 -> 0 | K11: =A3A!K52 -> 0
A12: ='Org structure'!A9 -> Vote 08 - | C12: =A3A!C53 -> 0 | D12: =A3A!D53 -> 0 | E12: =A3A!E53 -> 0 | F12: =A3A!F53 -> 0 | G12: =A3A!G53 -> 0 | H12: =A3A!H53 -> 0 | I12: =A3A!I53 -> 0 | J12: =A3A!J53 -> 0 | K12: =A3A!K53 -> 0
A13: ='Org structure'!A10 -> Vote 09 - | C13: =A3A!C54 -> 0 | D13: =A3A!D54 -> 0 | E13: =A3A!E54 -> 0 | F13: =A3A!F54 -> 0 | G13: =A3A!G54 -> 0 | H13: =A3A!H54 -> 0 | I13: =A3A!I54 -> 0 | J13: =A3A!J54 -> 0 | K13: =A3A!K54 -> 0
A14: ='Org structure'!A11 -> Vote 10 - | C14: =A3A!C55 -> 0 | D14: =A3A!D55 -> 0 | E14: =A3A!E55 -> 0 | F14: =A3A!F55 -> 0 | G14: =A3A!G55 -> 0 | H14: =A3A!H55 -> 0 | I14: =A3A!I55 -> 0 | J14: =A3A!J55 -> 0 | K14: =A3A!K55 -> 0
A15: ='Org structure'!A12 -> Vote 11 - | C15: =A3A!C56 -> 0 | D15: =A3A!D56 -> 0 | E15: =A3A!E56 -> 0 | F15: =A3A!F56 -> 0 | G15: =A3A!G56 -> 0 | H15: =A3A!H56 -> 0 | I15: =A3A!I56 -> 0 | J15: =A3A!J56 -> 0 | K15: =A3A!K56 -> 0 | L15: =A5A!#REF! -> 
A16: ='Org structure'!A13 -> Vote 12 - | C16: =A3A!C57 -> 0 | D16: =A3A!D57 -> 0 | E16: =A3A!E57 -> 0 | F16: =A3A!F57 -> 0 | G16: =A3A!G57 -> 0 | H16: =A3A!H57 -> 0 | I16: =A3A!I57 -> 0 | J16: =A3A!J57 -> 0 | K16: =A3A!K57 -> 0 | L16: =A5A!#REF! -> 
A17: ='Org structure'!A14 -> Vote 13 - | C17: =A3A!C58 -> 0 | D17: =A3A!D58 -> 0 | E17: =A3A!E58 -> 0 | F17: =A3A!F58 -> 0 | G17: =A3A!G58 -> 0 | H17: =A3A!H58 -> 0 | I17: =A3A!I58 -> 0 | J17: =A3A!J58 -> 0 | K17: =A3A!K58 -> 0 | L17: =A5A!#REF! -> 
A18: ='Org structure'!A15 -> Vote 14 - | C18: =A3A!C59 -> 0 | D18: =A3A!D59 -> 0 | E18: =A3A!E59 -> 0 | F18: =A3A!F59 -> 0 | G18: =A3A!G59 -> 0 | H18: =A3A!H59 -> 0 | I18: =A3A!I59 -> 0 | J18: =A3A!J59 -> 0 | K18: =A3A!K59 -> 0 | L18: =A5A!#REF! -> 
A19: ='Org structure'!A16 -> Vote 15 - Other | C19: =A3A!C60 -> 0 | D19: =A3A!D60 -> 0 | E19: =A3A!E60 -> 0 | F19: =A3A!F60 -> 0 | G19: =A3A!G60 -> 0 | H19: =A3A!H60 -> 0 | I19: =A3A!I60 -> 0 | J19: =A3A!J60 -> 0 | K19: =A3A!K60 -> 0 | L19: =A5A!#REF! -> 
A20: Total Revenue by Vote | B20: 2 | C20: =SUM(C5:C19) -> 218308986 | D20: =SUM(D5:D19) -> 203430532.1 | E20: 210052242.8 | F20: 260989833 | G20: 266557636 | H20: 266557636 | I20: 282493522 | J20: 287285290 | K20: 304596254
A22: Expenditure by Vote to be appropriated | B22: 1
A23: =A3A!A64 -> Vote 01 - Corporate Services | C23: =A3A!C64 -> 48200042 | D23: =A3A!D64 -> 35721778.65 | E23: =A3A!E64 -> 46054184.83 | F23: =A3A!F64 -> 56108877 | G23: =A3A!G64 -> 56945182 | H23: =A3A!H64 -> 56945182 | I23: =A3A!I64 -> 59111974 | J23: =A3A!J64 -> 61306944 | K23: =A3A!K64 -> 65058158
A24: =A3A!A73 -> Vote 02 - Municipal Manager | C24: =A3A!C73 -> 15551114 | D24: =A3A!D73 -> 14364790.05 | E24: =A3A!E73 -> 17538177.53 | F24: =A3A!F73 -> 21522488 | G24: =A3A!G73 -> 21317536 | H24: =A3A!H73 -> 21317536 | I24: =A3A!I73 -> 22463581 | J24: =A3A!J73 -> 23778350 | K24: =A3A!K73 -> 25194195
A25: =A3A!A79 -> Vote 03 - Mayors Office | C25: =A3A!C79 -> 13181299 | D25: =A3A!D79 -> 15529144.95 | E25: =A3A!E79 -> 17345098.18 | F25: =A3A!F79 -> 18641986 | G25: =A3A!G79 -> 18589781 | H25: =A3A!H79 -> 18589781 | I25: =A3A!I79 -> 19701303 | J25: =A3A!J79 -> 21007967 | K25: =A3A!K79 -> 22402776
A26: =A3A!A85 -> Vote 04 - Budget And Treasury | C26: =A3A!C85 -> 22816226 | D26: =A3A!D85 -> 37437138.67 | E26: =A3A!E85 -> 27502559.47 | F26: =A3A!F85 -> 32963249 | G26: =A3A!G85 -> 33379265 | H26: =A3A!H85 -> 33379265 | I26: =A3A!I85 -> 35213448 | J26: =A3A!J85 -> 37211619 | K26: =A3A!K85 -> 37379023
A27: =A3A!A93 -> Vote 05 - Community Services | C27: =A3A!C93 -> 32745093 | D27: =A3A!D93 -> 25956587.25 | E27: =A3A!E93 -> 30017713.5 | F27: =A3A!F93 -> 29995112 | G27: =A3A!G93 -> 29798481 | H27: =A3A!H93 -> 29798481 | I27: =A3A!I93 -> 31631130 | J27: =A3A!J93 -> 32315542 | K27: =A3A!K93 -> 34436953
A28: =A3A!A102 -> Vote 06 - Technical Services | C28: =A3A!C102 -> 29776355 | D28: =A3A!D102 -> 32148371.29 | E28: =A3A!E102 -> 55737279.32 | F28: =A3A!F102 -> 46316850 | G28: =A3A!G102 -> 52222627 | H28: =A3A!H102 -> 52222627 | I28: =A3A!I102 -> 52772735 | J28: =A3A!J102 -> 55813818 | K28: =A3A!K102 -> 59533589
A29: ='Org structure'!A8 -> Vote 07 - | C29: =A3A!C111 -> 0 | D29: =A3A!D111 -> 0 | E29: =A3A!E111 -> 0 | F29: =A3A!F111 -> 0 | G29: =A3A!G111 -> 0 | H29: =A3A!H111 -> 0 | I29: =A3A!I111 -> 0 | J29: =A3A!J111 -> 0 | K29: =A3A!K111 -> 0
A30: ='Org structure'!A9 -> Vote 08 - | C30: =A3A!C112 -> 0 | D30: =A3A!D112 -> 0 | E30: =A3A!E112 -> 0 | F30: =A3A!F112 -> 0 | G30: =A3A!G112 -> 0 | H30: =A3A!H112 -> 0 | I30: =A3A!I112 -> 0 | J30: =A3A!J112 -> 0 | K30: =A3A!K112 -> 0
A31: ='Org structure'!A10 -> Vote 09 - | C31: =A3A!C113 -> 0 | D31: =A3A!D113 -> 0 | E31: =A3A!E113 -> 0 | F31: =A3A!F113 -> 0 | G31: =A3A!G113 -> 0 | H31: =A3A!H113 -> 0 | I31: =A3A!I113 -> 0 | J31: =A3A!J113 -> 0 | K31: =A3A!K113 -> 0
A32: ='Org structure'!A11 -> Vote 10 - | C32: =A3A!C114 -> 0 | D32: =A3A!D114 -> 0 | E32: =A3A!E114 -> 0 | F32: =A3A!F114 -> 0 | G32: =A3A!G114 -> 0 | H32: =A3A!H114 -> 0 | I32: =A3A!I114 -> 0 | J32: =A3A!J114 -> 0 | K32: =A3A!K114 -> 0
A33: ='Org structure'!A12 -> Vote 11 - | C33: =A3A!C115 -> 0 | D33: =A3A!D115 -> 0 | E33: =A3A!E115 -> 0 | F33: =A3A!F115 -> 0 | G33: =A3A!G115 -> 0 | H33: =A3A!H115 -> 0 | I33: =A3A!I115 -> 0 | J33: =A3A!J115 -> 0 | K33: =A3A!K115 -> 0 | L33: =A3A!#REF! -> 
A34: ='Org structure'!A13 -> Vote 12 - | C34: =A3A!C116 -> 0 | D34: =A3A!D116 -> 0 | E34: =A3A!E116 -> 0 | F34: =A3A!F116 -> 0 | G34: =A3A!G116 -> 0 | H34: =A3A!H116 -> 0 | I34: =A3A!I116 -> 0 | J34: =A3A!J116 -> 0 | K34: =A3A!K116 -> 0 | L34: =A3A!#REF! -> 
A35: ='Org structure'!A14 -> Vote 13 - | C35: =A3A!C117 -> 0 | D35: =A3A!D117 -> 0 | E35: =A3A!E117 -> 0 | F35: =A3A!F117 -> 0 | G35: =A3A!G117 -> 0 | H35: =A3A!H117 -> 0 | I35: =A3A!I117 -> 0 | J35: =A3A!J117 -> 0 | K35: =A3A!K117 -> 0 | L35: =A3A!#REF! -> 
A36: ='Org structure'!A15 -> Vote 14 - | C36: =A3A!C118 -> 0 | D36: =A3A!D118 -> 0 | E36: =A3A!E118 -> 0 | F36: =A3A!F118 -> 0 | G36: =A3A!G118 -> 0 | H36: =A3A!H118 -> 0 | I36: =A3A!I118 -> 0 | J36: =A3A!J118 -> 0 | K36: =A3A!K118 -> 0 | L36: =A3A!#REF! -> 
A37: ='Org structure'!A16 -> Vote 15 - Other | C37: =A3A!C119 -> 0 | D37: =A3A!D119 -> 0 | E37: =A3A!E119 -> 0 | F37: =A3A!F119 -> 0 | G37: =A3A!G119 -> 0 | H37: =A3A!H119 -> 0 | I37: =A3A!I119 -> 0 | J37: =A3A!J119 -> 0 | K37: =A3A!K119 -> 0 | L37: =A3A!#REF! -> 
A38: Total Expenditure by Vote | B38: 2 | C38: =SUM(C23:C37) -> 162270129 | D38: =SUM(D23:D37) -> 161157810.9 | E38: 194195012.8 | F38: 205548562 | G38: 212252872 | H38: 212252872 | I38: 220894171 | J38: 231434240 | K38: 244004694 | L38: =SUM(L23:L29) -> 0 | M38: 0 | N38: 0 | O38: 0 | P38: 0 | Q38: 0 | R38: 0 | S38: 0 | T38: 0 | U38: 0 | V38: 0 | W38: 0
A39: =result -> Surplus/(Deficit) for the year | B39: 2 | C39: =C20-C38 -> 56038857 | D39: 42272721.2 | E39: 15857230 | F39: 55441271 | G39: 54304764 | H39: 54304764 | I39: 61599351 | J39: 55851050 | K39: 60591560 | L39: 0 | M39: 0 | N39: 0 | O39: 0 | P39: 0 | Q39: 0 | R39: 0 | S39: 0 | T39: 0 | U39: 0 | V39: 0 | W39: 0
A40: =head27a -> References
A41: 1. Insert 'Vote'; e.g. department, if different to functional classification structure
A42: 2. Must reconcile to Budgeted Financial Performance (revenue and expenditure)
A43: 3. Assign share in 'associate' to relevant Vote
A45: ="check "&A39 -> check Surplus/(Deficit) for the year | C45: =C39-A3A!C122 -> 0 | D45: =D39-A3A!D122 -> 0 | E45: =E39-A3A!E122 -> 0 | F45: =F39-A3A!F122 -> 0 | G45: =G39-A3A!G122 -> 0 | H45: =H39-A3A!H122 -> 0 | I45: =I39-A3A!I122 -> 0 | J45: =J39-A3A!J122 -> 0 | K45: =K39-A3A!K122 -> 0

Sheet A3A
A1: =muni&" - "&Approve2&"A" -> LIM353 Molemole - Table A3 Budgeted Financial Performance (revenue and expenditure by municipal vote)A
A2: =Vdesc -> Vote Description | B2: =head27 -> Ref | C2: =head1b -> 2016/17 | D2: =head1A -> 2017/18 | E2: =Head1 -> 2018/19 | F2: =Head2 -> Current Year 2019/20 | I2: =Head3 -> 2020/21 Medium Term Revenue & Expenditure Framework | L2: =Head4 -> LTFS
A3: R thousand | C3: =Head5 -> Audited Outcome | D3: =Head5 -> Audited Outcome | E3: =Head5 -> Audited Outcome | F3: =Head6 -> Original Budget | G3: =Head7 -> Adjusted Budget | H3: =Head8 -> Full Year Forecast | I3: =Head9 -> Budget Year 2020/21 | J3: =Head10 -> Budget Year +1 2021/22 | K3: =Head11 -> Budget Year +2 2022/23 | L3: =Head12 -> Forecast 2023/24 | M3: =Head13 -> Forecast 2024/25 | N3: =Head14 -> Forecast 2025/26 | O3: =Head15 -> Forecast 2026/27 | P3: =Head16 -> Forecast 2027/28 | Q3: =Head17 -> Forecast 2028/29 | R3: =Head18 -> Forecast 2029/30 | S3: =Head19 -> Forecast 2030/31 | T3: =Head20 -> Forecast 2031/32 | U3: =Head21 -> Forecast 2032/33 | V3: =Head22 -> Forecast 2033/34 | W3: =Head23 -> Forecast 2034/35
A4: Revenue by Vote | B4: 1
A5: ='Org structure'!A2 -> Vote 01 - Corporate Services | C5: =SUM(C6:C13) -> 2285348 | D5: 4443612.06 | E5: 332347.07 | F5: 15600503 | G5: 7894079 | H5: 7894079 | I5: 8912016 | J5: 8977072 | K5: 9045129
A6: ='Org structure'!E3 -> 01.1 - Corporate Services Admin | C6: 1689798 | D6: 4259918.54 | E6: 160 | F6: 276424 | G6: 0 | H6: 0 | I6: 1000000 | J6: 1046000 | K6: 1094116
A7: ='Org structure'!E4 -> 01.2 - Human Resources | D7: 112535.71 | E7: 152738.23 | F7: 204317 | G7: 204317 | H7: 204317 | I7: 213512 | J7: 223333 | K7: 233607
A8: ='Org structure'!E5 -> 01.3 - Information Technology Services | C8: 0 | D8: 0 | E8: 0 | F8: 0 | G8: 0 | H8: 0 | I8: 0 | J8: 0 | K8: 0
A9: ='Org structure'!E6 -> 01.4 - Council Support | C9: 0 | D9: 0 | E9: 0 | F9: 0 | G9: 0 | H9: 0 | I9: 0 | J9: 0 | K9: 0
A10: ='Org structure'!E7 -> 01.5 - Local Economic Development | D10: 0 | E10: 35200 | F10: 0 | G10: 0 | H10: 0 | I10: 0 | J10: 0 | K10: 0
A11: ='Org structure'!E8 -> 01.6 - Municipal Planning Idp | C11: 0 | D11: 71157.81 | E11: 132097.48 | F11: 10462 | G11: 60462 | H11: 60462 | I11: 84283 | J11: 88266 | K11: 92436
A12: ='Org structure'!E9 -> 01.7 - Town & Regional Planning | C12: 595550 | D12: 0 | E12: 12151.36 | F12: 15109300 | G12: 7629300 | H12: 7629300 | I12: 7614221 | J12: 7619473 | K12: 7624970
A13: ='Org structure'!E10 -> 01.8 - Led Administration | C13: 0 | D13: 0 | E13: 0 | F13: 0 | G13: 0 | H13: 0 | I13: 0 | J13: 0 | K13: 0
A14: ='Org structure'!A3 -> Vote 02 - Municipal Manager | C14: =SUM(C15:C19) -> 17577096 | D14: 413109.05 | E14: 0 | F14: 0 | G14: 0 | H14: 0 | I14: 0 | J14: 0 | K14: 0
A15: ='Org structure'!E12 -> 02.1 - Municipal Manager Admin | C15: 17577096 | D15: 413109.05 | E15: 0 | F15: 0 | G15: 0 | H15: 0 | I15: 0 | J15: 0 | K15: 0
A16: ='Org structure'!E13 -> 02.2 - Legal Services | C16: 0 | D16: 0 | E16: 0 | F16: 0 | G16: 0 | H16: 0 | I16: 0 | J16: 0 | K16: 0
A17: ='Org structure'!E14 -> 02.3 - Political Office Beares | C17: 0 | D17: 0 | E17: 0 | F17: 0 | G17: 0 | H17: 0 | I17: 0 | J17: 0 | K17: 0
A18: ='Org structure'!E15 -> 02.4 - Pms | C18: 0 | D18: 0 | E18: 0 | F18: 0 | G18: 0 | H18: 0 | I18: 0 | J18: 0 | K18: 0
A19: ='Org structure'!E16 -> 02.5 - Internal Audit | C19: 0 | D19: 0 | E19: 0 | F19: 0 | G19: 0 | H19: 0 | I19: 0 | J19: 0 | K19: 0
A20: ='Org structure'!A4 -> Vote 03 - Mayors Office | C20: =SUM(C21:C25) -> 0 | D20: 0 | E20: 0 | F20: 0 | G20: 0 | H20: 0 | I20: 0 | J20: 0 | K20: 0
A21: ='Org structure'!E18 -> 03.1 - Mayors Office Admin | C21: 0 | D21: 0 | E21: 0 | F21: 0 | G21: 0 | H21: 0 | I21: 0 | J21: 0 | K21: 0
A22: ='Org structure'!E19 -> 03.2 - Office Of The Speaker | C22: 0 | D22: 0 | E22: 0 | F22: 0 | G22: 0 | H22: 0 | I22: 0 | J22: 0 | K22: 0
A23: ='Org structure'!E20 -> 03.3 - Office Of The Chief Whip | C23: 0 | D23: 0 | E23: 0 | F23: 0 | G23: 0 | H23: 0 | I23: 0 | J23: 0 | K23: 0
A24: ='Org structure'!E21 -> 03.4 - Exco Members | C24: 0 | D24: 0 | E24: 0 | F24: 0 | G24: 0 | H24: 0 | I24: 0 | J24: 0 | K24: 0
A25: ='Org structure'!E22 -> 03.5 - Council General Administration | C25: 0 | D25: 0 | E25: 0 | F25: 0 | G25: 0 | H25: 0 | I25: 0 | J25: 0 | K25: 0
A26: ='Org structure'!A5 -> Vote 04 - Budget And Treasury | C26: =SUM(C27:C33) -> 138292225 | D26: 143036452.7 | E26: 148004970.1 | F26: 185365535 | G26: 191211940 | H26: 191211940 | I26: 198590381 | J26: 210701615 | K26: 223316641
A27: ='Org structure'!E24 -> 04.1 - Budget And Treasury Admin | C27: 138292225 | D27: 141369115.7 | E27: 146165460.6 | F27: 164808540 | G27: 168816399 | H27: 168816399 | I27: 177418425 | J27: 184438028 | K27: 192682651
A28: ='Org structure'!E25 -> 04.2 - Chief Financial Officer Admin | C28: 0 | D28: 0 | E28: 0 | F28: 0 | G28: 0 | H28: 0 | I28: 0 | J28: 0 | K28: 0
A29: ='Org structure'!E26 -> 04.3 - Budget & Reporting | C29: 0 | D29: 1575122.34 | E29: 1820125.31 | F29: 0 | G29: 0 | H29: 0 | I29: 0 | J29: 0 | K29: 0
A30: ='Org structure'!E27 -> 04.4 - Budget & Reporting | C30: 0 | D30: 0 | E30: 0 | F30: 2112000 | G30: 2112000 | H30: 2112000 | I30: 2215488 | J30: 2321832 | K30: 2433280
A31: ='Org structure'!E28 -> 04.5 - Revenue Management | C31: 0 | D31: 15528.99 | E31: 19384.27 | F31: 18444995 | G31: 20283541 | H31: 20283541 | I31: 18956468 | J31: 23941755 | K31: 28200710
A32: ='Org structure'!E29 -> 04.6 - Supply Chain Management | C32: 0 | D32: 76685.66 | E32: 0 | F32: 0 | G32: 0 | H32: 0 | I32: 0 | J32: 0 | K32: 0
A33: ='Org structure'!E30 -> 04.7 - Expenditure | C33: 0 | D33: 0 | E33: 0 | F33: 0 | G33: 0 | H33: 0 | I33: 0 | J33: 0 | K33: 0
A34: ='Org structure'!A6 -> Vote 05 - Community Services | C34: =SUM(C35:C42) -> 7090462 | D34: 7080144.04 | E34: 7767632.23 | F34: 12239876 | G34: 12189876 | H34: 12189876 | I34: 12823788 | J34: 12052666 | K34: 12607571
A35: ='Org structure'!E32 -> 05.1 - Community Services Admin | C35: 0 | D35: 1303700 | E35: 1133435 | F35: 1167000 | G35: 1167000 | H35: 1167000 | I35: 1304000 | J35: 0 | K35: 0
A36: ='Org structure'!E33 -> 05.2 - Libraries | C36: 0 | D36: 0 | E36: 0 | F36: 0 | G36: 0 | H36: 0 | I36: 0 | J36: 0 | K36: 0
A37: ='Org structure'!E34 -> 05.3 - Sports Recreation & Social Amenitie | C37: 7090462 | D37: 319737.53 | E37: 354630.05 | F37: 287272 | G37: 237272 | H37: 237272 | I37: 247951 | J37: 259358 | K37: 271289
A38: ='Org structure'!E35 -> 05.4 - Traffic Service | D38: 2508606.58 | E38: 3598078.67 | F38: 0 | G38: 0 | H38: 0 | I38: 0 | J38: 0 | K38: 0
A39: ='Org structure'!E36 -> 05.5 - Traffic Service | C39: 0 | D39: 1008500.1 | E39: 637950 | F39: 8265511 | G39: 8265511 | H39: 8265511 | I39: 8637460 | J39: 9037291 | K39: 9453006
A40: ='Org structure'!E37 -> 05.6 - Parks; Cemeteries | C40: 0 | D40: 8123.34 | E40: 5850 | F40: 12565 | G40: 12565 | H40: 12565 | I40: 13131 | J40: 13735 | K40: 14367
A41: ='Org structure'!E38 -> 05.7 - Refuse | C41: 0 | D41: 1931476.49 | E41: 2037688.51 | F41: 2507528 | G41: 2507528 | H41: 2507528 | I41: 2621246 | J41: 2742282 | K41: 2868909
A42: ='Org structure'!E39 -> 05.8 - Taxi Ranks | C42: 0 | D42: 0 | E42: 0 | F42: 0 | G42: 0 | H42: 0 | I42: 0 | J42: 0 | K42: 0
A43: ='Org structure'!A7 -> Vote 06 - Technical Services | C43: =SUM(C44:C51) -> 53063855 | D43: 48457214.24 | E43: 53947293.39 | F43: 47783919 | G43: 55261741 | H43: 55261741 | I43: 62167337 | J43: 55553937 | K43: 59626913
A44: ='Org structure'!E41 -> 06.1 - Mpac | C44: 0 | D44: 0 | E44: 0 | F44: 0 | G44: 0 | H44: 0 | I44: 0 | J44: 0 | K44: 0
A45: ='Org structure'!E42 -> 06.2 - Technical Services Admin | D45: 0 | E45: 0 | F45: 0 | G45: 0 | H45: 0 | I45: 0 | J45: 0 | K45: 0
A46: ='Org structure'!E43 -> 06.3 - Techn Serv-Roads: Admin | D46: 0 | E46: 0 | F46: 0 | G46: 0 | H46: 0 | I46: 0 | J46: 0 | K46: 0
A47: ='Org structure'!E44 -> 06.4 - Techn Serv-Stormwater: Admin | C47: 31548335 | D47: 0 | E47: 0 | F47: 0 | G47: 0 | H47: 0 | I47: 0 | J47: 0 | K47: 0
A48: ='Org structure'!E45 -> 06.5 - Project Management Unit | C48: 19146674 | D48: 37528698.44 | E48: 44876307.92 | F48: 35151010 | G48: 44877010 | H48: 44877010 | I48: 34933000 | J48: 37739000 | K48: 39792000
A49: ='Org structure'!E46 -> 06.6 - Electrical & Machinery | C49: 2368846 | D49: 8440944.95 | E49: 8396818.49 | F49: 9750561 | G49: 9720026 | H49: 9720026 | I49: 26539719 | J49: 17088367 | K49: 19074921
A50: ='Org structure'!E47 -> 06.7 - Water | C50: 0 | D50: 1685544.4 | E50: 1010545.86 | F50: 2011785 | G50: 403536 | H50: 403536 | I50: 421696 | J50: 441094 | K50: 461384
A51: ='Org structure'!E48 -> 06.8 - Sanitation | C51: 0 | D51: 802026.45 | E51: -336378.88 | F51: 870563 | G51: 261169 | H51: 261169 | I51: 272922 | J51: 285476 | K51: 298608
A52: ='Org structure'!A8 -> Vote 07 - | C52: 0 | D52: 0 | E52: 0 | F52: 0 | G52: 0 | H52: 0 | I52: 0 | J52: 0 | K52: 0
A53: ='Org structure'!A9 -> Vote 08 - | C53: 0 | D53: 0 | E53: 0 | F53: 0 | G53: 0 | H53: 0 | I53: 0 | J53: 0 | K53: 0
A54: ='Org structure'!A10 -> Vote 09 - | C54: 0 | D54: 0 | E54: 0 | F54: 0 | G54: 0 | H54: 0 | I54: 0 | J54: 0 | K54: 0
A55: ='Org structure'!A11 -> Vote 10 - | C55: 0 | D55: 0 | E55: 0 | F55: 0 | G55: 0 | H55: 0 | I55: 0 | J55: 0 | K55: 0
A56: ='Org structure'!A12 -> Vote 11 - | C56: 0 | D56: 0 | E56: 0 | F56: 0 | G56: 0 | H56: 0 | I56: 0 | J56: 0 | K56: 0
A57: ='Org structure'!A13 -> Vote 12 - | C57: 0 | D57: 0 | E57: 0 | F57: 0 | G57: 0 | H57: 0 | I57: 0 | J57: 0 | K57: 0
A58: ='Org structure'!A14 -> Vote 13 - | C58: 0 | D58: 0 | E58: 0 | F58: 0 | G58: 0 | H58: 0 | I58: 0 | J58: 0 | K58: 0
A59: ='Org structure'!A15 -> Vote 14 - | C59: 0 | D59: 0 | E59: 0 | F59: 0 | G59: 0 | H59: 0 | I59: 0 | J59: 0 | K59: 0
A60: ='Org structure'!A16 -> Vote 15 - Other | C60: 0 | D60: 0 | E60: 0 | F60: 0 | G60: 0 | H60: 0 | I60: 0 | J60: 0 | K60: 0
A61: Total Revenue by Vote | B61: 2 | C61: =C5+C14+C20+C26+C34+C43+C52+C53+C54+C55+C56+C57+C58+C59+C60 -> 218308986 | D61: 203430532.1 | E61: 210052242.8 | F61: 260989833 | G61: 266557636 | H61: 266557636 | I61: 282493522 | J61: 287285290 | K61: 304596254 | L61: =SUM(#REF!) ->  | M61: =SUM(#REF!) ->  | N61: =SUM(#REF!) ->  | O61: =SUM(#REF!) ->  | P61: =SUM(#REF!) ->  | Q61: =SUM(#REF!) ->  | R61: =SUM(#REF!) ->  | S61: =SUM(#REF!) ->  | T61: =SUM(#REF!) ->  | U61: =SUM(#REF!) ->  | V61: =SUM(#REF!) ->  | W61: =SUM(#REF!) -> 
A63: Expenditure by Vote | B63: 1
A64: ='Org structure'!A2 -> Vote 01 - Corporate Services | C64: =SUM(C65:C72) -> 48200042 | D64: 35721778.65 | E64: 46054184.83 | F64: 56108877 | G64: 56945182 | H64: 56945182 | I64: 59111974 | J64: 61306944 | K64: 65058158
A65: ='Org structure'!E3 -> 01.1 - Corporate Services Admin | C65: 41447090 | D65: 14686604.8 | E65: 20772596.7 | F65: 24611797 | G65: 25905631 | H65: 25905631 | I65: 28978612 | J65: 30573828 | K65: 32260808
A66: ='Org structure'!E4 -> 01.2 - Human Resources | C66: 0 | D66: 5386621.77 | E66: 6178757.14 | F66: 8060601 | G66: 8453885 | H66: 8453885 | I66: 7256080 | J66: 7661259 | K66: 8090077
A67: ='Org structure'!E5 -> 01.3 - Information Technology Services | C67: 0 | D67: 4072657.24 | E67: 5069950.79 | F67: 4733301 | G67: 4968282 | H67: 4968282 | I67: 5601135 | J67: 5899643 | K67: 6214745
A68: ='Org structure'!E6 -> 01.4 - Council Support | C68: 0 | D68: 3866938.72 | E68: 5894918.6 | F68: 7201835 | G68: 7330832 | H68: 7330832 | I68: 7847279 | J68: 8266875 | K68: 8709879
A69: ='Org structure'!E7 -> 01.5 - Local Economic Development | C69: 6752952 | D69: 2071303 | E69: 2424043.26 | F69: 3122838 | G69: 2375420 | H69: 2375420 | I69: 2010221 | J69: 2145715 | K69: 2290457
A70: ='Org structure'!E8 -> 01.6 - Municipal Planning Idp | C70: 0 | D70: 4242793.59 | E70: 3764915.83 | F70: 6156922 | G70: 5582978 | H70: 5582978 | I70: 4947852 | J70: 4120004 | K70: 4672117
A71: ='Org structure'!E9 -> 01.7 - Town & Regional Planning | C71: 0 | D71: 1388048.02 | E71: 1684383.21 | F71: 1854800 | G71: 1961371 | H71: 1961371 | I71: 2081083 | J71: 2222627 | K71: 2373893
A72: ='Org structure'!E10 -> 01.8 - Led Administration | C72: 0 | D72: 6811.51 | E72: 264619.3 | F72: 366783 | G72: 366783 | H72: 366783 | I72: 389712 | J72: 416993 | K72: 446182
A73: ='Org structure'!A3 -> Vote 02 - Municipal Manager | C73: =SUM(C74:C78) -> 15551114 | D73: 14364790.05 | E73: 17538177.53 | F73: 21522488 | G73: 21317536 | H73: 21317536 | I73: 22463581 | J73: 23778350 | K73: 25194195
A74: ='Org structure'!E12 -> 02.1 - Municipal Manager Admin | C74: 15551114 | D74: 6534473.4 | E74: 6625670.76 | F74: 7889360 | G74: 7480131 | H74: 7480131 | I74: 7898476 | J74: 8380896 | K74: 8893840
A75: ='Org structure'!E13 -> 02.2 - Legal Services | C75: 0 | D75: 1275661.16 | E75: 1586863.61 | F75: 2513873 | G75: 2573827 | H75: 2573827 | I75: 2707921 | J75: 2859105 | K75: 3019105
A76: ='Org structure'!E14 -> 02.3 - Political Office Beares | C76: 0 | D76: 893692.2 | E76: 1944412.3 | F76: 2336156 | G76: 2494160 | H76: 2494160 | I76: 2622328 | J76: 2775520 | K76: 2958939
A77: ='Org structure'!E15 -> 02.4 - Pms | C77: 0 | D77: 989504.38 | E77: 1491650.82 | F77: 1965446 | G77: 1906217 | H77: 1906217 | I77: 2017748 | J77: 2148082 | K77: 2287037
A78: ='Org structure'!E16 -> 02.5 - Internal Audit | C78: 0 | D78: 4671458.91 | E78: 5889580.04 | F78: 6817653 | G78: 6863201 | H78: 6863201 | I78: 7217108 | J78: 7614747 | K78: 8035274
A79: ='Org structure'!A4 -> Vote 03 - Mayors Office | C79: =SUM(C80:C84) -> 13181299 | D79: 15529144.95 | E79: 17345098.18 | F79: 18641986 | G79: 18589781 | H79: 18589781 | I79: 19701303 | J79: 21007967 | K79: 22402776
A80: ='Org structure'!E18 -> 03.1 - Mayors Office Admin | C80: 13181299 | D80: 2947395.23 | E80: 3957859.88 | F80: 4794339 | G80: 4696780 | H80: 4696780 | I80: 4964504 | J80: 5274988 | K80: 5605502
A81: ='Org structure'!E19 -> 03.2 - Office Of The Speaker | C81: 0 | D81: 708957.29 | E81: 1044174.82 | F81: 1177435 | G81: 1181224 | H81: 1181224 | I81: 1253041 | J81: 1337904 | K81: 1428582
A82: ='Org structure'!E20 -> 03.3 - Office Of The Chief Whip | C82: 0 | D82: 843096.95 | E82: 788271.53 | F82: 828809 | G82: 833809 | H82: 833809 | I82: 883962 | J82: 943066 | K82: 1006183
A83: ='Org structure'!E21 -> 03.4 - Exco Members | C83: 0 | D83: 2927828.7 | E83: 3433324.15 | F83: 3131547 | G83: 3356547 | H83: 3356547 | I83: 3560821 | J83: 3802178 | K83: 4060066
A84: ='Org structure'!E22 -> 03.5 - Council General Administration | C84: 0 | D84: 8101866.78 | E84: 8121467.8 | F84: 8709856 | G84: 8521421 | H84: 8521421 | I84: 9038975 | J84: 9649831 | K84: 10302443
A85: ='Org structure'!A5 -> Vote 04 - Budget And Treasury | C85: =SUM(C86:C92) -> 22816226 | D85: 37437138.67 | E85: 27502559.47 | F85: 32963249 | G85: 33379265 | H85: 33379265 | I85: 35213448 | J85: 37211619 | K85: 37379023
A86: ='Org structure'!E24 -> 04.1 - Budget And Treasury Admin | C86: 22816226 | D86: 14646244.22 | E86: 6719079.2 | F86: 7452139 | G86: 7409344 | H86: 7409344 | I86: 6843513 | J86: 7265787 | K86: 7714423
A87: ='Org structure'!E25 -> 04.2 - Chief Financial Officer Admin | C87: 0 | D87: 12301.31 | E87: 21229.82 | F87: 0 | G87: 0 | H87: 0 | I87: 0 | J87: 0 | K87: 0
A88: ='Org structure'!E26 -> 04.3 - Budget & Reporting | C88: 0 | D88: 292.32 | E88: 0 | F88: 0 | G88: 0 | H88: 0 | I88: 0 | J88: 0 | K88: 0
A89: ='Org structure'!E27 -> 04.4 - Budget & Reporting | C89: 0 | D89: 2517222.79 | E89: 3338979.16 | F89: 2382915 | G89: 2383728 | H89: 2383728 | I89: 2531431 | J89: 2706783 | K89: 2894326
A90: ='Org structure'!E28 -> 04.5 - Revenue Management | C90: 0 | D90: 10638447.14 | E90: 10471477.56 | F90: 12928749 | G90: 13650126 | H90: 13650126 | I90: 14991066 | J90: 16095844 | K90: 14940110
A91: ='Org structure'!E29 -> 04.6 - Supply Chain Management | C91: 0 | D91: 6193880.83 | E91: 3841858.04 | F91: 5278817 | G91: 4988346 | H91: 4988346 | I91: 5621589 | J91: 5597998 | K91: 5945335
A92: ='Org structure'!E30 -> 04.7 - Expenditure | C92: 0 | D92: 3428750.06 | E92: 3109935.69 | F92: 4920629 | G92: 4947721 | H92: 4947721 | I92: 5225849 | J92: 5545207 | K92: 5884829
A93: ='Org structure'!A6 -> Vote 05 - Community Services | C93: =SUM(C94:C101) -> 32745093 | D93: 25956587.25 | E93: 30017713.5 | F93: 29995112 | G93: 29798481 | H93: 29798481 | I93: 31631130 | J93: 32315542 | K93: 34436953
A94: ='Org structure'!E32 -> 05.1 - Community Services Admin | C94: 32745093 | D94: 3709894 | E94: 3081561.75 | F94: 4737531 | G94: 4347598 | H94: 4347598 | I94: 4566848 | J94: 4811343 | K94: 5069500
A95: ='Org structure'!E33 -> 05.2 - Libraries | C95: 0 | D95: 443995.66 | E95: 422630.95 | F95: 1301177 | G95: 1102254 | H95: 1102254 | I95: 1170907 | J95: 1252521 | K95: 1339829
A96: ='Org structure'!E34 -> 05.3 - Sports Recreation & Social Amenitie | C96: 0 | D96: 3492716.15 | E96: 3139055.4 | F96: 2584983 | G96: 2684708 | H96: 2684708 | I96: 2827735 | J96: 2990174 | K96: 3162343
A97: ='Org structure'!E35 -> 05.4 - Traffic Service | C97: 0 | D97: 17570.88 | E97: 0 | F97: 0 | G97: 0 | H97: 0 | I97: 0 | J97: 0 | K97: 0
A98: ='Org structure'!E36 -> 05.5 - Traffic Service | C98: 0 | D98: 11862937.02 | E98: 13819982.34 | F98: 13440241 | G98: 13578916 | H98: 13578916 | I98: 14418433 | J98: 15414571 | K98: 16479837
A99: ='Org structure'!E37 -> 05.6 - Parks; Cemeteries | C99: 0 | D99: 477982.21 | E99: 1018891.49 | F99: 1311487 | G99: 1309107 | H99: 1309107 | I99: 1388002 | J99: 1480960 | K99: 1580230
A100: ='Org structure'!E38 -> 05.7 - Refuse | C100: 0 | D100: 5951491.33 | E100: 8535591.57 | F100: 6619693 | G100: 6775898 | H100: 6775898 | I100: 7259205 | J100: 6365973 | K100: 6805214
A101: ='Org structure'!E39 -> 05.8 - Taxi Ranks | C101: 0 | D101: 0 | E101: 0 | F101: 0 | G101: 0 | H101: 0 | I101: 0 | J101: 0 | K101: 0
A102: ='Org structure'!A7 -> Vote 06 - Technical Services | C102: =SUM(C103:C110) -> 29776355 | D102: 32148371.29 | E102: 55737279.32 | F102: 46316850 | G102: 52222627 | H102: 52222627 | I102: 52772735 | J102: 55813818 | K102: 59533589
A103: ='Org structure'!E41 -> 06.1 - Mpac | C103: 16329707 | D103: 0 | E103: 0 | F103: 1265417 | G103: 1240417 | H103: 1240417 | I103: 1317508 | J103: 1409106 | K103: 1507086
A104: ='Org structure'!E42 -> 06.2 - Technical Services Admin | C104: 0 | D104: 80843.48 | E104: 130910.85 | F104: 69051 | G104: 69051 | H104: 69051 | I104: 72160 | J104: 75479 | K104: 78951
A105: ='Org structure'!E43 -> 06.3 - Techn Serv-Roads: Admin | C105: 0 | D105: 1460172.14 | E105: 3038219.31 | F105: 3178355 | G105: 3195898 | H105: 3195898 | I105: 3356534 | J105: 3535478 | K105: 3724375
A106: ='Org structure'!E44 -> 06.4 - Techn Serv-Stormwater: Admin | C106: 0 | D106: 7936933.97 | E106: 26963822.18 | F106: 12101794 | G106: 17917310 | H106: 17917310 | I106: 17024099 | J106: 17898278 | K106: 18819047
A107: ='Org structure'!E45 -> 06.5 - Project Management Unit | C107: 7249035 | D107: 897135.49 | E107: 1993091.9 | F107: 2823394 | G107: 2614103 | H107: 2614103 | I107: 1905427 | J107: 2053993 | K107: 2165357
A108: ='Org structure'!E46 -> 06.6 - Electrical & Machinery | C108: 6197613 | D108: 13111848.58 | E108: 13419766.56 | F108: 17303148 | G108: 17550541 | H108: 17550541 | I108: 18862489 | J108: 19894870 | K108: 21530412
A109: ='Org structure'!E47 -> 06.7 - Water | C109: 0 | D109: 5590044.61 | E109: 7741390.77 | F109: 7039369 | G109: 7130379 | H109: 7130379 | I109: 7573936 | J109: 8101098 | K109: 8665027
A110: ='Org structure'!E48 -> 06.8 - Sanitation | C110: 0 | D110: 3071393.02 | E110: 2450077.75 | F110: 2536322 | G110: 2504928 | H110: 2504928 | I110: 2660582 | J110: 2845516 | K110: 3043334
A111: ='Org structure'!A8 -> Vote 07 - | C111: 0 | D111: 0 | E111: 0 | F111: 0 | G111: 0 | H111: 0 | I111: 0 | J111: 0 | K111: 0
A112: ='Org structure'!A9 -> Vote 08 - | C112: 0 | D112: 0 | E112: 0 | F112: 0 | G112: 0 | H112: 0 | I112: 0 | J112: 0 | K112: 0
A113: ='Org structure'!A10 -> Vote 09 - | C113: 0 | D113: 0 | E113: 0 | F113: 0 | G113: 0 | H113: 0 | I113: 0 | J113: 0 | K113: 0
A114: ='Org structure'!A11 -> Vote 10 - | C114: 0 | D114: 0 | E114: 0 | F114: 0 | G114: 0 | H114: 0 | I114: 0 | J114: 0 | K114: 0
A115: ='Org structure'!A12 -> Vote 11 - | C115: 0 | D115: 0 | E115: 0 | F115: 0 | G115: 0 | H115: 0 | I115: 0 | J115: 0 | K115: 0
A116: ='Org structure'!A13 -> Vote 12 - | C116: 0 | D116: 0 | E116: 0 | F116: 0 | G116: 0 | H116: 0 | I116: 0 | J116: 0 | K116: 0
A117: ='Org structure'!A14 -> Vote 13 - | C117: 0 | D117: 0 | E117: 0 | F117: 0 | G117: 0 | H117: 0 | I117: 0 | J117: 0 | K117: 0
A118: ='Org structure'!A15 -> Vote 14 - | C118: 0 | D118: 0 | E118: 0 | F118: 0 | G118: 0 | H118: 0 | I118: 0 | J118: 0 | K118: 0
A119: ='Org structure'!A16 -> Vote 15 - Other | C119: 0 | D119: 0 | E119: 0 | F119: 0 | G119: 0 | H119: 0 | I119: 0 | J119: 0 | K119: 0
A120: Total Expenditure by Vote | B120: 2 | C120: =C64+C73+C79+C85+C93+C102+C111+C112+C113+C114+C115+C116+C117+C118+C119 -> 162270129 | D120: 161157810.9 | E120: 194195012.8 | F120: 205548562 | G120: 212252872 | H120: 212252872 | I120: 220894171 | J120: 231434240 | K120: 244004694 | L120: =SUM(L64:L111) -> 0 | M120: 0 | N120: 0 | O120: 0 | P120: 0 | Q120: 0 | R120: 0 | S120: 0 | T120: 0 | U120: 0 | V120: 0 | W120: 0
A122: =result -> Surplus/(Deficit) for the year | B122: 2 | C122: =C61-C120 -> 56038857 | D122: 42272721.2 | E122: 15857230 | F122: 55441271 | G122: 54304764 | H122: 54304764 | I122: 61599351 | J122: 55851050 | K122: 60591560
A123: =head27a -> References
A124: 1. Insert 'Vote'; e.g. Department, if different to Functional structure
A125: 2. Must reconcile to Financial Performance ('Revenue and Expenditure by Functional Classification' and 'Revenue and Expenditure')
A126: 3. Assign share in 'associate' to relevant Vote
A128: check revenue | C128: =C61-'A4-FinPerf RE'!C59 -> 0 | D128: =D61-'A4-FinPerf RE'!D59 -> 3642175.49 | E128: =E61-'A4-FinPerf RE'!E59 -> 5205879.7 | F128: =F61-'A4-FinPerf RE'!F59 -> 0 | G128: =G61-'A4-FinPerf RE'!G59 -> 0 | H128: =H61-'A4-FinPerf RE'!H59 -> 0 | I128: =I61-'A4-FinPerf RE'!J59 -> 0 | J128: =J61-'A4-FinPerf RE'!K59 -> 0 | K128: =K61-'A4-FinPerf RE'!L59 -> 0
A129: check expenditure | C129: =C120-'A4-FinPerf RE'!C35 -> -1 | D129: =D120-'A4-FinPerf RE'!D35 -> 0 | E129: =E120-'A4-FinPerf RE'!E35 -> 0 | F129: =F120-'A4-FinPerf RE'!F35 -> 0 | G129: =G120-'A4-FinPerf RE'!G35 -> 0 | H129: =H120-'A4-FinPerf RE'!H35 -> 0 | I129: =I120-'A4-FinPerf RE'!J35 -> 0 | J129: =J120-'A4-FinPerf RE'!K35 -> 0 | K129: =K120-'A4-FinPerf RE'!L35 -> 0

Sheet A4-FinPerf RE
A1: =muni&" - "&Approve4 -> LIM353 Molemole - Table A4 Budgeted Financial Performance (revenue and expenditure)
A2: =desc -> Description | B2: =head27 -> Ref | C2: =head1b -> 2016/17 | D2: =head1A -> 2017/18 | E2: =Head1 -> 2018/19 | F2: =Head2 -> Current Year 2019/20 | J2: =Head3 -> 2020/21 Medium Term Revenue & Expenditure Framework | M2: =Head4 -> LTFS
A3: R thousand | B3: 1 | C3: =Head5 -> Audited Outcome | D3: =Head5 -> Audited Outcome | E3: =Head5 -> Audited Outcome | F3: =Head6 -> Original Budget | G3: =Head7 -> Adjusted Budget | H3: =Head8 -> Full Year Forecast | I3: =Head5b -> Pre-audit outcome | J3: =Head9 -> Budget Year 2020/21 | K3: =Head10 -> Budget Year +1 2021/22 | L3: =Head11 -> Budget Year +2 2022/23 | M3: =Head12 -> Forecast 2023/24 | N3: =Head13 -> Forecast 2024/25 | O3: =Head14 -> Forecast 2025/26 | P3: =Head15 -> Forecast 2026/27 | Q3: =Head16 -> Forecast 2027/28 | R3: =Head17 -> Forecast 2028/29 | S3: =Head18 -> Forecast 2029/30 | T3: =Head19 -> Forecast 2030/31 | U3: =Head20 -> Forecast 2031/32 | V3: =Head21 -> Forecast 2032/33 | W3: =Head22 -> Forecast 2033/34 | X3: =Head23 -> Forecast 2034/35
A4: Revenue By Source
A5: Property rates | B5: 2 | C5: ='SA1'!C9 -> 13663497 | D5: ='SA1'!D9 -> 16158013.97 | E5: ='SA1'!E9 -> 14578847.33 | F5: ='SA1'!F9 -> 15291183 | G5: ='SA1'!G9 -> 19858067 | H5: ='SA1'!H9 -> 19858067 | I5: ='SA1'!I9 -> 14920348.21 | J5: ='SA1'!J9 -> 20751683 | K5: ='SA1'!K9 -> 21706259 | L5: ='SA1'!L9 -> 22704749
A6: Service charges - electricity revenue | B6: 2 | C6: ='SA1'!C15 -> 7129407 | D6: ='SA1'!D15 -> 4349561.69 | E6: ='SA1'!E15 -> 2736711.65 | F6: ='SA1'!F15 -> 9224517 | G6: ='SA1'!G15 -> 9224517 | H6: ='SA1'!H15 -> 9224517 | I6: ='SA1'!I15 -> 1209338.41 | J6: ='SA1'!J15 -> 9971705 | K6: ='SA1'!K15 -> 10490235 | L6: ='SA1'!L15 -> 11423866
A7: Service charges - water revenue | B7: 2 | C7: ='SA1'!C21 -> 0 | D7: ='SA1'!D21 -> 0 | E7: ='SA1'!E21 -> 0 | F7: ='SA1'!F21 -> 0 | G7: ='SA1'!G21 -> 0 | H7: ='SA1'!H21 -> 0 | I7: ='SA1'!I21 -> -31216.78 | J7: ='SA1'!J21 -> 0 | K7: ='SA1'!K21 -> 0 | L7: ='SA1'!L21 -> 0
A8: Service charges - sanitation revenue | B8: 2 | C8: ='SA1'!C27 -> 0 | D8: ='SA1'!D27 -> 0 | E8: ='SA1'!E27 -> 0 | F8: ='SA1'!F27 -> 0 | G8: ='SA1'!G27 -> 0 | H8: ='SA1'!H27 -> 0 | I8: ='SA1'!I27 -> 581990.98 | J8: ='SA1'!J27 -> 0 | K8: ='SA1'!K27 -> 0 | L8: ='SA1'!L27 -> 0
A9: Service charges - refuse revenue | B9: 2 | C9: ='SA1'!C34 -> 1830294 | D9: ='SA1'!D34 -> 1763228.47 | E9: ='SA1'!E34 -> 1848066.44 | F9: ='SA1'!F34 -> 2288337 | G9: ='SA1'!G34 -> 2288337 | H9: ='SA1'!H34 -> 2288337 | I9: ='SA1'!I34 -> 1669143.26 | J9: ='SA1'!J34 -> 2391314 | K9: ='SA1'!K34 -> 2501313 | L9: ='SA1'!L34 -> 2616374
A11: Rental of facilities and equipment | C11: 268871 | D11: 313910.98 | E11: 351403.97 | F11: 283935 | G11: 233935 | H11: 233935 | I11: 156170.27 | J11: 244463 | K11: 255708 | L11: 267470
A12: Interest earned - external investments | C12: 2422612 | D12: 0 | E12: 0 | F12: 2112000 | G12: 2112000 | H12: 2112000 | I12: 1248357.67 | J12: 2215488 | K12: 2321832 | L12: 2433280
A13: Interest earned - outstanding debtors | C13: 1574497 | D13: 1138973.9 | E13: 1066848.29 | F13: 1484166 | G13: 1200437 | H13: 1200437 | I13: 703529.89 | J13: 1275117 | K13: 1338465 | L13: 1425814
A14: Dividends received | C14: 0 | D14: 1575122.34 | E14: 1820125.31 | F14: 0 | G14: 0 | H14: 0 | I14: 0 | J14: 0 | K14: 0 | L14: 0
A15: Fines, penalties and forfeits | C15: 1208600 | D15: 3517702.96 | E15: 4281671.17 | F15: 4751369 | G15: 4720834 | H15: 4720834 | I15: 2595162.78 | J15: 4287241 | K15: 1349739 | L15: 1413005
A16: Licences and permits | C16: 3471446 | D16: 0 | E16: 0 | F16: 7065504 | G16: 7065504 | H16: 7065504 | I16: 4802800.23 | J16: 7383452 | K16: 7723091 | L16: 8078353
A17: Agency services | C17: 2368846 | D17: 0 | E17: 660533.8 | F17: 2478480 | G17: 664705 | H17: 664705 | I17: 310019.76 | J17: 694618 | K17: 726570 | L17: 759992
A18: Transfers and subsidies | C18: 125148401 | D18: 129423229.5 | E18: 134056601.1 | F18: 147905550 | G18: 147905550 | H18: 147905550 | I18: 144684784.9 | J18: 156237650 | K18: 164115950 | L18: 171440600
A19: Other revenue | B19: 2 | C19: ='SA1'!C49 -> 31450409 | D19: ='SA1'!D49 -> 2606805.23 | E19: ='SA1'!E49 -> 319060.68 | F19: ='SA1'!F49 -> 34711332 | G19: ='SA1'!G49 -> 28164290 | H19: ='SA1'!H49 -> 28164290 | I19: ='SA1'!I49 -> 878837.84 | J19: ='SA1'!J49 -> 27854441 | K19: ='SA1'!K49 -> 32904078 | L19: ='SA1'!L49 -> 37230351
A20: Gains | C20: 0 | D20: 413109.05 | E20: 0 | F20: 0 | G20: 0 | H20: 0 | I20: 0 | J20: 0 | K20: 0 | L20: 0
A21: Total Revenue (excluding capital transfers and contributions) | C21: =SUM(C5:C9)+SUM(C11:C20) -> 190536880 | D21: =SUM(D5:D9)+SUM(D11:D20) -> 161259658.1 | E21: 161719869.8 | F21: 227596373 | G21: 223438176 | H21: 223438176 | I21: 173729267.4 | J21: 233307172 | K21: 245433240 | L21: 259793854 | M21: =SUM(M5:M20) -> 0 | N21: 0 | O21: 0 | P21: 0 | Q21: 0 | R21: 0 | S21: 0 | T21: 0 | U21: 0 | V21: 0 | W21: 0 | X21: 0
A23: Expenditure By Type
A24: Employee related costs | B24: 2 | C24: ='SA1'!C67 -> 66931271 | D24: ='SA1'!D67 -> 65955037.15 | E24: ='SA1'!E67 -> 78988941.68 | F24: ='SA1'!F67 -> 93985993 | G24: ='SA1'!G67 -> 92456448 | H24: ='SA1'!H67 -> 92456448 | I24: ='SA1'!I67 -> 62667287.41 | J24: ='SA1'!J67 -> 98165079 | K24: ='SA1'!K67 -> 105054628 | L24: ='SA1'!L67 -> 112379006
A25: Remuneration of councillors | C25: 10568433 | D25: 12031425.75 | E25: 12328369.95 | F25: 14127295 | G25: 14127295 | H25: 14127295 | I25: 9305072.91 | J25: 15010262 | K25: 16060977 | L25: 17185245
A26: Debt impairment | B26: 3 | C26: 8024716 | D26: 2465269.88 | E26: 4494247.44 | F26: 5837102 | G26: 5837102 | H26: 5837102 | I26: 3309146.79 | J26: 6099772 | K26: 6374262 | L26: 6661104
A27: Depreciation & asset impairment | B27: 2 | C27: ='SA1'!C83 -> 8529313 | D27: ='SA1'!D83 -> 7861220.46 | E27: ='SA1'!E83 -> 12277161.1 | F27: ='SA1'!F83 -> 8659942 | G27: ='SA1'!G83 -> 15137211 | H27: ='SA1'!H83 -> 15137211 | I27: ='SA1'!I83 -> 12898035.77 | J27: ='SA1'!J83 -> 15818415 | K27: ='SA1'!K83 -> 16545885 | L27: ='SA1'!L83 -> 17306814
A28: Finance charges | C28: 0 | D28: 1191477.46 | E28: 1154597.65 | F28: 1255286 | G28: 1255286 | H28: 1255286 | I28: 8229.96 | J28: 3711774 | K28: 3881204 | L28: 4058369
A29: Bulk purchases | B29: 2 | C29: ='SA1'!C88 -> 7502657 | D29: ='SA1'!D88 -> 9172581.04 | E29: ='SA1'!E88 -> 9419062.61 | F29: ='SA1'!F88 -> 8268000 | G29: ='SA1'!G88 -> 8268000 | H29: ='SA1'!H88 -> 8268000 | I29: ='SA1'!I88 -> 7975382.44 | J29: ='SA1'!J88 -> 8937708 | K29: ='SA1'!K88 -> 9402469 | L29: ='SA1'!L88 -> 10239289
A30: Other materials | B30: 8 | C30: 0 | D30: 3281499.05 | E30: 4463009.22 | F30: 4858679 | G30: 5239045 | H30: 5239045 | I30: 3005924.43 | J30: 5514220 | K30: 5766234 | L30: 6029767
A31: Contracted services | C31: ='SA1'!C127 -> 3133474 | D31: ='SA1'!D127 -> 23001892 | E31: ='SA1'!E127 -> 27322894 | F31: ='SA1'!F127 -> 34663701 | G31: ='SA1'!G127 -> 34810737 | H31: ='SA1'!H127 -> 34810737 | I31: ='SA1'!I127 -> 18792160.62 | J31: ='SA1'!J127 -> 30360743 | K31: ='SA1'!K127 -> 30774799 | L31: ='SA1'!L127 -> 30742374
A32: Transfers and subsidies | C32: ='SA1'!C93 -> 0 | D32: ='SA1'!D93 -> 0 | E32: ='SA1'!E93 -> 0 | F32: ='SA1'!F93 -> 0 | G32: ='SA1'!G93 -> 0 | H32: ='SA1'!H93 -> 0 | I32: ='SA1'!I93 -> 0 | J32: ='SA1'!J93 -> 0 | K32: ='SA1'!K93 -> 0 | L32: ='SA1'!L93 -> 0
A33: Other expenditure | B33: 4, 5 | C33: ='SA1'!C157 -> 57546864 | D33: ='SA1'!D157 -> 35886533.61 | E33: ='SA1'!E157 -> 42196189.65 | F33: ='SA1'!F157 -> 33892564 | G33: ='SA1'!G157 -> 35121748 | H33: ='SA1'!H157 -> 35121748 | I33: ='SA1'!I157 -> 22448383.53 | J33: ='SA1'!J157 -> 37026198 | K33: ='SA1'!K157 -> 37312282 | L33: ='SA1'!L157 -> 39129197
A34: Losses | C34: 33402 | D34: 310874.46 | E34: 1550539.53 | F34: 0 | G34: 0 | H34: 0 | I34: 0 | J34: 250000 | K34: 261500 | L34: 273529
A35: Total Expenditure | C35: =SUM(C24:C34) -> 162270130 | D35: =SUM(D24:D34) -> 161157810.9 | E35: 194195012.8 | F35: 205548562 | G35: 212252872 | H35: 212252872 | I35: 140409623.9 | J35: 220894171 | K35: 231434240 | L35: 244004694 | M35: =SUM(M24:M34) -> 0 | N35: 0 | O35: 0 | P35: 0 | Q35: 0 | R35: 0 | S35: 0 | T35: 0 | U35: 0 | V35: 0 | W35: 0 | X35: 0
A37: Surplus/(Deficit) | C37: =C21-C35 -> 28266750 | D37: 101847.27 | E37: -32475143.08 | F37: 22047811 | G37: 11185304 | H37: 11185304 | I37: 33319643.53 | J37: 12413001 | K37: 13999000 | L37: 15789160 | M37: =M21+M35 -> 0 | N37: 0 | O37: 0 | P37: 0 | Q37: 0 | R37: 0 | S37: 0 | T37: 0 | U37: 0 | V37: 0 | W37: 0 | X37: 0
A38: Transfers and subsidies - capital (monetary allocations) (National / Provincial and District) | C38: 27772106 | D38: 1000000 | E38: 43126493.38 | F38: 33393460 | G38: 43119460 | H38: 43119460 | I38: 31038466.53 | J38: 49186350 | K38: 41852050 | L38: 44802400
A39: Transfers and subsidies - capital (monetary allocations) (National / Provincial Departmental Agencies, Households, Non-profit Institutions, Private Enterprises, Public Corporatons, Higher Educational Institutions) | B39: 6 | C39: ='SA1'!C76 -> 0
A40: Transfers and subsidies - capital (in-kind - all) | C40: 0 | D40: 37528698.44 | E40: 0 | F40: 0 | G40: 0 | H40: 0 | I40: 0 | J40: 0 | K40: 0 | L40: 0
A41: Surplus/(Deficit) after capital transfers & contributions | C41: =SUM(C37:C40) -> 56038856 | D41: 38630545.71 | E41: 10651350.3 | F41: 55441271 | G41: 54304764 | H41: 54304764 | I41: 64358110.06 | J41: 61599351 | K41: 55851050 | L41: 60591560
A42: Taxation
A43: Surplus/(Deficit) after taxation | C43: =C41-C42 -> 56038856 | D43: 38630545.71 | E43: 10651350.3 | F43: 55441271 | G43: 54304764 | H43: 54304764 | I43: 64358110.06 | J43: 61599351 | K43: 55851050 | L43: 60591560
A44: Attributable to minorities
A45: Surplus/(Deficit) attributable to municipality | C45: =SUM(C43:C44) -> 56038856 | D45: 38630545.71 | E45: 10651350.3 | F45: 55441271 | G45: 54304764 | H45: 54304764 | I45: 64358110.06 | J45: 61599351 | K45: 55851050 | L45: 60591560
A46: Share of surplus/ (deficit) of associate | B46: 7
A47: =result -> Surplus/(Deficit) for the year | C47: =SUM(C45:C46) -> 56038856 | D47: 38630545.71 | E47: 10651350.3 | F47: 55441271 | G47: 54304764 | H47: 54304764 | I47: 64358110.06 | J47: 61599351 | K47: 55851050 | L47: 60591560 | M47: =M25+M46 -> 0 | N47: 0 | O47: 0 | P47: 0 | Q47: 0 | R47: 0 | S47: 0 | T47: 0 | U47: 0 | V47: 0 | W47: 0 | X47: 0
A48: =head27a -> References
A49: 1. Classifications are revenue sources and expenditure type
A50: 2. Detail to be provided in Table SA1
A51: 3. Previously described as 'bad or doubtful debts' - amounts shown should reflect the change in the provision for debt impairment
A52: 4. Expenditure type components previously shown under repairs and maintenance should be allocated back to the originating expenditure group/item; e.g. employee costs
A53: 5. Repairs & maintenance detailed in Table A9 and Table SA34c
A54: 6. Contributions are funds provided by external organisations to assist with infrastructure development; e.g. developer contributions (detail to be provided in Table SA1)
A55: 7. Equity method ( Includes Joint Ventures)
A56: 8. All materials not part of 'bulk' e.g road making materials, pipe, cable etc.
A57: check balance | C57: =C45-'A3-FinPerf V'!C39 -> -1 | D57: =D45-'A3-FinPerf V'!D39 -> -3642175.49 | E57: =E45-'A3-FinPerf V'!E39 -> -5205879.7 | F57: =F45-'A3-FinPerf V'!F39 -> 0 | G57: =G45-'A3-FinPerf V'!G39 -> 0 | H57: =H45-'A3-FinPerf V'!H39 -> 0 | J57: =J45-'A3-FinPerf V'!I39 -> 0 | K57: =K45-'A3-FinPerf V'!J39 -> 0 | L57: =L45-'A3-FinPerf V'!K39 -> 0
A59: Total revenue | C59: =C21+SUM(C38:C40) -> 218308986 | D59: 199788356.6 | E59: 204846363.1 | F59: 260989833 | G59: 266557636 | H59: 266557636 | I59: 204767733.9 | J59: 282493522 | K59: 287285290 | L59: 304596254

Sheet A5-Capex
A2: =Vdesc -> Vote Description | B2: =head27 -> Ref | C2: =head1b -> 2016/17 | D2: =head1A -> 2017/18 | E2: =Head1 -> 2018/19 | F2: =Head2 -> Current Year 2019/20 | J2: =Head3 -> 2020/21 Medium Term Revenue & Expenditure Framework
A3: R thousand | B3: 1 | C3: =Head5 -> Audited Outcome | D3: =Head5 -> Audited Outcome | E3: =Head5 -> Audited Outcome | F3: =Head6 -> Original Budget | G3: =Head7 -> Adjusted Budget | H3: =Head8 -> Full Year Forecast | I3: =Head5b -> Pre-audit outcome | J3: =Head9 -> Budget Year 2020/21 | K3: =Head10 -> Budget Year +1 2021/22 | L3: =Head11 -> Budget Year +2 2022/23
A4: Capital expenditure - Vote
A5: Multi-year expenditure to be appropriated | B5: 2
A6: =A5A!A6 -> Vote 01 - Corporate Services | C6: =A5A!C6 -> 0 | D6: =A5A!D6 -> 0 | E6: =A5A!E6 -> 0 | F6: =A5A!F6 -> 0 | G6: =A5A!G6 -> 0 | H6: =A5A!H6 -> 0 | I6: =A5A!I6 -> 0 | J6: =A5A!J6 -> 0 | K6: =A5A!K6 -> 0 | L6: =A5A!L6 -> 0
A7: =A5A!A15 -> Vote 02 - Municipal Manager | C7: =A5A!C15 -> 0 | D7: =A5A!D15 -> 0 | E7: =A5A!E15 -> 0 | F7: =A5A!F15 -> 0 | G7: =A5A!G15 -> 0 | H7: =A5A!H15 -> 0 | I7: =A5A!I15 -> 0 | J7: =A5A!J15 -> 0 | K7: =A5A!K15 -> 0 | L7: =A5A!L15 -> 0
A8: =A5A!A21 -> Vote 03 - Mayors Office | C8: =A5A!C21 -> 0 | D8: =A5A!D21 -> 0 | E8: =A5A!E21 -> 0 | F8: =A5A!F21 -> 0 | G8: =A5A!G21 -> 0 | H8: =A5A!H21 -> 0 | I8: =A5A!I21 -> 0 | J8: =A5A!J21 -> 0 | K8: =A5A!K21 -> 0 | L8: =A5A!L21 -> 0
A9: =A5A!A27 -> Vote 04 - Budget And Treasury | C9: =A5A!C27 -> 0 | D9: =A5A!D27 -> 0 | E9: =A5A!E27 -> 0 | F9: =A5A!F27 -> 0 | G9: =A5A!G27 -> 0 | H9: =A5A!H27 -> 0 | I9: =A5A!I27 -> 0 | J9: =A5A!J27 -> 0 | K9: =A5A!K27 -> 0 | L9: =A5A!L27 -> 0
A10: =A5A!A35 -> Vote 05 - Community Services | C10: =A5A!C35 -> 0 | D10: =A5A!D35 -> 0 | E10: =A5A!E35 -> 0 | F10: =A5A!F35 -> 0 | G10: =A5A!G35 -> 0 | H10: =A5A!H35 -> 0 | I10: =A5A!I35 -> 0 | J10: =A5A!J35 -> 0 | K10: =A5A!K35 -> 0 | L10: =A5A!L35 -> 0
A11: =A5A!A44 -> Vote 06 - Technical Services | C11: =A5A!C44 -> 0 | D11: =A5A!D44 -> 0 | E11: =A5A!E44 -> 34206570.05 | F11: =A5A!F44 -> 33393450 | G11: =A5A!G44 -> 41503450 | H11: =A5A!H44 -> 41503450 | I11: =A5A!I44 -> 28398406.22 | J11: =A5A!J44 -> 33186351 | K11: =A5A!K44 -> 19893020 | L11: =A5A!L44 -> 15000000
A12: ='Org structure'!A8 -> Vote 07 - | C12: =A5A!C53 -> 0 | D12: =A5A!D53 -> 0 | E12: =A5A!E53 -> 0 | F12: =A5A!F53 -> 0 | G12: =A5A!G53 -> 0 | H12: =A5A!H53 -> 0 | I12: =A5A!I53 -> 0 | J12: =A5A!J53 -> 0 | K12: =A5A!K53 -> 0 | L12: =A5A!L53 -> 0
A13: ='Org structure'!A9 -> Vote 08 - | C13: =A5A!C54 -> 0 | D13: =A5A!D54 -> 0 | E13: =A5A!E54 -> 0 | F13: =A5A!F54 -> 0 | G13: =A5A!G54 -> 0 | H13: =A5A!H54 -> 0 | I13: =A5A!I54 -> 0 | J13: =A5A!J54 -> 0 | K13: =A5A!K54 -> 0 | L13: =A5A!L54 -> 0
A14: ='Org structure'!A10 -> Vote 09 - | C14: =A5A!C55 -> 0 | D14: =A5A!D55 -> 0 | E14: =A5A!E55 -> 0 | F14: =A5A!F55 -> 0 | G14: =A5A!G55 -> 0 | H14: =A5A!H55 -> 0 | I14: =A5A!I55 -> 0 | J14: =A5A!J55 -> 0 | K14: =A5A!K55 -> 0 | L14: =A5A!L55 -> 0
A15: ='Org structure'!A11 -> Vote 10 - | C15: =A5A!C56 -> 0 | D15: =A5A!D56 -> 0 | E15: =A5A!E56 -> 0 | F15: =A5A!F56 -> 0 | G15: =A5A!G56 -> 0 | H15: =A5A!H56 -> 0 | I15: =A5A!I56 -> 0 | J15: =A5A!J56 -> 0 | K15: =A5A!K56 -> 0 | L15: =A5A!L56 -> 0
A16: ='Org structure'!A12 -> Vote 11 - | C16: =A5A!C57 -> 0 | D16: =A5A!D57 -> 0 | E16: =A5A!E57 -> 0 | F16: =A5A!F57 -> 0 | G16: =A5A!G57 -> 0 | H16: =A5A!H57 -> 0 | I16: =A5A!I57 -> 0 | J16: =A5A!J57 -> 0 | K16: =A5A!K57 -> 0 | L16: =A5A!L57 -> 0
A17: ='Org structure'!A13 -> Vote 12 - | C17: =A5A!C58 -> 0 | D17: =A5A!D58 -> 0 | E17: =A5A!E58 -> 0 | F17: =A5A!F58 -> 0 | G17: =A5A!G58 -> 0 | H17: =A5A!H58 -> 0 | I17: =A5A!I58 -> 0 | J17: =A5A!J58 -> 0 | K17: =A5A!K58 -> 0 | L17: =A5A!L58 -> 0
A18: ='Org structure'!A14 -> Vote 13 - | C18: =A5A!C59 -> 0 | D18: =A5A!D59 -> 0 | E18: =A5A!E59 -> 0 | F18: =A5A!F59 -> 0 | G18: =A5A!G59 -> 0 | H18: =A5A!H59 -> 0 | I18: =A5A!I59 -> 0 | J18: =A5A!J59 -> 0 | K18: =A5A!K59 -> 0 | L18: =A5A!L59 -> 0
A19: ='Org structure'!A15 -> Vote 14 - | C19: =A5A!C60 -> 0 | D19: =A5A!D60 -> 0 | E19: =A5A!E60 -> 0 | F19: =A5A!F60 -> 0 | G19: =A5A!G60 -> 0 | H19: =A5A!H60 -> 0 | I19: =A5A!I60 -> 0 | J19: =A5A!J60 -> 0 | K19: =A5A!K60 -> 0 | L19: =A5A!L60 -> 0
A20: ='Org structure'!A16 -> Vote 15 - Other | C20: =A5A!C61 -> 0 | D20: =A5A!D61 -> 0 | E20: =A5A!E61 -> 0 | F20: =A5A!F61 -> 0 | G20: =A5A!G61 -> 0 | H20: =A5A!H61 -> 0 | I20: =A5A!I61 -> 0 | J20: =A5A!J61 -> 0 | K20: =A5A!K61 -> 0 | L20: =A5A!L61 -> 0
A21: Capital multi-year expenditure sub-total | B21: 7 | C21: =SUM(C6:C20) -> 0 | D21: =SUM(D6:D20) -> 0 | E21: 34206570.05 | F21: 33393450 | G21: 41503450 | H21: =SUM(H6:H20) -> 41503450 | I21: 28398406.22 | J21: 33186351 | K21: 19893020 | L21: 15000000
A23: Single-year expenditure to be appropriated | B23: 2
A24: =A5A!A66 -> Vote 01 - Corporate Services | C24: =A5A!C66 -> 4924490 | D24: =A5A!D66 -> 3215272.22 | E24: =A5A!E66 -> 2103497.83 | F24: =A5A!F66 -> 2000000 | G24: =A5A!G66 -> 1978720 | H24: =A5A!H66 -> 1978720 | I24: =A5A!I66 -> 1289230.14 | J24: =A5A!J66 -> 2953000 | K24: =A5A!K66 -> 3189000 | L24: =A5A!L66 -> 2189160
A25: =A5A!A75 -> Vote 02 - Municipal Manager | C25: =A5A!C75 -> 152847 | D25: =A5A!D75 -> 207904.38 | E25: =A5A!E75 -> 1024742.38 | F25: =A5A!F75 -> 150000 | G25: =A5A!G75 -> 150000 | H25: =A5A!H75 -> 150000 | I25: =A5A!I75 -> 55398 | J25: =A5A!J75 -> 950000 | K25: =A5A!K75 -> 1050000 | L25: =A5A!L75 -> 0
A26: =A5A!A81 -> Vote 03 - Mayors Office | C26: =A5A!C81 -> 0 | D26: =A5A!D81 -> 0 | E26: =A5A!E81 -> 0 | F26: =A5A!F81 -> 0 | G26: =A5A!G81 -> 0 | H26: =A5A!H81 -> 0 | I26: =A5A!I81 -> 0 | J26: =A5A!J81 -> 0 | K26: =A5A!K81 -> 0 | L26: =A5A!L81 -> 0
A27: =A5A!A87 -> Vote 04 - Budget And Treasury | C27: =A5A!C87 -> 336146 | D27: =A5A!D87 -> 1835897.11 | E27: =A5A!E87 -> 346521.74 | F27: =A5A!F87 -> 550000 | G27: =A5A!G87 -> 240000 | H27: =A5A!H87 -> 240000 | I27: =A5A!I87 -> 0 | J27: =A5A!J87 -> 550000 | K27: =A5A!K87 -> 0 | L27: =A5A!L87 -> 0
A28: =A5A!A95 -> Vote 05 - Community Services | C28: =A5A!C95 -> 3195032 | D28: =A5A!D95 -> 13490665.04 | E28: =A5A!E95 -> 6628277.06 | F28: =A5A!F95 -> 2200000 | G28: =A5A!G95 -> 714276 | H28: =A5A!H95 -> 714276 | I28: =A5A!I95 -> 714276 | J28: =A5A!J95 -> 300000 | K28: =A5A!K95 -> 900000 | L28: =A5A!L95 -> 600000
A29: =A5A!A104 -> Vote 06 - Technical Services | C29: =A5A!C104 -> 31742072 | D29: =A5A!D104 -> 16349642.47 | E29: =A5A!E104 -> 1372748.92 | F29: =A5A!F104 -> 17147821 | G29: =A5A!G104 -> 9718339 | H29: =A5A!H104 -> 9718339 | I29: =A5A!I104 -> 3301799.91 | J29: =A5A!J104 -> 23660000 | K29: =A5A!K104 -> 30819030 | L29: =A5A!L104 -> 42802400
A30: ='Org structure'!A8 -> Vote 07 - | C30: =A5A!C113 -> 0 | D30: =A5A!D113 -> 0 | E30: =A5A!E113 -> 0 | F30: =A5A!F113 -> 0 | G30: =A5A!G113 -> 0 | H30: =A5A!H113 -> 0 | I30: =A5A!I113 -> 0 | J30: =A5A!J113 -> 0 | K30: =A5A!K113 -> 0 | L30: =A5A!L113 -> 0
A31: ='Org structure'!A9 -> Vote 08 - | C31: =A5A!C114 -> 0 | D31: =A5A!D114 -> 0 | E31: =A5A!E114 -> 0 | F31: =A5A!F114 -> 0 | G31: =A5A!G114 -> 0 | H31: =A5A!H114 -> 0 | I31: =A5A!I114 -> 0 | J31: =A5A!J114 -> 0 | K31: =A5A!K114 -> 0 | L31: =A5A!L114 -> 0
A32: ='Org structure'!A10 -> Vote 09 - | C32: =A5A!C115 -> 0 | D32: =A5A!D115 -> 0 | E32: =A5A!E115 -> 0 | F32: =A5A!F115 -> 0 | G32: =A5A!G115 -> 0 | H32: =A5A!H115 -> 0 | I32: =A5A!I115 -> 0 | J32: =A5A!J115 -> 0 | K32: =A5A!K115 -> 0 | L32: =A5A!L115 -> 0
A33: ='Org structure'!A11 -> Vote 10 - | C33: =A5A!C116 -> 0 | D33: =A5A!D116 -> 0 | E33: =A5A!E116 -> 0 | F33: =A5A!F116 -> 0 | G33: =A5A!G116 -> 0 | H33: =A5A!H116 -> 0 | I33: =A5A!I116 -> 0 | J33: =A5A!J116 -> 0 | K33: =A5A!K116 -> 0 | L33: =A5A!L116 -> 0
A34: ='Org structure'!A12 -> Vote 11 - | C34: =A5A!C117 -> 0 | D34: =A5A!D117 -> 0 | E34: =A5A!E117 -> 0 | F34: =A5A!F117 -> 0 | G34: =A5A!G117 -> 0 | H34: =A5A!H117 -> 0 | I34: =A5A!I117 -> 0 | J34: =A5A!J117 -> 0 | K34: =A5A!K117 -> 0 | L34: =A5A!L117 -> 0
A35: ='Org structure'!A13 -> Vote 12 - | C35: =A5A!C118 -> 0 | D35: =A5A!D118 -> 0 | E35: =A5A!E118 -> 0 | F35: =A5A!F118 -> 0 | G35: =A5A!G118 -> 0 | H35: =A5A!H118 -> 0 | I35: =A5A!I118 -> 0 | J35: =A5A!J118 -> 0 | K35: =A5A!K118 -> 0 | L35: =A5A!L118 -> 0
A36: ='Org structure'!A14 -> Vote 13 - | C36: =A5A!C119 -> 0 | D36: =A5A!D119 -> 0 | E36: =A5A!E119 -> 0 | F36: =A5A!F119 -> 0 | G36: =A5A!G119 -> 0 | H36: =A5A!H119 -> 0 | I36: =A5A!I119 -> 0 | J36: =A5A!J119 -> 0 | K36: =A5A!K119 -> 0 | L36: =A5A!L119 -> 0
A37: ='Org structure'!A15 -> Vote 14 - | C37: =A5A!C120 -> 0 | D37: =A5A!D120 -> 0 | E37: =A5A!E120 -> 0 | F37: =A5A!F120 -> 0 | G37: =A5A!G120 -> 0 | H37: =A5A!H120 -> 0 | I37: =A5A!I120 -> 0 | J37: =A5A!J120 -> 0 | K37: =A5A!K120 -> 0 | L37: =A5A!L120 -> 0
A38: ='Org structure'!A16 -> Vote 15 - Other | C38: =A5A!C121 -> 0 | D38: =A5A!D121 -> 0 | E38: =A5A!E121 -> 0 | F38: =A5A!F121 -> 0 | G38: =A5A!G121 -> 0 | H38: =A5A!H121 -> 0 | I38: =A5A!I121 -> 0 | J38: =A5A!J121 -> 0 | K38: =A5A!K121 -> 0 | L38: =A5A!L121 -> 0
A39: Capital single-year expenditure sub-total | C39: =SUM(C24:C38) -> 40350587 | D39: =SUM(D24:D38) -> 35099381.22 | E39: 11475787.93 | F39: 22047821 | G39: 12801335 | H39: 12801335 | I39: 5360704.05 | J39: 28413000 | K39: 35958030 | L39: 45591560
A40: Total Capital Expenditure - Vote | C40: =C39+C21 -> 40350587 | D40: =D39+D21 -> 35099381.22 | E40: 45682357.98 | F40: 55441271 | G40: 54304785 | H40: 54304785 | I40: 33759110.27 | J40: 61599351 | K40: 55851050 | L40: 60591560
A42: Capital Expenditure - Functional
A43: Governance and administration | C43: =SUM(C44:C46) -> 5413483 | D43: =SUM(D44:D46) -> 5259073.71 | E43: 3474761.95 | F43: 2700000 | G43: 2368720 | H43: 2368720 | I43: 1344628.14 | J43: 4453000 | K43: 4239000 | L43: 2189160
A44: Executive and council | C44: 152847 | D44: 207904.38 | E44: 888633.68 | F44: 0 | G44: 0 | H44: 0 | I44: 0 | J44: 800000 | K44: 900000 | L44: 0
A45: Finance and administration | C45: 5260636 | D45: 5051169.33 | E45: 2586128.27 | F45: 2700000 | G45: 2368720 | H45: 2368720 | I45: 1344628.14 | J45: 3653000 | K45: 3339000 | L45: 2189160
A46: Internal audit | C46: 0 | D46: 0 | E46: 0 | F46: 0 | G46: 0 | H46: 0 | I46: 0 | J46: 0 | K46: 0 | L46: 0
A47: Community and public safety | C47: =SUM(C48:C52) -> 3195032 | D47: =SUM(D48:D52) -> 13080582.32 | E47: 6628277.06 | F47: 2200000 | G47: 714276 | H47: 714276 | I47: 714276 | J47: 300000 | K47: 900000 | L47: 600000
A48: Community and social services | D48: 0 | E48: 473409.75 | F48: 0 | G48: 0 | H48: 0 | I48: 0 | J48: 0 | K48: 0 | L48: 0
A49: Sport and recreation | C49: 3195032 | D49: 13080582.32 | E49: 6142854.28 | F49: 2100000 | G49: 714276 | H49: 714276 | I49: 714276 | J49: 0 | K49: 900000 | L49: 600000
A50: Public safety | D50: 0 | E50: 12013.03 | F50: 100000 | G50: 0 | H50: 0 | I50: 0 | J50: 300000 | K50: 0 | L50: 0
A51: Housing
A52: Health
A53: Economic and environmental services | C53: =SUM(C54:C56) -> 27819120 | D53: =SUM(D54:D56) -> 0 | E53: 0 | F53: 0 | G53: 0 | H53: 0 | I53: 0 | J53: 0 | K53: 0 | L53: 0
A54: Planning and development | C54: 0 | D54: 0 | E54: 0 | F54: 0 | G54: 0 | H54: 0 | I54: 0 | J54: 0 | K54: 0 | L54: 0
A55: Road transport | C55: 27819120
A56: Environmental protection
A57: Trading services | C57: =SUM(C58:C61) -> 3922952 | D57: =SUM(D58:D61) -> 16759725.19 | E57: 35579318.97 | F57: 50541271 | G57: 51221789 | H57: 51221789 | I57: 31700206.13 | J57: 56846351 | K57: 50712050 | L57: 57802400
A58: Energy sources | C58: 3922952 | D58: 3317262.54 | E58: 1315138.92 | F58: 5000000 | G58: 4212338 | H58: 4212338 | I58: 552818.23 | J58: 19400000 | K58: 8800000 | L58: 12000000
A59: Water management
A60: Waste water management | C60: 0 | D60: 13032379.93 | E60: 34264180.05 | F60: 45541271 | G60: 47009451 | H60: 47009451 | I60: 31147387.9 | J60: 37446351 | K60: 41912050 | L60: 45802400
A61: Waste management | C61: 0 | D61: 410082.72 | E61: 0 | F61: 0 | G61: 0 | H61: 0 | I61: 0 | J61: 0 | K61: 0 | L61: 0
A62: Other
A63: Total Capital Expenditure - Functional | B63: 3 | C63: =C43+C47+C53+C57+C62 -> 40350587 | D63: =D43+D47+D53+D57+D62 -> 35099381.22 | E63: 45682357.98 | F63: 55441271 | G63: 54304785 | H63: 54304785 | I63: 33759110.27 | J63: 61599351 | K63: 55851050 | L63: =L43+L47+L53+L57+L62 -> 60591560
A65: Funded by:
A66: National Government | C66: 26210622 | D66: 23164056.32 | E66: 37557011.22 | F66: 33393450 | G66: 41503450 | H66: 41503450 | I66: 28398406.22 | J66: 49186351 | K66: 41852050 | L66: 44802400
A67: Provincial Government | C67: 0 | D67: 0 | E67: 531721.74 | F67: 0 | G67: 0 | H67: 0 | I67: 0 | J67: 0 | K67: 0 | L67: 0
A68: District Municipality | C68: 0 | D68: 0 | E68: 29400 | F68: 0 | G68: 0 | H68: 0 | I68: 0 | J68: 0 | K68: 0 | L68: 0
A69: ='A4-FinPerf RE'!A39 -> Transfers and subsidies - capital (monetary allocations) (National / Provincial Departmental Agencies, Households, Non-profit Institutions, Private Enterprises, Public Corporatons, Higher Educational Institutions) | C69: 0 | D69: 1201028.11 | E69: 680520.5 | F69: =+E74-E63 -> 0 | G69: 0 | H69: 0 | I69: 0 | J69: 0 | K69: 0 | L69: 0
A70: Transfers recognised - capital | B70: 4 | C70: =SUM(C66:C69) -> 26210622 | D70: 24365084.43 | E70: 38798653.46 | F70: 33393450 | G70: 41503450 | H70: 41503450 | I70: 28398406.22 | J70: 49186351 | K70: 41852050 | L70: 44802400
A72: Borrowing | B72: 6
A73: Internally generated funds | C73: 14139965 | D73: 10734296.79 | E73: 6883704.52 | F73: 22047821 | G73: 12801335 | H73: 12801335 | I73: 5360704.05 | J73: 12413000 | K73: 13999000 | L73: 15789160
A74: Total Capital Funding | B74: 7 | C74: =+C70+C72+C73 -> 40350587 | D74: =+D70+D72+D73 -> 35099381.22 | E74: 45682357.98 | F74: 55441271 | G74: 54304785 | H74: 54304785 | I74: 33759110.27 | J74: 61599351 | K74: 55851050 | L74: 60591560
A75: =head27a -> References
A76: 1. Municipalities may choose to appropriate for capital expenditure for three years or for one year (if one year appropriation projected expenditure required for yr2 and yr3).
A77: 2. Include capital component of PPP unitary payment. Note that capital transfers are only appropriated to municipalities for the budget year
A78: 3. Capital expenditure by functional classification must reconcile to the appropriations by vote
A79: 4. Must reconcile to supporting table SA20 and to Budgeted Financial Performance (revenue and expenditure)
A81: 6. Include finance leases and PPP capital funding component of unitary payment - total borrowing/repayments to reconcile to changes in Table SA17
A82: 7. Total Capital Funding must balance with Total Capital Expenditure
A83: 8. Include any capitalised interest (MFMA section 46) as part of relevant capital budget
A85: check balance | C85: =IF((C63-C74)=0,0,"Unbalanced") -> 0 | D85: =IF((D63-D74)=0,0,"Unbalanced") -> 0 | E85: 0 | F85: 0 | G85: 0 | H85: 0 | I85: 0 | J85: 0 | K85: 0 | L85: 0

Sheet A5A
A1: =muni&" - "&Approve5 -> LIM353 Molemole - Table A5 Budgeted Capital Expenditure by vote, functional classification and funding
A2: =Vdesc -> Vote Description | B2: =head27 -> Ref | C2: =head1b -> 2016/17 | D2: =head1A -> 2017/18 | E2: =Head1 -> 2018/19 | F2: =Head2 -> Current Year 2019/20 | J2: =Head3 -> 2020/21 Medium Term Revenue & Expenditure Framework | N2: ="Multi-year appropriation for "&Head9& " in the "&Head2A&" Annual Budget" -> Multi-year appropriation for Budget Year 2020/21 in the 2019/20 Annual Budget | R2: ="Multi-year appropriation for "&RIGHT(Head10,7)& " in the "&Head2A&" Annual Budget" -> Multi-year appropriation for 2021/22 in the 2019/20 Annual Budget | V2: New multi-year appropriations (funds for new and existing projects)
A3: R thousand | B3: 1 | C3: =Head5 -> Audited Outcome | D3: =Head5 -> Audited Outcome | E3: =Head5 -> Audited Outcome | F3: =Head6 -> Original Budget | G3: =Head7 -> Adjusted Budget | H3: =Head8 -> Full Year Forecast | I3: =Head5b -> Pre-audit outcome | J3: =Head9 -> Budget Year 2020/21 | K3: =Head10 -> Budget Year +1 2021/22 | L3: =Head11 -> Budget Year +2 2022/23 | N3: ="Appropriation for "&RIGHT(Head9,7) -> Appropriation for 2020/21 | O3: ="Adjustments in "&Head2A -> Adjustments in 2019/20 | P3: ="Downward adjustments for "&RIGHT(Head9,7) -> Downward adjustments for 2020/21 | Q3: Appropriation carried forward | R3: ="Appropriation for "&RIGHT(Head9,7) -> Appropriation for 2020/21 | S3: ="Adjustments in "&Head2A -> Adjustments in 2019/20 | T3: ="Downward adjustments for "&RIGHT(Head9,7) -> Downward adjustments for 2020/21 | U3: Appropriation carried forward | V3: =Head9 -> Budget Year 2020/21 | W3: =Head10 -> Budget Year +1 2021/22 | X3: =Head11 -> Budget Year +2 2022/23
A4: Capital expenditure - Municipal Vote
A5: Multi-year expenditure appropriation | B5: 2
A6: ='Org structure'!A2 -> Vote 01 - Corporate Services | C6: =SUM(C7:C14) -> 0 | D6: 0 | E6: 0 | F6: 0 | G6: 0 | H6: 0 | I6: 0 | J6: 0 | K6: 0 | L6: 0 | N6: =SUM(N7:N14) -> 0 | O6: 0 | P6: 0 | Q6: 0 | R6: 0 | S6: 0 | T6: 0 | U6: 0 | V6: 0 | W6: 0 | X6: 0
A7: ='Org structure'!E3 -> 01.1 - Corporate Services Admin | C7: 0 | D7: 0 | E7: 0 | F7: 0 | G7: 0 | H7: 0 | I7: 0 | J7: =Q7+V7 -> 0 | K7: =U7+W7 -> 0 | L7: =X7 -> 0 | N7: 0 | O7: 0 | P7: 0 | Q7: =SUM(N7:P7) -> 0 | R7: 0 | S7: 0 | T7: 0 | U7: =SUM(R7:T7) -> 0 | V7: 0 | W7: 0 | X7: 0
A8: ='Org structure'!E4 -> 01.2 - Human Resources | C8: 0 | D8: 0 | E8: 0 | F8: 0 | G8: 0 | H8: 0 | I8: 0 | J8: 0 | K8: 0 | L8: 0 | N8: 0 | O8: 0 | P8: 0 | Q8: 0 | R8: 0 | S8: 0 | T8: 0 | U8: 0 | V8: 0 | W8: 0 | X8: 0
A9: ='Org structure'!E5 -> 01.3 - Information Technology Services | C9: 0 | D9: 0 | E9: 0 | F9: 0 | G9: 0 | H9: 0 | I9: 0 | J9: 0 | K9: 0 | L9: 0 | N9: 0 | O9: 0 | P9: 0 | Q9: 0 | R9: 0 | S9: 0 | T9: 0 | U9: 0 | V9: 0 | W9: 0 | X9: 0
A10: ='Org structure'!E6 -> 01.4 - Council Support | C10: 0 | D10: 0 | E10: 0 | F10: 0 | G10: 0 | H10: 0 | I10: 0 | J10: 0 | K10: 0 | L10: 0 | N10: 0 | O10: 0 | P10: 0 | Q10: 0 | R10: 0 | S10: 0 | T10: 0 | U10: 0 | V10: 0 | W10: 0 | X10: 0
A11: ='Org structure'!E7 -> 01.5 - Local Economic Development | C11: 0 | D11: 0 | E11: 0 | F11: 0 | G11: 0 | H11: 0 | I11: 0 | J11: 0 | K11: 0 | L11: 0 | N11: 0 | O11: 0 | P11: 0 | Q11: 0 | R11: 0 | S11: 0 | T11: 0 | U11: 0 | V11: 0 | W11: 0 | X11: 0
A12: ='Org structure'!E8 -> 01.6 - Municipal Planning Idp | C12: 0 | D12: 0 | E12: 0 | F12: 0 | G12: 0 | H12: 0 | I12: 0 | J12: 0 | K12: 0 | L12: 0 | N12: 0 | O12: 0 | P12: 0 | Q12: 0 | R12: 0 | S12: 0 | T12: 0 | U12: 0 | V12: 0 | W12: 0 | X12: 0
A13: ='Org structure'!E9 -> 01.7 - Town & Regional Planning | C13: 0 | D13: 0 | E13: 0 | F13: 0 | G13: 0 | H13: 0 | I13: 0 | J13: 0 | K13: 0 | L13: 0 | N13: 0 | O13: 0 | P13: 0 | Q13: 0 | R13: 0 | S13: 0 | T13: 0 | U13: 0 | V13: 0 | W13: 0 | X13: 0
A14: ='Org structure'!E10 -> 01.8 - Led Administration | C14: 0 | D14: 0 | E14: 0 | F14: 0 | G14: 0 | H14: 0 | I14: 0 | J14: 0 | K14: 0 | L14: 0 | N14: 0 | O14: 0 | P14: 0 | Q14: 0 | R14: 0 | S14: 0 | T14: 0 | U14: 0 | V14: 0 | W14: 0 | X14: 0
A15: ='Org structure'!A3 -> Vote 02 - Municipal Manager | C15: =SUM(C16:C20) -> 0 | D15: 0 | E15: 0 | F15: 0 | G15: 0 | H15: 0 | I15: 0 | J15: 0 | K15: 0 | L15: 0 | N15: =SUM(N16:N20) -> 0 | O15: 0 | P15: 0 | Q15: 0 | R15: 0 | S15: 0 | T15: 0 | U15: 0 | V15: 0 | W15: 0 | X15: 0
A16: ='Org structure'!E12 -> 02.1 - Municipal Manager Admin | C16: 0 | D16: 0 | E16: 0 | F16: 0 | G16: 0 | H16: 0 | I16: 0 | J16: =Q16+V16 -> 0 | K16: =U16+W16 -> 0 | L16: =X16 -> 0 | N16: 0 | O16: 0 | P16: 0 | Q16: =SUM(N16:P16) -> 0 | R16: 0 | S16: 0 | T16: 0 | U16: =SUM(R16:T16) -> 0 | V16: 0 | W16: 0 | X16: 0
A17: ='Org structure'!E13 -> 02.2 - Legal Services | C17: 0 | D17: 0 | E17: 0 | F17: 0 | G17: 0 | H17: 0 | I17: 0 | J17: =Q17+V17 -> 0 | K17: =U17+W17 -> 0 | L17: =X17 -> 0 | N17: 0 | O17: 0 | P17: 0 | Q17: =SUM(N17:P17) -> 0 | R17: 0 | S17: 0 | T17: 0 | U17: =SUM(R17:T17) -> 0 | V17: 0 | W17: 0 | X17: 0
A18: ='Org structure'!E14 -> 02.3 - Political Office Beares | C18: 0 | D18: 0 | E18: 0 | F18: 0 | G18: 0 | H18: 0 | I18: 0 | J18: =Q18+V18 -> 0 | K18: =U18+W18 -> 0 | L18: =X18 -> 0 | N18: 0 | O18: 0 | P18: 0 | Q18: =SUM(N18:P18) -> 0 | R18: 0 | S18: 0 | T18: 0 | U18: =SUM(R18:T18) -> 0 | V18: 0 | W18: 0 | X18: 0
A19: ='Org structure'!E15 -> 02.4 - Pms | C19: 0 | D19: 0 | E19: 0 | F19: 0 | G19: 0 | H19: 0 | I19: 0 | J19: =Q19+V19 -> 0 | K19: =U19+W19 -> 0 | L19: =X19 -> 0 | N19: 0 | O19: 0 | P19: 0 | Q19: =SUM(N19:P19) -> 0 | R19: 0 | S19: 0 | T19: 0 | U19: =SUM(R19:T19) -> 0 | V19: 0 | W19: 0 | X19: 0
A20: ='Org structure'!E16 -> 02.5 - Internal Audit | C20: 0 | D20: 0 | E20: 0 | F20: 0 | G20: 0 | H20: 0 | I20: 0 | J20: =Q20+V20 -> 0 | K20: =U20+W20 -> 0 | L20: =X20 -> 0 | N20: 0 | O20: 0 | P20: 0 | Q20: =SUM(N20:P20) -> 0 | R20: 0 | S20: 0 | T20: 0 | U20: =SUM(R20:T20) -> 0 | V20: 0 | W20: 0 | X20: 0
A21: ='Org structure'!A4 -> Vote 03 - Mayors Office | C21: =SUM(C22:C26) -> 0 | D21: 0 | E21: 0 | F21: 0 | G21: 0 | H21: 0 | I21: 0 | J21: 0 | K21: 0 | L21: 0 | N21: =SUM(N22:N26) -> 0 | O21: 0 | P21: 0 | Q21: 0 | R21: 0 | S21: 0 | T21: 0 | U21: 0 | V21: 0 | W21: 0 | X21: 0
A22: ='Org structure'!E18 -> 03.1 - Mayors Office Admin | C22: 0 | D22: 0 | E22: 0 | F22: 0 | G22: 0 | H22: 0 | I22: 0 | J22: =Q22+V22 -> 0 | K22: =U22+W22 -> 0 | L22: =X22 -> 0 | N22: 0 | O22: 0 | P22: 0 | Q22: =SUM(N22:P22) -> 0 | R22: 0 | S22: 0 | T22: 0 | U22: =SUM(R22:T22) -> 0 | V22: 0 | W22: 0 | X22: 0
A23: ='Org structure'!E19 -> 03.2 - Office Of The Speaker | C23: 0 | D23: 0 | E23: 0 | F23: 0 | G23: 0 | H23: 0 | I23: 0 | J23: =Q23+V23 -> 0 | K23: =U23+W23 -> 0 | L23: =X23 -> 0 | N23: 0 | O23: 0 | P23: 0 | Q23: =SUM(N23:P23) -> 0 | R23: 0 | S23: 0 | T23: 0 | U23: =SUM(R23:T23) -> 0 | V23: 0 | W23: 0 | X23: 0
A24: ='Org structure'!E20 -> 03.3 - Office Of The Chief Whip | C24: 0 | D24: 0 | E24: 0 | F24: 0 | G24: 0 | H24: 0 | I24: 0 | J24: =Q24+V24 -> 0 | K24: =U24+W24 -> 0 | L24: =X24 -> 0 | N24: 0 | O24: 0 | P24: 0 | Q24: =SUM(N24:P24) -> 0 | R24: 0 | S24: 0 | T24: 0 | U24: =SUM(R24:T24) -> 0 | V24: 0 | W24: 0 | X24: 0
A25: ='Org structure'!E21 -> 03.4 - Exco Members | C25: 0 | D25: 0 | E25: 0 | F25: 0 | G25: 0 | H25: 0 | I25: 0 | J25: =Q25+V25 -> 0 | K25: =U25+W25 -> 0 | L25: =X25 -> 0 | N25: 0 | O25: 0 | P25: 0 | Q25: =SUM(N25:P25) -> 0 | R25: 0 | S25: 0 | T25: 0 | U25: =SUM(R25:T25) -> 0 | V25: 0 | W25: 0 | X25: 0
A26: ='Org structure'!E22 -> 03.5 - Council General Administration | C26: 0 | D26: 0 | E26: 0 | F26: 0 | G26: 0 | H26: 0 | I26: 0 | J26: =Q26+V26 -> 0 | K26: =U26+W26 -> 0 | L26: =X26 -> 0 | N26: 0 | O26: 0 | P26: 0 | Q26: =SUM(N26:P26) -> 0 | R26: 0 | S26: 0 | T26: 0 | U26: =SUM(R26:T26) -> 0 | V26: 0 | W26: 0 | X26: 0
A27: ='Org structure'!A5 -> Vote 04 - Budget And Treasury | C27: =SUM(C28:C34) -> 0 | D27: 0 | E27: 0 | F27: 0 | G27: 0 | H27: 0 | I27: 0 | J27: 0 | K27: 0 | L27: 0 | N27: =SUM(N28:N34) -> 0 | O27: 0 | P27: 0 | Q27: 0 | R27: 0 | S27: 0 | T27: 0 | U27: 0 | V27: 0 | W27: 0 | X27: 0
A28: ='Org structure'!E24 -> 04.1 - Budget And Treasury Admin | C28: 0 | D28: 0 | E28: 0 | F28: 0 | G28: 0 | H28: 0 | I28: 0 | J28: =Q28+V28 -> 0 | K28: =U28+W28 -> 0 | L28: =X28 -> 0 | N28: 0 | O28: 0 | P28: 0 | Q28: =SUM(N28:P28) -> 0 | R28: 0 | S28: 0 | T28: 0 | U28: =SUM(R28:T28) -> 0 | V28: 0 | W28: 0 | X28: 0
A29: ='Org structure'!E25 -> 04.2 - Chief Financial Officer Admin | C29: 0 | D29: 0 | E29: 0 | F29: 0 | G29: 0 | H29: 0 | I29: 0 | J29: 0 | K29: 0 | L29: 0 | N29: 0 | O29: 0 | P29: 0 | Q29: 0 | R29: 0 | S29: 0 | T29: 0 | U29: 0 | V29: 0 | W29: 0 | X29: 0
A30: ='Org structure'!E26 -> 04.3 - Budget & Reporting | C30: 0 | D30: 0 | E30: 0 | F30: 0 | G30: 0 | H30: 0 | I30: 0 | J30: 0 | K30: 0 | L30: 0 | N30: 0 | O30: 0 | P30: 0 | Q30: 0 | R30: 0 | S30: 0 | T30: 0 | U30: 0 | V30: 0 | W30: 0 | X30: 0
A31: ='Org structure'!E27 -> 04.4 - Budget & Reporting | C31: 0 | D31: 0 | E31: 0 | F31: 0 | G31: 0 | H31: 0 | I31: 0 | J31: 0 | K31: 0 | L31: 0 | N31: 0 | O31: 0 | P31: 0 | Q31: 0 | R31: 0 | S31: 0 | T31: 0 | U31: 0 | V31: 0 | W31: 0 | X31: 0
A32: ='Org structure'!E28 -> 04.5 - Revenue Management | C32: 0 | D32: 0 | E32: 0 | F32: 0 | G32: 0 | H32: 0 | I32: 0 | J32: 0 | K32: 0 | L32: 0 | N32: 0 | O32: 0 | P32: 0 | Q32: 0 | R32: 0 | S32: 0 | T32: 0 | U32: 0 | V32: 0 | W32: 0 | X32: 0
A33: ='Org structure'!E29 -> 04.6 - Supply Chain Management | C33: 0 | D33: 0 | E33: 0 | F33: 0 | G33: 0 | H33: 0 | I33: 0 | J33: 0 | K33: 0 | L33: 0 | N33: 0 | O33: 0 | P33: 0 | Q33: 0 | R33: 0 | S33: 0 | T33: 0 | U33: 0 | V33: 0 | W33: 0 | X33: 0
A34: ='Org structure'!E30 -> 04.7 - Expenditure | C34: 0 | D34: 0 | E34: 0 | F34: 0 | G34: 0 | H34: 0 | I34: 0 | J34: 0 | K34: 0 | L34: 0 | N34: 0 | O34: 0 | P34: 0 | Q34: 0 | R34: 0 | S34: 0 | T34: 0 | U34: 0 | V34: 0 | W34: 0 | X34: 0
A35: ='Org structure'!A6 -> Vote 05 - Community Services | C35: =SUM(C36:C43) -> 0 | D35: 0 | E35: 0 | F35: 0 | G35: 0 | H35: 0 | I35: 0 | J35: 0 | K35: 0 | L35: 0 | N35: =SUM(N36:N43) -> 0 | O35: 0 | P35: 0 | Q35: 0 | R35: 0 | S35: 0 | T35: 0 | U35: 0 | V35: 0 | W35: 0 | X35: 0
A36: ='Org structure'!E32 -> 05.1 - Community Services Admin | C36: 0 | D36: 0 | E36: 0 | F36: 0 | G36: 0 | H36: 0 | I36: 0 | J36: =Q36+V36 -> 0 | K36: =U36+W36 -> 0 | L36: =X36 -> 0 | N36: 0 | O36: 0 | P36: 0 | Q36: =SUM(N36:P36) -> 0 | R36: 0 | S36: 0 | T36: 0 | U36: =SUM(R36:T36) -> 0 | V36: 0 | W36: 0 | X36: 0
A37: ='Org structure'!E33 -> 05.2 - Libraries | C37: 0 | D37: 0 | E37: 0 | F37: 0 | G37: 0 | H37: 0 | I37: 0 | J37: 0 | K37: 0 | L37: 0 | N37: 0 | O37: 0 | P37: 0 | Q37: 0 | R37: 0 | S37: 0 | T37: 0 | U37: 0 | V37: 0 | W37: 0 | X37: 0
A38: ='Org structure'!E34 -> 05.3 - Sports Recreation & Social Amenitie | C38: 0 | D38: 0 | E38: 0 | F38: 0 | G38: 0 | H38: 0 | I38: 0 | J38: 0 | K38: 0 | L38: 0 | N38: 0 | O38: 0 | P38: 0 | Q38: 0 | R38: 0 | S38: 0 | T38: 0 | U38: 0 | V38: 0 | W38: 0 | X38: 0
A39: ='Org structure'!E35 -> 05.4 - Traffic Service | C39: 0 | D39: 0 | E39: 0 | F39: 0 | G39: 0 | H39: 0 | I39: 0 | J39: 0 | K39: 0 | L39: 0 | N39: 0 | O39: 0 | P39: 0 | Q39: 0 | R39: 0 | S39: 0 | T39: 0 | U39: 0 | V39: 0 | W39: 0 | X39: 0
A40: ='Org structure'!E36 -> 05.5 - Traffic Service | C40: 0 | D40: 0 | E40: 0 | F40: 0 | G40: 0 | H40: 0 | I40: 0 | J40: 0 | K40: 0 | L40: 0 | N40: 0 | O40: 0 | P40: 0 | Q40: 0 | R40: 0 | S40: 0 | T40: 0 | U40: 0 | V40: 0 | W40: 0 | X40: 0
A41: ='Org structure'!E37 -> 05.6 - Parks; Cemeteries | C41: 0 | D41: 0 | E41: 0 | F41: 0 | G41: 0 | H41: 0 | I41: 0 | J41: 0 | K41: 0 | L41: 0 | N41: 0 | O41: 0 | P41: 0 | Q41: 0 | R41: 0 | S41: 0 | T41: 0 | U41: 0 | V41: 0 | W41: 0 | X41: 0
A42: ='Org structure'!E38 -> 05.7 - Refuse | C42: 0 | D42: 0 | E42: 0 | F42: 0 | G42: 0 | H42: 0 | I42: 0 | J42: 0 | K42: 0 | L42: 0 | N42: 0 | O42: 0 | P42: 0 | Q42: 0 | R42: 0 | S42: 0 | T42: 0 | U42: 0 | V42: 0 | W42: 0 | X42: 0
A43: ='Org structure'!E39 -> 05.8 - Taxi Ranks | C43: 0 | D43: 0 | E43: 0 | F43: 0 | G43: 0 | H43: 0 | I43: 0 | J43: 0 | K43: 0 | L43: 0 | N43: 0 | O43: 0 | P43: 0 | Q43: 0 | R43: 0 | S43: 0 | T43: 0 | U43: 0 | V43: 0 | W43: 0 | X43: 0
A44: ='Org structure'!A7 -> Vote 06 - Technical Services | C44: =SUM(C45:C52) -> 0 | D44: 0 | E44: 34206570.05 | F44: 33393450 | G44: 41503450 | H44: 41503450 | I44: 28398406.22 | J44: 33186351 | K44: 19893020 | L44: 15000000 | N44: =SUM(N45:N52) -> 33186351 | O44: 0 | P44: 0 | Q44: 33186351 | R44: 19893020 | S44: 0 | T44: 0 | U44: 19893020 | V44: 0 | W44: 0 | X44: 15000000
A45: ='Org structure'!E41 -> 06.1 - Mpac | C45: 0 | D45: 0 | E45: 0 | F45: 0 | G45: 0 | H45: 0 | I45: 0 | J45: =Q45+V45 -> 0 | K45: =U45+W45 -> 0 | L45: =X45 -> 0 | N45: 0 | O45: 0 | P45: 0 | Q45: =SUM(N45:P45) -> 0 | R45: 0 | S45: 0 | T45: 0 | U45: =SUM(R45:T45) -> 0 | V45: 0 | W45: 0 | X45: 0
A46: ='Org structure'!E42 -> 06.2 - Technical Services Admin | C46: 0 | D46: 0 | E46: 0 | F46: 0 | G46: 0 | H46: 0 | I46: 0 | J46: 0 | K46: 0 | L46: 0 | N46: 0 | O46: 0 | P46: 0 | Q46: 0 | R46: 0 | S46: 0 | T46: 0 | U46: 0 | V46: 0 | W46: 0 | X46: 0
A47: ='Org structure'!E43 -> 06.3 - Techn Serv-Roads: Admin | C47: 0 | D47: 0 | E47: 0 | F47: 0 | G47: 0 | H47: 0 | I47: 0 | J47: 0 | K47: 0 | L47: 0 | N47: 0 | O47: 0 | P47: 0 | Q47: 0 | R47: 0 | S47: 0 | T47: 0 | U47: 0 | V47: 0 | W47: 0 | X47: 0
A48: ='Org structure'!E44 -> 06.4 - Techn Serv-Stormwater: Admin | C48: 0 | D48: 0 | E48: 34206570.05 | F48: 33393450 | G48: 41503450 | H48: 41503450 | I48: 28398406.22 | J48: 33186351 | K48: 19893020 | L48: 15000000 | N48: 33186351 | O48: 0 | P48: 0 | Q48: 33186351 | R48: 19893020 | S48: 0 | T48: 0 | U48: 19893020 | V48: 0 | W48: 0 | X48: 15000000
A49: ='Org structure'!E45 -> 06.5 - Project Management Unit | C49: 0 | D49: 0 | E49: 0 | F49: 0 | G49: 0 | H49: 0 | I49: 0 | J49: 0 | K49: 0 | L49: 0 | N49: 0 | O49: 0 | P49: 0 | Q49: 0 | R49: 0 | S49: 0 | T49: 0 | U49: 0 | V49: 0 | W49: 0 | X49: 0
A50: ='Org structure'!E46 -> 06.6 - Electrical & Machinery | C50: 0 | D50: 0 | E50: 0 | F50: 0 | G50: 0 | H50: 0 | I50: 0 | J50: 0 | K50: 0 | L50: 0 | N50: 0 | O50: 0 | P50: 0 | Q50: 0 | R50: 0 | S50: 0 | T50: 0 | U50: 0 | V50: 0 | W50: 0 | X50: 0
A51: ='Org structure'!E47 -> 06.7 - Water | C51: 0 | D51: 0 | E51: 0 | F51: 0 | G51: 0 | H51: 0 | I51: 0 | J51: 0 | K51: 0 | L51: 0 | N51: 0 | O51: 0 | P51: 0 | Q51: 0 | R51: 0 | S51: 0 | T51: 0 | U51: 0 | V51: 0 | W51: 0 | X51: 0
A52: ='Org structure'!E48 -> 06.8 - Sanitation | C52: 0 | D52: 0 | E52: 0 | F52: 0 | G52: 0 | H52: 0 | I52: 0 | J52: 0 | K52: 0 | L52: 0 | N52: 0 | O52: 0 | P52: 0 | Q52: 0 | R52: 0 | S52: 0 | T52: 0 | U52: 0 | V52: 0 | W52: 0 | X52: 0
A53: ='Org structure'!A8 -> Vote 07 - | C53: 0 | D53: 0 | E53: 0 | F53: 0 | G53: 0 | H53: 0 | I53: 0 | J53: 0 | K53: 0 | L53: 0 | N53: 0 | O53: 0 | P53: 0 | Q53: 0 | R53: 0 | S53: 0 | T53: 0 | U53: 0 | V53: 0 | W53: 0
A54: ='Org structure'!A9 -> Vote 08 - | C54: 0 | D54: 0 | E54: 0 | F54: 0 | G54: 0 | H54: 0 | I54: 0 | J54: 0 | K54: 0 | L54: 0 | N54: 0 | O54: 0 | P54: 0 | Q54: 0 | R54: 0 | S54: 0 | T54: 0 | U54: 0 | V54: 0 | W54: 0
A55: ='Org structure'!A10 -> Vote 09 - | C55: 0 | D55: 0 | E55: 0 | F55: 0 | G55: 0 | H55: 0 | I55: 0 | J55: 0 | K55: 0 | L55: 0 | N55: 0 | O55: 0 | P55: 0 | Q55: 0 | R55: 0 | S55: 0 | T55: 0 | U55: 0 | V55: 0 | W55: 0
A56: ='Org structure'!A11 -> Vote 10 - | C56: 0 | D56: 0 | E56: 0 | F56: 0 | G56: 0 | H56: 0 | I56: 0 | J56: 0 | K56: 0 | L56: 0 | N56: 0 | O56: 0 | P56: 0 | Q56: 0 | R56: 0 | S56: 0 | T56: 0 | U56: 0 | V56: 0 | W56: 0
A57: ='Org structure'!A12 -> Vote 11 - | C57: 0 | D57: 0 | E57: 0 | F57: 0 | G57: 0 | H57: 0 | I57: 0 | J57: 0 | K57: 0 | L57: 0 | N57: 0 | O57: 0 | P57: 0 | Q57: 0 | R57: 0 | S57: 0 | T57: 0 | U57: 0 | V57: 0 | W57: 0
A58: ='Org structure'!A13 -> Vote 12 - | C58: 0 | D58: 0 | E58: 0 | F58: 0 | G58: 0 | H58: 0 | I58: 0 | J58: 0 | K58: 0 | L58: 0 | N58: 0 | O58: 0 | P58: 0 | Q58: 0 | R58: 0 | S58: 0 | T58: 0 | U58: 0 | V58: 0 | W58: 0
A59: ='Org structure'!A14 -> Vote 13 - | C59: 0 | D59: 0 | E59: 0 | F59: 0 | G59: 0 | H59: 0 | I59: 0 | J59: 0 | K59: 0 | L59: 0 | N59: 0 | O59: 0 | P59: 0 | Q59: 0 | R59: 0 | S59: 0 | T59: 0 | U59: 0 | V59: 0 | W59: 0
A60: ='Org structure'!A15 -> Vote 14 - | C60: 0 | D60: 0 | E60: 0 | F60: 0 | G60: 0 | H60: 0 | I60: 0 | J60: 0 | K60: 0 | L60: 0 | N60: 0 | O60: 0 | P60: 0 | Q60: 0 | R60: 0 | S60: 0 | T60: 0 | U60: 0 | V60: 0 | W60: 0
A61: ='Org structure'!A16 -> Vote 15 - Other | C61: 0 | D61: 0 | E61: 0 | F61: 0 | G61: 0 | H61: 0 | I61: 0 | J61: 0 | K61: 0 | L61: 0 | N61: 0 | O61: 0 | P61: 0 | Q61: 0 | R61: 0 | S61: 0 | T61: 0 | U61: 0 | V61: 0 | W61: 0
A62: Capital multi-year expenditure sub-total | C62: =C6+C15+C21+C27+C35+C44+C53+C54+C55+C56+C57+C58+C59+C60+C61 -> 0 | D62: 0 | E62: 34206570.05 | F62: 33393450 | G62: 41503450 | H62: 41503450 | I62: 28398406.22 | J62: 33186351 | K62: 19893020 | L62: 15000000 | N62: =N6+N15+N21+N27+N35+N44+N53+N54+N55+N56+N57+N58+N59+N60+N61 -> 33186351 | O62: 0 | P62: 0 | Q62: 33186351 | R62: 19893020 | S62: 0 | T62: 0 | U62: 19893020 | V62: 0 | W62: 0
A64: Capital expenditure - Municipal Vote
A65: Single-year expenditure appropriation | B65: 2
A66: ='Org structure'!A2 -> Vote 01 - Corporate Services | C66: =SUM(C67:C74) -> 4924490 | D66: 3215272.22 | E66: 2103497.83 | F66: 2000000 | G66: 1978720 | H66: 1978720 | I66: 1289230.14 | J66: 2953000 | K66: 3189000 | L66: 2189160
A67: ='Org structure'!E3 -> 01.1 - Corporate Services Admin | C67: 4924490 | D67: 2108200.86 | E67: 1637651.33 | F67: 250000 | G67: 250000 | H67: 250000 | I67: 150328.69 | J67: 300000 | K67: 2000000 | L67: 1015000
A68: ='Org structure'!E4 -> 01.2 - Human Resources | C68: 0 | D68: 22302.85 | E68: 45950 | F68: 50000 | G68: 28720 | H68: 28720 | I68: 28720 | J68: 53000 | K68: 53000 | L68: 0
A69: ='Org structure'!E5 -> 01.3 - Information Technology Services | C69: 0 | D69: 1084768.51 | E69: 419896.5 | F69: 1700000 | G69: 1700000 | H69: 1700000 | I69: 1110181.45 | J69: 2600000 | K69: 1136000 | L69: 1174160
A70: ='Org structure'!E6 -> 01.4 - Council Support | C70: 0 | D70: 0 | E70: 0 | F70: 0 | G70: 0 | H70: 0 | I70: 0 | J70: 0 | K70: 0 | L70: 0
A71: ='Org structure'!E7 -> 01.5 - Local Economic Development | C71: 0 | D71: 0 | E71: 0 | F71: 0 | G71: 0 | H71: 0 | I71: 0 | J71: 0 | K71: 0 | L71: 0
A72: ='Org structure'!E8 -> 01.6 - Municipal Planning Idp | C72: 0 | D72: 0 | E72: 0 | F72: 0 | G72: 0 | H72: 0 | I72: 0 | J72: 0 | K72: 0 | L72: 0
A73: ='Org structure'!E9 -> 01.7 - Town & Regional Planning | C73: 0 | D73: 0 | E73: 0 | F73: 0 | G73: 0 | H73: 0 | I73: 0 | J73: 0 | K73: 0 | L73: 0
A74: ='Org structure'!E10 -> 01.8 - Led Administration | C74: 0 | D74: 0 | E74: 0 | F74: 0 | G74: 0 | H74: 0 | I74: 0 | J74: 0 | K74: 0 | L74: 0
A75: ='Org structure'!A3 -> Vote 02 - Municipal Manager | C75: =SUM(C76:C80) -> 152847 | D75: 207904.38 | E75: 1024742.38 | F75: 150000 | G75: 150000 | H75: 150000 | I75: 55398 | J75: 950000 | K75: 1050000 | L75: 0
A76: ='Org structure'!E12 -> 02.1 - Municipal Manager Admin | C76: 152847 | D76: 207904.38 | E76: 0 | F76: 0 | G76: 0 | H76: 0 | I76: 0 | J76: 0 | K76: 0 | L76: 0
A77: ='Org structure'!E13 -> 02.2 - Legal Services | C77: 0 | D77: 0 | E77: 0 | F77: 0 | G77: 0 | H77: 0 | I77: 0 | J77: 0 | K77: 0 | L77: 0
A78: ='Org structure'!E14 -> 02.3 - Political Office Beares | C78: 0 | D78: 0 | E78: 136108.7 | F78: 150000 | G78: 150000 | H78: 150000 | I78: 55398 | J78: 150000 | K78: 150000 | L78: 0
A79: ='Org structure'!E15 -> 02.4 - Pms | C79: 0 | D79: 0 | E79: 888633.68 | F79: 0 | G79: 0 | H79: 0 | I79: 0 | J79: 800000 | K79: 900000 | L79: 0
A80: ='Org structure'!E16 -> 02.5 - Internal Audit | C80: 0 | D80: 0 | E80: 0 | F80: 0 | G80: 0 | H80: 0 | I80: 0 | J80: 0 | K80: 0 | L80: 0
A81: ='Org structure'!A4 -> Vote 03 - Mayors Office | C81: =SUM(C82:C86) -> 0 | D81: 0 | E81: 0 | F81: 0 | G81: 0 | H81: 0 | I81: 0 | J81: 0 | K81: 0 | L81: 0
A82: ='Org structure'!E18 -> 03.1 - Mayors Office Admin | C82: 0 | D82: 0 | E82: 0 | F82: 0 | G82: 0 | H82: 0 | I82: 0 | J82: 0 | K82: 0 | L82: 0
A83: ='Org structure'!E19 -> 03.2 - Office Of The Speaker | C83: 0 | D83: 0 | E83: 0 | F83: 0 | G83: 0 | H83: 0 | I83: 0 | J83: 0 | K83: 0 | L83: 0
A84: ='Org structure'!E20 -> 03.3 - Office Of The Chief Whip | C84: 0 | D84: 0 | E84: 0 | F84: 0 | G84: 0 | H84: 0 | I84: 0 | J84: 0 | K84: 0 | L84: 0
A85: ='Org structure'!E21 -> 03.4 - Exco Members | C85: 0 | D85: 0 | E85: 0 | F85: 0 | G85: 0 | H85: 0 | I85: 0 | J85: 0 | K85: 0 | L85: 0
A86: ='Org structure'!E22 -> 03.5 - Council General Administration | C86: 0 | D86: 0 | E86: 0 | F86: 0 | G86: 0 | H86: 0 | I86: 0 | J86: 0 | K86: 0 | L86: 0
A87: ='Org structure'!A5 -> Vote 04 - Budget And Treasury | C87: =SUM(C88:C94) -> 336146 | D87: 1835897.11 | E87: 346521.74 | F87: 550000 | G87: 240000 | H87: 240000 | I87: 0 | J87: 550000 | K87: 0 | L87: 0
A88: ='Org structure'!E24 -> 04.1 - Budget And Treasury Admin | C88: 336146 | D88: 0 | E88: 0 | F88: 0 | G88: 0 | H88: 0 | I88: 0 | J88: 0 | K88: 0 | L88: 0
A89: ='Org structure'!E25 -> 04.2 - Chief Financial Officer Admin | C89: 0 | D89: 0 | E89: 0 | F89: 0 | G89: 0 | H89: 0 | I89: 0 | J89: 0 | K89: 0 | L89: 0
A90: ='Org structure'!E26 -> 04.3 - Budget & Reporting | C90: 0 | D90: 749055 | E90: 0 | F90: 0 | G90: 0 | H90: 0 | I90: 0 | J90: 0 | K90: 0 | L90: 0
A91: ='Org structure'!E27 -> 04.4 - Budget & Reporting | C91: 0 | D91: 1086842.11 | E91: 0 | F91: 350000 | G91: 0 | H91: 0 | I91: 0 | J91: 350000 | K91: 0 | L91: 0
A92: ='Org structure'!E28 -> 04.5 - Revenue Management | C92: 0 | D92: 0 | E92: 346521.74 | F92: 200000 | G92: 240000 | H92: 240000 | I92: 0 | J92: 200000 | K92: 0 | L92: 0
A93: ='Org structure'!E29 -> 04.6 - Supply Chain Management | C93: 0 | D93: 0 | E93: 0 | F93: 0 | G93: 0 | H93: 0 | I93: 0 | J93: 0 | K93: 0 | L93: 0
A94: ='Org structure'!E30 -> 04.7 - Expenditure | C94: 0 | D94: 0 | E94: 0 | F94: 0 | G94: 0 | H94: 0 | I94: 0 | J94: 0 | K94: 0 | L94: 0
A95: ='Org structure'!A6 -> Vote 05 - Community Services | C95: =SUM(C96:C103) -> 3195032 | D95: 13490665.04 | E95: 6628277.06 | F95: 2200000 | G95: 714276 | H95: 714276 | I95: 714276 | J95: 300000 | K95: 900000 | L95: 600000
A96: ='Org structure'!E32 -> 05.1 - Community Services Admin | C96: 3195032 | D96: 0 | E96: 29400 | F96: 0 | G96: 0 | H96: 0 | I96: 0 | J96: 0 | K96: 0 | L96: 0
A97: ='Org structure'!E33 -> 05.2 - Libraries | C97: 0 | D97: 0 | E97: 0 | F97: 0 | G97: 0 | H97: 0 | I97: 0 | J97: 0 | K97: 0 | L97: 0
A98: ='Org structure'!E34 -> 05.3 - Sports Recreation & Social Amenitie | C98: 0 | D98: 13080582.32 | E98: 6142854.28 | F98: 2100000 | G98: 714276 | H98: 714276 | I98: 714276 | J98: 0 | K98: 900000 | L98: 600000
A99: ='Org structure'!E35 -> 05.4 - Traffic Service | C99: 0 | D99: 0 | E99: 12013.03 | F99: 0 | G99: 0 | H99: 0 | I99: 0 | J99: 0 | K99: 0 | L99: 0
A100: ='Org structure'!E36 -> 05.5 - Traffic Service | C100: 0 | D100: 0 | E100: 0 | F100: 100000 | G100: 0 | H100: 0 | I100: 0 | J100: 300000 | K100: 0 | L100: 0
A101: ='Org structure'!E37 -> 05.6 - Parks; Cemeteries | C101: 0 | D101: 0 | E101: 444009.75 | F101: 0 | G101: 0 | H101: 0 | I101: 0 | J101: 0 | K101: 0 | L101: 0
A102: ='Org structure'!E38 -> 05.7 - Refuse | C102: 0 | D102: 410082.72 | E102: 0 | F102: 0 | G102: 0 | H102: 0 | I102: 0 | J102: 0 | K102: 0 | L102: 0
A103: ='Org structure'!E39 -> 05.8 - Taxi Ranks | C103: 0 | D103: 0 | E103: 0 | F103: 0 | G103: 0 | H103: 0 | I103: 0 | J103: 0 | K103: 0 | L103: 0
A104: ='Org structure'!A7 -> Vote 06 - Technical Services | C104: =SUM(C105:C112) -> 31742072 | D104: 16349642.47 | E104: 1372748.92 | F104: 17147821 | G104: 9718339 | H104: 9718339 | I104: 3301799.91 | J104: 23660000 | K104: 30819030 | L104: 42802400
A105: ='Org structure'!E41 -> 06.1 - Mpac | C105: 0 | D105: 0 | E105: 0 | F105: 0 | G105: 0 | H105: 0 | I105: 0 | J105: 0 | K105: 0 | L105: 0
A106: ='Org structure'!E42 -> 06.2 - Technical Services Admin | C106: 0 | D106: 0 | E106: 0 | F106: 0 | G106: 0 | H106: 0 | I106: 0 | J106: 0 | K106: 0 | L106: 0
A107: ='Org structure'!E43 -> 06.3 - Techn Serv-Roads: Admin | C107: 27819120 | D107: 0 | E107: 0 | F107: 0 | G107: 0 | H107: 0 | I107: 0 | J107: 0 | K107: 0 | L107: 0
A108: ='Org structure'!E44 -> 06.4 - Techn Serv-Stormwater: Admin | D108: 13032379.93 | E108: 57610 | F108: 12147821 | G108: 5506001 | H108: 5506001 | I108: 2748981.68 | J108: 4260000 | K108: 22019030 | L108: 30802400
A109: ='Org structure'!E45 -> 06.5 - Project Management Unit | D109: 0 | E109: 0 | F109: 0 | G109: 0 | H109: 0 | I109: 0 | J109: 0 | K109: 0 | L109: 0
A110: ='Org structure'!E46 -> 06.6 - Electrical & Machinery | C110: 3922952 | D110: 3317262.54 | E110: 1315138.92 | F110: 5000000 | G110: 4212338 | H110: 4212338 | I110: 552818.23 | J110: 19400000 | K110: 8800000 | L110: 12000000
A111: ='Org structure'!E47 -> 06.7 - Water | D111: 0 | E111: 0 | F111: 0 | G111: 0 | H111: 0 | I111: 0 | J111: 0 | K111: 0 | L111: 0
A112: ='Org structure'!E48 -> 06.8 - Sanitation | C112: 0 | D112: 0 | E112: 0 | F112: 0 | G112: 0 | H112: 0 | I112: 0 | J112: 0 | K112: 0 | L112: 0
A113: ='Org structure'!A8 -> Vote 07 - | C113: 0 | D113: 0 | E113: 0 | F113: 0 | G113: 0 | H113: 0 | I113: 0 | J113: 0 | K113: 0 | L113: 0
A114: ='Org structure'!A9 -> Vote 08 - | C114: 0 | D114: 0 | E114: 0 | F114: 0 | G114: 0 | H114: 0 | I114: 0 | J114: 0 | K114: 0 | L114: 0
A115: ='Org structure'!A10 -> Vote 09 - | C115: 0 | D115: 0 | E115: 0 | F115: 0 | G115: 0 | H115: 0 | I115: 0 | J115: 0 | K115: 0 | L115: 0
A116: ='Org structure'!A11 -> Vote 10 - | C116: 0 | D116: 0 | E116: 0 | F116: 0 | G116: 0 | H116: 0 | I116: 0 | J116: 0 | K116: 0 | L116: 0
A117: ='Org structure'!A12 -> Vote 11 - | C117: 0 | D117: 0 | E117: 0 | F117: 0 | G117: 0 | H117: 0 | I117: 0 | J117: 0 | K117: 0 | L117: 0
A118: ='Org structure'!A13 -> Vote 12 - | C118: 0 | D118: 0 | E118: 0 | F118: 0 | G118: 0 | H118: 0 | I118: 0 | J118: 0 | K118: 0 | L118: 0
A119: ='Org structure'!A14 -> Vote 13 - | C119: 0 | D119: 0 | E119: 0 | F119: 0 | G119: 0 | H119: 0 | I119: 0 | J119: 0 | K119: 0 | L119: 0
A120: ='Org structure'!A15 -> Vote 14 - | C120: 0 | D120: 0 | E120: 0 | F120: 0 | G120: 0 | H120: 0 | I120: 0 | J120: 0 | K120: 0 | L120: 0
A121: ='Org structure'!A16 -> Vote 15 - Other | C121: 0 | D121: 0 | E121: 0 | F121: 0 | G121: 0 | H121: 0 | I121: 0 | J121: 0 | K121: 0 | L121: 0
A122: Capital single-year expenditure sub-total | C122: =C66+C75+C81+C87+C95+C104+C113+C114+C115+C116+C117+C118+C119+C120+C121 -> 40350587 | D122: 35099381.22 | E122: 11475787.93 | F122: 22047821 | G122: 12801335 | H122: 12801335 | I122: 5360704.05 | J122: 28413000 | K122: 35958030 | L122: 45591560
A123: Total Capital Expenditure | C123: =C62+C122 -> 40350587 | D123: 35099381.22 | E123: 45682357.98 | F123: 55441271 | G123: 54304785 | H123: 54304785 | I123: 33759110.27 | J123: 61599351 | K123: 55851050 | L123: 60591560

Sheet A6-FinPos
A1: =muni&" - "&Approve6 -> LIM353 Molemole - Table A6 Budgeted Financial Position
A2: =desc -> Description | B2: =head27 -> Ref | C2: =head1b -> 2016/17 | D2: =head1A -> 2017/18 | E2: =Head1 -> 2018/19 | F2: =Head2 -> Current Year 2019/20 | J2: =Head3 -> 2020/21 Medium Term Revenue & Expenditure Framework
A3: R thousand | C3: =Head5 -> Audited Outcome | D3: =Head5 -> Audited Outcome | E3: =Head5 -> Audited Outcome | F3: =Head6 -> Original Budget | G3: =Head7 -> Adjusted Budget | H3: =Head8 -> Full Year Forecast | I3: =Head5b -> Pre-audit outcome | J3: =Head9 -> Budget Year 2020/21 | K3: =Head10 -> Budget Year +1 2021/22 | L3: =Head11 -> Budget Year +2 2022/23
A4: ASSETS
A5: Current assets
A6: Cash | C6: 55607102 | D6: 41577791.46 | E6: 19363525.35 | F6: 23948248 | G6: 28813773 | H6: 28813773 | I6: 79333605.59 | J6: 23361626 | K6: 33599377 | L6: 35615339
A7: Call investment deposits | B7: 1 | C7: 0 | D7: 0 | E7: 0 | F7: 0 | G7: 0 | H7: 0 | I7: 0 | J7: 0 | K7: 0 | L7: 0
A8: Consumer debtors | B8: 1 | C8: ='SA3'!C14 -> 0 | D8: ='SA3'!D14 -> 41271289.85 | E8: ='SA3'!E14 -> 66463493.41 | F8: ='SA3'!F14 -> 16357776 | G8: ='SA3'!G14 -> 76685175 | H8: ='SA3'!H14 -> 76685175 | I8: ='SA3'!I14 -> 74508575.87 | J8: ='SA3'!J14 -> 104223044 | K8: ='SA3'!K14 -> 122406587 | L8: ='SA3'!L14 -> 143586735
A9: Other debtors | C9: 3389801 | D9: 33105619.74 | E9: 22890999.48 | F9: 15854635 | G9: 17502358 | H9: 17502358 | I9: 30740050.62 | J9: 18687635 | K9: 20556400 | L9: 22612040
A10: Current portion of long-term receivables | C10: 48137488 | D10: 36839.58 | E10: 30849.58 | F10: 30256 | G10: 30256 | H10: 30256 | I10: 30849.58 | J10: 33282 | K10: 36610 | L10: 40271
A11: Inventory | B11: 2 | C11: 136520 | D11: 160959.46 | E11: 194483.45 | F11: 369856 | G11: 259808 | H11: 259808 | I11: 194483.45 | J11: 275398 | K11: 302937 | L11: 333231
A12: Total current assets | C12: =SUM(C6:C11) -> 107270911 | D12: 116152500.1 | E12: 108943351.3 | F12: 56560771 | G12: 123291370 | H12: 123291370 | I12: 184807565.1 | J12: 146580985 | K12: 176901911 | L12: 202187616
A14: Non current assets
A15: Long-term receivables
A16: Investments | C16: 0 | D16: 0 | E16: 0 | F16: 0 | G16: 0 | H16: 0 | I16: 0 | J16: 0 | K16: 0 | L16: 0
A17: Investment property | C17: 1787668 | D17: 1744334.34 | E17: 1701000.96 | F17: 1649709 | G17: 1652313 | H17: 1652313 | I17: 1672112.04 | J17: 1596320 | K17: 1531931 | L17: 1464965
A18: Investment in Associate
A19: Property, plant and equipment | B19: 3 | C19: ='SA3'!C26 -> 186299002 | D19: ='SA3'!D26 -> 211956814.8 | E19: ='SA3'!E26 -> 248697639.3 | F19: ='SA3'!F26 -> 133845116 | G19: ='SA3'!G26 -> 287873599 | H19: ='SA3'!H26 -> 287873599 | I19: ='SA3'!I26 -> 269913281.5 | J19: ='SA3'!J26 -> 333153413 | K19: ='SA3'!K26 -> 372094576 | L19: ='SA3'!L26 -> 417694796
A21: Biological
A22: Intangible | C22: 368150 | D22: 1918750.94 | E22: 1949128.08 | F22: 5373435 | G22: 2428647 | H22: 2428647 | I22: 1623449.33 | J22: 2836443 | K22: 1502909 | L22: -510053
A23: Other non-current assets | C23: 402493 | D23: 368150 | E23: 368150 | F23: 368150 | G23: 368150 | H23: 368150 | I23: 368150 | J23: 368150 | K23: 368150 | L23: 368150
A24: Total non current assets | C24: =SUM(C15:C19)+SUM(C21:C23) -> 188857313 | D24: =SUM(D15:D19)+SUM(D21:D23) -> 215988050.1 | E24: 252715918.4 | F24: 141236410 | G24: 292322709 | H24: 292322709 | I24: 273576992.9 | J24: 337954326 | K24: 375497566 | L24: 419017858
A25: TOTAL ASSETS | C25: =C12+C24 -> 296128224 | D25: =D12+D24 -> 332140550.2 | E25: =E12+E24 -> 361659269.6 | F25: =F12+F24 -> 197797181 | G25: 415614079 | H25: 415614079 | I25: 458384558 | J25: 484535311 | K25: 552399477 | L25: 621205474
A27: LIABILITIES
A28: Current liabilities
A29: Bank overdraft | B29: 1
A30: Borrowing | B30: 4 | C30: ='SA3'!C32 -> 294229 | D30: ='SA3'!D32 -> 196513.46 | E30: ='SA3'!E32 -> 448189.46 | F30: ='SA3'!F32 -> 294221 | G30: ='SA3'!G32 -> 196513 | H30: ='SA3'!H32 -> 196513 | I30: ='SA3'!I32 -> 448189.46 | J30: ='SA3'!J32 -> 208304 | K30: ='SA3'!K32 -> 229135 | L30: ='SA3'!L32 -> 252048
A31: Consumer deposits | C31: 501449 | D31: 502526.48 | E31: 503126.48 | F31: 588650 | G31: 588650 | H31: 588650 | I31: 505099.12 | J31: 623969 | K31: 686366 | L31: 755003
A32: Trade and other payables | B32: 4 | C32: ='SA3'!C39 -> 38755215 | D32: ='SA3'!D39 -> 34032232.52 | E32: ='SA3'!E39 -> 40831719.51 | F32: ='SA3'!F39 -> 37543757 | G32: ='SA3'!G39 -> 38764796 | H32: ='SA3'!H39 -> 38764796 | I32: ='SA3'!I39 -> 68769840.07 | J32: ='SA3'!J39 -> 41018214 | K32: ='SA3'!K39 -> 45120037 | L32: ='SA3'!L39 -> 49632037
A33: Provisions | C33: 6349621 | D33: 477590 | E33: 826867 | F33: 493650 | G33: 493650 | H33: 493650 | I33: 795575.3 | J33: 523270 | K33: 575597 | L33: 633156
A34: Total current liabilities | C34: =SUM(C29:C33) -> 45900514 | D34: 35208862.46 | E34: 42609902.45 | F34: 38920278 | G34: 40043609 | H34: 40043609 | I34: 70518703.95 | J34: 42373757 | K34: 46611135 | L34: 51272244
A36: Non current liabilities
A37: Borrowing | C37: ='SA3'!C44 -> 0 | D37: ='SA3'!D44 -> 513305.58 | E37: ='SA3'!E44 -> 65107.65 | F37: ='SA3'!F44 -> 0 | G37: ='SA3'!G44 -> 65108 | H37: ='SA3'!H44 -> 65108 | I37: ='SA3'!I44 -> 65107.65 | J37: ='SA3'!J44 -> 69014 | K37: ='SA3'!K44 -> 75915 | L37: ='SA3'!L44 -> 83507
A38: Provisions | C38: ='SA3'!C51 -> 19847882 | D38: ='SA3'!D51 -> 20693558.72 | E38: ='SA3'!E51 -> 23460556.29 | F38: ='SA3'!F51 -> 25676880 | G38: ='SA3'!G51 -> 25676880 | H38: ='SA3'!H51 -> 25676880 | I38: ='SA3'!I51 -> 23460556.29 | J38: ='SA3'!J51 -> 27217495 | K38: ='SA3'!K51 -> 29939244 | L38: ='SA3'!L51 -> 32933168
A39: Total non current liabilities | C39: =SUM(C37:C38) -> 19847882 | D39: =SUM(D37:D38) -> 21206864.3 | E39: =SUM(E37:E38) -> 23525663.94 | F39: =SUM(F37:F38) -> 25676880 | G39: 25741988 | H39: 25741988 | I39: 23525663.94 | J39: 27286509 | K39: =SUM(K37:K38) -> 30015159 | L39: 33016675
A40: TOTAL LIABILITIES | C40: =C34+C39 -> 65748396 | D40: =D34+D39 -> 56415726.76 | E40: =E34+E39 -> 66135566.39 | F40: =F34+F39 -> 64597158 | G40: 65785597 | H40: 65785597 | I40: 94044367.89 | J40: 69660266 | K40: =K34+K39 -> 76626294 | L40: 84288919
A42: NET ASSETS | B42: 5 | C42: =C25-C40 -> 230379828 | D42: 275724823.4 | E42: 295523703.2 | F42: 133200023 | G42: 349828482 | H42: 349828482 | I42: 364340190.1 | J42: 414875045 | K42: 475773183 | L42: 536916555
A44: COMMUNITY WEALTH/EQUITY
A45: Accumulated Surplus/(Deficit) | C45: ='SA3'!C63+116 -> 188484972 | D45: ='SA3'!D63+3642175.49 -> 233829967.9 | E45: ='SA3'!E63+4701502.62 -> 247909592.3 | F45: ='SA3'!F63 -> 85506572 | G45: ='SA3'!G63+14 -> 302214371 | H45: ='SA3'!H63+14 -> 302214371 | I45: ='SA3'!I63 -> 312267702.4 | J45: ='SA3'!J63 -> 364404087 | K45: ='SA3'!K63 -> 420255129 | L45: ='SA3'!L63 -> 480846696
A46: Reserves | B46: 4 | C46: ='SA3'!C70 -> 41894856 | D46: ='SA3'!D70 -> 41894855.57 | E46: ='SA3'!E70 -> 47614110.89 | F46: ='SA3'!F70 -> 0 | G46: ='SA3'!G70 -> 47614111 | H46: ='SA3'!H70 -> 47614111 | I46: ='SA3'!I70 -> 47614110.89 | J46: ='SA3'!J70 -> 50470958 | K46: ='SA3'!K70 -> 55518054 | L46: ='SA3'!L70 -> 56069859
A48: TOTAL COMMUNITY WEALTH/EQUITY | B48: 5 | C48: =SUM(C45:C46) -> 230379828 | D48: =SUM(D45:D46) -> 275724823.4 | E48: 295523703.2 | F48: 85506572 | G48: 349828482 | H48: 349828482 | I48: 359881813.3 | J48: 414875045 | K48: 475773183 | L48: 536916555
A49: =head27a -> References
A50: 1. Detail to be provided in Table SA3
A51: 2. Include completed low cost housing to be transferred to beneficiaries within 12 months
A52: 3. Include 'Construction-work-in-progress' (disclosed separately in annual financial statements)
A53: 4. Detail to be provided in Table SA3. Includes reserves to be funded by statute.
A54: 5. Net assets must balance with Total Community Wealth/Equity
A55: check balance | C55: =IF((C42-C48)=0,0,"Unbalanced") -> 0 | D55: =IF((D42-D48)=0,0,"Unbalanced") -> Unbalanced | E55: Unbalanced | F55: Unbalanced | G55: 0 | H55: 0 | I55: Unbalanced | J55: 0 | K55: 0 | L55: 0
C56: =+C48-C42 -> 0 | D56: =+D48-D42 -> 0 | E56: 0 | F56: 0 | G56: 0 | H56: 0 | I56: 0

Sheet A7-CFlow
A1: =muni&" - "&Approve7 -> LIM353 Molemole - Table A7 Budgeted Cash Flows
A2: =desc -> Description | B2: =head27 -> Ref | C2: =head1b -> 2016/17 | D2: =head1A -> 2017/18 | E2: =Head1 -> 2018/19 | F2: =Head2 -> Current Year 2019/20 | J2: =Head3 -> 2020/21 Medium Term Revenue & Expenditure Framework
A3: R thousand | C3: =Head5 -> Audited Outcome | D3: =Head5 -> Audited Outcome | E3: =Head5 -> Audited Outcome | F3: =Head6 -> Original Budget | G3: =Head7 -> Adjusted Budget | H3: =Head8 -> Full Year Forecast | I3: =Head5b -> Pre-audit outcome | J3: =Head9 -> Budget Year 2020/21 | K3: =Head10 -> Budget Year +1 2021/22 | L3: =Head11 -> Budget Year +2 2022/23
A4: CASH FLOW FROM OPERATING ACTIVITIES
A5: Receipts
A6: Property rates | C6: 13663498 | D6: 2640881 | E6: =2640881+5000000 -> 7640881 | F6: 9549000 | G6: 7920532.1 | H6: 7920532.1 | I6: 7920532.1 | J6: ='SA30'!N5 -> 6751683 | K6: ='SA30'!O5 -> 9706259 | L6: ='SA30'!P5 -> 10704749
A7: Service charges | C7: 9228574 | D7: 4964000 | E7: =4964000+5000000 -> 9964000 | F7: 9487857.5 | G7: 8179616.8 | H7: 8179616.8 | I7: 8179616.8 | J7: ='SA30'!N6+'SA30'!N7+'SA30'!N8+'SA30'!N9 -> 9113019 | K7: ='SA30'!O6+'SA30'!O7+'SA30'!O8+'SA30'!O9 -> 10491548 | L7: ='SA30'!P6+'SA30'!P7+'SA30'!P8+'SA30'!P9 -> 11540240
A8: Other revenue | C8: 19589764 | D8: 6744657 | E8: =20272896-E6-E7 -> 2668015 | F8: 13000733.25 | G8: 33436934.32 | H8: 33436934.32 | I8: =33436934.316-25000000 -> 8436934.316 | J8: ='SA30'!N11+'SA30'!N15+'SA30'!N16+'SA30'!N17+'SA30'!N19 -> 20464215 | K8: ='SA30'!O11+'SA30'!O15+'SA30'!O16+'SA30'!O17+'SA30'!O19 -> 17959186 | L8: ='SA30'!P11+'SA30'!P15+'SA30'!P16+'SA30'!P17+'SA30'!P19 -> 22749171
A9: Transfers and Subsidies - Operational | B9: 1 | C9: 152444278 | D9: 128436970 | E9: 133323137 | F9: 125947000 | G9: 147906000 | H9: 147906000 | I9: 147906000 | J9: ='SA30'!N18 -> 156237650 | K9: ='SA30'!O18 -> 164115950 | L9: ='SA30'!P18 -> 171440600
A10: Transfers and Subsidies - Capital | B10: 1 | C10: 19736782 | D10: 34730759 | E10: =175179000-E9 -> 41855863 | F10: 38762000 | G10: 55441271 | H10: 55441271 | I10: 55441271 | J10: ='SA30'!N23 -> 49186350 | K10: ='SA30'!O23 -> 41852050 | L10: ='SA30'!P23 -> 44802400
A11: Interest | C11: 1574496 | D11: 1546000 | E11: 1820125 | F11: 3439996.8 | G11: 2112000 | H11: 2112000 | I11: 2112000 | J11: ='SA30'!N12+'SA30'!N13 -> 3490605 | K11: ='SA30'!O12+'SA30'!O13 -> 3660297 | L11: ='SA30'!P12+'SA30'!P13 -> 3859094
A12: Dividends | D12: 0 | G12: 0 | H12: 0 | I12: 0 | J12: ='SA30'!N14 -> 0 | K12: ='SA30'!O14 -> 0 | L12: ='SA30'!P14 -> 0
A13: Payments
A14: Suppliers and employees | C14: -141616344 | D14: -126966558 | E14: -173376787 | F14: -123223784 | G14: -185083787.8 | H14: -185083787.8 | I14: -185083787.8 | J14: =-('SA30'!N35+'SA30'!N36+'SA30'!N38+'SA30'!N39+'SA30'!N40+'SA30'!N41+'SA30'!N44+'SA30'!N50) -> -184968645 | K14: =-('SA30'!O35+'SA30'!O36+'SA30'!O38+'SA30'!O39+'SA30'!O40+'SA30'!O41+'SA30'!O44+'SA30'!O50) -> -177358288 | L14: =-('SA30'!P35+'SA30'!P36+'SA30'!P38+'SA30'!P39+'SA30'!P40+'SA30'!P41+'SA30'!P44+'SA30'!P50) -> -197927408
A15: Finance charges | D15: -56141 | E15: -1154598 | F15: -827815 | G15: -1255285.92 | H15: -1255285.92 | I15: -1255285.92 | J15: =-('SA30'!N37) -> -3711774 | K15: =-('SA30'!O37) -> -3881204 | L15: =-('SA30'!P37) -> -4058369
A16: Transfers and Grants | B16: 1 | D16: 0 | E16: 0 | F16: 0 | G16: 0 | H16: 0 | I16: 0 | J16: =-('SA30'!N42+'SA30'!N43) -> 0 | K16: =-('SA30'!O42+'SA30'!O43) -> 0 | L16: =-('SA30'!P42+'SA30'!P43) -> 0
A17: NET CASH FROM/(USED) OPERATING ACTIVITIES | C17: =SUM(C6:C12)+SUM(C14:C16) -> 74621048 | D17: 52040568 | E17: 22740636 | F17: 76134988.55 | G17: 68657280.55 | H17: 68657280.55 | I17: 43657280.55 | J17: 56563103 | K17: 66545798 | L17: 63110477
A19: CASH FLOWS FROM INVESTING ACTIVITIES
A20: Receipts
A21: Proceeds on disposal of PPE | C21: 0 | D21: 0 | G21: 0 | J21: ='SA30'!N24+'SA30'!N25 -> 0 | K21: ='SA30'!O24+'SA30'!O25 -> 0 | L21: ='SA30'!P24+'SA30'!P25 -> 0
C22: 0 | D22: 0 | E22: 0 | G22: 0
A23: Decrease (increase) in non-current receivables | C23: -27042254 | D23: 0 | E23: 0 | G23: 0 | J23: ='SA30'!N30 -> 0 | K23: ='SA30'!O30 -> 0 | L23: ='SA30'!P30 -> 0
A24: Decrease (increase) in non-current investments | C24: 10961274 | D24: 0 | E24: 0 | F24: 0 | G24: 0 | H24: 0 | I24: 0 | J24: ='SA30'!N31 -> 0 | K24: ='SA30'!O31 -> 0 | L24: ='SA30'!P31 -> 0
A25: Payments
A26: Capital assets | C26: -40241088 | D26: -39477168 | E26: -44944631 | F26: -50437065 | G26: -55304783.54 | H26: -55304783.54 | I26: -55304783.54 | J26: =-('SA30'!N48) -> -61599351 | K26: =-('SA30'!O48) -> -55851050 | L26: =-('SA30'!P48) -> -60591560
A27: NET CASH FROM/(USED) INVESTING ACTIVITIES | C27: =+C21+C23+C24+C26 -> -56322068 | D27: =+D21+D23+D24+D26 -> -39477168 | E27: -44944631 | F27: -50437065 | G27: -55304783.54 | H27: -55304783.54 | I27: -55304783.54 | J27: -61599351 | K27: -55851050 | L27: -60591560
A29: CASH FLOWS FROM FINANCING ACTIVITIES
A30: Receipts
A31: Short term loans | J31: ='SA30'!N26 -> 0 | K31: ='SA30'!O26 -> 0 | L31: ='SA30'!P26 -> 0
A32: Borrowing long term/refinancing | J32: ='SA30'!N27 -> 0 | K32: ='SA30'!O27 -> 0 | L32: ='SA30'!P27 -> 0
A33: Increase (decrease) in consumer deposits | C33: 547816 | D33: 0 | E33: 0 | F33: 0 | G33: 0 | H33: 0 | I33: 0 | J33: ='SA30'!N28 -> -623969 | K33: ='SA30'!O28 -> -686366 | L33: ='SA30'!P28 -> -755003
A34: Payments
A35: Repayment of borrowing | C35: 0 | D35: 196513.46 | E35: -196522 | F35: 0 | G35: 0 | H35: 0 | I35: 0 | J35: =-('SA30'!N49) -> 208304 | K35: =-('SA30'!O49) -> 229135 | L35: =-('SA30'!P49) -> 252048
A36: NET CASH FROM/(USED) FINANCING ACTIVITIES | C36: =SUM(C31:C33)+C35 -> 547816 | D36: =SUM(D31:D33)+D35 -> 196513.46 | E36: -196522 | F36: 0 | G36: 0 | H36: 0 | I36: 0 | J36: -415665 | K36: -457231 | L36: -502955
A38: NET INCREASE/ (DECREASE) IN CASH HELD | C38: =C17+C27+C36 -> 18846796 | D38: =D17+D27+D36 -> 12759913.46 | E38: -22400517 | F38: 25697923.55 | G38: 13352497.01 | H38: 13352497.01 | I38: -11647502.99 | J38: -5451913 | K38: 10237517 | L38: 2015962
A39: Cash/cash equivalents at the year begin: | B39: 2 | C39: 36760000 | D39: 41577791.46 | E39: 41774239 | F39: 28985760 | G39: 19373721 | H39: 19373721 | I39: 19373721 | J39: ='SA30'!N54 -> 28813773 | K39: =J40 -> 23361860 | L39: =K40 -> 33599377
A40: Cash/cash equivalents at the year end: | B40: 2 | C40: =C38+C39 -> 55606796 | D40: =D38+D39 -> 54337704.92 | E40: =E38+E39 -> 19373722 | F40: =F38+F39 -> 54683683.55 | G40: 32726218.01 | H40: 32726218.01 | I40: 7726218.006 | J40: 23361860 | K40: 33599377 | L40: 35615339
A41: =head27a -> References
A42: 1. Local/District municipalities to include transfers from/to District/Local Municipalities
A43: 2. Cash equivalents includes investments with maturities of 3 months or less
A44: 3. The MTREF is populated directly from SA30.
A45: Total receipts | C45: =SUM(C6:C12)+SUM(C21:C23) -> 189195138 | D45: 179063267 | E45: 197272021 | F45: 200186587.6 | G45: 254996354.2 | H45: 254996354.2 | I45: 229996354.2 | J45: 245243522 | K45: 247785290 | L45: 265096254
A46: Total payments | C46: =SUM(C14:C16)+C26 -> -181857432 | D46: =SUM(D14:D16)+D26 -> -166499867 | E46: -219476016 | F46: -174488664 | G46: -241643857.2 | H46: -241643857.2 | I46: -241643857.2 | J46: -250279770 | K46: -237090542 | L46: -262577337
C47: =C45+C46 -> 7337706 | D47: =D45+D46 -> 12563400 | E47: -22203995 | F47: 25697923.55 | G47: 13352497.01 | H47: 13352497.01 | I47: -11647502.99 | J47: -5036248 | K47: 10694748 | L47: 2518917
A48: Borrowings & investments & c.deposits | C48: =C24+C32+C33 -> 11509090 | D48: =D24+D32+D33 -> 0 | E48: 0 | F48: 0 | G48: 0 | H48: 0 | I48: 0 | J48: -623969 | K48: -686366 | L48: -755003
A49: =A35 -> Repayment of borrowing | C49: =C35 -> 0 | D49: =D35 -> 196513.46 | E49: -196522 | F49: 0 | G49: 0 | H49: 0 | I49: =I35 -> 0 | J49: 208304 | K49: 229135 | L49: 252048
C50: =C47+C48+C49 -> 18846796 | D50: =D47+D48+D49 -> 12759913.46 | E50: -22400517 | F50: 25697923.55 | G50: 13352497.01 | H50: 13352497.01 | I50: -11647502.99 | J50: -5451913 | K50: 10237517 | L50: 2015962
C51: =C38-C50 -> 0 | D51: 0 | E51: 0 | F51: 0 | G51: 0 | H51: 0 | I51: 0 | J51: 0 | K51: 0 | L51: 0

Sheet A8-ResRecon
A1: =muni&" - "&Approve8 -> LIM353 Molemole - Table A8 Cash backed reserves/accumulated surplus reconciliation
A2: =desc -> Description | B2: =head27 -> Ref | C2: =head1b -> 2016/17 | D2: =head1A -> 2017/18 | E2: =Head1 -> 2018/19 | F2: =Head2 -> Current Year 2019/20 | J2: =Head3 -> 2020/21 Medium Term Revenue & Expenditure Framework
A3: R thousand | C3: =Head5 -> Audited Outcome | D3: =Head5 -> Audited Outcome | E3: =Head5 -> Audited Outcome | F3: =Head6 -> Original Budget | G3: =Head7 -> Adjusted Budget | H3: =Head8 -> Full Year Forecast | I3: =Head5b -> Pre-audit outcome | J3: =Head9 -> Budget Year 2020/21 | K3: =Head10 -> Budget Year +1 2021/22 | L3: =Head11 -> Budget Year +2 2022/23
A4: Cash and investments available
A5: =LEFT('A7-CFlow'!A40,37) -> Cash/cash equivalents at the year end | B5: 1 | C5: ='A7-CFlow'!C40 -> 55606796 | D5: ='A7-CFlow'!D40 -> 54337704.92 | E5: ='A7-CFlow'!E40 -> 19373722 | F5: ='A7-CFlow'!F40 -> 54683683.55 | G5: ='A7-CFlow'!G40 -> 32726218.01 | H5: ='A7-CFlow'!H40 -> 32726218.01 | I5: ='A7-CFlow'!I40 -> 7726218.006 | J5: ='A7-CFlow'!J40 -> 23361860 | K5: ='A7-CFlow'!K40 -> 33599377 | L5: ='A7-CFlow'!L40 -> 35615339
A6: Other current investments > 90 days | C6: ='A6-FinPos'!C6+'A6-FinPos'!C7-'A6-FinPos'!C29-'A8-ResRecon'!C5 -> 306 | D6: ='A6-FinPos'!D6+'A6-FinPos'!D7-'A6-FinPos'!D29-'A8-ResRecon'!D5 -> -12759913.46 | E6: ='A6-FinPos'!E6+'A6-FinPos'!E7-'A6-FinPos'!E29-'A8-ResRecon'!E5 -> -10196.65 | F6: ='A6-FinPos'!F6+'A6-FinPos'!F7-'A6-FinPos'!F29-'A8-ResRecon'!F5 -> -30735435.55 | G6: ='A6-FinPos'!G6+'A6-FinPos'!G7-'A6-FinPos'!G29-'A8-ResRecon'!G5 -> -3912445.006 | H6: ='A6-FinPos'!H6+'A6-FinPos'!H7-'A6-FinPos'!H29-'A8-ResRecon'!H5 -> -3912445.006 | I6: ='A6-FinPos'!I6+'A6-FinPos'!I7-'A6-FinPos'!I29-'A8-ResRecon'!I5 -> 71607387.58 | J6: ='A6-FinPos'!J6+'A6-FinPos'!J7-'A6-FinPos'!J29-'A8-ResRecon'!J5 -> -234 | K6: ='A6-FinPos'!K6+'A6-FinPos'!K7-'A6-FinPos'!K29-'A8-ResRecon'!K5 -> 0 | L6: ='A6-FinPos'!L6+'A6-FinPos'!L7-'A6-FinPos'!L29-'A8-ResRecon'!L5 -> 0
A7: ='A6-FinPos'!A14&" - "&'A6-FinPos'!A16 -> Non current assets - Investments | B7: 1 | C7: ='A6-FinPos'!C16 -> 0 | D7: ='A6-FinPos'!D16 -> 0 | E7: ='A6-FinPos'!E16 -> 0 | F7: ='A6-FinPos'!F16 -> 0 | G7: ='A6-FinPos'!G16 -> 0 | H7: ='A6-FinPos'!H16 -> 0 | I7: ='A6-FinPos'!I16 -> 0 | J7: ='A6-FinPos'!J16 -> 0 | K7: ='A6-FinPos'!K16 -> 0 | L7: ='A6-FinPos'!L16 -> 0
A8: Cash and investments available: | C8: =SUM(C5:C7) -> 55607102 | D8: =SUM(D5:D7) -> 41577791.46 | E8: 19363525.35 | F8: 23948248 | G8: 28813773 | H8: 28813773 | I8: 79333605.59 | J8: 23361626 | K8: 33599377 | L8: 35615339
A10: Application of cash and investments
A11: ='SA3'!A37 -> Unspent conditional transfers | C11: ='SA3'!C37 -> 0 | D11: ='SA3'!D37 -> 4056866.07 | E11: ='SA3'!E37 -> 2125661.58 | F11: ='SA3'!F37 -> 0 | G11: ='SA3'!G37 -> 0 | H11: ='SA3'!H37 -> 0 | I11: ='SA3'!I37 -> 7192410.18 | J11: ='SA3'!J37 -> 0 | K11: ='SA3'!K37 -> 0 | L11: ='SA3'!L37 -> 0
A12: Unspent borrowing | C12: ='SA17'!C67 -> 0 | D12: ='SA17'!D67 -> 0 | E12: ='SA17'!E67 -> 0 | F12: ='SA17'!F67 -> 0 | G12: ='SA17'!G67 -> 0 | H12: ='SA17'!H67 -> 0 | J12: ='SA17'!I67 -> 0 | K12: ='SA17'!J67 -> 0 | L12: ='SA17'!K67 -> 0
A13: Statutory requirements | B13: 2
A14: Other working capital requirements | B14: 3 | C14: =-C32 -> 36468215 | D14: =-D32 -> -6225471.32 | E14: -31724202.02 | F14: =-F32 -> 24240757 | G14: -24784204 | H14: -24784204 | I14: -32293427.88 | J14: -18633786 | K14: -23934963 | L14: -37401963
A15: Other provisions
A16: Long term investments committed | B16: 4 | C16: =C42 -> 0 | D16: =D42 -> 0 | E16: 0 | F16: 0 | G16: 0 | H16: 0 | I16: 0 | J16: 0 | K16: 0 | L16: 0
A17: Reserves to be backed by cash/investments | B17: 5 | C17: =SUM(C44:C48) -> 0 | D17: 0 | E17: 0 | F17: 0 | G17: 0 | H17: 0 | I17: 0 | J17: 0 | K17: 0 | L17: 0
A18: ="Total "&A10&":" -> Total Application of cash and investments: | C18: =SUM(C11:C17) -> 36468215 | D18: =SUM(D11:D17) -> -2168605.25 | E18: -29598540.44 | F18: 24240757 | G18: -24784204 | H18: -24784204 | I18: -25101017.7 | J18: -18633786 | K18: -23934963 | L18: -37401963
A19: Surplus(shortfall) | C19: =C8-C18 -> 19138887 | D19: =D8-D18 -> 43746396.71 | E19: 48962065.79 | F19: -292509 | G19: 53597977 | H19: 53597977 | I19: 104434623.3 | J19: 41995412 | K19: 57534340 | L19: 73017302
A20: =head27a -> References
A21: 1. Must reconcile with Budgeted Cash Flows
A22: 2. For example: VAT, taxation
A23: 3. Council approval for policy required - include sufficient working capital (e.g. allowing for a % of current debtors > 90 days as uncollectable)
A24: 4. For example: sinking fund requirements for borrowing
A25: 5. Council approval required for each reserve created and basis of cash backing of reserves
A28: Other working capital requirements
A29: Debtors | C29: =IF(ISERROR(ROUND(C35*C36,-3)),0,(ROUND(C35*C36,-3))) -> 2287000 | D29: =IF(ISERROR(ROUND(D35*D36,-3)),0,(ROUND(D35*D36,-3))) -> 35757000 | E29: 70095000 | F29: 13303000 | G29: 63549000 | H29: 63549000 | I29: 92908000 | J29: 59652000 | K29: 69055000 | L29: 87034000
A31: Creditors due | C31: ='SA3'!C35+'SA3'!C36 -> 38755215 | D31: ='SA3'!D35+'SA3'!D36 -> 29531528.68 | E31: ='SA3'!E35+'SA3'!E36 -> 38370797.98 | F31: ='SA3'!F35+'SA3'!F36 -> 37543757 | G31: ='SA3'!G35+'SA3'!G36 -> 38764796 | H31: ='SA3'!H35+'SA3'!H36 -> 38764796 | I31: ='SA3'!I35+'SA3'!I36 -> 60614572.12 | J31: ='SA3'!J35+'SA3'!J36 -> 41018214 | K31: ='SA3'!K35+'SA3'!K36 -> 45120037 | L31: ='SA3'!L35+'SA3'!L36 -> 49632037
A32: Total | C32: =C29-C31 -> -36468215 | D32: =D29-D31 -> 6225471.32 | E32: 31724202.02 | F32: -24240757 | G32: 24784204 | H32: 24784204 | I32: 32293427.88 | J32: 18633786 | K32: 23934963 | L32: 37401963
A34: Debtors collection assumptions
A35: Balance outstanding - debtors | C35: ='A6-FinPos'!C8+'A6-FinPos'!C9+'A6-FinPos'!C15 -> 3389801 | D35: ='A6-FinPos'!D8+'A6-FinPos'!D9+'A6-FinPos'!D15 -> 74376909.59 | E35: ='A6-FinPos'!E8+'A6-FinPos'!E9+'A6-FinPos'!E15 -> 89354492.89 | F35: ='A6-FinPos'!F8+'A6-FinPos'!F9+'A6-FinPos'!F15 -> 32212411 | G35: ='A6-FinPos'!G8+'A6-FinPos'!G9+'A6-FinPos'!G15 -> 94187533 | H35: ='A6-FinPos'!H8+'A6-FinPos'!H9+'A6-FinPos'!H15 -> 94187533 | I35: ='A6-FinPos'!I8+'A6-FinPos'!I9+'A6-FinPos'!I15 -> 105248626.5 | J35: ='A6-FinPos'!J8+'A6-FinPos'!J9+'A6-FinPos'!J15 -> 122910679 | K35: ='A6-FinPos'!K8+'A6-FinPos'!K9+'A6-FinPos'!K15 -> 142962987 | L35: ='A6-FinPos'!L8+'A6-FinPos'!L9+'A6-FinPos'!L15 -> 166198775
A36: Estimate of debtors collection rate | C36: =IF(ISERROR('SA10'!D10),0,('SA10'!D10)) -> 0.6746803947 | D36: =IF(ISERROR('SA10'!E10),0,('SA10'!E10)) -> 0.4807505761 | E36: =IF(ISERROR('SA10'!F10),0,('SA10'!F10)) -> 0.7844593725 | F36: =IF(ISERROR('SA10'!G10),0,('SA10'!G10)) -> 0.4129682497 | G36: =IF(ISERROR('SA10'!H10),0,('SA10'!H10)) -> 0.674702545 | H36: =IF(ISERROR('SA10'!I10),0,('SA10'!I10)) -> 0.674702545 | I36: =IF(ISERROR('SA10'!J10),0,('SA10'!J10)) -> 0.8827519429 | J36: =IF(ISERROR('SA10'!K10),0,('SA10'!K10)) -> 0.4853301159 | K36: =IF(ISERROR('SA10'!L10),0,('SA10'!L10)) -> 0.4830276824 | L36: =IF(ISERROR('SA10'!M10),0,('SA10'!M10)) -> 0.523675205
K39: `
A40: =A16 -> Long term investments committed
A41: Balance (Insert description; eg sinking fund)
C42: =SUM(C41:C41) -> 0 | D42: 0 | E42: 0 | F42: 0 | G42: 0 | H42: 0 | I42: 0 | J42: 0 | K42: 0 | L42: 0
A43: =A17 -> Reserves to be backed by cash/investments
A44: ='SA3'!A65 -> Housing Development Fund | C44: ='SA3'!C65 -> 0 | D44: ='SA3'!D65 -> 0 | E44: ='SA3'!E65 -> 0 | F44: ='SA3'!F65 -> 0 | G44: ='SA3'!G65 -> 0 | H44: ='SA3'!H65 -> 0 | I44: ='SA3'!I65 -> 0 | J44: ='SA3'!J65 -> 0 | K44: ='SA3'!K65 -> 0 | L44: ='SA3'!L65 -> 0
A45: ='SA3'!A66 -> Capital replacement | C45: ='SA3'!C66 -> 0 | D45: ='SA3'!D66 -> 0 | E45: ='SA3'!E66 -> 0 | F45: ='SA3'!F66 -> 0 | G45: ='SA3'!G66 -> 0 | H45: ='SA3'!H66 -> 0 | I45: ='SA3'!I66 -> 0 | J45: ='SA3'!J66 -> 0 | K45: ='SA3'!K66 -> 0 | L45: ='SA3'!L66 -> 0
A46: ='SA3'!A67 -> Self-insurance | C46: ='SA3'!C67 -> 0 | D46: ='SA3'!D67 -> 0 | E46: ='SA3'!E67 -> 0 | F46: ='SA3'!F67 -> 0 | G46: ='SA3'!G67 -> 0 | H46: ='SA3'!H67 -> 0 | I46: ='SA3'!I67 -> 0 | J46: ='SA3'!J67 -> 0 | K46: ='SA3'!K67 -> 0 | L46: ='SA3'!L67 -> 0
A47: ='SA3'!A68 -> Other reserves | C47: ='SA3'!C68 -> 0 | D47: ='SA3'!D68 -> 0 | E47: ='SA3'!E68 -> 0 | F47: ='SA3'!F68 -> 0 | G47: ='SA3'!G68 -> 0 | H47: ='SA3'!H68 -> 0 | I47: ='SA3'!I68 -> 0 | J47: ='SA3'!J68 -> 0 | K47: ='SA3'!K68 -> 0 | L47: ='SA3'!L68 -> 0
A48: ='SA3'!A69 -> Revaluation | C48: 0 | D48: 0 | E48: 0 | F48: ='SA3'!F69 -> 0 | G48: 0 | H48: 0 | I48: 0 | J48: 0 | K48: 0 | L48: 0
C49: =SUM(C44:C48) -> 0 | D49: 0 | E49: 0 | F49: 0 | G49: 0 | H49: 0 | I49: 0 | J49: 0 | K49: 0 | L49: 0

Sheet A9-Asset
A1: =muni&" - "&Approve9 -> LIM353 Molemole - Table A9 Asset Management
A2: =desc -> Description | B2: =head27 -> Ref | C2: =head1b -> 2016/17 | D2: =head1A -> 2017/18 | E2: =Head1 -> 2018/19 | F2: =Head2 -> Current Year 2019/20 | I2: =Head3 -> 2020/21 Medium Term Revenue & Expenditure Framework
A3: R thousand | C3: =Head5 -> Audited Outcome | D3: =Head5 -> Audited Outcome | E3: =Head5 -> Audited Outcome | F3: =Head6 -> Original Budget | G3: =Head7 -> Adjusted Budget | H3: =Head8 -> Full Year Forecast | I3: =Head9 -> Budget Year 2020/21 | J3: =Head10 -> Budget Year +1 2021/22 | K3: =Head11 -> Budget Year +2 2022/23
A4: CAPITAL EXPENDITURE
A5: Total New Assets | B5: 1 | C5: =C15+C18+C19+C22+C25+C26+SUM(C29:C35) -> 40350587 | D5: =D15+D18+D19+D22+D25+D26+SUM(D29:D35) -> 20925625.8 | E5: 33940773.47 | F5: 47413450 | G5: 48548626 | H5: 48548626 | I5: 55099351 | J5: 41592020 | K5: 53491560
A6: Roads Infrastructure | C6: =SA34a!C7 -> 33339537 | D6: =SA34a!D7 -> 11434263.74 | E6: =SA34a!E7 -> 27429389.41 | F6: =SA34a!F7 -> 35613450 | G6: =SA34a!G7 -> 41503450 | H6: =SA34a!H7 -> 41503450 | I6: =SA34a!I7 -> 34446351 | J6: =SA34a!J7 -> 29653020 | K6: =SA34a!K7 -> 39802400
A7: Storm water Infrastructure | C7: =SA34a!C12 -> 0 | D7: =SA34a!D12 -> 0 | E7: =SA34a!E12 -> 0 | F7: =SA34a!F12 -> 0 | G7: =SA34a!G12 -> 0 | H7: =SA34a!H12 -> 0 | I7: =SA34a!I12 -> 0 | J7: =SA34a!J12 -> 0 | K7: =SA34a!K12 -> 0
A8: Electrical Infrastructure | C8: =SA34a!C16 -> 1104363 | D8: =SA34a!D16 -> 408565 | E8: =SA34a!E16 -> 0 | F8: =SA34a!F16 -> 3000000 | G8: =SA34a!G16 -> 3000000 | H8: =SA34a!H16 -> 3000000 | I8: =SA34a!I16 -> 18200000 | J8: =SA34a!J16 -> 7800000 | K8: =SA34a!K16 -> 10500000
A9: Water Supply Infrastructure | C9: =SA34a!C26 -> 0 | D9: =SA34a!D26 -> 0 | E9: =SA34a!E26 -> 0 | F9: =SA34a!F26 -> 0 | G9: =SA34a!G26 -> 0 | H9: =SA34a!H26 -> 0 | I9: =SA34a!I26 -> 0 | J9: =SA34a!J26 -> 0 | K9: =SA34a!K26 -> 0
A10: Sanitation Infrastructure | C10: =SA34a!C37 -> 0 | D10: =SA34a!D37 -> 0 | E10: =SA34a!E37 -> 0 | F10: =SA34a!F37 -> 0 | G10: =SA34a!G37 -> 0 | H10: =SA34a!H37 -> 0 | I10: =SA34a!I37 -> 0 | J10: =SA34a!J37 -> 0 | K10: =SA34a!K37 -> 0
A11: Solid Waste Infrastructure | C11: =SA34a!C44 -> 0 | D11: =SA34a!D44 -> 0 | E11: =SA34a!E44 -> 0 | F11: =SA34a!F44 -> 0 | G11: =SA34a!G44 -> 0 | H11: =SA34a!H44 -> 0 | I11: =SA34a!I44 -> 0 | J11: =SA34a!J44 -> 0 | K11: =SA34a!K44 -> 0
A12: Rail Infrastructure | C12: =SA34a!C52 -> 0 | D12: =SA34a!D52 -> 0 | E12: =SA34a!E52 -> 0 | F12: =SA34a!F52 -> 0 | G12: =SA34a!G52 -> 0 | H12: =SA34a!H52 -> 0 | I12: =SA34a!I52 -> 0 | J12: =SA34a!J52 -> 0 | K12: =SA34a!K52 -> 0
A13: Coastal Infrastructure | C13: =SA34a!C62 -> 0 | D13: =SA34a!D62 -> 0 | E13: =SA34a!E62 -> 0 | F13: =SA34a!F62 -> 0 | G13: =SA34a!G62 -> 0 | H13: =SA34a!H62 -> 0 | I13: =SA34a!I62 -> 0 | J13: =SA34a!J62 -> 0 | K13: =SA34a!K62 -> 0
A14: Information and Communication Infrastructure | C14: =SA34a!C68 -> 0 | D14: =SA34a!D68 -> 0 | E14: =SA34a!E68 -> 0 | F14: =SA34a!F68 -> 0 | G14: =SA34a!G68 -> 0 | H14: =SA34a!H68 -> 0 | I14: =SA34a!I68 -> 0 | J14: =SA34a!J68 -> 0 | K14: =SA34a!K68 -> 0
A15: Infrastructure | C15: =SUM(C6:C14) -> 34443900 | D15: =SUM(D6:D14) -> 11842828.74 | E15: 27429389.41 | F15: 38613450 | G15: 44503450 | H15: 44503450 | I15: 52646351 | J15: 37453020 | K15: 50302400
A16: Community Facilities | C16: =SA34a!C75 -> 5906687 | D16: =SA34a!D75 -> 207904.38 | E16: =SA34a!E75 -> 1208203.68 | F16: =SA34a!F75 -> 0 | G16: =SA34a!G75 -> 0 | H16: =SA34a!H75 -> 0 | I16: =SA34a!I75 -> 0 | J16: =SA34a!J75 -> 0 | K16: =SA34a!K75 -> 0
A17: Sport and Recreation Facilities | C17: =SA34a!C98 -> 0 | D17: =SA34a!D98 -> 6407025.5 | E17: =SA34a!E98 -> 2374152.36 | F17: =SA34a!F98 -> 0 | G17: =SA34a!G98 -> 0 | H17: =SA34a!H98 -> 0 | I17: =SA34a!I98 -> 0 | J17: =SA34a!J98 -> 0 | K17: =SA34a!K98 -> 0
A18: Community Assets | C18: =SUM(C16:C17) -> 5906687 | D18: =SUM(D16:D17) -> 6614929.88 | E18: 3582356.04 | F18: 0 | G18: 0 | H18: 0 | I18: 0 | J18: 0 | K18: 0
A19: Heritage Assets | C19: =SA34a!C103 -> 0 | D19: =SA34a!D103 -> 0 | E19: =SA34a!E103 -> 0 | F19: =SA34a!F103 -> 0 | G19: =SA34a!G103 -> 0 | H19: =SA34a!H103 -> 0 | I19: =SA34a!I103 -> 0 | J19: =SA34a!J103 -> 0 | K19: =SA34a!K103 -> 0
A20: Revenue Generating | C20: =SA34a!C111 -> 0 | D20: =SA34a!D111 -> 0 | E20: =SA34a!E111 -> 0 | F20: =SA34a!F111 -> 0 | G20: =SA34a!G111 -> 0 | H20: =SA34a!H111 -> 0 | I20: =SA34a!I111 -> 0 | J20: =SA34a!J111 -> 0 | K20: =SA34a!K111 -> 0
A21: Non-revenue Generating | C21: =SA34a!C114 -> 0 | D21: =SA34a!D114 -> 0 | E21: =SA34a!E114 -> 0 | F21: =SA34a!F114 -> 0 | G21: =SA34a!G114 -> 0 | H21: =SA34a!H114 -> 0 | I21: =SA34a!I114 -> 0 | J21: =SA34a!J114 -> 0 | K21: =SA34a!K114 -> 0
A22: Investment properties | C22: =SUM(C20:C21) -> 0 | D22: =SUM(D20:D21) -> 0 | E22: 0 | F22: 0 | G22: 0 | H22: 0 | I22: 0 | J22: 0 | K22: 0
A23: Operational Buildings | C23: =SA34a!C119 -> 0 | D23: =SA34a!D119 -> 0 | E23: =SA34a!E119 -> 622910.5 | F23: =SA34a!F119 -> 0 | G23: =SA34a!G119 -> 0 | H23: =SA34a!H119 -> 0 | I23: =SA34a!I119 -> 0 | J23: =SA34a!J119 -> 0 | K23: =SA34a!K119 -> 1500000
A24: Housing | C24: =SA34a!C131 -> 0 | D24: =SA34a!D131 -> 0 | E24: =SA34a!E131 -> 0 | F24: =SA34a!F131 -> 0 | G24: =SA34a!G131 -> 0 | H24: =SA34a!H131 -> 0 | I24: =SA34a!I131 -> 0 | J24: =SA34a!J131 -> 0 | K24: =SA34a!K131 -> 0
A25: Other Assets | C25: =SUM(C23:C24) -> 0 | D25: =SUM(D23:D24) -> 0 | E25: 622910.5 | F25: 0 | G25: 0 | H25: 0 | I25: 0 | J25: 0 | K25: 1500000
A26: Biological or Cultivated Assets | C26: =SA34a!C136 -> 0 | D26: =SA34a!D136 -> 0 | E26: =SA34a!E136 -> 0 | F26: =SA34a!F136 -> 0 | G26: =SA34a!G136 -> 0 | H26: =SA34a!H136 -> 0 | I26: =SA34a!I136 -> 0 | J26: =SA34a!J136 -> 0 | K26: =SA34a!K136 -> 0
A27: Servitudes | C27: =SA34a!C140 -> 0 | D27: =SA34a!D140 -> 0 | E27: =SA34a!E140 -> 0 | F27: =SA34a!F140 -> 0 | G27: =SA34a!G140 -> 0 | H27: =SA34a!H140 -> 0 | I27: =SA34a!I140 -> 0 | J27: =SA34a!J140 -> 0 | K27: =SA34a!K140 -> 0
A28: Licences and Rights | C28: =SA34a!C141 -> 0 | D28: =SA34a!D141 -> 749055 | E28: =SA34a!E141 -> 531721.74 | F28: =SA34a!F141 -> 1150000 | G28: =SA34a!G141 -> 840000 | H28: =SA34a!H141 -> 840000 | I28: =SA34a!I141 -> 1350000 | J28: =SA34a!J141 -> 900000 | K28: =SA34a!K141 -> 0
A29: Intangible Assets | C29: =SUM(C27:C28) -> 0 | D29: =SUM(D27:D28) -> 749055 | E29: 531721.74 | F29: 1150000 | G29: 840000 | H29: 840000 | I29: 1350000 | J29: 900000 | K29: 0
A30: Computer Equipment | C30: =SA34a!C149 -> 0 | D30: =SA34a!D149 -> 288070.51 | E30: =SA34a!E149 -> 129726.5 | F30: =SA34a!F149 -> 1100000 | G30: =SA34a!G149 -> 1100000 | H30: =SA34a!H149 -> 1100000 | I30: =SA34a!I149 -> 600000 | J30: =SA34a!J149 -> 636000 | K30: =SA34a!K149 -> 674160
A31: Furniture and Office Equipment | C31: =SA34a!C152 -> 0 | D31: =SA34a!D152 -> 416672.23 | E31: =SA34a!E152 -> 434181.27 | F31: =SA34a!F152 -> 300000 | G31: =SA34a!G152 -> 278720 | H31: =SA34a!H152 -> 278720 | I31: =SA34a!I152 -> 353000 | J31: =SA34a!J152 -> 53000 | K31: =SA34a!K152 -> 315000
A32: Machinery and Equipment | C32: =SA34a!C155 -> 0 | D32: =SA34a!D155 -> 0 | E32: =SA34a!E155 -> 580118.45 | F32: =SA34a!F155 -> 3150000 | G32: =SA34a!G155 -> 150000 | H32: =SA34a!H155 -> 150000 | I32: =SA34a!I155 -> 150000 | J32: =SA34a!J155 -> 550000 | K32: =SA34a!K155 -> 0
A33: Transport Assets | C33: =SA34a!C158 -> 0 | D33: =SA34a!D158 -> 1014069.44 | E33: =SA34a!E158 -> 630369.56 | F33: =SA34a!F158 -> 3100000 | G33: =SA34a!G158 -> 1676456 | H33: =SA34a!H158 -> 1676456 | I33: =SA34a!I158 -> 0 | J33: =SA34a!J158 -> 2000000 | K33: =SA34a!K158 -> 700000
A34: Land | C34: =SA34a!C161 -> 0 | D34: =SA34a!D161 -> 0 | E34: =SA34a!E161 -> 0 | F34: =SA34a!F161 -> 0 | G34: =SA34a!G161 -> 0 | H34: =SA34a!H161 -> 0 | I34: =SA34a!I161 -> 0 | J34: =SA34a!J161 -> 0 | K34: =SA34a!K161 -> 0
A35: Zoo's, Marine and Non-biological Animals | C35: =SA34a!C164 -> 0 | D35: =SA34a!D164 -> 0 | E35: =SA34a!E164 -> 0 | F35: =SA34a!F164 -> 0 | G35: =SA34a!G164 -> 0 | H35: =SA34a!H164 -> 0 | I35: =SA34a!I164 -> 0 | J35: =SA34a!J164 -> 0 | K35: =SA34a!K164 -> 0
A37: Total Renewal of Existing Assets | B37: 2 | C37: =C47+C50+C51+C54+C57+C58+SUM(C61:C67) -> 0 | D37: =D47+D50+D51+D54+D57+D58+SUM(D61:D67) -> 12445353.87 | E37: 11500370.73 | F37: 7927821 | G37: 5756159 | H37: 5756159 | I37: 6200000 | J37: 13759030 | K37: 6500000
A38: Roads Infrastructure | C38: =SA34b!C7 -> 0 | D38: =SA34b!D7 -> 537637.93 | E38: =SA34b!E7 -> 6834790.64 | F38: =SA34b!F7 -> 0 | G38: =SA34b!G7 -> 0 | H38: =SA34b!H7 -> 0 | I38: =SA34b!I7 -> 0 | J38: =SA34b!J7 -> 12259030 | K38: =SA34b!K7 -> 6000000
A39: Storm water Infrastructure | C39: =SA34b!C12 -> 0 | D39: =SA34b!D12 -> 0 | E39: =SA34b!E12 -> 0 | F39: =SA34b!F12 -> 0 | G39: =SA34b!G12 -> 0 | H39: =SA34b!H12 -> 0 | I39: =SA34b!I12 -> 0 | J39: =SA34b!J12 -> 0 | K39: =SA34b!K12 -> 0
A40: Electrical Infrastructure | C40: =SA34b!C16 -> 0 | D40: =SA34b!D16 -> 2290140.75 | E40: =SA34b!E16 -> 282388.92 | F40: =SA34b!F16 -> 2000000 | G40: =SA34b!G16 -> 1212338 | H40: =SA34b!H16 -> 1212338 | I40: =SA34b!I16 -> 1200000 | J40: =SA34b!J16 -> 1000000 | K40: =SA34b!K16 -> 0
A41: Water Supply Infrastructure | C41: =SA34b!C26 -> 0 | D41: =SA34b!D26 -> 0 | E41: =SA34b!E26 -> 0 | F41: =SA34b!F26 -> 0 | G41: =SA34b!G26 -> 0 | H41: =SA34b!H26 -> 0 | I41: =SA34b!I26 -> 0 | J41: =SA34b!J26 -> 0 | K41: =SA34b!K26 -> 0
A42: Sanitation Infrastructure | C42: =SA34b!C37 -> 0 | D42: =SA34b!D37 -> 0 | E42: =SA34b!E37 -> 0 | F42: =SA34b!F37 -> 0 | G42: =SA34b!G37 -> 0 | H42: =SA34b!H37 -> 0 | I42: =SA34b!I37 -> 0 | J42: =SA34b!J37 -> 0 | K42: =SA34b!K37 -> 0
A43: Solid Waste Infrastructure | C43: =SA34b!C44 -> 0 | D43: =SA34b!D44 -> 0 | E43: =SA34b!E44 -> 0 | F43: =SA34b!F44 -> 0 | G43: =SA34b!G44 -> 0 | H43: =SA34b!H44 -> 0 | I43: =SA34b!I44 -> 0 | J43: =SA34b!J44 -> 0 | K43: =SA34b!K44 -> 0
A44: Rail Infrastructure | C44: =SA34b!C52 -> 0 | D44: =SA34b!D52 -> 0 | E44: =SA34b!E52 -> 1032750 | F44: =SA34b!F52 -> 0 | G44: =SA34b!G52 -> 0 | H44: =SA34b!H52 -> 0 | I44: =SA34b!I52 -> 0 | J44: =SA34b!J52 -> 0 | K44: =SA34b!K52 -> 0
A45: Coastal Infrastructure | C45: =SA34b!C62 -> 0 | D45: =SA34b!D62 -> 0 | E45: =SA34b!E62 -> 0 | F45: =SA34b!F62 -> 0 | G45: =SA34b!G62 -> 0 | H45: =SA34b!H62 -> 0 | I45: =SA34b!I62 -> 0 | J45: =SA34b!J62 -> 0 | K45: =SA34b!K62 -> 0
A46: Information and Communication Infrastructure | C46: =SA34b!C68 -> 0 | D46: =SA34b!D68 -> 0 | E46: =SA34b!E68 -> 0 | F46: =SA34b!F68 -> 0 | G46: =SA34b!G68 -> 0 | H46: =SA34b!H68 -> 0 | I46: =SA34b!I68 -> 0 | J46: =SA34b!J68 -> 0 | K46: =SA34b!K68 -> 0
A47: Infrastructure | C47: =SUM(C38:C46) -> 0 | D47: =SUM(D38:D46) -> 2827778.68 | E47: 8149929.56 | F47: 2000000 | G47: 1212338 | H47: 1212338 | I47: 1200000 | J47: 13259030 | K47: 6000000
A48: Community Facilities | C48: =SA34b!C75 -> 0 | D48: =SA34b!D75 -> 0 | E48: =SA34b!E75 -> 0 | F48: =SA34b!F75 -> 0 | G48: =SA34b!G75 -> 0 | H48: =SA34b!H75 -> 0 | I48: =SA34b!I75 -> 0 | J48: =SA34b!J75 -> 0 | K48: =SA34b!K75 -> 0
A49: Sport and Recreation Facilities | C49: =SA34b!C98 -> 0 | D49: =SA34b!D98 -> 6673556.82 | E49: =SA34b!E98 -> 3350441.17 | F49: =SA34b!F98 -> 3800000 | G49: =SA34b!G98 -> 2416000 | H49: =SA34b!H98 -> 2416000 | I49: =SA34b!I98 -> 3000000 | J49: =SA34b!J98 -> 0 | K49: =SA34b!K98 -> 0
A50: Community Assets | C50: =SUM(C48:C49) -> 0 | D50: =SUM(D48:D49) -> 6673556.82 | E50: 3350441.17 | F50: 3800000 | G50: 2416000 | H50: 2416000 | I50: 3000000 | J50: 0 | K50: 0
A51: Heritage Assets | C51: =SA34b!C103 -> 0 | D51: =SA34b!D103 -> 0 | E51: =SA34b!E103 -> 0 | F51: =SA34b!F103 -> 0 | G51: =SA34b!G103 -> 0 | H51: =SA34b!H103 -> 0 | I51: =SA34b!I103 -> 0 | J51: =SA34b!J103 -> 0 | K51: =SA34b!K103 -> 0
A52: Revenue Generating | C52: =SA34b!C111 -> 0 | D52: =SA34b!D111 -> 0 | E52: =SA34b!E111 -> 0 | F52: =SA34b!F111 -> 0 | G52: =SA34b!G111 -> 0 | H52: =SA34b!H111 -> 0 | I52: =SA34b!I111 -> 0 | J52: =SA34b!J111 -> 0 | K52: =SA34b!K111 -> 0
A53: Non-revenue Generating | C53: =SA34b!C114 -> 0 | D53: =SA34b!D114 -> 0 | E53: =SA34b!E114 -> 0 | F53: =SA34b!F114 -> 0 | G53: =SA34b!G114 -> 0 | H53: =SA34b!H114 -> 0 | I53: =SA34b!I114 -> 0 | J53: =SA34b!J114 -> 0 | K53: =SA34b!K114 -> 0
A54: Investment properties | C54: =SUM(C52:C53) -> 0 | D54: =SUM(D52:D53) -> 0 | E54: 0 | F54: 0 | G54: 0 | H54: 0 | I54: 0 | J54: 0 | K54: 0
A55: Operational Buildings | C55: =SA34b!C119 -> 0 | D55: =SA34b!D119 -> 0 | E55: =SA34b!E119 -> 0 | F55: =SA34b!F119 -> 2127821 | G55: =SA34b!G119 -> 2127821 | H55: =SA34b!H119 -> 2127821 | I55: =SA34b!I119 -> 0 | J55: =SA34b!J119 -> 0 | K55: =SA34b!K119 -> 0
A56: Housing | C56: =SA34b!C131 -> 0 | D56: =SA34b!D131 -> 0 | E56: =SA34b!E131 -> 0 | F56: =SA34b!F131 -> 0 | G56: =SA34b!G131 -> 0 | H56: =SA34b!H131 -> 0 | I56: =SA34b!I131 -> 0 | J56: =SA34b!J131 -> 0 | K56: =SA34b!K131 -> 0
A57: Other Assets | C57: =SUM(C55:C56) -> 0 | D57: =SUM(D55:D56) -> 0 | E57: 0 | F57: 2127821 | G57: 2127821 | H57: 2127821 | I57: 0 | J57: 0 | K57: 0
A58: Biological or Cultivated Assets | C58: =SA34b!C136 -> 0 | D58: =SA34b!D136 -> 0 | E58: =SA34b!E136 -> 0 | F58: =SA34b!F136 -> 0 | G58: =SA34b!G136 -> 0 | H58: =SA34b!H136 -> 0 | I58: =SA34b!I136 -> 0 | J58: =SA34b!J136 -> 0 | K58: =SA34b!K136 -> 0
A59: Servitudes | C59: =SA34b!C140 -> 0 | D59: =SA34b!D140 -> 0 | E59: =SA34b!E140 -> 0 | F59: =SA34b!F140 -> 0 | G59: =SA34b!G140 -> 0 | H59: =SA34b!H140 -> 0 | I59: =SA34b!I140 -> 0 | J59: =SA34b!J140 -> 0 | K59: =SA34b!K140 -> 0
A60: Licences and Rights | C60: =SA34b!C141 -> 0 | D60: =SA34b!D141 -> 1086842.11 | E60: =SA34b!E141 -> 0 | F60: =SA34b!F141 -> 0 | G60: =SA34b!G141 -> 0 | H60: =SA34b!H141 -> 0 | I60: =SA34b!I141 -> 0 | J60: =SA34b!J141 -> 0 | K60: =SA34b!K141 -> 0
A61: Intangible Assets | C61: =SUM(C59:C60) -> 0 | D61: =SUM(D59:D60) -> 1086842.11 | E61: 0 | F61: 0 | G61: 0 | H61: 0 | I61: 0 | J61: 0 | K61: 0
A62: Computer Equipment | C62: =SA34b!C149 -> 0 | D62: =SA34b!D149 -> 796698 | E62: =SA34b!E149 -> 0 | F62: =SA34b!F149 -> 0 | G62: =SA34b!G149 -> 0 | H62: =SA34b!H149 -> 0 | I62: =SA34b!I149 -> 2000000 | J62: =SA34b!J149 -> 500000 | K62: =SA34b!K149 -> 500000
A63: Furniture and Office Equipment | C63: =SA34b!C152 -> 0 | D63: =SA34b!D152 -> 0 | E63: =SA34b!E152 -> 0 | F63: =SA34b!F152 -> 0 | G63: =SA34b!G152 -> 0 | H63: =SA34b!H152 -> 0 | I63: =SA34b!I152 -> 0 | J63: =SA34b!J152 -> 0 | K63: =SA34b!K152 -> 0
A64: Machinery and Equipment | C64: =SA34b!C155 -> 0 | D64: =SA34b!D155 -> 1060478.26 | E64: =SA34b!E155 -> 0 | F64: =SA34b!F155 -> 0 | G64: =SA34b!G155 -> 0 | H64: =SA34b!H155 -> 0 | I64: =SA34b!I155 -> 0 | J64: =SA34b!J155 -> 0 | K64: =SA34b!K155 -> 0
A65: Transport Assets | C65: =SA34b!C158 -> 0 | D65: =SA34b!D158 -> 0 | E65: =SA34b!E158 -> 0 | F65: =SA34b!F158 -> 0 | G65: =SA34b!G158 -> 0 | H65: =SA34b!H158 -> 0 | I65: =SA34b!I158 -> 0 | J65: =SA34b!J158 -> 0 | K65: =SA34b!K158 -> 0
A66: Land | C66: =SA34b!C161 -> 0 | D66: =SA34b!D161 -> 0 | E66: =SA34b!E161 -> 0 | F66: =SA34b!F161 -> 0 | G66: =SA34b!G161 -> 0 | H66: =SA34b!H161 -> 0 | I66: =SA34b!I161 -> 0 | J66: =SA34b!J161 -> 0 | K66: =SA34b!K161 -> 0
A67: Zoo's, Marine and Non-biological Animals | C67: =SA34b!C164 -> 0 | D67: =SA34b!D164 -> 0 | E67: =SA34b!E164 -> 0 | F67: =SA34b!F164 -> 0 | G67: =SA34b!G164 -> 0 | H67: =SA34b!H164 -> 0 | I67: =SA34b!I164 -> 0 | J67: =SA34b!J164 -> 0 | K67: =SA34b!K164 -> 0
A69: Total Upgrading of Existing Assets | B69: 6 | C69: =C79+C82+C83+C86+C89+C90+SUM(C93:C99) -> 0 | D69: =D79+D82+D83+D86+D89+D90+SUM(D93:D99) -> 1728401.55 | E69: 241213.78 | F69: 100000 | G69: 0 | H69: 0 | I69: 300000 | J69: 500000 | K69: 600000
A70: Roads Infrastructure | C70: =SA34e!C7 -> 0 | D70: =SA34e!D7 -> 0 | E70: =SA34e!E7 -> 0 | F70: =SA34e!F7 -> 0 | G70: =SA34e!G7 -> 0 | H70: =SA34e!H7 -> 0 | I70: =SA34e!I7 -> 0 | J70: =SA34e!J7 -> 0 | K70: =SA34e!K7 -> 0
A71: Storm water Infrastructure | C71: =SA34e!C12 -> 0 | D71: =SA34e!D12 -> 0 | E71: =SA34e!E12 -> 0 | F71: =SA34e!F12 -> 0 | G71: =SA34e!G12 -> 0 | H71: =SA34e!H12 -> 0 | I71: =SA34e!I12 -> 0 | J71: =SA34e!J12 -> 0 | K71: =SA34e!K12 -> 0
A72: Electrical Infrastructure | C72: =SA34e!C16 -> 0 | D72: =SA34e!D16 -> 0 | E72: =SA34e!E16 -> 0 | F72: =SA34e!F16 -> 0 | G72: =SA34e!G16 -> 0 | H72: =SA34e!H16 -> 0 | I72: =SA34e!I16 -> 0 | J72: =SA34e!J16 -> 0 | K72: =SA34e!K16 -> 0
A73: Water Supply Infrastructure | C73: =SA34e!C26 -> 0 | D73: =SA34e!D26 -> 0 | E73: =SA34e!E26 -> 0 | F73: =SA34e!F26 -> 0 | G73: =SA34e!G26 -> 0 | H73: =SA34e!H26 -> 0 | I73: =SA34e!I26 -> 0 | J73: =SA34e!J26 -> 0 | K73: =SA34e!K26 -> 0
A74: Sanitation Infrastructure | C74: =SA34e!C37 -> 0 | D74: =SA34e!D37 -> 0 | E74: =SA34e!E37 -> 0 | F74: =SA34e!F37 -> 0 | G74: =SA34e!G37 -> 0 | H74: =SA34e!H37 -> 0 | I74: =SA34e!I37 -> 0 | J74: =SA34e!J37 -> 0 | K74: =SA34e!K37 -> 0
A75: Solid Waste Infrastructure | C75: =SA34e!C44 -> 0 | D75: =SA34e!D44 -> 410082.72 | E75: =SA34e!E44 -> 0 | F75: =SA34e!F44 -> 0 | G75: =SA34e!G44 -> 0 | H75: =SA34e!H44 -> 0 | I75: =SA34e!I44 -> 0 | J75: =SA34e!J44 -> 0 | K75: =SA34e!K44 -> 0
A76: Rail Infrastructure | C76: =SA34e!C52 -> 0 | D76: =SA34e!D52 -> 0 | E76: =SA34e!E52 -> 0 | F76: =SA34e!F52 -> 0 | G76: =SA34e!G52 -> 0 | H76: =SA34e!H52 -> 0 | I76: =SA34e!I52 -> 0 | J76: =SA34e!J52 -> 0 | K76: =SA34e!K52 -> 0
A77: Coastal Infrastructure | C77: =SA34e!C62 -> 0 | D77: =SA34e!D62 -> 0 | E77: =SA34e!E62 -> 0 | F77: =SA34e!F62 -> 0 | G77: =SA34e!G62 -> 0 | H77: =SA34e!H62 -> 0 | I77: =SA34e!I62 -> 0 | J77: =SA34e!J62 -> 0 | K77: =SA34e!K62 -> 0
A78: Information and Communication Infrastructure | C78: =SA34e!C68 -> 0 | D78: =SA34e!D68 -> 0 | E78: =SA34e!E68 -> 0 | F78: =SA34e!F68 -> 0 | G78: =SA34e!G68 -> 0 | H78: =SA34e!H68 -> 0 | I78: =SA34e!I68 -> 0 | J78: =SA34e!J68 -> 0 | K78: =SA34e!K68 -> 0
A79: Infrastructure | C79: =SUM(C70:C78) -> 0 | D79: 410082.72 | E79: 0 | F79: 0 | G79: 0 | H79: 0 | I79: 0 | J79: 0 | K79: 0
A80: Community Facilities | C80: =SA34e!C75 -> 0 | D80: =SA34e!D75 -> 0 | E80: =SA34e!E75 -> 0 | F80: =SA34e!F75 -> 0 | G80: =SA34e!G75 -> 0 | H80: =SA34e!H75 -> 0 | I80: =SA34e!I75 -> 0 | J80: =SA34e!J75 -> 0 | K80: =SA34e!K75 -> 0
A81: Sport and Recreation Facilities | C81: =SA34e!C98 -> 0 | D81: =SA34e!D98 -> 0 | E81: =SA34e!E98 -> 0 | F81: =SA34e!F98 -> 0 | G81: =SA34e!G98 -> 0 | H81: =SA34e!H98 -> 0 | I81: =SA34e!I98 -> 0 | J81: =SA34e!J98 -> 0 | K81: =SA34e!K98 -> 0
A82: Community Assets | C82: =SUM(C80:C81) -> 0 | D82: 0 | E82: 0 | F82: 0 | G82: 0 | H82: 0 | I82: 0 | J82: 0 | K82: 0
A83: Heritage Assets | C83: =SA34e!C103 -> 0 | D83: =SA34e!D103 -> 0 | E83: =SA34e!E103 -> 0 | F83: =SA34e!F103 -> 0 | G83: =SA34e!G103 -> 0 | H83: =SA34e!H103 -> 0 | I83: =SA34e!I103 -> 0 | J83: =SA34e!J103 -> 0 | K83: =SA34e!K103 -> 0
A84: Revenue Generating | C84: =SA34e!C111 -> 0 | D84: =SA34e!D111 -> 0 | E84: =SA34e!E111 -> 0 | F84: =SA34e!F111 -> 0 | G84: =SA34e!G111 -> 0 | H84: =SA34e!H111 -> 0 | I84: =SA34e!I111 -> 0 | J84: =SA34e!J111 -> 0 | K84: =SA34e!K111 -> 0
A85: Non-revenue Generating | C85: =SA34e!C114 -> 0 | D85: =SA34e!D114 -> 0 | E85: =SA34e!E114 -> 0 | F85: =SA34e!F114 -> 0 | G85: =SA34e!G114 -> 0 | H85: =SA34e!H114 -> 0 | I85: =SA34e!I114 -> 0 | J85: =SA34e!J114 -> 0 | K85: =SA34e!K114 -> 0
A86: Investment properties | C86: =SUM(C84:C85) -> 0 | D86: 0 | E86: 0 | F86: 0 | G86: 0 | H86: 0 | I86: 0 | J86: 0 | K86: 0
A87: Operational Buildings | C87: =SA34e!C119 -> 0 | D87: =SA34e!D119 -> 750781.03 | E87: =SA34e!E119 -> 0 | F87: =SA34e!F119 -> 0 | G87: =SA34e!G119 -> 0 | H87: =SA34e!H119 -> 0 | I87: =SA34e!I119 -> 0 | J87: =SA34e!J119 -> 0 | K87: =SA34e!K119 -> 0
A88: Housing | C88: =SA34e!C131 -> 0 | D88: =SA34e!D131 -> 0 | E88: =SA34e!E131 -> 0 | F88: =SA34e!F131 -> 0 | G88: =SA34e!G131 -> 0 | H88: =SA34e!H131 -> 0 | I88: =SA34e!I131 -> 0 | J88: =SA34e!J131 -> 0 | K88: =SA34e!K131 -> 0
A89: Other Assets | C89: =SUM(C87:C88) -> 0 | D89: 750781.03 | E89: 0 | F89: 0 | G89: 0 | H89: 0 | I89: 0 | J89: 0 | K89: 0
A90: Biological or Cultivated Assets | C90: =SA34e!C136 -> 0 | D90: =SA34e!D136 -> 0 | E90: =SA34e!E136 -> 0 | F90: =SA34e!F136 -> 0 | G90: =SA34e!G136 -> 0 | H90: =SA34e!H136 -> 0 | I90: =SA34e!I136 -> 0 | J90: =SA34e!J136 -> 0 | K90: =SA34e!K136 -> 0
A91: Servitudes | C91: =SA34e!C140 -> 0 | D91: =SA34e!D140 -> 0 | E91: =SA34e!E140 -> 0 | F91: =SA34e!F140 -> 0 | G91: =SA34e!G140 -> 0 | H91: =SA34e!H140 -> 0 | I91: =SA34e!I140 -> 0 | J91: =SA34e!J140 -> 0 | K91: =SA34e!K140 -> 0
A92: Licences and Rights | C92: =SA34e!C141 -> 0 | D92: =SA34e!D141 -> 0 | E92: =SA34e!E141 -> 0 | F92: =SA34e!F141 -> 0 | G92: =SA34e!G141 -> 0 | H92: =SA34e!H141 -> 0 | I92: =SA34e!I141 -> 0 | J92: =SA34e!J141 -> 0 | K92: =SA34e!K141 -> 0
A93: Intangible Assets | C93: =SUM(C91:C92) -> 0 | D93: 0 | E93: 0 | F93: 0 | G93: 0 | H93: 0 | I93: 0 | J93: 0 | K93: 0
A94: Computer Equipment | C94: =SA34e!C149 -> 0 | D94: =SA34e!D149 -> 0 | E94: =SA34e!E149 -> 0 | F94: =SA34e!F149 -> 0 | G94: =SA34e!G149 -> 0 | H94: =SA34e!H149 -> 0 | I94: =SA34e!I149 -> 0 | J94: =SA34e!J149 -> 0 | K94: =SA34e!K149 -> 0
A95: Furniture and Office Equipment | C95: =SA34e!C152 -> 0 | D95: =SA34e!D152 -> 567537.8 | E95: =SA34e!E152 -> 0 | F95: =SA34e!F152 -> 0 | G95: =SA34e!G152 -> 0 | H95: =SA34e!H152 -> 0 | I95: =SA34e!I152 -> 0 | J95: =SA34e!J152 -> 0 | K95: =SA34e!K152 -> 0
A96: Machinery and Equipment | C96: =SA34e!C155 -> 0 | D96: =SA34e!D155 -> 0 | E96: =SA34e!E155 -> 241213.78 | F96: =SA34e!F155 -> 100000 | G96: =SA34e!G155 -> 0 | H96: =SA34e!H155 -> 0 | I96: =SA34e!I155 -> 300000 | J96: =SA34e!J155 -> 500000 | K96: =SA34e!K155 -> 600000
A97: Transport Assets | C97: =SA34e!C158 -> 0 | D97: =SA34e!D158 -> 0 | E97: =SA34e!E158 -> 0 | F97: =SA34e!F158 -> 0 | G97: =SA34e!G158 -> 0 | H97: =SA34e!H158 -> 0 | I97: =SA34e!I158 -> 0 | J97: =SA34e!J158 -> 0 | K97: =SA34e!K158 -> 0
A98: Land | C98: =SA34e!C161 -> 0 | D98: =SA34e!D161 -> 0 | E98: =SA34e!E161 -> 0 | F98: =SA34e!F161 -> 0 | G98: =SA34e!G161 -> 0 | H98: =SA34e!H161 -> 0 | I98: =SA34e!I161 -> 0 | J98: =SA34e!J161 -> 0 | K98: =SA34e!K161 -> 0
A99: Zoo's, Marine and Non-biological Animals | C99: =SA34e!C164 -> 0 | D99: =SA34e!D164 -> 0 | E99: =SA34e!E164 -> 0 | F99: =SA34e!F164 -> 0 | G99: =SA34e!G164 -> 0 | H99: =SA34e!H164 -> 0 | I99: =SA34e!I164 -> 0 | J99: =SA34e!J164 -> 0 | K99: =SA34e!K164 -> 0
A101: Total Capital Expenditure | B101: 4 | C101: =+C5+C37+C69 -> 40350587 | D101: =+D5+D37+D69 -> 35099381.22 | E101: 45682357.98 | F101: 55441271 | G101: 54304785 | H101: 54304785 | I101: 61599351 | J101: 55851050 | K101: 60591560
A102: Roads Infrastructure | C102: =+C6+C38+C70 -> 33339537 | D102: =+D6+D38+D70 -> 11971901.67 | E102: 34264180.05 | F102: 35613450 | G102: 41503450 | H102: 41503450 | I102: 34446351 | J102: 41912050 | K102: 45802400
A103: Storm water Infrastructure | C103: =+C7+C39+C71 -> 0 | D103: 0 | E103: 0 | F103: 0 | G103: 0 | H103: 0 | I103: 0 | J103: 0 | K103: 0
A104: Electrical Infrastructure | C104: 1104363 | D104: 2698705.75 | E104: 282388.92 | F104: 5000000 | G104: 4212338 | H104: 4212338 | I104: 19400000 | J104: 8800000 | K104: 10500000
A105: Water Supply Infrastructure | C105: 0 | D105: 0 | E105: 0 | F105: 0 | G105: 0 | H105: 0 | I105: 0 | J105: 0 | K105: 0
A106: Sanitation Infrastructure | C106: 0 | D106: 0 | E106: 0 | F106: 0 | G106: 0 | H106: 0 | I106: 0 | J106: 0 | K106: 0
A107: Solid Waste Infrastructure | C107: 0 | D107: 410082.72 | E107: 0 | F107: 0 | G107: 0 | H107: 0 | I107: 0 | J107: 0 | K107: 0
A108: Rail Infrastructure | C108: 0 | D108: 0 | E108: 1032750 | F108: 0 | G108: 0 | H108: 0 | I108: 0 | J108: 0 | K108: 0
A109: Coastal Infrastructure | C109: 0 | D109: 0 | E109: 0 | F109: 0 | G109: 0 | H109: 0 | I109: 0 | J109: 0 | K109: 0
A110: Information and Communication Infrastructure | C110: 0 | D110: 0 | E110: 0 | F110: 0 | G110: 0 | H110: 0 | I110: 0 | J110: 0 | K110: 0
A111: Infrastructure | C111: =SUM(C102:C110) -> 34443900 | D111: =SUM(D102:D110) -> 15080690.14 | E111: 35579318.97 | F111: 40613450 | G111: 45715788 | H111: 45715788 | I111: 53846351 | J111: 50712050 | K111: 56302400
A112: Community Facilities | C112: =+C16+C48+C80 -> 5906687 | D112: =+D16+D48+D80 -> 207904.38 | E112: 1208203.68 | F112: 0 | G112: 0 | H112: 0 | I112: 0 | J112: 0 | K112: 0
A113: Sport and Recreation Facilities | C113: =+C17+C49+C81 -> 0 | D113: =+D17+D49+D81 -> 13080582.32 | E113: 5724593.53 | F113: 3800000 | G113: 2416000 | H113: 2416000 | I113: 3000000 | J113: 0 | K113: 0
A114: Community Assets | C114: =SUM(C112:C113) -> 5906687 | D114: =SUM(D112:D113) -> 13288486.7 | E114: 6932797.21 | F114: 3800000 | G114: 2416000 | H114: 2416000 | I114: 3000000 | J114: 0 | K114: 0
A115: Heritage Assets | C115: =+C19+C51+C83 -> 0 | D115: =+D19+D51+D83 -> 0 | E115: 0 | F115: 0 | G115: 0 | H115: 0 | I115: 0 | J115: 0 | K115: 0
A116: Revenue Generating | C116: =+C20+C52+C84 -> 0 | D116: =+D20+D52+D84 -> 0 | E116: 0 | F116: 0 | G116: 0 | H116: 0 | I116: 0 | J116: 0 | K116: 0
A117: Non-revenue Generating | C117: =+C21+C53+C85 -> 0 | D117: =+D21+D53+D85 -> 0 | E117: 0 | F117: 0 | G117: 0 | H117: 0 | I117: 0 | J117: 0 | K117: 0
A118: Investment properties | C118: =SUM(C116:C117) -> 0 | D118: =SUM(D116:D117) -> 0 | E118: 0 | F118: 0 | G118: 0 | H118: 0 | I118: 0 | J118: 0 | K118: 0
A119: Operational Buildings | C119: =+C23+C55+C87 -> 0 | D119: =+D23+D55+D87 -> 750781.03 | E119: 622910.5 | F119: 2127821 | G119: 2127821 | H119: 2127821 | I119: 0 | J119: 0 | K119: 1500000
A120: Housing | C120: =+C24+C56+C88 -> 0 | D120: =+D24+D56+D88 -> 0 | E120: 0 | F120: 0 | G120: 0 | H120: 0 | I120: 0 | J120: 0 | K120: 0
A121: Other Assets | C121: =SUM(C119:C120) -> 0 | D121: 750781.03 | E121: 622910.5 | F121: 2127821 | G121: 2127821 | H121: 2127821 | I121: 0 | J121: 0 | K121: 1500000
A122: Biological or Cultivated Assets | C122: =+C26+C58+C90 -> 0 | D122: =+D26+D58+D90 -> 0 | E122: 0 | F122: 0 | G122: 0 | H122: 0 | I122: 0 | J122: 0 | K122: 0
A123: Servitudes | C123: =+C27+C59+C91 -> 0 | D123: =+D27+D59+D91 -> 0 | E123: 0 | F123: 0 | G123: 0 | H123: 0 | I123: 0 | J123: 0 | K123: 0
A124: Licences and Rights | C124: =+C28+C60+C92 -> 0 | D124: =+D28+D60+D92 -> 1835897.11 | E124: 531721.74 | F124: 1150000 | G124: 840000 | H124: 840000 | I124: 1350000 | J124: 900000 | K124: 0
A125: Intangible Assets | C125: =SUM(C123:C124) -> 0 | D125: =SUM(D123:D124) -> 1835897.11 | E125: 531721.74 | F125: 1150000 | G125: 840000 | H125: 840000 | I125: 1350000 | J125: 900000 | K125: 0
A126: Computer Equipment | C126: =+C30+C62+C94 -> 0 | D126: =+D30+D62+D94 -> 1084768.51 | E126: 129726.5 | F126: 1100000 | G126: 1100000 | H126: 1100000 | I126: 2600000 | J126: 1136000 | K126: 1174160
A127: Furniture and Office Equipment | C127: =+C31+C63+C95 -> 0 | D127: 984210.03 | E127: 434181.27 | F127: 300000 | G127: 278720 | H127: 278720 | I127: 353000 | J127: 53000 | K127: 315000
A128: Machinery and Equipment | C128: 0 | D128: 1060478.26 | E128: 821332.23 | F128: 3250000 | G128: 150000 | H128: 150000 | I128: 450000 | J128: 1050000 | K128: 600000
A129: Transport Assets | C129: 0 | D129: 1014069.44 | E129: 630369.56 | F129: 3100000 | G129: 1676456 | H129: 1676456 | I129: 0 | J129: 2000000 | K129: 700000
A130: Land | C130: 0 | D130: 0 | E130: 0 | F130: 0 | G130: 0 | H130: 0 | I130: 0 | J130: 0 | K130: 0
A131: Zoo's, Marine and Non-biological Animals | C131: 0 | D131: 0 | E131: 0 | F131: 0 | G131: 0 | H131: 0 | I131: 0 | J131: 0 | K131: 0
A132: TOTAL CAPITAL EXPENDITURE - Asset class | C132: =+C5+C37+C69 -> 40350587 | D132: =+D5+D37+D69 -> 35099381.22 | E132: 45682357.98 | F132: 55441271 | G132: 54304785 | H132: 54304785 | I132: 61599351 | J132: 55851050 | K132: 60591560
A134: ASSET REGISTER SUMMARY - PPE (WDV) | B134: 5 | C134: =C144+C147+C148+C151+C154+C155+C158+C159+C160+C161+C162+C163+C164 -> 0 | D134: =D144+D147+D148+D151+D154+D155+D158+D159+D160+D161+D162+D163+D164 -> 175694096.5 | E134: 243857294.8 | F134: 122804911 | G134: 283464086 | H134: 283464086 | I134: 329095701 | J134: 366638941 | K134: 410159233
A135: Roads Infrastructure | C135: 0 | D135: 36724891.6 | E135: 105531224.3 | F135: 21285779 | G135: 139013550 | H135: 139013550 | I135: 165847558 | J135: 199035830 | K135: 237328932
A136: Storm water Infrastructure
A137: Electrical Infrastructure | C137: 0 | D137: 14255119.88 | E137: 12407807.97 | F137: 21807264 | G137: 16093836 | H137: 16093836 | I137: 34888581 | J137: 43792538 | K137: 52968652
A138: Water Supply Infrastructure
A139: Sanitation Infrastructure
A140: Solid Waste Infrastructure | C140: 0 | D140: 0 | E140: 0 | F140: 0 | G140: 0 | H140: 0 | I140: 0 | J140: 0 | K140: 0
A141: Rail Infrastructure
A142: Coastal Infrastructure
A143: Information and Communication Infrastructure
A144: Infrastructure | C144: =SUM(C135:C143) -> 0 | D144: =SUM(D135:D143) -> 50980011.48 | E144: 117939032.3 | F144: 43093043 | G144: 155107386 | H144: 155107386 | I144: 200736139 | J144: 242828368 | K144: 290297584
A147: Community Assets | C147: 0 | D147: 41399888.17 | E147: 40769827.55 | F147: 12660964 | G147: 41868482 | H147: 41868482 | I147: 43354222 | J147: 38612033 | K147: 36800154
A148: Heritage Assets | C148: 0 | D148: 368150 | E148: 368150 | F148: 368150 | G148: 368150 | H148: 368150 | I148: 368150 | J148: 368150 | K148: 368150
A151: Investment properties | C151: 0 | D151: 1744334.34 | E151: 1701000.96 | F151: 1649709 | G151: 1652313 | H151: 1652313 | I151: 1596320 | J151: 1531931 | K151: 1464965
A154: Other Assets | C154: 0 | D154: 48897871.52 | E154: 29209251.24 | F154: 23015992 | G154: 30328688 | H154: 30328688 | I154: 28994879 | J154: 27461002 | K154: 27601271
A155: Biological or Cultivated Assets
A158: Intangible Assets | C158: 0 | D158: 1918750.94 | E158: 1949128.08 | F158: 5373435 | G158: 2428647 | H158: 2428647 | I158: 2836443 | J158: 1502909 | K158: -510053
A159: Computer Equipment | C159: 0 | D159: 2423628.83 | E159: 1696434.44 | F159: 2900127 | G159: 3299142 | H159: 3299142 | I159: 5642565 | J159: 7303484 | K159: 9089444
A160: Furniture and Office Equipment | C160: 0 | D160: 4717417.62 | E160: 4223931.55 | F160: 7196725 | G160: 2797327 | H160: 2797327 | I160: 2198046 | J160: 1138880 | K160: 299356
A161: Machinery and Equipment | C161: 0 | D161: 9024635.57 | E161: 11103908 | F161: 10653177 | G161: 10437780 | H161: 10437780 | I161: 9799223 | J161: 10169892 | K161: 9847387
A162: Transport Assets | C162: 0 | D162: 14219408.04 | E162: 12727202.62 | F162: 15893589 | G162: 13006743 | H162: 13006743 | I162: 10686009 | J162: 12838587 | K162: 11617270
A163: Land | C163: 0 | D163: 0 | E163: 22169428.05 | F163: 0 | G163: 22169428 | H163: 22169428 | I163: 22883705 | J163: 22883705 | K163: 23283705
A164: Zoo's, Marine and Non-biological Animals
A165: TOTAL ASSET REGISTER SUMMARY - PPE (WDV) | B165: 5 | C165: =C144+C147+C148+C151+C154+C155+C158+C159+C160+C161+C162+C163+C164 -> 0 | D165: =D144+D147+D148+D151+D154+D155+D158+D159+D160+D161+D162+D163+D164 -> 175694096.5 | E165: 243857294.8 | F165: 122804911 | G165: 283464086 | H165: 283464086 | I165: 329095701 | J165: 366638941 | K165: 410159233
A167: EXPENDITURE OTHER ITEMS | C167: =SUM(C168:C169) -> 13639909 | D167: =SUM(D168:D169) -> 14048864.94 | E167: 20139475.56 | F167: 17082929 | G167: 23605307 | H167: 23605307 | I167: 23342576 | J167: 24416160 | K167: 25539124
A168: Depreciation | B168: 7 | C168: =SA34d!C167 -> 8529313 | D168: =SA34d!D167 -> 7861220.46 | E168: =SA34d!E167 -> 12277161.1 | F168: =SA34d!F167 -> 8659942 | G168: =SA34d!G167 -> 15137211 | H168: =SA34d!H167 -> 15137211 | I168: =SA34d!I167 -> 15818415 | J168: =SA34d!J167 -> 16545885 | K168: =SA34d!K167 -> 17306814
A169: Repairs and Maintenance by Asset Class | B169: 3 | C169: =C179+C182+C183+C186+C189+C190+SUM(C193:C199) -> 5110596 | D169: =D179+D182+D183+D186+D189+D190+SUM(D193:D199) -> 6187644.48 | E169: 7862314.46 | F169: 8422987 | G169: 8468096 | H169: 8468096 | I169: 7524161 | J169: 7870275 | K169: 8232310
A170: Roads Infrastructure | C170: =SA34c!C7 -> 559907 | D170: =SA34c!D7 -> 1157854.05 | E170: =SA34c!E7 -> 2329378.06 | F170: =SA34c!F7 -> 2436000 | G170: =SA34c!G7 -> 2436000 | H170: =SA34c!H7 -> 2436000 | I170: =SA34c!I7 -> 2545620 | J170: =SA34c!J7 -> 2662719 | K170: =SA34c!K7 -> 2785205
A171: Storm water Infrastructure | C171: =SA34c!C12 -> 0 | D171: =SA34c!D12 -> 0 | E171: =SA34c!E12 -> 0 | F171: =SA34c!F12 -> 0 | G171: =SA34c!G12 -> 0 | H171: =SA34c!H12 -> 0 | I171: =SA34c!I12 -> 0 | J171: =SA34c!J12 -> 0 | K171: =SA34c!K12 -> 0
A172: Electrical Infrastructure | C172: =SA34c!C16 -> 459397 | D172: =SA34c!D16 -> 0 | E172: =SA34c!E16 -> 0 | F172: =SA34c!F16 -> 0 | G172: =SA34c!G16 -> 0 | H172: =SA34c!H16 -> 0 | I172: =SA34c!I16 -> 0 | J172: =SA34c!J16 -> 0 | K172: =SA34c!K16 -> 0
A173: Water Supply Infrastructure | C173: =SA34c!C26 -> 0 | D173: =SA34c!D26 -> 0 | E173: =SA34c!E26 -> 0 | F173: =SA34c!F26 -> 0 | G173: =SA34c!G26 -> 0 | H173: =SA34c!H26 -> 0 | I173: =SA34c!I26 -> 0 | J173: =SA34c!J26 -> 0 | K173: =SA34c!K26 -> 0
A174: Sanitation Infrastructure | C174: =SA34c!C37 -> 0 | D174: =SA34c!D37 -> 0 | E174: =SA34c!E37 -> 0 | F174: =SA34c!F37 -> 0 | G174: =SA34c!G37 -> 0 | H174: =SA34c!H37 -> 0 | I174: =SA34c!I37 -> 0 | J174: =SA34c!J37 -> 0 | K174: =SA34c!K37 -> 0
A175: Solid Waste Infrastructure | C175: =SA34c!C44 -> 0 | D175: =SA34c!D44 -> 0 | E175: =SA34c!E44 -> 0 | F175: =SA34c!F44 -> 0 | G175: =SA34c!G44 -> 0 | H175: =SA34c!H44 -> 0 | I175: =SA34c!I44 -> 0 | J175: =SA34c!J44 -> 0 | K175: =SA34c!K44 -> 0
A176: Rail Infrastructure | C176: =SA34c!C52 -> 0 | D176: =SA34c!D52 -> 0 | E176: =SA34c!E52 -> 0 | F176: =SA34c!F52 -> 0 | G176: =SA34c!G52 -> 0 | H176: =SA34c!H52 -> 0 | I176: =SA34c!I52 -> 0 | J176: =SA34c!J52 -> 0 | K176: =SA34c!K52 -> 0
A177: Coastal Infrastructure | C177: =SA34c!C62 -> 0 | D177: =SA34c!D62 -> 0 | E177: =SA34c!E62 -> 0 | F177: =SA34c!F62 -> 0 | G177: =SA34c!G62 -> 0 | H177: =SA34c!H62 -> 0 | I177: =SA34c!I62 -> 0 | J177: =SA34c!J62 -> 0 | K177: =SA34c!K62 -> 0
A178: Information and Communication Infrastructure | C178: =SA34c!C68 -> 0 | D178: =SA34c!D68 -> 0 | E178: =SA34c!E68 -> 0 | F178: =SA34c!F68 -> 0 | G178: =SA34c!G68 -> 0 | H178: =SA34c!H68 -> 0 | I178: =SA34c!I68 -> 0 | J178: =SA34c!J68 -> 0 | K178: =SA34c!K68 -> 0
A179: Infrastructure | C179: =SUM(C170:C178) -> 1019304 | D179: =SUM(D170:D178) -> 1157854.05 | E179: 2329378.06 | F179: 2436000 | G179: 2436000 | H179: 2436000 | I179: 2545620 | J179: 2662719 | K179: 2785205
A180: Community Facilities | C180: =SA34c!C75 -> 0 | D180: =SA34c!D75 -> 0 | E180: =SA34c!E75 -> 99257.61 | F180: =SA34c!F75 -> 159000 | G180: =SA34c!G75 -> 159000 | H180: =SA34c!H75 -> 159000 | I180: =SA34c!I75 -> 166155 | J180: =SA34c!J75 -> 173799 | K180: =SA34c!K75 -> 181793
A181: Sport and Recreation Facilities | C181: =SA34c!C98 -> 522722 | D181: =SA34c!D98 -> 363074.53 | E181: =SA34c!E98 -> 0 | F181: =SA34c!F98 -> 0 | G181: =SA34c!G98 -> 0 | H181: =SA34c!H98 -> 0 | I181: =SA34c!I98 -> 0 | J181: =SA34c!J98 -> 0 | K181: =SA34c!K98 -> 0
A182: Community Assets | C182: =SUM(C180:C181) -> 522722 | D182: 363074.53 | E182: 99257.61 | F182: 159000 | G182: 159000 | H182: 159000 | I182: 166155 | J182: 173799 | K182: 181793
A183: Heritage Assets | C183: =SA34c!C103 -> 0 | D183: =SA34c!D103 -> 0 | E183: =SA34c!E103 -> 0 | F183: =SA34c!F103 -> 0 | G183: =SA34c!G103 -> 0 | H183: =SA34c!H103 -> 0 | I183: =SA34c!I103 -> 0 | J183: =SA34c!J103 -> 0 | K183: =SA34c!K103 -> 0
A184: Revenue Generating | C184: =SA34c!C111 -> 0 | D184: =SA34c!D111 -> 0 | E184: =SA34c!E111 -> 0 | F184: =SA34c!F111 -> 0 | G184: =SA34c!G111 -> 0 | H184: =SA34c!H111 -> 0 | I184: =SA34c!I111 -> 0 | J184: =SA34c!J111 -> 0 | K184: =SA34c!K111 -> 0
A185: Non-revenue Generating | C185: =SA34c!C114 -> 0 | D185: =SA34c!D114 -> 0 | E185: =SA34c!E114 -> 0 | F185: =SA34c!F114 -> 0 | G185: =SA34c!G114 -> 0 | H185: =SA34c!H114 -> 0 | I185: =SA34c!I114 -> 0 | J185: =SA34c!J114 -> 0 | K185: =SA34c!K114 -> 0
A186: Investment properties | C186: =SUM(C184:C185) -> 0 | D186: 0 | E186: 0 | F186: 0 | G186: 0 | H186: 0 | I186: 0 | J186: 0 | K186: 0
A187: Operational Buildings | C187: =SA34c!C119 -> 573841 | D187: =SA34c!D119 -> 1237304.71 | E187: =SA34c!E119 -> 754287.3 | F187: =SA34c!F119 -> 868000 | G187: =SA34c!G119 -> 868000 | H187: =SA34c!H119 -> 868000 | I187: =SA34c!I119 -> 889060 | J187: =SA34c!J119 -> 929958 | K187: =SA34c!K119 -> 972736
A188: Housing | C188: =SA34c!C131 -> 0 | D188: =SA34c!D131 -> 0 | E188: =SA34c!E131 -> 0 | F188: =SA34c!F131 -> 0 | G188: =SA34c!G131 -> 0 | H188: =SA34c!H131 -> 0 | I188: =SA34c!I131 -> 0 | J188: =SA34c!J131 -> 0 | K188: =SA34c!K131 -> 0
A189: Other Assets | C189: =SUM(C187:C188) -> 573841 | D189: 1237304.71 | E189: 754287.3 | F189: 868000 | G189: 868000 | H189: 868000 | I189: 889060 | J189: 929958 | K189: 972736
A190: Biological or Cultivated Assets | C190: =SA34c!C136 -> 0 | D190: =SA34c!D136 -> 0 | E190: =SA34c!E136 -> 0 | F190: =SA34c!F136 -> 0 | G190: =SA34c!G136 -> 0 | H190: =SA34c!H136 -> 0 | I190: =SA34c!I136 -> 0 | J190: =SA34c!J136 -> 0 | K190: =SA34c!K136 -> 0
A191: Servitudes | C191: =SA34c!C140 -> 0 | D191: =SA34c!D140 -> 0 | E191: =SA34c!E140 -> 0 | F191: =SA34c!F140 -> 0 | G191: =SA34c!G140 -> 0 | H191: =SA34c!H140 -> 0 | I191: =SA34c!I140 -> 0 | J191: =SA34c!J140 -> 0 | K191: =SA34c!K140 -> 0
A192: Licences and Rights | C192: =SA34c!C141 -> 802511 | D192: =SA34c!D141 -> 0 | E192: =SA34c!E141 -> 0 | F192: =SA34c!F141 -> 0 | G192: =SA34c!G141 -> 0 | H192: =SA34c!H141 -> 0 | I192: =SA34c!I141 -> 0 | J192: =SA34c!J141 -> 0 | K192: =SA34c!K141 -> 0
A193: Intangible Assets | C193: =SUM(C191:C192) -> 802511 | D193: 0 | E193: 0 | F193: 0 | G193: 0 | H193: 0 | I193: 0 | J193: 0 | K193: 0
A194: Computer Equipment | C194: =SA34c!C149 -> 230136 | D194: =SA34c!D149 -> 815378.76 | E194: =SA34c!E149 -> 802264.21 | F194: =SA34c!F149 -> 1000000 | G194: =SA34c!G149 -> 1000000 | H194: =SA34c!H149 -> 1000000 | I194: =SA34c!I149 -> 1500000 | J194: =SA34c!J149 -> 1569000 | K194: =SA34c!K149 -> 1641175
A195: Furniture and Office Equipment | C195: =SA34c!C152 -> 103500 | D195: =SA34c!D152 -> 90701.69 | E195: =SA34c!E152 -> 185209.83 | F195: =SA34c!F152 -> 200000 | G195: =SA34c!G152 -> 200000 | H195: =SA34c!H152 -> 200000 | I195: =SA34c!I152 -> 209000 | J195: =SA34c!J152 -> 218614 | K195: =SA34c!K152 -> 228671
A196: Machinery and Equipment | C196: =SA34c!C155 -> 0 | D196: =SA34c!D155 -> 1877775.14 | E196: =SA34c!E155 -> 2802665.98 | F196: =SA34c!F155 -> 2859987 | G196: =SA34c!G155 -> 2905096 | H196: =SA34c!H155 -> 2905096 | I196: =SA34c!I155 -> 2214326 | J196: =SA34c!J155 -> 2316185 | K196: =SA34c!K155 -> 2422730
A197: Transport Assets | C197: =SA34c!C158 -> 1858582 | D197: =SA34c!D158 -> 645555.6 | E197: =SA34c!E158 -> 889251.47 | F197: =SA34c!F158 -> 900000 | G197: =SA34c!G158 -> 900000 | H197: =SA34c!H158 -> 900000 | I197: =SA34c!I158 -> 0 | J197: =SA34c!J158 -> 0 | K197: =SA34c!K158 -> 0
A198: Land | C198: =SA34c!C161 -> 0 | D198: =SA34c!D161 -> 0 | E198: =SA34c!E161 -> 0 | F198: =SA34c!F161 -> 0 | G198: =SA34c!G161 -> 0 | H198: =SA34c!H161 -> 0 | I198: =SA34c!I161 -> 0 | J198: =SA34c!J161 -> 0 | K198: =SA34c!K161 -> 0
A199: Zoo's, Marine and Non-biological Animals | C199: =SA34c!C164 -> 0 | D199: =SA34c!D164 -> 0 | E199: =SA34c!E164 -> 0 | F199: =SA34c!F164 -> 0 | G199: =SA34c!G164 -> 0 | H199: =SA34c!H164 -> 0 | I199: =SA34c!I164 -> 0 | J199: =SA34c!J164 -> 0 | K199: =SA34c!K164 -> 0
A201: TOTAL EXPENDITURE OTHER ITEMS | C201: =SUM(C168:C169) -> 13639909 | D201: 14048864.94 | E201: 20139475.56 | F201: 17082929 | G201: 23605307 | H201: 23605307 | I201: 23342576 | J201: 24416160 | K201: 25539124
A203: Renewal and upgrading of Existing Assets as % of total capex | C203: =IF(ISERROR((C37+C69)/C132),0,((C37+C69)/C132)) -> 0 | D203: =IF(ISERROR((D37+D69)/D132),0,((D37+D69)/D132)) -> 0.4038178147 | E203: 0.2570266735 | F203: 0.1447986465 | G203: 0.1059972708 | H203: 0.1059972708 | I203: 0.1055205923 | J203: 0.2553046004 | K203: 0.117178036
A204: Renewal and upgrading of Existing Assets as % of deprecn | C204: =IF(ISERROR((C37+C69)/C168),0,((C37+C69)/C168)) -> 0 | D204: =IF(ISERROR((D37+D69)/D168),0,((D37+D69)/D168)) -> 1.802996811 | E204: 0.9563761862 | F204: 0.9270063241 | G204: 0.3802654928 | H204: 0.3802654928 | I204: 0.4109134828 | J204: 0.8617870848 | K204: 0.4102430407
A205: R&M as a % of PPE | C205: =IF(ISERROR(ROUND(C169/'A6-FinPos'!C19,3)),0,(ROUND(C169/'A6-FinPos'!C19,3))) -> 0.027 | D205: =IF(ISERROR(ROUND(D169/'A6-FinPos'!D19,3)),0,(ROUND(D169/'A6-FinPos'!D19,3))) -> 0.029 | E205: =IF(ISERROR(ROUND(E169/'A6-FinPos'!E19,3)),0,(ROUND(E169/'A6-FinPos'!E19,3))) -> 0.032 | F205: =IF(ISERROR(ROUND(F169/'A6-FinPos'!F19,3)),0,(ROUND(F169/'A6-FinPos'!F19,3))) -> 0.063 | G205: =IF(ISERROR(ROUND(G169/'A6-FinPos'!G19,3)),0,(ROUND(G169/'A6-FinPos'!G19,3))) -> 0.029 | H205: =IF(ISERROR(ROUND(H169/'A6-FinPos'!H19,3)),0,(ROUND(H169/'A6-FinPos'!H19,3))) -> 0.029 | I205: =IF(ISERROR(ROUND(I169/'A6-FinPos'!J19,3)),0,(ROUND(I169/'A6-FinPos'!J19,3))) -> 0.023 | J205: =IF(ISERROR(ROUND(J169/'A6-FinPos'!K19,3)),0,(ROUND(J169/'A6-FinPos'!K19,3))) -> 0.021 | K205: =IF(ISERROR(ROUND(K169/'A6-FinPos'!L19,3)),0,(ROUND(K169/'A6-FinPos'!L19,3))) -> 0.02
A206: Renewal and upgrading and R&M as a % of PPE | C206: =IF(ISERROR(ROUND((C37+C69+C169)/C165,2)),0,(ROUND((C37+C69+C169)/C165,2))) -> 0 | D206: =IF(ISERROR(ROUND((D37+D69+D169)/D165,2)),0,(ROUND((D37+D69+D169)/D165,2))) -> 0.12 | E206: 0.08 | F206: 0.13 | G206: 0.05 | H206: 0.05 | I206: 0.04 | J206: 0.06 | K206: 0.04
A208: =head27a -> References
A209: 1. Detail of new assets provided in Table SA34a
A210: 2. Detail of renewal of existing assets provided in Table SA34b
A211: 3. Detail of Repairs and Maintenance by Asset Class provided in Table SA34c
A212: 4. Must reconcile to total capital expenditure on Budgeted Capital Expenditure
A213: 5. Must reconcile to 'Budgeted Financial Position' (written down value)
A214: 6. Detail of upgrading of existing assets provided in Table SA34e
A215: 7. Detail of depreciation provided in Table SA34d
A217: Check balance to A6 | C217: =C165-'A6-FinPos'!D17-'A6-FinPos'!D19-'A6-FinPos'!D20-'A6-FinPos'!D21-'A6-FinPos'!D22-C148 -> -215619900.1 | D217: =D165-'A6-FinPos'!E17-'A6-FinPos'!E19-'A6-FinPos'!E20-'A6-FinPos'!E21-'A6-FinPos'!E22-D148 -> -77021821.84 | E217: =E165-'A6-FinPos'!F17-'A6-FinPos'!F19-'A6-FinPos'!F20-'A6-FinPos'!F21-'A6-FinPos'!F22-E148 -> 102620884.8 | F217: =F165-'A6-FinPos'!G17-'A6-FinPos'!G19-'A6-FinPos'!G20-'A6-FinPos'!G21-'A6-FinPos'!G22-F148 -> -169517798 | G217: =G165-'A6-FinPos'!H17-'A6-FinPos'!H19-'A6-FinPos'!H20-'A6-FinPos'!H21-'A6-FinPos'!H22-G148 -> -8858623 | H217: =H165-'A6-FinPos'!I17-'A6-FinPos'!I19-'A6-FinPos'!I20-'A6-FinPos'!I21-'A6-FinPos'!I22-H148 -> 9887093.15 | I217: =I165-'A6-FinPos'!J17-'A6-FinPos'!J19-'A6-FinPos'!J20-'A6-FinPos'!J21-'A6-FinPos'!J22-I148 -> -8858625 | J217: =J165-'A6-FinPos'!K17-'A6-FinPos'!K19-'A6-FinPos'!K20-'A6-FinPos'!K21-'A6-FinPos'!K22-J148 -> -8858625 | K217: =K165-'A6-FinPos'!L17-'A6-FinPos'!L19-'A6-FinPos'!L20-'A6-FinPos'!L21-'A6-FinPos'!L22-K148 -> -8858625

Sheet A10-SerDel
A1: =muni&" - "&Approve10 -> LIM353 Molemole - Table A10 Basic service delivery measurement
A2: =desc -> Description | B2: =head27 -> Ref | C2: =head1b -> 2016/17 | D2: =head1A -> 2017/18 | E2: =Head1 -> 2018/19 | F2: =Head2 -> Current Year 2019/20 | I2: =Head3 -> 2020/21 Medium Term Revenue & Expenditure Framework
C3: =Head5A -> Outcome | D3: =Head5A -> Outcome | E3: =Head5A -> Outcome | F3: =Head6 -> Original Budget | G3: =Head7 -> Adjusted Budget | H3: =Head8 -> Full Year Forecast | I3: =Head9 -> Budget Year 2020/21 | J3: =Head10 -> Budget Year +1 2021/22 | K3: =Head11 -> Budget Year +2 2022/23
A4: Household service targets | B4: 1
A5: Water:
A6: Piped water inside dwelling | C6: ='SA9'!E67 -> 1136 | D6: ='SA9'!F67 -> 1136 | E6: ='SA9'!G67 -> 2832 | F6: ='SA9'!H67 -> 2832 | G6: ='SA9'!I67 -> 2832 | H6: ='SA9'!J67 -> 2832 | I6: ='SA9'!K67 -> 2832 | J6: ='SA9'!L67 -> 2832 | K6: ='SA9'!M67 -> 2832
A7: Piped water inside yard (but not in dwelling) | C7: ='SA9'!E68 -> 12173 | D7: ='SA9'!F68 -> 12173 | E7: ='SA9'!G68 -> 14095 | F7: ='SA9'!H68 -> 14095 | G7: ='SA9'!I68 -> 14095 | H7: ='SA9'!J68 -> 14095 | I7: ='SA9'!K68 -> 14095 | J7: ='SA9'!L68 -> 14095 | K7: ='SA9'!M68 -> 14095
A8: Using public tap (at least min.service level) | B8: 2 | C8: ='SA9'!E69 -> 2540 | D8: ='SA9'!F69 -> 2540 | E8: ='SA9'!G69 -> 3905 | F8: ='SA9'!H69 -> 3905 | G8: ='SA9'!I69 -> 3905 | H8: ='SA9'!J69 -> 3905 | I8: ='SA9'!K69 -> 3905 | J8: ='SA9'!L69 -> 3905 | K8: ='SA9'!M69 -> 3905
A9: Other water supply (at least min.service level) | B9: 4 | C9: ='SA9'!E70 -> 4012 | D9: ='SA9'!F70 -> 4012 | E9: ='SA9'!G70 -> 1603 | F9: ='SA9'!H70 -> 1603 | G9: ='SA9'!I70 -> 1603 | H9: ='SA9'!J70 -> 1603 | I9: ='SA9'!K70 -> 1603 | J9: ='SA9'!L70 -> 1603 | K9: ='SA9'!M70 -> 1603
A10: Minimum Service Level and Above sub-total | C10: =SUM(C6:C9) -> 19861 | D10: =SUM(D6:D9) -> 19861 | E10: 22435 | F10: 22435 | G10: 22435 | H10: 22435 | I10: 22435 | J10: 22435 | K10: 22435
A11: Using public tap (< min.service level) | B11: 3 | C11: ='SA9'!E72 -> 0 | D11: ='SA9'!F72 -> 0 | E11: ='SA9'!G72 -> 0 | F11: ='SA9'!H72 -> 2712 | G11: ='SA9'!I72 -> 2712 | H11: ='SA9'!J72 -> 2712 | I11: ='SA9'!K72 -> 2712 | J11: ='SA9'!L72 -> 2712 | K11: ='SA9'!M72 -> 2712
A12: Other water supply (< min.service level) | B12: =B9 -> 4 | C12: ='SA9'!E73 -> 9512 | D12: ='SA9'!F73 -> 9512 | E12: ='SA9'!G73 -> 7231 | F12: ='SA9'!H73 -> 0 | G12: ='SA9'!I73 -> 0 | H12: ='SA9'!J73 -> 0 | I12: ='SA9'!K73 -> 0 | J12: ='SA9'!L73 -> 0 | K12: ='SA9'!M73 -> 0
A13: No water supply | C13: ='SA9'!E74 -> 0 | D13: ='SA9'!F74 -> 0 | E13: ='SA9'!G74 -> 0 | F13: ='SA9'!H74 -> 6501 | G13: ='SA9'!I74 -> 6501 | H13: ='SA9'!J74 -> 6501 | I13: ='SA9'!K74 -> 6501 | J13: ='SA9'!L74 -> 6501 | K13: ='SA9'!M74 -> 6501
A14: Below Minimum Service Level sub-total | C14: =SUM(C11:C13) -> 9512 | D14: =SUM(D11:D13) -> 9512 | E14: 7231 | F14: 9213 | G14: 9213 | H14: 9213 | I14: 9213 | J14: 9213 | K14: 9213
A15: Total number of households | B15: 5 | C15: =C10+C14 -> 29373 | D15: =D10+D14 -> 29373 | E15: 29666 | F15: 31648 | G15: 31648 | H15: 31648 | I15: 31648 | J15: 31648 | K15: 31648
A16: Sanitation/sewerage:
A17: Flush toilet (connected to sewerage) | C17: ='SA9'!E78 -> 5338 | D17: ='SA9'!F78 -> 5338 | E17: ='SA9'!G78 -> 3965 | F17: ='SA9'!H78 -> 3965 | G17: ='SA9'!I78 -> 3965 | H17: ='SA9'!J78 -> 3965 | I17: ='SA9'!K78 -> 3965 | J17: ='SA9'!L78 -> 3965 | K17: ='SA9'!M78 -> 3965
A18: Flush toilet (with septic tank) | C18: ='SA9'!E79 -> 0 | D18: ='SA9'!F79 -> 0 | E18: ='SA9'!G79 -> 691 | F18: ='SA9'!H79 -> 691 | G18: ='SA9'!I79 -> 691 | H18: ='SA9'!J79 -> 691 | I18: ='SA9'!K79 -> 691 | J18: ='SA9'!L79 -> 691 | K18: ='SA9'!M79 -> 691
A19: Chemical toilet | C19: ='SA9'!E80 -> 0 | D19: ='SA9'!F80 -> 0 | E19: ='SA9'!G80 -> 218 | F19: ='SA9'!H80 -> 218 | G19: ='SA9'!I80 -> 218 | H19: ='SA9'!J80 -> 218 | I19: ='SA9'!K80 -> 218 | J19: ='SA9'!L80 -> 218 | K19: ='SA9'!M80 -> 218
A20: Pit toilet (ventilated) | C20: ='SA9'!E81 -> 20331 | D20: ='SA9'!F81 -> 20331 | E20: ='SA9'!G81 -> 5498 | F20: ='SA9'!H81 -> 5498 | G20: ='SA9'!I81 -> 5498 | H20: ='SA9'!J81 -> 5498 | I20: ='SA9'!K81 -> 5498 | J20: ='SA9'!L81 -> 5498 | K20: ='SA9'!M81 -> 5498
A21: Other toilet provisions (> min.service level) | C21: ='SA9'!E82 -> 0 | D21: ='SA9'!F82 -> 0 | E21: ='SA9'!G82 -> 352 | F21: ='SA9'!H82 -> 352 | G21: ='SA9'!I82 -> 352 | H21: ='SA9'!J82 -> 352 | I21: ='SA9'!K82 -> 352 | J21: ='SA9'!L82 -> 352 | K21: ='SA9'!M82 -> 352
A22: =$A$10 -> Minimum Service Level and Above sub-total | C22: =SUM(C17:C21) -> 25669 | D22: =SUM(D17:D21) -> 25669 | E22: 10724 | F22: 10724 | G22: 10724 | H22: 10724 | I22: 10724 | J22: 10724 | K22: 10724
A23: Bucket toilet | C23: ='SA9'!E84 -> 159 | D23: ='SA9'!F84 -> 159 | E23: ='SA9'!G84 -> 168 | F23: ='SA9'!H84 -> 168 | G23: ='SA9'!I84 -> 168 | H23: ='SA9'!J84 -> 168 | I23: ='SA9'!K84 -> 168 | J23: ='SA9'!L84 -> 168 | K23: ='SA9'!M84 -> 168
A24: Other toilet provisions (< min.service level) | C24: ='SA9'!E85 -> 3545 | D24: ='SA9'!F85 -> 3545 | E24: ='SA9'!G85 -> 18007 | F24: ='SA9'!H85 -> 18007 | G24: ='SA9'!I85 -> 18007 | H24: ='SA9'!J85 -> 18007 | I24: ='SA9'!K85 -> 18007 | J24: ='SA9'!L85 -> 18007 | K24: ='SA9'!M85 -> 18007
A25: No toilet provisions | C25: ='SA9'!E86 -> 0 | D25: ='SA9'!F86 -> 0 | E25: ='SA9'!G86 -> 1141 | F25: ='SA9'!H86 -> 1141 | G25: ='SA9'!I86 -> 1141 | H25: ='SA9'!J86 -> 1141 | I25: ='SA9'!K86 -> 1141 | J25: ='SA9'!L86 -> 1141 | K25: ='SA9'!M86 -> 1141
A26: =$A$14 -> Below Minimum Service Level sub-total | C26: =SUM(C23:C25) -> 3704 | D26: =SUM(D23:D25) -> 3704 | E26: 19316 | F26: 19316 | G26: 19316 | H26: 19316 | I26: 19316 | J26: 19316 | K26: 19316
A27: =$A$15 -> Total number of households | B27: =$B$15 -> 5 | C27: =C22+C26 -> 29373 | D27: =D22+D26 -> 29373 | E27: 30040 | F27: 30040 | G27: 30040 | H27: 30040 | I27: 30040 | J27: 30040 | K27: 30040
A28: Energy:
A29: Electricity (at least min.service level) | C29: ='SA9'!E90 -> 26349 | D29: ='SA9'!F90 -> 26349 | E29: ='SA9'!G90 -> 28765 | F29: ='SA9'!H90 -> 28765 | G29: ='SA9'!I90 -> 28765 | H29: ='SA9'!J90 -> 28765 | I29: ='SA9'!K90 -> 34475 | J29: ='SA9'!L90 -> 34494 | K29: ='SA9'!M90 -> 34526
A30: Electricity - prepaid (min.service level) | C30: ='SA9'!E91 -> 0 | D30: ='SA9'!F91 -> 0 | E30: ='SA9'!G91 -> 0 | F30: ='SA9'!H91 -> 0 | G30: ='SA9'!I91 -> 0 | H30: ='SA9'!J91 -> 0 | I30: ='SA9'!K91 -> 0 | J30: ='SA9'!L91 -> 0 | K30: ='SA9'!M91 -> 0
A31: =$A$10 -> Minimum Service Level and Above sub-total | C31: =SUM(C29:C30) -> 26349 | D31: =SUM(D29:D30) -> 26349 | E31: 28765 | F31: 28765 | G31: 28765 | H31: 28765 | I31: 34475 | J31: 34494 | K31: 34526
A32: Electricity (< min.service level) | C32: ='SA9'!E93 -> 0 | D32: ='SA9'!F93 -> 0 | E32: ='SA9'!G93 -> 0 | F32: ='SA9'!H93 -> 0 | G32: ='SA9'!I93 -> 0 | H32: ='SA9'!J93 -> 0 | I32: ='SA9'!K93 -> 0 | J32: ='SA9'!L93 -> 0 | K32: ='SA9'!M93 -> 0
A33: Electricity - prepaid (< min. service level) | C33: ='SA9'!E94 -> 0 | D33: ='SA9'!F94 -> 0 | E33: ='SA9'!G94 -> 0 | F33: ='SA9'!H94 -> 0 | G33: ='SA9'!I94 -> 0 | H33: ='SA9'!J94 -> 0 | I33: ='SA9'!K94 -> 0 | J33: ='SA9'!L94 -> 0 | K33: ='SA9'!M94 -> 0
A34: Other energy sources | C34: ='SA9'!E95 -> 0 | D34: ='SA9'!F95 -> 0 | E34: ='SA9'!G95 -> 0 | F34: ='SA9'!H95 -> 0 | G34: ='SA9'!I95 -> 0 | H34: ='SA9'!J95 -> 0 | I34: ='SA9'!K95 -> 0 | J34: ='SA9'!L95 -> 0 | K34: ='SA9'!M95 -> 0
A35: =$A$14 -> Below Minimum Service Level sub-total | C35: =SUM(C32:C34) -> 0 | D35: =SUM(D32:D34) -> 0 | E35: 0 | F35: 0 | G35: 0 | H35: 0 | I35: 0 | J35: 0 | K35: 0
A36: =$A$15 -> Total number of households | B36: =$B$15 -> 5 | C36: =C31+C35 -> 26349 | D36: =D31+D35 -> 26349 | E36: 28765 | F36: 28765 | G36: 28765 | H36: 28765 | I36: 34475 | J36: 34494 | K36: 34526
A37: Refuse:
A38: Removed at least once a week | C38: ='SA9'!E99 -> 0 | D38: ='SA9'!F99 -> 0 | E38: ='SA9'!G99 -> 0 | F38: ='SA9'!H99 -> 0 | G38: ='SA9'!I99 -> 0 | H38: ='SA9'!J99 -> 0 | I38: ='SA9'!K99 -> 0 | J38: ='SA9'!L99 -> 0 | K38: ='SA9'!M99 -> 0
A39: =$A$10 -> Minimum Service Level and Above sub-total | C39: =SUM(C38) -> 0 | D39: =SUM(D38) -> 0 | E39: 0 | F39: 0 | G39: 0 | H39: 0 | I39: 0 | J39: 0 | K39: 0
A40: Removed less frequently than once a week | C40: ='SA9'!E101 -> 0 | D40: ='SA9'!F101 -> 0 | E40: ='SA9'!G101 -> 0 | F40: ='SA9'!H101 -> 0 | G40: ='SA9'!I101 -> 0 | H40: ='SA9'!J101 -> 0 | I40: ='SA9'!K101 -> 0 | J40: ='SA9'!L101 -> 0 | K40: ='SA9'!M101 -> 0
A41: Using communal refuse dump | C41: ='SA9'!E102 -> 0 | D41: ='SA9'!F102 -> 0 | E41: ='SA9'!G102 -> 0 | F41: ='SA9'!H102 -> 0 | G41: ='SA9'!I102 -> 0 | H41: ='SA9'!J102 -> 0 | I41: ='SA9'!K102 -> 0 | J41: ='SA9'!L102 -> 0 | K41: ='SA9'!M102 -> 0
A42: Using own refuse dump | C42: ='SA9'!E103 -> 0 | D42: ='SA9'!F103 -> 0 | E42: ='SA9'!G103 -> 0 | F42: ='SA9'!H103 -> 0 | G42: ='SA9'!I103 -> 0 | H42: ='SA9'!J103 -> 0 | I42: ='SA9'!K103 -> 0 | J42: ='SA9'!L103 -> 0 | K42: ='SA9'!M103 -> 0
A43: Other rubbish disposal | C43: ='SA9'!E104 -> 0 | D43: ='SA9'!F104 -> 0 | E43: ='SA9'!G104 -> 0 | F43: ='SA9'!H104 -> 0 | G43: ='SA9'!I104 -> 0 | H43: ='SA9'!J104 -> 0 | I43: ='SA9'!K104 -> 0 | J43: ='SA9'!L104 -> 0 | K43: ='SA9'!M104 -> 0
A44: No rubbish disposal | C44: ='SA9'!E105 -> 0 | D44: ='SA9'!F105 -> 0 | E44: ='SA9'!G105 -> 0 | F44: ='SA9'!H105 -> 0 | G44: ='SA9'!I105 -> 0 | H44: ='SA9'!J105 -> 0 | I44: ='SA9'!K105 -> 0 | J44: ='SA9'!L105 -> 0 | K44: ='SA9'!M105 -> 0
A45: =$A$14 -> Below Minimum Service Level sub-total | C45: =SUM(C40:C44) -> 0 | D45: 0 | E45: 0 | F45: 0 | G45: 0 | H45: 0 | I45: 0 | J45: 0 | K45: 0
A46: =$A$15 -> Total number of households | B46: =$B$15 -> 5 | C46: =C39+C45 -> 0 | D46: =D39+D45 -> 0 | E46: 0 | F46: 0 | G46: 0 | H46: 0 | I46: 0 | J46: 0 | K46: 0
A48: Households receiving Free Basic Service | B48: 7
A49: Water (6 kilolitres per household per month) | C49: ='SA9'!E263 -> 0 | D49: ='SA9'!F263 -> 0 | E49: ='SA9'!G263 -> 0 | F49: ='SA9'!H263 -> 0 | G49: ='SA9'!I263 -> 0 | H49: ='SA9'!J263 -> 0 | I49: ='SA9'!K263 -> 0 | J49: ='SA9'!L263 -> 0 | K49: ='SA9'!M263 -> 0
A50: Sanitation (free minimum level service) | C50: ='SA9'!E275 -> 0 | D50: ='SA9'!F275 -> 0 | E50: ='SA9'!G275 -> 0 | F50: ='SA9'!H275 -> 0 | G50: ='SA9'!I275 -> 0 | H50: ='SA9'!J275 -> 0 | I50: ='SA9'!K275 -> 0 | J50: ='SA9'!L275 -> 0 | K50: ='SA9'!M275 -> 0
A51: Electricity/other energy (50kwh per household per month) | C51: ='SA9'!E251 -> 0 | D51: ='SA9'!F251 -> 0 | E51: ='SA9'!G251 -> 0 | F51: ='SA9'!H251 -> 0 | G51: ='SA9'!I251 -> 0 | H51: ='SA9'!J251 -> 0 | I51: ='SA9'!K251 -> 0 | J51: ='SA9'!L251 -> 0 | K51: ='SA9'!M251 -> 0
A52: Refuse (removed at least once a week) | C52: ='SA9'!E287 -> 0 | D52: ='SA9'!F287 -> 0 | E52: ='SA9'!G287 -> 0 | F52: ='SA9'!H287 -> 0 | G52: ='SA9'!I287 -> 0 | H52: ='SA9'!J287 -> 0 | I52: ='SA9'!K287 -> 0 | J52: ='SA9'!L287 -> 0 | K52: ='SA9'!M287 -> 0
A54: Cost of Free Basic Services provided - Formal Settlements (R'000) | B54: 8
A55: Water (6 kilolitres per indigent household per month) | C55: ='SA1'!C20 -> 0 | D55: ='SA1'!D20 -> 0 | E55: ='SA1'!E20 -> 0 | F55: ='SA1'!F20 -> 0 | G55: ='SA1'!G20 -> 0 | H55: ='SA1'!H20 -> 0 | I55: ='SA1'!J20 -> 0 | J55: ='SA1'!K20 -> 0 | K55: ='SA1'!L20 -> 0
A56: Sanitation (free sanitation service to indigent households) | C56: ='SA1'!C26 -> 0 | D56: ='SA1'!D26 -> 0 | E56: ='SA1'!E26 -> 0 | F56: ='SA1'!F26 -> 0 | G56: ='SA1'!G26 -> 0 | H56: ='SA1'!H26 -> 0 | I56: ='SA1'!J26 -> 0 | J56: ='SA1'!K26 -> 0 | K56: ='SA1'!L26 -> 0
A57: Electricity/other energy (50kwh per indigent household per month) | C57: ='SA1'!C14 -> 0 | D57: ='SA1'!D14 -> -1044100.92 | E57: ='SA1'!E14 -> 0 | F57: ='SA1'!F14 -> -1374256 | G57: ='SA1'!G14 -> -1374256 | H57: ='SA1'!H14 -> -1374256 | I57: ='SA1'!J14 -> -1485571 | J57: ='SA1'!K14 -> -1562821 | K57: ='SA1'!L14 -> -1701912
A58: Refuse (removed once a week for indigent households) | C58: ='SA1'!C33 -> 0 | D58: ='SA1'!D33 -> 0 | E58: ='SA1'!E33 -> 0 | F58: ='SA1'!F33 -> 0 | G58: ='SA1'!G33 -> 0 | H58: ='SA1'!H33 -> 0 | I58: ='SA1'!J33 -> 0 | J58: ='SA1'!K33 -> 0 | K58: ='SA1'!L33 -> 0
A59: Cost of Free Basic Services provided - Informal Formal Settlements (R'000) | C59: ='SA9'!E260+'SA9'!E272+'SA9'!E284+'SA9'!E296 -> 0 | D59: ='SA9'!F260+'SA9'!F272+'SA9'!F284+'SA9'!F296 -> 0 | E59: ='SA9'!G260+'SA9'!G272+'SA9'!G284+'SA9'!G296 -> 0 | F59: ='SA9'!H260+'SA9'!H272+'SA9'!H284+'SA9'!H296 -> 0 | G59: ='SA9'!I260+'SA9'!I272+'SA9'!I284+'SA9'!I296 -> 0 | H59: ='SA9'!J260+'SA9'!J272+'SA9'!J284+'SA9'!J296 -> 0 | I59: ='SA9'!K260+'SA9'!K272+'SA9'!K284+'SA9'!K296 -> 0 | J59: ='SA9'!L260+'SA9'!L272+'SA9'!L284+'SA9'!L296 -> 0 | K59: ='SA9'!M260+'SA9'!M272+'SA9'!M284+'SA9'!M296 -> 0
A60: Total cost of FBS provided | C60: =SUM(C55:C59) -> 0 | D60: -1044100.92 | E60: 0 | F60: -1374256 | G60: -1374256 | H60: -1374256 | I60: -1485571 | J60: -1562821 | K60: -1701912
A62: Highest level of free service provided per household
A63: Property rates (R value threshold)
A64: Water (kilolitres per household per month)
A65: Sanitation (kilolitres per household per month)
A66: Sanitation (Rand per household per month)
A67: Electricity (kwh per household per month)
A68: Refuse (average litres per week)
A69: Revenue cost of subsidised services provided (R'000) | B69: 9
A70: Property rates (tariff adjustment) ( impermissable values per section 17 of MPRA)
A71: Property rates exemptions, reductions and rebates and impermissable values in excess of section 17 of MPRA) | C71: ='SA1'!C8 -> 0 | D71: ='SA1'!D8 -> 5120776.5 | E71: ='SA1'!E8 -> 5521868.3 | F71: ='SA1'!F8 -> -3282198 | G71: ='SA1'!G8 -> 1724122 | H71: ='SA1'!H8 -> 1724122 | I71: ='SA1'!J8 -> 1801708 | J71: ='SA1'!K8 -> 1884587 | K71: ='SA1'!L8 -> 1971277
A72: Water (in excess of 6 kilolitres per indigent household per month) | C72: ='SA1'!C19 -> 0 | D72: ='SA1'!D19 -> 0 | E72: ='SA1'!E19 -> 0 | F72: ='SA1'!F19 -> 0 | G72: ='SA1'!G19 -> 0 | H72: ='SA1'!H19 -> 0 | I72: ='SA1'!J19 -> 0 | J72: ='SA1'!K19 -> 0 | K72: ='SA1'!L19 -> 0
A73: Sanitation (in excess of free sanitation service to indigent households) | C73: ='SA1'!C25 -> 0 | D73: ='SA1'!D25 -> 0 | E73: ='SA1'!E25 -> 0 | F73: ='SA1'!F25 -> 0 | G73: ='SA1'!G25 -> 0 | H73: ='SA1'!H25 -> 0 | I73: ='SA1'!J25 -> 0 | J73: ='SA1'!K25 -> 0 | K73: ='SA1'!L25 -> 0
A74: Electricity/other energy (in excess of 50 kwh per indigent household per month) | C74: ='SA1'!C13 -> 0 | D74: ='SA1'!D13 -> 0 | E74: ='SA1'!E13 -> 0 | F74: ='SA1'!F13 -> 0 | G74: ='SA1'!G13 -> 0 | H74: ='SA1'!H13 -> 0 | I74: ='SA1'!J13 -> 0 | J74: ='SA1'!K13 -> 0 | K74: ='SA1'!L13 -> 0
A75: Refuse (in excess of one removal a week for indigent households) | C75: ='SA1'!C32 -> 0 | D75: ='SA1'!D32 -> 0 | E75: ='SA1'!E32 -> 0 | F75: ='SA1'!F32 -> 0 | G75: ='SA1'!G32 -> 0 | H75: ='SA1'!H32 -> 0 | I75: ='SA1'!J32 -> 0 | J75: ='SA1'!K32 -> 0 | K75: ='SA1'!L32 -> 0
A76: Municipal Housing - rental rebates
A77: Housing - top structure subsidies | B77: 6
A78: Other
A79: Total revenue cost of subsidised services provided | C79: =SUM(C70:C78) -> 0 | D79: =SUM(D70:D78) -> 5120776.5 | E79: 5521868.3 | F79: -3282198 | G79: 1724122 | H79: 1724122 | I79: 1801708 | J79: =SUM(J70:J78) -> 1884587 | K79: =SUM(K70:K78) -> 1971277
A80: =head27a -> References
A81: 1. Include services provided by another entity; e.g. Eskom
A82: 2. Stand distance <= 200m from dwelling
A83: 3. Stand distance > 200m from dwelling
A84: 4. Borehole, spring, rain-water tank etc.
A85: 5. Must agree to total number of households in municipal area (informal settlements receiving services must be included)
A86: 6. Include value of subsidy provided by municipality above provincial subsidy level
A87: 7. Show number of households receiving at least these levels of services completely free (informal settlements must be included)
A88: 8. Must reflect the cost to the municipality of providing the Free Basic Service
A89: 9. Reflect the cost to the municipality in terms of 'revenue foregone' of providing free services (note this will not equal 'Revenue Foregone' on SA1)

Sheet SA1
A1: =muni&" - "&TableA1 -> LIM353 Molemole - Supporting Table SA1 Supportinging detail to 'Budgeted Financial Performance'
A2: =desc -> Description | B2: =head27 -> Ref | C2: =head1b -> 2016/17 | D2: =head1A -> 2017/18 | E2: =Head1 -> 2018/19 | F2: =Head2 -> Current Year 2019/20 | J2: =Head3 -> 2020/21 Medium Term Revenue & Expenditure Framework
C3: =Head5 -> Audited Outcome | D3: =Head5 -> Audited Outcome | E3: =Head5 -> Audited Outcome | F3: =Head6 -> Original Budget | G3: =Head7 -> Adjusted Budget | H3: =Head8 -> Full Year Forecast | I3: =Head5b -> Pre-audit outcome | J3: =Head9 -> Budget Year 2020/21 | K3: =Head10 -> Budget Year +1 2021/22 | L3: =Head11 -> Budget Year +2 2022/23
A4: R thousand
A5: REVENUE ITEMS:
A6: ='A4-FinPerf RE'!A5 -> Property rates | B6: 6
A7: Total Property Rates | C7: 13663497 | D7: 21278790.47 | E7: 20100715.63 | F7: 12008985 | G7: 21582189 | H7: 21582189 | I7: 19324157.91 | J7: 22553391 | K7: 23590846 | L7: 24676026
A8: less Revenue Foregone (exemptions, reductions and rebates and impermissable values in excess of section 17 of MPRA) | C8: 0 | D8: 5120776.5 | E8: 5521868.3 | F8: -3282198 | G8: 1724122 | H8: 1724122 | I8: 4403809.7 | J8: 1801708 | K8: 1884587 | L8: 1971277
A9: Net Property Rates | C9: =C7-C8 -> 13663497 | D9: =D7-D8 -> 16158013.97 | E9: 14578847.33 | F9: 15291183 | G9: 19858067 | H9: 19858067 | I9: 14920348.21 | J9: 20751683 | K9: 21706259 | L9: 22704749
A11: ='A4-FinPerf RE'!A6 -> Service charges - electricity revenue | B11: 6
A12: ="Total "&A11 -> Total Service charges - electricity revenue | C12: 7129407 | D12: 3305460.77 | E12: 2736711.65 | F12: 7850261 | G12: 7850261 | H12: 7850261 | I12: 1209338.41 | J12: 8486134 | K12: 8927414 | L12: 9721954
A13: less Revenue Foregone (in excess of 50 kwh per indigent household per month)
A14: less Cost of Free Basis Services (50 kwh per indigent household per month) | C14: ='SA9'!E250 -> 0 | D14: ='SA9'!F250 -> -1044100.92 | E14: ='SA9'!G250 -> 0 | F14: ='SA9'!H250 -> -1374256 | G14: ='SA9'!I250 -> -1374256 | H14: ='SA9'!J250 -> -1374256 | J14: ='SA9'!K250 -> -1485571 | K14: ='SA9'!L250 -> -1562821 | L14: ='SA9'!M250 -> -1701912
A15: ="Net "& A11 -> Net Service charges - electricity revenue | C15: =C12-C13-C14 -> 7129407 | D15: =D12-D13-D14 -> 4349561.69 | E15: 2736711.65 | F15: 9224517 | G15: 9224517 | H15: 9224517 | I15: 1209338.41 | J15: 9971705 | K15: 10490235 | L15: 11423866
A17: ='A4-FinPerf RE'!A7 -> Service charges - water revenue | B17: 6
A18: ="Total "&A17 -> Total Service charges - water revenue | C18: 0 | D18: 0 | E18: 0 | F18: 0 | G18: 0 | H18: 0 | I18: -31216.78 | J18: 0 | K18: 0 | L18: 0
A19: less Revenue Foregone (in excess of 6 kilolitres per indigent household per month)
A20: less Cost of Free Basis Services (6 kilolitres per indigent household per month) | C20: ='SA9'!E262 -> 0 | D20: ='SA9'!F262 -> 0 | E20: ='SA9'!G262 -> 0 | F20: ='SA9'!H262 -> 0 | G20: ='SA9'!I262 -> 0 | H20: ='SA9'!J262 -> 0 | J20: ='SA9'!K262 -> 0 | K20: ='SA9'!L262 -> 0 | L20: ='SA9'!M262 -> 0
A21: ="Net "& A17 -> Net Service charges - water revenue | C21: =C18-C19-C20 -> 0 | D21: =D18-D19-D20 -> 0 | E21: 0 | F21: 0 | G21: 0 | H21: 0 | I21: -31216.78 | J21: 0 | K21: 0 | L21: 0
A23: ='A4-FinPerf RE'!A8 -> Service charges - sanitation revenue
A24: ="Total "&A23 -> Total Service charges - sanitation revenue | C24: 0 | D24: 0 | E24: 0 | F24: 0 | G24: 0 | H24: 0 | I24: 581990.98 | J24: 0 | K24: 0 | L24: 0
A25: less Revenue Foregone (in excess of free sanitation service to indigent households)
A26: less Cost of Free Basis Services (free sanitation service to indigent households) | C26: ='SA9'!E274 -> 0 | D26: ='SA9'!F274 -> 0 | E26: ='SA9'!G274 -> 0 | F26: ='SA9'!H274 -> 0 | G26: ='SA9'!I274 -> 0 | H26: ='SA9'!J274 -> 0 | J26: ='SA9'!K274 -> 0 | K26: ='SA9'!L274 -> 0 | L26: ='SA9'!M274 -> 0
A27: ="Net "& A23 -> Net Service charges - sanitation revenue | C27: =C24-C25-C26 -> 0 | D27: =D24-D25-D26 -> 0 | E27: 0 | F27: 0 | G27: 0 | H27: 0 | I27: 581990.98 | J27: 0 | K27: 0 | L27: 0
A29: ='A4-FinPerf RE'!A9 -> Service charges - refuse revenue | B29: 6
A30: Total refuse removal revenue | C30: 1830294 | D30: 1763228.47 | E30: 1848066.44 | F30: 2288337 | G30: 2288337 | H30: 2288337 | I30: 1669143.26 | J30: 2391314 | K30: 2501313 | L30: 2616374
A31: Total landfill revenue
A32: less Revenue Foregone (in excess of one removal a week to indigent households)
A33: less Cost of Free Basis Services (removed once a week to indigent households) | C33: ='SA9'!E286 -> 0 | D33: ='SA9'!F286 -> 0 | E33: ='SA9'!G286 -> 0 | F33: ='SA9'!H286 -> 0 | G33: ='SA9'!I286 -> 0 | H33: ='SA9'!J286 -> 0 | J33: ='SA9'!K286 -> 0 | K33: ='SA9'!L286 -> 0 | L33: ='SA9'!M286 -> 0
A34: ="Net "& A29 -> Net Service charges - refuse revenue | C34: =SUM(C30:C31)-C32-C33 -> 1830294 | D34: =SUM(D30:D31)-D32-D33 -> 1763228.47 | E34: 1848066.44 | F34: 2288337 | G34: 2288337 | H34: 2288337 | I34: 1669143.26 | J34: 2391314 | K34: 2501313 | L34: 2616374
A36: Other Revenue by source
A37: Fuel Levy
A38: Other Revenue | C38: 31450409 | D38: 2606805.23 | E38: 319060.68 | F38: 34711332 | G38: 28164290 | H38: 28164290 | I38: 878837.84 | J38: 27854441 | K38: 32904078 | L38: 37230351
A49: Total 'Other' Revenue | B49: 1 | C49: =SUM(C37:C38) -> 31450409 | D49: =SUM(D37:D38) -> 2606805.23 | E49: =SUM(E37:E38) -> 319060.68 | F49: 34711332 | G49: 28164290 | H49: 28164290 | I49: 878837.84 | J49: 27854441 | K49: 32904078 | L49: 37230351
A51: EXPENDITURE ITEMS:
A52: ='A4-FinPerf RE'!A24 -> Employee related costs
A53: Basic Salaries and Wages | B53: 2 | C53: 66931271 | D53: 42470481.53 | E53: 50609522.76 | F53: 55507247 | G53: 55122752 | H53: 55122752 | I53: 41113535.02 | J53: 58497904 | K53: 62610448 | L53: 66963745
A54: Pension and UIF Contributions | C54: 0 | D54: 8333117.95 | E54: 9648927.37 | F54: 11429013 | G54: 11592877 | H54: 11592877 | I54: 7805085.09 | J54: 12317176 | K54: 13179691 | L54: 14102267
A55: Medical Aid Contributions | C55: 0 | D55: 3175511.01 | E55: 3721477.9 | F55: 6109606 | G55: 4801767 | H55: 4801767 | I55: 3031638.18 | J55: 5102117 | K55: 5459265 | L55: 5841410
A56: Overtime | C56: 0 | D56: 566312.68 | E56: 638779.72 | F56: 1482467 | G56: 1277444 | H56: 1277444 | I56: 474242.74 | J56: 1357292 | K56: 1452301 | L56: 1553964
A57: Performance Bonus | C57: 0 | D57: 4055602.7 | E57: 5018154.56 | F57: 6573988 | G57: 5611735 | H57: 5611735 | I57: 4320403.09 | J57: 5962478 | K57: 6379862 | L57: 6826437
A58: Motor Vehicle Allowance | C58: 0 | D58: 4488197.7 | E58: 4791824.27 | F58: 6010882 | G58: 6370037 | H58: 6370037 | I58: 3848894.97 | J58: 6768176 | K58: 7241950 | L58: 7748884
A59: Cellphone Allowance | C59: 0 | D59: 865931.42 | E59: 1166704.66 | F59: 1241700 | G59: 1221700 | H59: 1221700 | I59: 835562.73 | J59: 1298067 | K59: 1388923 | L59: 1486162
A60: Housing Allowances | C60: 0 | D60: 133047.63 | E60: 150200.37 | F60: 261432 | G60: 349684 | H60: 349684 | I60: 138888.36 | J60: 371545 | K60: 397549 | L60: 425381
A61: Other benefits and allowances | C61: 0 | D61: 1275314.55 | E61: 583580.59 | F61: 1173535 | G61: 1311135 | H61: 1311135 | I61: 501991.03 | J61: 1393113 | K61: 1490629 | L61: 1594967
A62: Payments in lieu of leave | C62: 0 | D62: 1143719.98 | E62: 153670.48 | F62: 1599470 | G62: 1700664 | H62: 1700664 | I62: 375021.11 | J62: 1806968 | K62: 1933455 | L62: 2068796
A63: Long service awards | C63: 0 | D63: 319783 | E63: 346236 | F63: 470121 | G63: 470121 | H63: 470121 | I63: 222025.09 | J63: 499507 | K63: 534472 | L63: 571886
A64: Post-retirement benefit obligations | B64: 4 | C64: 0 | D64: -871983 | E64: 2159863 | F64: 2126532 | G64: 2626532 | H64: 2626532 | I64: 0 | J64: 2790736 | K64: 2986083 | L64: 3195107
A65: sub-total | B65: 5 | C65: =SUM(C53:C64) -> 66931271 | D65: =SUM(D53:D64) -> 65955037.15 | E65: 78988941.68 | F65: 93985993 | G65: 92456448 | H65: 92456448 | I65: 62667287.41 | J65: 98165079 | K65: 105054628 | L65: 112379006
A66: Less: Employees costs capitalised to PPE | C66: 0 | D66: 0 | E66: 0 | F66: 0 | G66: 0 | H66: 0 | I66: 0 | J66: 0 | K66: 0 | L66: 0
A67: ="Total "&A52 -> Total Employee related costs | B67: 1 | C67: =C65-C66 -> 66931271 | D67: =D65-D66 -> 65955037.15 | E67: 78988941.68 | F67: 93985993 | G67: 92456448 | H67: 92456448 | I67: 62667287.41 | J67: 98165079 | K67: 105054628 | L67: 112379006
A78: ='A4-FinPerf RE'!A27 -> Depreciation & asset impairment
A79: Depreciation of Property, Plant & Equipment | C79: 8529313 | D79: 7541581.67 | E79: 11459146.5 | F79: 8622495 | G79: 14317905 | H79: 14317905 | I79: 12292526.14 | J79: 14962239 | K79: 15650325 | L79: 16370057
A80: Lease amortisation | C80: 0 | D80: 319638.79 | E80: 818014.6 | F80: 37447 | G80: 819306 | H80: 819306 | I80: 605509.63 | J80: 856176 | K80: 895560 | L80: 936757
A81: Capital asset impairment
A83: ="Total "&LEFT(A78,35) -> Total Depreciation & asset impairment | B83: 1 | C83: =SUM(C79:C81) -> 8529313 | D83: =SUM(D79:D81) -> 7861220.46 | E83: 12277161.1 | F83: 8659942 | G83: 15137211 | H83: 15137211 | I83: 12898035.77 | J83: 15818415 | K83: 16545885 | L83: 17306814
A85: ='A4-FinPerf RE'!A29 -> Bulk purchases
A86: Electricity Bulk Purchases | C86: 7502657 | D86: 9172581.04 | E86: 9419062.61 | F86: 8268000 | G86: 8268000 | H86: 8268000 | I86: 7975382.44 | J86: 8937708 | K86: 9402469 | L86: 10239289
A87: Water Bulk Purchases
A88: Total bulk purchases | B88: 1 | C88: =SUM(C86:C87) -> 7502657 | D88: =SUM(D86:D87) -> 9172581.04 | E88: 9419062.61 | F88: 8268000 | G88: 8268000 | H88: 8268000 | I88: 7975382.44 | J88: 8937708 | K88: 9402469 | L88: 10239289
A90: Transfers and grants
A91: Cash transfers and grants | C91: ='SA21'!C32 -> 0 | D91: ='SA21'!D32 -> 0 | E91: ='SA21'!E32 -> 0 | F91: ='SA21'!F32 -> 0 | G91: ='SA21'!G32 -> 0 | H91: ='SA21'!H32 -> 0 | I91: ='SA21'!I32 -> 0 | J91: ='SA21'!J32 -> 0 | K91: ='SA21'!K32 -> 0 | L91: ='SA21'!L32 -> 0
A92: Non-cash transfers and grants | C92: ='SA21'!C63 -> 0 | D92: ='SA21'!D63 -> 0 | E92: ='SA21'!E63 -> 0 | F92: ='SA21'!F63 -> 0 | G92: ='SA21'!G63 -> 0 | H92: ='SA21'!H63 -> 0 | I92: ='SA21'!I63 -> 0 | J92: ='SA21'!J63 -> 0 | K92: ='SA21'!K63 -> 0 | L92: ='SA21'!L63 -> 0
A93: Total transfers and grants | B93: 1 | C93: =SUM(C91:C92) -> 0 | D93: =SUM(D91:D92) -> 0 | E93: 0 | F93: 0 | G93: 0 | H93: 0 | I93: 0 | J93: 0 | K93: 0 | L93: 0
A95: ='A4-FinPerf RE'!A31 -> Contracted services
A96: Outsourced Services | C96: 0 | D96: 8575412.33 | E96: 9609835.11 | F96: 10565970 | G96: 10165970 | H96: 10165970 | I96: 6466125.58 | J96: 8609234 | K96: 9010861 | L96: 9431301
A97: Consultants and Professional Services | C97: 0 | D97: 10091409.89 | E97: 12121617.48 | F97: 14236346 | G97: 15204057 | H97: 15204057 | I97: 7576591.73 | J97: 14534210 | K97: 15897284 | L97: 14639231
A98: Contractors | C98: 3133474 | D98: 4335069.78 | E98: 5591441.41 | F98: 9861385 | G98: 9440710 | H98: 9440710 | I98: 4749443.31 | J98: 7217299 | K98: 5866654 | L98: 6671842
A127: Total contracted services | C127: =SUM(C96:C98) -> 3133474 | D127: =SUM(D96:D98) -> 23001892 | E127: 27322894 | F127: 34663701 | G127: 34810737 | H127: 34810737 | I127: 18792160.62 | J127: 30360743 | K127: 30774799 | L127: 30742374
A129: Other Expenditure By Type
A130: Collection costs
A131: Contributions to 'other' provisions
A133: Audit fees | C133: 0 | D133: 2466080.14 | E133: 2815461.65 | F133: 3000000 | G133: 3000000 | H133: 3000000 | I133: 2642840.18 | J133: 3135000 | K133: 3279210 | L133: 3430054
A136: Other Expenditure | C136: 57546864 | D136: 33420453.47 | E136: 39380728 | F136: 30892564 | G136: 32121748 | H136: 32121748 | I136: 19805543.35 | J136: 33891198 | K136: 34033072 | L136: 35699143
A157: Total 'Other' Expenditure | B157: 1 | C157: =+C130+C131+C133+C136 -> 57546864 | D157: =+D130+D131+D133+D136 -> 35886533.61 | E157: 42196189.65 | F157: 33892564 | G157: 35121748 | H157: 35121748 | I157: 22448383.53 | J157: 37026198 | K157: 37312282 | L157: 39129197
A159: Repairs and Maintenance by Expenditure Item | B159: 8
A160: Employee related costs
A161: Other materials | C161: 0 | D161: -6410.65 | E161: 170282.79 | F161: 0 | G161: 95109 | H161: 95109 | I161: 95668.94 | J161: 99389 | K161: 103961 | L161: 108743
A162: Contracted Services | C162: 0 | D162: 6194055.13 | E162: 7692031.67 | F162: 8422987 | G162: 8372987 | H162: 8372987 | I162: 5577648.98 | J162: 7424772 | K162: 7766314 | L162: 8123567
A163: Other Expenditure | C163: 5110596
A164: Total Repairs and Maintenance Expenditure | B164: 9 | C164: =SUM(C160:C163) -> 5110596 | D164: =SUM(D160:D163) -> 6187644.48 | E164: 7862314.46 | F164: 8422987 | G164: 8468096 | H164: 8468096 | I164: 5673317.92 | J164: 7524161 | K164: 7870275 | L164: 8232310
A166: check | C166: =C164-SA34c!C167 -> 0 | D166: =D164-SA34c!D167 -> 0 | E166: =E164-SA34c!E167 -> 0 | F166: =F164-SA34c!F167 -> 0 | G166: =G164-SA34c!G167 -> 0 | H166: =H164-SA34c!H167 -> 0 | J166: =J164-SA34c!I167 -> 0 | K166: =K164-SA34c!J167 -> 0 | L166: =L164-SA34c!K167 -> 0
A169: =head27a -> References
A170: 1. Must reconcile with 'Budgeted Financial Performance (Revenue and Expenditure)
A171: 2. Must reconcile to supporting documentation on staff salaries
A173: 4. Expenditure to meet any 'unfunded obligations'
A174: 5 This sub-total must agree with the total on SA22, but excluding councillor and board member items
A175: 6. Include a note for each revenue item that is affected by 'revenue foregone'
A176: 7. Special consideration may have to be given to including 'goodwill arising' or 'joint venture' budgets where circumstances require this (include separately under relevant notes)
A177: 8. Repairs and Maintenance is not a GRAP item. However to facilitate transparency, municipalities must provide a breakdown of the amounts included in the relevant GRAP items that will be spent on Repairs and Maintenance.
A178: 9. Must reconcile with Repairs and Maintenance by Asset Class (Total Repairs and Maintenance) on Table SA34c.
A179: 10. Only applicable to municipalities that have adopted the 'revaluation method' in GRAP 17. The aim is to prevent overstating 'depreciation and asset impairment'

Sheet SA2
A1: =muni&" - "&TableA2 -> LIM353 Molemole - Supporting Table SA2 Matrix Financial Performance Budget (revenue source/expenditure type and dept.)
A2: =desc -> Description | B2: =head27 -> Ref | C2: ='A3-FinPerf V'!A5 -> Vote 01 - Corporate Services | D2: ='A3-FinPerf V'!A6 -> Vote 02 - Municipal Manager | E2: ='A3-FinPerf V'!A7 -> Vote 03 - Mayors Office | F2: ='A3-FinPerf V'!A8 -> Vote 04 - Budget And Treasury | G2: ='A3-FinPerf V'!A9 -> Vote 05 - Community Services | H2: ='A3-FinPerf V'!A10 -> Vote 06 - Technical Services | I2: ='A3-FinPerf V'!A11 -> Vote 07 - | J2: ='A3-FinPerf V'!A12 -> Vote 08 - | K2: ='A3-FinPerf V'!A13 -> Vote 09 - | L2: ='A3-FinPerf V'!A14 -> Vote 10 - | M2: ='A3-FinPerf V'!A15 -> Vote 11 - | N2: ='A3-FinPerf V'!A16 -> Vote 12 - | O2: ='A3-FinPerf V'!A17 -> Vote 13 - | P2: ='A3-FinPerf V'!A18 -> Vote 14 - | Q2: ='A3-FinPerf V'!A19 -> Vote 15 - Other | R2: Total
A3: R thousand | B3: 1 | R3: R'000
A4: ='A4-FinPerf RE'!A4 -> Revenue By Source
A5: ='A4-FinPerf RE'!A5 -> Property rates | C5: 0 | D5: 0 | E5: 0 | F5: 20751683 | G5: 0 | H5: 0 | I5: 0 | J5: 0 | K5: 0 | L5: 0 | M5: 0 | N5: 0 | O5: 0 | P5: 0 | Q5: 0 | R5: =SUM(C5:Q5) -> 20751683
A6: ='A4-FinPerf RE'!A6 -> Service charges - electricity revenue | C6: 0 | D6: 0 | E6: 0 | F6: 0 | G6: 0 | H6: 9971705 | I6: 0 | J6: 0 | K6: 0 | L6: 0 | M6: 0 | N6: 0 | O6: 0 | P6: 0 | Q6: 0 | R6: =SUM(C6:Q6) -> 9971705
